Workbook

Sheet Purlin
B1: Purlin steel design : ASD | AK1: Created & Development
B2: ◙ Project | E2: : | F2: อาคารพานิชย์ 3 ชั้น | R2: ◙ Date | V2: : | W2: =TODAY() -> 2012-12-09 | AC2: ◙ Time | AF2: : | AG2: =NOW() -> 41252.77582 | AK2: Mr. Jirawat Kaewsup | AR2: 2 | AU2: 1 | AV2: 4
B3: ◙ Owner | E3: : | F3: คุณสมหวัง ดังปรารถนา | R3: ◙ Engineer | V3: : | W3: นายจิรวัฒน์ แก้วทรัพย์ | AC3: ◙ License | AF3: : | AG3: ภย.30857 | AK3: Introduction | AR3: E | AS3: 2040000 | AU3: 2 | AV3: =IF(AV2=1,"RB 6",IF(AV2=2,"RB 9",IF(AV2=3,"RB 12",IF(AV2=4,"RB 15",IF(AV2=5,"RB 19",IF(AV2=6,"RB 25",IF(AV2=7,"RB 28",IF(AV2=8,"RB 34",IF(AV2=9,"DB 10",IF(AV2=10,"DB 12",IF(AV2=11,"DB 16",IF(AV2=12,"DB 20",IF(AV2=13,"DB 22",IF(AV2=14,"DB 25",IF(AV2=15,"DB 28",IF(AV2=16,"DB 32",IF(AV2=17,"DB 34",IF(AV2=18,"DB 40")))))))))))))))))) -> RB 15
B4: ◙ Location | E4: : | F4: ตำบลในเมือง อำเภอเมือง จังหวัดนครราชสีมา | R4: ◙ Purlin No. | V4: : | W4: Purlin-1 | AC4: ◙ Floor | AF4: : | AG4: Roof | AK4: -ออกแบบตามมาตรฐาน AISC หรือ ว.ส.ท. | AS4: 2100000 | AU4: 3 | AV4: Fe-24
AK5: -Allowable Stress Design : ASD | AR5: ɵ | AS5: =ATAN(AE21/(AE22/2)) -> 0.5222516943 | AU5: 4 | AV5: Fe-30
AK6: -ป้อนข้อมูลเฉพาะตัวอักษรหรือตัวเลขสีน้ำเงิน | AR6: L/2 | AS6: =AE22/2 -> 4.5 | AT6: m. | AU6: Yes
AR7: Wx | AS7: =ROUNDDOWN(G28,2)&" kg./m." -> 16.67 kg./m. | AU7: No
AR8: Wy | AS8: =ROUNDDOWN(G29,2)&" kg./m." -> 31.9 kg./m.
AR9: W | AS9: =ROUNDDOWN(AE25,2)&" kg./m." -> 33.42 kg./m.
AR10: L/2 | AS10: =G29/2 -> 15.95474004
AR11: Win load | AS11: =(S24*(2*SIN(AS5))/(1+(SIN(AS5)^2)))*AE23 -> 13.58092097 | AT11: kg./m.
AR12: sagrod | AS12: =SQRT((AE21^2)+(AS6^2)) -> 5.192119028 | AT12: m.
AS13: =ROUNDUP(AS12/AE23,0)+1 -> 17 | AT13: bar.
AS14: =IF(AE37=1,AE24/2,IF(AE37=2,AE24/3,IF(AE37=3,AE24/4,IF(AE37=4,AE24/5)))) -> 0.5 | AT14: m.
AS15: =AE35*AS14*AS13 -> 9.52 | AT15: kg.
AS16: =((S21+S23+S25)*AS14*AS12)+AS15 -> 256.1456538 | AT16: kg.
AS17: =AS16*SIN(AS5) -> 127.7738896 | AT17: kg.
AQ18: =IF(AR2=1,"Use : C-Light Lip Channel",IF(AR2=2,"Use : Square Tube",IF(AR2=3,"Use : Rectangular Tube",IF(AR2=4,"Use : Equal leg Angel",IF(AR2=5,"Use : C-Channel",IF(AR2=6,"Use : WF-Wide Flange",IF(AR2=7,"Use : I-Beam",IF(AR2=8,"Use : Unequal leg Angel")))))))) -> Use : Square Tube
B20: Input Data
B21: Use Steel Grade | F21: = | G21: Fe-24 | N21: roofing material | R21: = | S21: 50 | W21: kg./m.2 | Z21: H | AD21: = | AE21: 2.59 | AI21: m.
B22: Es | F22: = | G22: 2100000 | K22: kg./cm.2 | N22: Weight of purlin | R22: = | S22: 1.12 | W22: kg./m. | Z22: L | AD22: = | AE22: 9 | AI22: m.
B23: Fy | F23: = | G23: =IF(G21="Fe-24",2400,IF(G21="Fe-30",3000)) -> 2400 | K23: kg./cm.2 | N23: Live load | R23: = | S23: 30 | W23: kg./m.2 | Z23: s | AD23: = | AE23: 0.34 | AI23: m.
B24: Fb | F24: = | G24: =0.6*G23 -> 1440 | K24: kg./cm.2 | N24: Wind load | R24: = | S24: 50 | W24: kg./m.2 | Z24: D | AD24: = | AE24: 1 | AI24: m.
B25: Sagrod design | F25: = | G25: No | N25: Weight Ect. | R25: = | S25: 15 | W25: kg./m.2 | Z25: Wg | AD25: = | AE25: =((S21+S23+S25)*AE23)+S22 -> 33.42 | AI25: kg./m.
B26: Analysis & Design | Z26: Steel property | AR26: C-Light Lip Channel | AU26: Square Tube | AX26: Rectangular Tube | BA26: Equal leg Angle | BD26: C-Channel | BG26: WF-Wide Flange | BJ26: I-Beam | BM26: Unequal leg Angle
B27: ɵ | F27: = | G27: =DEGREES(ATAN(AE21/(AE22/2))) -> 29.92281793 | K27: degree | N27: Mx | R27: = | S27: =G29*(AE24^2)/9 -> 3.545497786 | W27: kg./m. | Z27: Select | AD27: 25x25x1.6 | AI27: mm. | AR27: Ix | AS27: =IF(AND(AR2=1,AD27=AO342),VLOOKUP(1,AN342:BC386,9,FALSE),IF(AND(AR2=1,AD27=AO343),VLOOKUP(2,AN342:BC386,9,FALSE),IF(AND(AR2=1,AD27=AO344),VLOOKUP(3,AN342:BC386,9,FALSE),IF(AND(AR2=1,AD27=AO345),VLOOKUP(4,AN342:BC386,9,FALSE),IF(AND(AR2=1,AD27=AO346),VLOOKUP(5,AN342:BC386,9,FALSE),IF(AND(AR2=1,AD27=AO347),VLOOKUP(6,AN342:BC386,9,FALSE),IF(AND(AR2=1,AD27=AO348),VLOOKUP(7,AN342:BC386,9,FALSE),IF(AND(AR2=1,AD27=AO349),VLOOKUP(8,AN342:BC386,9,FALSE),IF(AND(AR2=1,AD27=AO350),VLOOKUP(9,AN342:BC386,9,FALSE),IF(AND(AR2=1,AD27=AO351),VLOOKUP(10,AN342:BC386,9,FALSE),IF(AND(AR2=1,AD27=AO352),VLOOKUP(11,AN342:BC386,9,FALSE),IF(AND(AR2=1,AD27=AO353),VLOOKUP(12,AN342:BC386,9,FALSE),IF(AND(AR2=1,AD27=AO354),VLOOKUP(13,AN342:BC386,9,FALSE),IF(AND(AR2=1,AD27=AO355),VLOOKUP(14,AN342:BC386,9,FALSE),IF(AND(AR2=1,AD27=AO356),VLOOKUP(15,AN342:BC386,9,FALSE),IF(AND(AR2=1,AD27=AO357),VLOOKUP(16,AN342:BC386,9,FALSE),IF(AND(AR2=1,AD27=AO358),VLOOKUP(17,AN342:BC386,9,FALSE),IF(AND(AR2=1,AD27=AO359),VLOOKUP(18,AN342:BC386,9,FALSE),IF(AND(AR2=1,AD27=AO360),VLOOKUP(19,AN342:BC386,9,FALSE),IF(AND(AR2=1,AD27=AO361),VLOOKUP(20,AN342:BC386,9,FALSE),IF(AND(AR2=1,AD27=AO362),VLOOKUP(21,AN342:BC386,9,FALSE),IF(AND(AR2=1,AD27=AO363),VLOOKUP(22,AN342:BC386,9,FALSE),IF(AND(AR2=1,AD27=AO364),VLOOKUP(23,AN342:BC386,9,FALSE),IF(AND(AR2=1,AD27=AO365),VLOOKUP(24,AN342:BC386,9,FALSE),IF(AND(AR2=1,AD27=AO366),VLOOKUP(25,AN342:BC386,9,FALSE),IF(AND(AR2=1,AD27=AO367),VLOOKUP(26,AN342:BC386,9,FALSE),IF(AND(AR2=1,AD27=AO368),VLOOKUP(27,AN342:BC386,9,FALSE),IF(AND(AR2=1,AD27=AO369),VLOOKUP(28,AN342:BC386,9,FALSE),IF(AND(AR2=1,AD27=AO370),VLOOKUP(29,AN342:BC386,9,FALSE),IF(AND(AR2=1,AD27=AO371),VLOOKUP(30,AN342:BC386,9,FALSE),IF(AND(AR2=1,AD27=AO372),VLOOKUP(31,AN342:BC386,9,FALSE),IF(AND(AR2=1,AD27=AO373),VLOOKUP(32,AN342:BC386,9,FALSE),IF(AND(AR2=1,AD27=AO374),VLOOKUP(33,AN342:BC386,9,FALSE),IF(AND(AR2=1,AD27=AO375),VLOOKUP(34,AN342:BC386,9,FALSE),IF(AND(AR2=1,AD27=AO376),VLOOKUP(35,AN342:BC386,9,FALSE),IF(AND(AR2=1,AD27=AO377),VLOOKUP(36,AN342:BC386,9,FALSE),IF(AND(AR2=1,AD27=AO378),VLOOKUP(37,AN342:BC386,9,FALSE),IF(AND(AR2=1,AD27=AO379),VLOOKUP(38,AN342:BC386,9,FALSE),IF(AND(AR2=1,AD27=AO380),VLOOKUP(39,AN342:BC386,9,FALSE),IF(AND(AR2=1,AD27=AO381),VLOOKUP(40,AN342:BC386,9,FALSE),IF(AND(AR2=1,AD27=AO382),VLOOKUP(41,AN342:BC386,9,FALSE),IF(AND(AR2=1,AD27=AO383),VLOOKUP(42,AN342:BC386,9,FALSE),IF(AND(AR2=1,AD27=AO384),VLOOKUP(43,AN342:BC386,9,FALSE),IF(AND(AR2=1,AD27=AO385),VLOOKUP(44,AN342:BC386,9,FALSE),IF(AND(AR2=1,AD27=AO386),VLOOKUP(45,AN342:BC386,9,FALSE)))))))))))))))))))))))))))))))))))))))))))))) -> FALSE | AT27: cm4 | AU27: Ix | AV27: =IF(AND(AR2=2,AD27=AO443),VLOOKUP(1,AN443:BH475,8,FALSE),IF(AND(AR2=2,AD27=AO444),VLOOKUP(2,AN443:BH475,8,FALSE),IF(AND(AR2=2,AD27=AO445),VLOOKUP(3,AN443:BH475,8,FALSE),IF(AND(AR2=2,AD27=AO446),VLOOKUP(4,AN443:BH475,8,FALSE),IF(AND(AR2=2,AD27=AO447),VLOOKUP(5,AN443:BH475,8,FALSE),IF(AND(AR2=2,AD27=AO448),VLOOKUP(6,AN443:BH474,8,FALSE),IF(AND(AR2=2,AD27=AO449),VLOOKUP(7,AN443:BH475,8,FALSE),IF(AND(AR2=2,AD27=AO450),VLOOKUP(8,AN443:BH475,8,FALSE),IF(AND(AR2=2,AD27=AO451),VLOOKUP(9,AN443:BH475,8,FALSE),IF(AND(AR2=2,AD27=AO452),VLOOKUP(10,AN443:BH475,8,FALSE),IF(AND(AR2=2,AD27=AO453),VLOOKUP(11,AN443:BH475,8,FALSE),IF(AND(AR2=2,AD27=AO454),VLOOKUP(12,AN443:BH475,8,FALSE),IF(AND(AR2=2,AD27=AO455),VLOOKUP(13,AN443:BH475,8,FALSE),IF(AND(AR2=2,AD27=AO456),VLOOKUP(14,AN443:BH475,8,FALSE),IF(AND(AR2=2,AD27=AO457),VLOOKUP(15,AN443:BH475,8,FALSE),IF(AND(AR2=2,AD27=AO458),VLOOKUP(16,AN443:BH475,8,FALSE),IF(AND(AR2=2,AD27=AO459),VLOOKUP(17,AN443:BH475,8,FALSE),IF(AND(AR2=2,AD27=AO460),VLOOKUP(18,AN443:BH475,8,FALSE),IF(AND(AR2=2,AD27=AO461),VLOOKUP(19,AN443:BH475,8,FALSE),IF(AND(AR2=2,AD27=AO462),VLOOKUP(20,AN443:BH475,8,FALSE),IF(AND(AR2=2,AD27=AO463),VLOOKUP(21,AN443:BH475,8,FALSE),IF(AND(AR2=2,AD27=AO464),VLOOKUP(22,AN443:BH475,8,FALSE),IF(AND(AR2=2,AD27=AO465),VLOOKUP(23,AN443:BH475,8,FALSE),IF(AND(AR2=2,AD27=AO466),VLOOKUP(24,AN443:BH475,8,FALSE),IF(AND(AR2=2,AD27=AO467),VLOOKUP(25,AN443:BH475,8,FALSE),IF(AND(AR2=2,AD27=AO468),VLOOKUP(26,AN443:BH475,8,FALSE),IF(AND(AR2=2,AD27=AO469),VLOOKUP(27,AN443:BH475,8,FALSE),IF(AND(AR2=2,AD27=AO470),VLOOKUP(28,AN443:BH475,8,FALSE),IF(AND(AR2=2,AD27=AO471),VLOOKUP(29,AN443:BH475,8,FALSE),IF(AND(AR2=2,AD27=AO472),VLOOKUP(30,AN443:BH475,8,FALSE),IF(AND(AR2=2,AD27=AO473),VLOOKUP(31,AN443:BH475,8,FALSE),IF(AND(AR2=2,AD27=AO474),VLOOKUP(32,AN443:BH475,8,FALSE),IF(AND(AR2=2,AD27=AO475),VLOOKUP(33,AN443:BH475,8,FALSE)))))))))))))))))))))))))))))))))) -> 1.28 | AW27: cm4 | AX27: Ix | AY27: =IF(AND(AR2=3,AD27=AO402),VLOOKUP(1,AN402:AZ427,8,FALSE),IF(AND(AR2=3,AD27=AO403),VLOOKUP(2,AN402:AZ427,8,FALSE),IF(AND(AR2=3,AD27=AO404),VLOOKUP(3,AN402:AZ427,8,FALSE),IF(AND(AR2=3,AD27=AO405),VLOOKUP(4,AN402:AZ427,8,FALSE),IF(AND(AR2=3,AD27=AO406),VLOOKUP(5,AN402:AZ427,8,FALSE),IF(AND(AR2=3,AD27=AO407),VLOOKUP(6,AN402:AZ427,8,FALSE),IF(AND(AR2=3,AD27=AO408),VLOOKUP(7,AN402:AZ427,8,FALSE),IF(AND(AR2=3,AD27=AO409),VLOOKUP(8,AN402:AZ427,8,FALSE),IF(AND(AR2=3,AD27=AO410),VLOOKUP(9,AN402:AZ427,8,FALSE),IF(AND(AR2=3,AD27=AO411),VLOOKUP(10,AN402:AZ427,8,FALSE),IF(AND(AR2=3,AD27=AO412),VLOOKUP(11,AN402:AZ427,8,FALSE),IF(AND(AR2=3,AD27=AO413),VLOOKUP(12,AN402:AZ427,8,FALSE),IF(AND(AR2=3,AD27=AO414),VLOOKUP(13,AN402:AZ427,8,FALSE),IF(AND(AR2=3,AD27=AO415),VLOOKUP(14,AN402:AZ427,8,FALSE),IF(AND(AR2=3,AD27=AO416),VLOOKUP(15,AN402:AZ427,8,FALSE),IF(AND(AR2=3,AD27=AO417),VLOOKUP(16,AN402:AZ427,8,FALSE),IF(AND(AR2=3,AD27=AO418),VLOOKUP(17,AN402:AZ427,8,FALSE),IF(AND(AR2=3,AD27=AO419),VLOOKUP(18,AN402:AZ427,8,FALSE),IF(AND(AR2=3,AD27=AO420),VLOOKUP(19,AN402:AZ427,8,FALSE),IF(AND(AR2=3,AD27=AO421),VLOOKUP(20,AN402:AZ427,8,FALSE),IF(AND(AR2=3,AD27=AO422),VLOOKUP(21,AN402:AZ427,8,FALSE),IF(AND(AR2=3,AD27=AO423),VLOOKUP(22,AN402:AZ427,8,FALSE),IF(AND(AR2=3,AD27=AO424),VLOOKUP(23,AN402:AZ427,8,FALSE),IF(AND(AR2=3,AD27=AO425),VLOOKUP(24,AN402:AZ427,8,FALSE),IF(AND(AR2=3,AD27=AO426),VLOOKUP(25,AN402:AZ427,8,FALSE),IF(AND(AR2=3,AD27=AO427),VLOOKUP(26,AN402:AZ427,8,FALSE))))))))))))))))))))))))))) -> FALSE | AZ27: cm4 | BA27: Ix | BB27: =IF(AND(AR2=4,AD27=AO157),VLOOKUP(1,AN157:BG202,11,FALSE),IF(AND(AR2=4,AD27=AO158),VLOOKUP(2,AN157:BG202,11,FALSE),IF(AND(AR2=4,AD27=AO159),VLOOKUP(3,AN157:BG202,11,FALSE),IF(AND(AR2=4,AD27=AO160),VLOOKUP(4,AN157:BG202,11,FALSE),IF(AND(AR2=4,AD27=AO161),VLOOKUP(5,AN157:BG202,11,FALSE),IF(AND(AR2=4,AD27=AO162),VLOOKUP(6,AN157:BG202,11,FALSE),IF(AND(AR2=4,AD27=AO163),VLOOKUP(7,AN157:BG202,11,FALSE),IF(AND(AR2=4,AD27=AO164),VLOOKUP(8,AN157:BG202,11,FALSE),IF(AND(AR2=4,AD27=AO165),VLOOKUP(9,AN157:BG202,11,FALSE),IF(AND(AR2=4,AD27=AO166),VLOOKUP(10,AN157:BG202,11,FALSE),IF(AND(AR2=4,AD27=AO167),VLOOKUP(11,AN157:BG202,11,FALSE),IF(AND(AR2=4,AD27=AO168),VLOOKUP(12,AN157:BG202,11,FALSE),IF(AND(AR2=4,AD27=AO169),VLOOKUP(13,AN157:BG202,11,FALSE),IF(AND(AR2=4,AD27=AO170),VLOOKUP(14,AN157:BG202,11,FALSE),IF(AND(AR2=4,AD27=AO171),VLOOKUP(15,AN157:BG202,11,FALSE),IF(AND(AR2=4,AD27=AO172),VLOOKUP(16,AN157:BG202,11,FALSE),IF(AND(AR2=4,AD27=AO173),VLOOKUP(17,AN157:BG202,11,FALSE),IF(AND(AR2=4,AD27=AO174),VLOOKUP(18,AN157:BG202,11,FALSE),IF(AND(AR2=4,AD27=AO175),VLOOKUP(19,AN157:BG202,11,FALSE),IF(AND(AR2=4,AD27=AO176),VLOOKUP(20,AN157:BG202,11,FALSE),IF(AND(AR2=4,AD27=AO177),VLOOKUP(21,AN157:BG202,11,FALSE),IF(AND(AR2=4,AD27=AO178),VLOOKUP(22,AN157:BG202,11,FALSE),IF(AND(AR2=4,AD27=AO179),VLOOKUP(23,AN157:BG202,11,FALSE),IF(AND(AR2=4,AD27=AO180),VLOOKUP(24,AN157:BG202,11,FALSE),IF(AND(AR2=4,AD27=AO181),VLOOKUP(25,AN157:BG202,11,FALSE),IF(AND(AR2=4,AD27=AO182),VLOOKUP(26,AN157:BG202,11,FALSE),IF(AND(AR2=4,AD27=AO183),VLOOKUP(27,AN157:BG202,11,FALSE),IF(AND(AR2=4,AD27=AO184),VLOOKUP(28,AN157:BG202,11,FALSE),IF(AND(AR2=4,AD27=AO185),VLOOKUP(29,AN157:BG202,11,FALSE),IF(AND(AR2=4,AD27=AO186),VLOOKUP(30,AN157:BG202,11,FALSE),IF(AND(AR2=4,AD27=AO187),VLOOKUP(31,AN157:BG202,11,FALSE),IF(AND(AR2=4,AD27=AO188),VLOOKUP(32,AN157:BG202,11,FALSE),IF(AND(AR2=4,AD27=AO189),VLOOKUP(33,AN157:BG202,11,FALSE),IF(AND(AR2=4,AD27=AO190),VLOOKUP(34,AN157:BG202,11,FALSE),IF(AND(AR2=4,AD27=AO191),VLOOKUP(35,AN157:BG202,11,FALSE),IF(AND(AR2=4,AD27=AO192),VLOOKUP(36,AN157:BG202,11,FALSE),IF(AND(AR2=4,AD27=AO193),VLOOKUP(37,AN157:BG202,11,FALSE),IF(AND(AR2=4,AD27=AO194),VLOOKUP(38,AN157:BG202,11,FALSE),IF(AND(AR2=4,AD27=AO195),VLOOKUP(39,AN157:BG202,11,FALSE),IF(AND(AR2=4,AD27=AO196),VLOOKUP(40,AN157:BG202,11,FALSE),IF(AND(AR2=4,AD27=AO197),VLOOKUP(41,AN157:BG202,11,FALSE),IF(AND(AR2=4,AD27=AO198),VLOOKUP(42,AN157:BG202,11,FALSE),IF(AND(AR2=4,AD27=AO199),VLOOKUP(43,AN157:BG202,11,FALSE),IF(AND(AR2=4,AD27=AO200),VLOOKUP(44,AN157:BG202,11,FALSE),IF(AND(AR2=4,AD27=AO201),VLOOKUP(45,AN157:BG202,11,FALSE),IF(AND(AR2=4,AD27=AO202),VLOOKUP(46,AN157:BG202,11,FALSE))))))))))))))))))))))))))))))))))))))))))))))) -> FALSE | BC27: cm4 | BD27: Ix | BE27: =IF(AND(AR2=5,AD27=AO126),VLOOKUP(1,AN126:BD141,12,FALSE),IF(AND(AR2=5,AD27=AO127),VLOOKUP(2,AN126:BD141,12,FALSE),IF(AND(AR2=5,AD27=AO128),VLOOKUP(3,AN126:BD141,12,FALSE),IF(AND(AR2=5,AD27=AO129),VLOOKUP(4,AN126:BD141,12,FALSE),IF(AND(AR2=5,AD27=AO130),VLOOKUP(5,AN126:BD141,12,FALSE),IF(AND(AR2=5,AD27=AO131),VLOOKUP(6,AN126:BD141,12,FALSE),IF(AND(AR2=5,AD27=AO132),VLOOKUP(7,AN126:BD141,12,FALSE),IF(AND(AR2=5,AD27=AO133),VLOOKUP(8,AN126:BD141,12,FALSE),IF(AND(AR2=5,AD27=AO134),VLOOKUP(9,AN126:BD141,12,FALSE),IF(AND(AR2=5,AD27=AO135),VLOOKUP(10,AN126:BD141,12,FALSE),IF(AND(AR2=5,AD27=AO136),VLOOKUP(11,AN126:BD141,12,FALSE),IF(AND(AR2=5,AD27=AO137),VLOOKUP(12,AN126:BD141,12,FALSE),IF(AND(AR2=5,AD27=AO138),VLOOKUP(13,AN126:BD141,12,FALSE),IF(AND(AR2=5,AD27=AO139),VLOOKUP(14,AN126:BD141,12,FALSE),IF(AND(AR2=5,AD27=AO140),VLOOKUP(15,AN126:BD141,12,FALSE),IF(AND(AR2=5,AD27=AO141),VLOOKUP(16,AN126:BD141,12,FALSE))))))))))))))))) -> FALSE | BF27: cm4 | BG27: Ix | BH27: =IF(AND(AR2=6,AD27=AO218),VLOOKUP(1,AN218:BQ290,18,FALSE),IF(AND(AR2=6,AD27=AO219),VLOOKUP(2,AN218:BQ290,18,FALSE),IF(AND(AR2=6,AD27=AO220),VLOOKUP(3,AN218:BQ290,18,FALSE),IF(AND(AR2=6,AD27=AO221),VLOOKUP(4,AN218:BQ290,18,FALSE),IF(AND(AR2=6,AD27=AO222),VLOOKUP(5,AN218:BQ290,18,FALSE),IF(AND(AR2=6,AD27=AO223),VLOOKUP(6,AN218:BQ290,18,FALSE),IF(AND(AR2=6,AD27=AO224),VLOOKUP(7,AN218:BQ290,18,FALSE),IF(AND(AR2=6,AD27=AO225),VLOOKUP(8,AN218:BQ290,18,FALSE),IF(AND(AR2=6,AD27=AO226),VLOOKUP(9,AN218:BQ290,18,FALSE),IF(AND(AR2=6,AD27=AO227),VLOOKUP(10,AN218:BQ290,18,FALSE),IF(AND(AR2=6,AD27=AO228),VLOOKUP(11,AN218:BQ290,18,FALSE),IF(AND(AR2=6,AD27=AO229),VLOOKUP(12,AN218:BQ290,18,FALSE),IF(AND(AR2=6,AD27=AO230),VLOOKUP(13,AN218:BQ290,18,FALSE),IF(AND(AR2=6,AD27=AO231),VLOOKUP(14,AN218:BQ290,18,FALSE),IF(AND(AR2=6,AD27=AO232),VLOOKUP(15,AN218:BQ290,18,FALSE),IF(AND(AR2=6,AD27=AO233),VLOOKUP(16,AN218:BQ290,18,FALSE),IF(AND(AR2=6,AD27=AO234),VLOOKUP(17,AN218:BQ290,18,FALSE),IF(AND(AR2=6,AD27=AO235),VLOOKUP(18,AN218:BQ290,18,FALSE),IF(AND(AR2=6,AD27=AO236),VLOOKUP(19,AN218:BQ290,18,FALSE),IF(AND(AR2=6,AD27=AO237),VLOOKUP(20,AN218:BQ290,18,FALSE),IF(AND(AR2=6,AD27=AO238),VLOOKUP(21,AN218:BQ290,18,FALSE),IF(AND(AR2=6,AD27=AO239),VLOOKUP(22,AN218:BQ290,18,FALSE),IF(AND(AR2=6,AD27=AO240),VLOOKUP(23,AN218:BQ290,18,FALSE),IF(AND(AR2=6,AD27=AO241),VLOOKUP(24,AN218:BQ290,18,FALSE),IF(AND(AR2=6,AD27=AO242),VLOOKUP(25,AN218:BQ290,18,FALSE),IF(AND(AR2=6,AD27=AO243),VLOOKUP(26,AN218:BQ290,18,FALSE),IF(AND(AR2=6,AD27=AO244),VLOOKUP(27,AN218:BQ290,18,FALSE),IF(AND(AR2=6,AD27=AO245),VLOOKUP(28,AN218:BQ290,18,FALSE),IF(AND(AR2=6,AD27=AO246),VLOOKUP(29,AN218:BQ290,18,FALSE),IF(AND(AR2=6,AD27=AO247),VLOOKUP(30,AN218:BQ290,18,FALSE),IF(AND(AR2=6,AD27=AO248),VLOOKUP(31,AN218:BQ290,18,FALSE),IF(AND(AR2=6,AD27=AO249),VLOOKUP(32,AN218:BQ290,18,FALSE),IF(AND(AR2=6,AD27=AO250),VLOOKUP(33,AN218:BQ290,18,FALSE),IF(AND(AR2=6,AD27=AO251),VLOOKUP(34,AN218:BQ290,18,FALSE),IF(AND(AR2=6,AD27=AO252),VLOOKUP(35,AN218:BQ290,18,FALSE),IF(AND(AR2=6,AD27=AO253),VLOOKUP(36,AN218:BQ290,18,FALSE),IF(AND(AR2=6,AD27=AO254),VLOOKUP(37,AN218:BQ290,18,FALSE),IF(AND(AR2=6,AD27=AO255),VLOOKUP(38,AN218:BQ290,18,FALSE),IF(AND(AR2=6,AD27=AO256),VLOOKUP(39,AN218:BQ290,18,FALSE),IF(AND(AR2=6,AD27=AO257),VLOOKUP(40,AN218:BQ290,18,FALSE),IF(AND(AR2=6,AD27=AO258),VLOOKUP(41,AN218:BQ290,18,FALSE),IF(AND(AR2=6,AD27=AO259),VLOOKUP(42,AN218:BQ290,18,FALSE),IF(AND(AR2=6,AD27=AO260),VLOOKUP(43,AN218:BQ290,18,FALSE),IF(AND(AR2=6,AD27=AO261),VLOOKUP(44,AN218:BQ290,18,FALSE),IF(AND(AR2=6,AD27=AO262),VLOOKUP(45,AN218:BQ290,18,FALSE),IF(AND(AR2=6,AD27=AO263),VLOOKUP(46,AN218:BQ290,18,FALSE),IF(AND(AR2=6,AD27=AO264),VLOOKUP(47,AN218:BQ290,18,FALSE),IF(AND(AR2=6,AD27=AO265),VLOOKUP(48,AN218:BQ290,18,FALSE),IF(AND(AR2=6,AD27=AO266),VLOOKUP(49,AN218:BQ290,18,FALSE),IF(AND(AR2=6,AD27=AO267),VLOOKUP(50,AN218:BQ290,18,FALSE),IF(AND(AR2=6,AD27=AO268),VLOOKUP(51,AN218:BQ290,18,FALSE),IF(AND(AR2=6,AD27=AO269),VLOOKUP(52,AN218:BQ290,18,FALSE),IF(AND(AR2=6,AD27=AO270),VLOOKUP(53,AN218:BQ290,18,FALSE),IF(AND(AR2=6,AD27=AO271),VLOOKUP(54,AN218:BQ290,18,FALSE),IF(AND(AR2=6,AD27=AO272),VLOOKUP(55,AN218:BQ290,18,FALSE),IF(AND(AR2=6,AD27=AO273),VLOOKUP(56,AN218:BQ290,18,FALSE),IF(AND(AR2=6,AD27=AO274),VLOOKUP(57,AN218:BQ290,18,FALSE),IF(AND(AR2=6,AD27=AO275),VLOOKUP(58,AN218:BQ290,18,FALSE),IF(AND(AR2=6,AD27=AO276),VLOOKUP(59,AN218:BQ290,18,FALSE),IF(AND(AR2=6,AD27=AO277),VLOOKUP(60,AN218:BQ290,18,FALSE),IF(AND(AR2=6,AD27=AO278),VLOOKUP(61,AN218:BQ290,18,FALSE),IF(AND(AR2=6,AD27=AO279),VLOOKUP(62,AN218:BQ290,18,FALSE),IF(AND(AR2=6,AD27=AO280),VLOOKUP(63,AN218:BQ290,18,FALSE),IF(AND(AR2=6,AD27=AO281),VLOOKUP(64,AN218:BQ290,18,FALSE))))))))))))))))))))))))))))))))))))))))))))))))))))))))))))))))) -> FALSE | BI27: cm4 | BJ27: Ix | BK27: =IF(AND(AR2=7,AD27=AO308),VLOOKUP(1,AN308:BB327,10,FALSE),IF(AND(AR2=7,AD27=AO309),VLOOKUP(2,AN308:BB327,10,FALSE),IF(AND(AR2=7,AD27=AO310),VLOOKUP(3,AN308:BB327,10,FALSE),IF(AND(AR2=7,AD27=AO311),VLOOKUP(4,AN308:BB327,10,FALSE),IF(AND(AR2=7,AD27=AO312),VLOOKUP(5,AN308:BB327,10,FALSE),IF(AND(AR2=7,AD27=AO313),VLOOKUP(6,AN308:BB327,10,FALSE),IF(AND(AR2=7,AD27=AO314),VLOOKUP(7,AN308:BB327,10,FALSE),IF(AND(AR2=7,AD27=AO315),VLOOKUP(8,AN308:BB327,10,FALSE),IF(AND(AR2=7,AD27=AO316),VLOOKUP(9,AN308:BB327,10,FALSE),IF(AND(AR2=7,AD27=AO317),VLOOKUP(10,AN308:BB327,10,FALSE),IF(AND(AR2=7,AD27=AO318),VLOOKUP(11,AN308:BB327,10,FALSE),IF(AND(AR2=7,AD27=AO319),VLOOKUP(12,AN308:BB327,10,FALSE),IF(AND(AR2=7,AD27=AO320),VLOOKUP(13,AN308:BB327,10,FALSE),IF(AND(AR2=7,AD27=AO321),VLOOKUP(14,AN308:BB327,10,FALSE),IF(AND(AR2=7,AD27=AO322),VLOOKUP(15,AN308:BB327,10,FALSE),IF(AND(AR2=7,AD27=AO323),VLOOKUP(16,AN308:BB327,10,FALSE),IF(AND(AR2=7,AD27=AO324),VLOOKUP(17,AN308:BB327,10,FALSE),IF(AND(AR2=7,AD27=AO325),VLOOKUP(18,AN308:BB327,10,FALSE),IF(AND(AR2=7,AD27=AO326),VLOOKUP(19,AN308:BB327,10,FALSE),IF(AND(AR2=7,AD27=AO327),VLOOKUP(20,AN308:BB327,10,FALSE))))))))))))))))))))) -> FALSE | BL27: cm4 | BM27: Ix | BN27: =IF(AND(AR2=8,AD27=AO1062),VLOOKUP(1,AN1062:BG1074,11,FALSE),IF(AND(AR2=8,AD27=AO1063),VLOOKUP(2,AN1062:BG1074,11,FALSE),IF(AND(AR2=8,AD27=AO1064),VLOOKUP(3,AN1062:BG1074,11,FALSE),IF(AND(AR2=8,AD27=AO1065),VLOOKUP(4,AN1062:BG1074,11,FALSE),IF(AND(AR2=8,AD27=AO1066),VLOOKUP(5,AN1062:BG1074,11,FALSE),IF(AND(AR2=8,AD27=AO1067),VLOOKUP(6,AN1062:BG1074,11,FALSE),IF(AND(AR2=8,AD27=AO1068),VLOOKUP(7,AN1062:BG1074,11,FALSE),IF(AND(AR2=8,AD27=AO1069),VLOOKUP(8,AN1062:BG1074,11,FALSE),IF(AND(AR2=8,AD27=AO1070),VLOOKUP(9,AN1062:BG1074,11,FALSE),IF(AND(AR2=8,AD27=AO1071),VLOOKUP(10,AN1062:BG1074,11,FALSE),IF(AND(AR2=8,AD27=AO1072),VLOOKUP(11,AN1062:BG1074,11,FALSE),IF(AND(AR2=8,AD27=AO1073),VLOOKUP(12,AN1062:BG1074,11,FALSE),IF(AND(AR2=8,AD27=AO1074),VLOOKUP(13,AN1062:BG1074,11,FALSE)))))))))))))) -> FALSE | BO27: cm4
B28: Wx | F28: = | G28: =AE25*SIN(AS5) -> 16.67099686 | K28: kg./m. | N28: My | R28: = | S28: =IF(AND(G25="Yes",AE37=1),G28*((AE24/2)^2)/9,IF(AND(G25="Yes",AE37=2),G28*((AE24/3)^2)/9,IF(AND(G25="Yes",AE37=3),G28*((AE24/4)^2)/9,IF(AND(G25="Yes",AE37=4),G28*((AE24/5)^2)/9,IF(G25="No",G28*((AE24)^2)/9))))) -> 1.852332984 | W28: kg./m. | Z28: Ix | AD28: = | AE28: =IF(AND(AS27=FALSE,AV27=FALSE,AY27=FALSE,BB27=FALSE,BE27=FALSE,BH27=FALSE,BK27=FALSE,BN27=FALSE),0.0001,IF(AR2=1,AS27,IF(AR2=2,AV27,IF(AR2=3,AY27,IF(AR2=4,BB27,IF(AR2=5,BE27,IF(AR2=6,BH27,IF(AR2=7,BK27,IF(AR2=8,BN27))))))))) -> 1.28 | AI28: cm4 | AR28: Iy | AS28: =IF(AND(AR2=1,AD27=AO342),VLOOKUP(1,AN342:BC386,10,FALSE),IF(AND(AR2=1,AD27=AO343),VLOOKUP(2,AN342:BC386,10,FALSE),IF(AND(AR2=1,AD27=AO344),VLOOKUP(3,AN342:BC386,10,FALSE),IF(AND(AR2=1,AD27=AO345),VLOOKUP(4,AN342:BC386,10,FALSE),IF(AND(AR2=1,AD27=AO346),VLOOKUP(5,AN342:BC386,10,FALSE),IF(AND(AR2=1,AD27=AO347),VLOOKUP(6,AN342:BC386,10,FALSE),IF(AND(AR2=1,AD27=AO348),VLOOKUP(7,AN342:BC386,10,FALSE),IF(AND(AR2=1,AD27=AO349),VLOOKUP(8,AN342:BC386,10,FALSE),IF(AND(AR2=1,AD27=AO350),VLOOKUP(9,AN342:BC386,10,FALSE),IF(AND(AR2=1,AD27=AO351),VLOOKUP(10,AN342:BC386,10,FALSE),IF(AND(AR2=1,AD27=AO352),VLOOKUP(11,AN342:BC386,10,FALSE),IF(AND(AR2=1,AD27=AO353),VLOOKUP(12,AN342:BC386,10,FALSE),IF(AND(AR2=1,AD27=AO354),VLOOKUP(13,AN342:BC386,10,FALSE),IF(AND(AR2=1,AD27=AO355),VLOOKUP(14,AN342:BC386,10,FALSE),IF(AND(AR2=1,AD27=AO356),VLOOKUP(15,AN342:BC386,10,FALSE),IF(AND(AR2=1,AD27=AO357),VLOOKUP(16,AN342:BC386,10,FALSE),IF(AND(AR2=1,AD27=AO358),VLOOKUP(17,AN342:BC386,10,FALSE),IF(AND(AR2=1,AD27=AO359),VLOOKUP(18,AN342:BC386,10,FALSE),IF(AND(AR2=1,AD27=AO360),VLOOKUP(19,AN342:BC386,10,FALSE),IF(AND(AR2=1,AD27=AO361),VLOOKUP(20,AN342:BC386,10,FALSE),IF(AND(AR2=1,AD27=AO362),VLOOKUP(21,AN342:BC386,10,FALSE),IF(AND(AR2=1,AD27=AO363),VLOOKUP(22,AN342:BC386,10,FALSE),IF(AND(AR2=1,AD27=AO364),VLOOKUP(23,AN342:BC386,10,FALSE),IF(AND(AR2=1,AD27=AO365),VLOOKUP(24,AN342:BC386,10,FALSE),IF(AND(AR2=1,AD27=AO366),VLOOKUP(25,AN342:BC386,10,FALSE),IF(AND(AR2=1,AD27=AO367),VLOOKUP(26,AN342:BC386,10,FALSE),IF(AND(AR2=1,AD27=AO368),VLOOKUP(27,AN342:BC386,10,FALSE),IF(AND(AR2=1,AD27=AO369),VLOOKUP(28,AN342:BC386,10,FALSE),IF(AND(AR2=1,AD27=AO370),VLOOKUP(29,AN342:BC386,10,FALSE),IF(AND(AR2=1,AD27=AO371),VLOOKUP(30,AN342:BC386,10,FALSE),IF(AND(AR2=1,AD27=AO372),VLOOKUP(31,AN342:BC386,10,FALSE),IF(AND(AR2=1,AD27=AO373),VLOOKUP(32,AN342:BC386,10,FALSE),IF(AND(AR2=1,AD27=AO374),VLOOKUP(33,AN342:BC386,10,FALSE),IF(AND(AR2=1,AD27=AO375),VLOOKUP(34,AN342:BC386,10,FALSE),IF(AND(AR2=1,AD27=AO376),VLOOKUP(35,AN342:BC386,10,FALSE),IF(AND(AR2=1,AD27=AO377),VLOOKUP(36,AN342:BC386,10,FALSE),IF(AND(AR2=1,AD27=AO378),VLOOKUP(37,AN342:BC386,10,FALSE),IF(AND(AR2=1,AD27=AO379),VLOOKUP(38,AN342:BC386,10,FALSE),IF(AND(AR2=1,AD27=AO380),VLOOKUP(39,AN342:BC386,10,FALSE),IF(AND(AR2=1,AD27=AO381),VLOOKUP(40,AN342:BC386,10,FALSE),IF(AND(AR2=1,AD27=AO382),VLOOKUP(41,AN342:BC386,10,FALSE),IF(AND(AR2=1,AD27=AO383),VLOOKUP(42,AN342:BC386,10,FALSE),IF(AND(AR2=1,AD27=AO384),VLOOKUP(43,AN342:BC386,10,FALSE),IF(AND(AR2=1,AD27=AO385),VLOOKUP(44,AN342:BC386,10,FALSE),IF(AND(AR2=1,AD27=AO386),VLOOKUP(45,AN342:BC386,10,FALSE)))))))))))))))))))))))))))))))))))))))))))))) -> FALSE | AT28: cm4 | AU28: Iy | AV28: =IF(AND(AR2=2,AD27=AO443),VLOOKUP(1,AN443:BH475,8,FALSE),IF(AND(AR2=2,AD27=AO444),VLOOKUP(2,AN443:BH475,8,FALSE),IF(AND(AR2=2,AD27=AO445),VLOOKUP(3,AN443:BH475,8,FALSE),IF(AND(AR2=2,AD27=AO446),VLOOKUP(4,AN443:BH475,8,FALSE),IF(AND(AR2=2,AD27=AO447),VLOOKUP(5,AN443:BH475,8,FALSE),IF(AND(AR2=2,AD27=AO448),VLOOKUP(6,AN443:BH474,8,FALSE),IF(AND(AR2=2,AD27=AO449),VLOOKUP(7,AN443:BH475,8,FALSE),IF(AND(AR2=2,AD27=AO450),VLOOKUP(8,AN443:BH475,8,FALSE),IF(AND(AR2=2,AD27=AO451),VLOOKUP(9,AN443:BH475,8,FALSE),IF(AND(AR2=2,AD27=AO452),VLOOKUP(10,AN443:BH475,8,FALSE),IF(AND(AR2=2,AD27=AO453),VLOOKUP(11,AN443:BH475,8,FALSE),IF(AND(AR2=2,AD27=AO454),VLOOKUP(12,AN443:BH475,8,FALSE),IF(AND(AR2=2,AD27=AO455),VLOOKUP(13,AN443:BH475,8,FALSE),IF(AND(AR2=2,AD27=AO456),VLOOKUP(14,AN443:BH475,8,FALSE),IF(AND(AR2=2,AD27=AO457),VLOOKUP(15,AN443:BH475,8,FALSE),IF(AND(AR2=2,AD27=AO458),VLOOKUP(16,AN443:BH475,8,FALSE),IF(AND(AR2=2,AD27=AO459),VLOOKUP(17,AN443:BH475,8,FALSE),IF(AND(AR2=2,AD27=AO460),VLOOKUP(18,AN443:BH475,8,FALSE),IF(AND(AR2=2,AD27=AO461),VLOOKUP(19,AN443:BH475,8,FALSE),IF(AND(AR2=2,AD27=AO462),VLOOKUP(20,AN443:BH475,8,FALSE),IF(AND(AR2=2,AD27=AO463),VLOOKUP(21,AN443:BH475,8,FALSE),IF(AND(AR2=2,AD27=AO464),VLOOKUP(22,AN443:BH475,8,FALSE),IF(AND(AR2=2,AD27=AO465),VLOOKUP(23,AN443:BH475,8,FALSE),IF(AND(AR2=2,AD27=AO466),VLOOKUP(24,AN443:BH475,8,FALSE),IF(AND(AR2=2,AD27=AO467),VLOOKUP(25,AN443:BH475,8,FALSE),IF(AND(AR2=2,AD27=AO468),VLOOKUP(26,AN443:BH475,8,FALSE),IF(AND(AR2=2,AD27=AO469),VLOOKUP(27,AN443:BH475,8,FALSE),IF(AND(AR2=2,AD27=AO470),VLOOKUP(28,AN443:BH475,8,FALSE),IF(AND(AR2=2,AD27=AO471),VLOOKUP(29,AN443:BH475,8,FALSE),IF(AND(AR2=2,AD27=AO472),VLOOKUP(30,AN443:BH475,8,FALSE),IF(AND(AR2=2,AD27=AO473),VLOOKUP(31,AN443:BH475,8,FALSE),IF(AND(AR2=2,AD27=AO474),VLOOKUP(32,AN443:BH475,8,FALSE),IF(AND(AR2=2,AD27=AO475),VLOOKUP(33,AN443:BH475,8,FALSE)))))))))))))))))))))))))))))))))) -> 1.28 | AW28: cm4 | AX28: Iy | AY28: =IF(AND(AR2=3,AD27=AO402),VLOOKUP(1,AN402:AZ427,9,FALSE),IF(AND(AR2=3,AD27=AO403),VLOOKUP(2,AN402:AZ427,9,FALSE),IF(AND(AR2=3,AD27=AO404),VLOOKUP(3,AN402:AZ427,9,FALSE),IF(AND(AR2=3,AD27=AO405),VLOOKUP(4,AN402:AZ427,9,FALSE),IF(AND(AR2=3,AD27=AO406),VLOOKUP(5,AN402:AZ427,9,FALSE),IF(AND(AR2=3,AD27=AO407),VLOOKUP(6,AN402:AZ427,9,FALSE),IF(AND(AR2=3,AD27=AO408),VLOOKUP(7,AN402:AZ427,9,FALSE),IF(AND(AR2=3,AD27=AO409),VLOOKUP(8,AN402:AZ427,9,FALSE),IF(AND(AR2=3,AD27=AO410),VLOOKUP(9,AN402:AZ427,9,FALSE),IF(AND(AR2=3,AD27=AO411),VLOOKUP(10,AN402:AZ427,9,FALSE),IF(AND(AR2=3,AD27=AO412),VLOOKUP(11,AN402:AZ427,9,FALSE),IF(AND(AR2=3,AD27=AO413),VLOOKUP(12,AN402:AZ427,9,FALSE),IF(AND(AR2=3,AD27=AO414),VLOOKUP(13,AN402:AZ427,9,FALSE),IF(AND(AR2=3,AD27=AO415),VLOOKUP(14,AN402:AZ427,9,FALSE),IF(AND(AR2=3,AD27=AO416),VLOOKUP(15,AN402:AZ427,9,FALSE),IF(AND(AR2=3,AD27=AO417),VLOOKUP(16,AN402:AZ427,9,FALSE),IF(AND(AR2=3,AD27=AO418),VLOOKUP(17,AN402:AZ427,9,FALSE),IF(AND(AR2=3,AD27=AO419),VLOOKUP(18,AN402:AZ427,9,FALSE),IF(AND(AR2=3,AD27=AO420),VLOOKUP(19,AN402:AZ427,9,FALSE),IF(AND(AR2=3,AD27=AO421),VLOOKUP(20,AN402:AZ427,9,FALSE),IF(AND(AR2=3,AD27=AO422),VLOOKUP(21,AN402:AZ427,9,FALSE),IF(AND(AR2=3,AD27=AO423),VLOOKUP(22,AN402:AZ427,9,FALSE),IF(AND(AR2=3,AD27=AO424),VLOOKUP(23,AN402:AZ427,9,FALSE),IF(AND(AR2=3,AD27=AO425),VLOOKUP(24,AN402:AZ427,9,FALSE),IF(AND(AR2=3,AD27=AO426),VLOOKUP(25,AN402:AZ427,9,FALSE),IF(AND(AR2=3,AD27=AO427),VLOOKUP(26,AN402:AZ427,9,FALSE))))))))))))))))))))))))))) -> FALSE | AZ28: cm4 | BA28: Iy | BB28: =BB27 -> FALSE | BC28: cm4 | BD28: Iy | BE28: =IF(AND(AR2=5,AD27=AO126),VLOOKUP(1,AN126:BD141,13,FALSE),IF(AND(AR2=5,AD27=AO127),VLOOKUP(2,AN126:BD141,13,FALSE),IF(AND(AR2=5,AD27=AO128),VLOOKUP(3,AN126:BD141,13,FALSE),IF(AND(AR2=5,AD27=AO129),VLOOKUP(4,AN126:BD141,13,FALSE),IF(AND(AR2=5,AD27=AO130),VLOOKUP(5,AN126:BD141,13,FALSE),IF(AND(AR2=5,AD27=AO131),VLOOKUP(6,AN126:BD141,13,FALSE),IF(AND(AR2=5,AD27=AO132),VLOOKUP(7,AN126:BD141,13,FALSE),IF(AND(AR2=5,AD27=AO133),VLOOKUP(8,AN126:BD141,13,FALSE),IF(AND(AR2=5,AD27=AO134),VLOOKUP(9,AN126:BD141,13,FALSE),IF(AND(AR2=5,AD27=AO135),VLOOKUP(10,AN126:BD141,13,FALSE),IF(AND(AR2=5,AD27=AO136),VLOOKUP(11,AN126:BD141,13,FALSE),IF(AND(AR2=5,AD27=AO137),VLOOKUP(12,AN126:BD141,13,FALSE),IF(AND(AR2=5,AD27=AO138),VLOOKUP(13,AN126:BD141,13,FALSE),IF(AND(AR2=5,AD27=AO139),VLOOKUP(14,AN126:BD141,13,FALSE),IF(AND(AR2=5,AD27=AO140),VLOOKUP(15,AN126:BD141,13,FALSE),IF(AND(AR2=5,AD27=AO141),VLOOKUP(16,AN126:BD141,13,FALSE))))))))))))))))) -> FALSE | BF28: cm4 | BG28: Iy | BH28: =IF(AND(AR2=6,AD27=AO218),VLOOKUP(1,AN218:BQ290,20,FALSE),IF(AND(AR2=6,AD27=AO219),VLOOKUP(2,AN218:BQ290,20,FALSE),IF(AND(AR2=6,AD27=AO220),VLOOKUP(3,AN218:BQ290,20,FALSE),IF(AND(AR2=6,AD27=AO221),VLOOKUP(4,AN218:BQ290,20,FALSE),IF(AND(AR2=6,AD27=AO222),VLOOKUP(5,AN218:BQ290,20,FALSE),IF(AND(AR2=6,AD27=AO223),VLOOKUP(6,AN218:BQ290,20,FALSE),IF(AND(AR2=6,AD27=AO224),VLOOKUP(7,AN218:BQ290,20,FALSE),IF(AND(AR2=6,AD27=AO225),VLOOKUP(8,AN218:BQ290,20,FALSE),IF(AND(AR2=6,AD27=AO226),VLOOKUP(9,AN218:BQ290,20,FALSE),IF(AND(AR2=6,AD27=AO227),VLOOKUP(10,AN218:BQ290,20,FALSE),IF(AND(AR2=6,AD27=AO228),VLOOKUP(11,AN218:BQ290,20,FALSE),IF(AND(AR2=6,AD27=AO229),VLOOKUP(12,AN218:BQ290,20,FALSE),IF(AND(AR2=6,AD27=AO230),VLOOKUP(13,AN218:BQ290,20,FALSE),IF(AND(AR2=6,AD27=AO231),VLOOKUP(14,AN218:BQ290,20,FALSE),IF(AND(AR2=6,AD27=AO232),VLOOKUP(15,AN218:BQ290,20,FALSE),IF(AND(AR2=6,AD27=AO233),VLOOKUP(16,AN218:BQ290,20,FALSE),IF(AND(AR2=6,AD27=AO234),VLOOKUP(17,AN218:BQ290,20,FALSE),IF(AND(AR2=6,AD27=AO235),VLOOKUP(18,AN218:BQ290,20,FALSE),IF(AND(AR2=6,AD27=AO236),VLOOKUP(19,AN218:BQ290,20,FALSE),IF(AND(AR2=6,AD27=AO237),VLOOKUP(20,AN218:BQ290,20,FALSE),IF(AND(AR2=6,AD27=AO238),VLOOKUP(21,AN218:BQ290,20,FALSE),IF(AND(AR2=6,AD27=AO239),VLOOKUP(22,AN218:BQ290,20,FALSE),IF(AND(AR2=6,AD27=AO240),VLOOKUP(23,AN218:BQ290,20,FALSE),IF(AND(AR2=6,AD27=AO241),VLOOKUP(24,AN218:BQ290,20,FALSE),IF(AND(AR2=6,AD27=AO242),VLOOKUP(25,AN218:BQ290,20,FALSE),IF(AND(AR2=6,AD27=AO243),VLOOKUP(26,AN218:BQ290,20,FALSE),IF(AND(AR2=6,AD27=AO244),VLOOKUP(27,AN218:BQ290,20,FALSE),IF(AND(AR2=6,AD27=AO245),VLOOKUP(28,AN218:BQ290,20,FALSE),IF(AND(AR2=6,AD27=AO246),VLOOKUP(29,AN218:BQ290,20,FALSE),IF(AND(AR2=6,AD27=AO247),VLOOKUP(30,AN218:BQ290,20,FALSE),IF(AND(AR2=6,AD27=AO248),VLOOKUP(31,AN218:BQ290,20,FALSE),IF(AND(AR2=6,AD27=AO249),VLOOKUP(32,AN218:BQ290,20,FALSE),IF(AND(AR2=6,AD27=AO250),VLOOKUP(33,AN218:BQ290,20,FALSE),IF(AND(AR2=6,AD27=AO251),VLOOKUP(34,AN218:BQ290,20,FALSE),IF(AND(AR2=6,AD27=AO252),VLOOKUP(35,AN218:BQ290,20,FALSE),IF(AND(AR2=6,AD27=AO253),VLOOKUP(36,AN218:BQ290,20,FALSE),IF(AND(AR2=6,AD27=AO254),VLOOKUP(37,AN218:BQ290,20,FALSE),IF(AND(AR2=6,AD27=AO255),VLOOKUP(38,AN218:BQ290,20,FALSE),IF(AND(AR2=6,AD27=AO256),VLOOKUP(39,AN218:BQ290,20,FALSE),IF(AND(AR2=6,AD27=AO257),VLOOKUP(40,AN218:BQ290,20,FALSE),IF(AND(AR2=6,AD27=AO258),VLOOKUP(41,AN218:BQ290,20,FALSE),IF(AND(AR2=6,AD27=AO259),VLOOKUP(42,AN218:BQ290,20,FALSE),IF(AND(AR2=6,AD27=AO260),VLOOKUP(43,AN218:BQ290,20,FALSE),IF(AND(AR2=6,AD27=AO261),VLOOKUP(44,AN218:BQ290,20,FALSE),IF(AND(AR2=6,AD27=AO262),VLOOKUP(45,AN218:BQ290,20,FALSE),IF(AND(AR2=6,AD27=AO263),VLOOKUP(46,AN218:BQ290,20,FALSE),IF(AND(AR2=6,AD27=AO264),VLOOKUP(47,AN218:BQ290,20,FALSE),IF(AND(AR2=6,AD27=AO265),VLOOKUP(48,AN218:BQ290,20,FALSE),IF(AND(AR2=6,AD27=AO266),VLOOKUP(49,AN218:BQ290,20,FALSE),IF(AND(AR2=6,AD27=AO267),VLOOKUP(50,AN218:BQ290,20,FALSE),IF(AND(AR2=6,AD27=AO268),VLOOKUP(51,AN218:BQ290,20,FALSE),IF(AND(AR2=6,AD27=AO269),VLOOKUP(52,AN218:BQ290,20,FALSE),IF(AND(AR2=6,AD27=AO270),VLOOKUP(53,AN218:BQ290,20,FALSE),IF(AND(AR2=6,AD27=AO271),VLOOKUP(54,AN218:BQ290,20,FALSE),IF(AND(AR2=6,AD27=AO272),VLOOKUP(55,AN218:BQ290,20,FALSE),IF(AND(AR2=6,AD27=AO273),VLOOKUP(56,AN218:BQ290,20,FALSE),IF(AND(AR2=6,AD27=AO274),VLOOKUP(57,AN218:BQ290,20,FALSE),IF(AND(AR2=6,AD27=AO275),VLOOKUP(58,AN218:BQ290,20,FALSE),IF(AND(AR2=6,AD27=AO276),VLOOKUP(59,AN218:BQ290,20,FALSE),IF(AND(AR2=6,AD27=AO277),VLOOKUP(60,AN218:BQ290,20,FALSE),IF(AND(AR2=6,AD27=AO278),VLOOKUP(61,AN218:BQ290,20,FALSE),IF(AND(AR2=6,AD27=AO279),VLOOKUP(62,AN218:BQ290,20,FALSE),IF(AND(AR2=6,AD27=AO280),VLOOKUP(63,AN218:BQ290,20,FALSE),IF(AND(AR2=6,AD27=AO281),VLOOKUP(64,AN218:BQ290,20,FALSE))))))))))))))))))))))))))))))))))))))))))))))))))))))))))))))))) -> FALSE | BI28: cm4 | BJ28: Iy | BK28: =IF(AND(AR2=7,AD27=AO308),VLOOKUP(1,AN308:BB327,11,FALSE),IF(AND(AR2=7,AD27=AO309),VLOOKUP(2,AN308:BB327,11,FALSE),IF(AND(AR2=7,AD27=AO310),VLOOKUP(3,AN308:BB327,11,FALSE),IF(AND(AR2=7,AD27=AO311),VLOOKUP(4,AN308:BB327,11,FALSE),IF(AND(AR2=7,AD27=AO312),VLOOKUP(5,AN308:BB327,11,FALSE),IF(AND(AR2=7,AD27=AO313),VLOOKUP(6,AN308:BB327,11,FALSE),IF(AND(AR2=7,AD27=AO314),VLOOKUP(7,AN308:BB327,11,FALSE),IF(AND(AR2=7,AD27=AO315),VLOOKUP(8,AN308:BB327,11,FALSE),IF(AND(AR2=7,AD27=AO316),VLOOKUP(9,AN308:BB327,11,FALSE),IF(AND(AR2=7,AD27=AO317),VLOOKUP(10,AN308:BB327,11,FALSE),IF(AND(AR2=7,AD27=AO318),VLOOKUP(11,AN308:BB327,11,FALSE),IF(AND(AR2=7,AD27=AO319),VLOOKUP(12,AN308:BB327,11,FALSE),IF(AND(AR2=7,AD27=AO320),VLOOKUP(13,AN308:BB327,11,FALSE),IF(AND(AR2=7,AD27=AO321),VLOOKUP(14,AN308:BB327,11,FALSE),IF(AND(AR2=7,AD27=AO322),VLOOKUP(15,AN308:BB327,11,FALSE),IF(AND(AR2=7,AD27=AO323),VLOOKUP(16,AN308:BB327,11,FALSE),IF(AND(AR2=7,AD27=AO324),VLOOKUP(17,AN308:BB327,11,FALSE),IF(AND(AR2=7,AD27=AO325),VLOOKUP(18,AN308:BB327,11,FALSE),IF(AND(AR2=7,AD27=AO326),VLOOKUP(19,AN308:BB327,11,FALSE),IF(AND(AR2=7,AD27=AO327),VLOOKUP(20,AN308:BB327,11,FALSE))))))))))))))))))))) -> FALSE | BL28: cm4 | BM28: Iy | BN28: =IF(AND(AR2=8,AD27=AO1062),VLOOKUP(1,AN1062:BG1074,12,FALSE),IF(AND(AR2=8,AD27=AO1063),VLOOKUP(2,AN1062:BG1074,12,FALSE),IF(AND(AR2=8,AD27=AO1064),VLOOKUP(3,AN1062:BG1074,12,FALSE),IF(AND(AR2=8,AD27=AO1065),VLOOKUP(4,AN1062:BG1074,12,FALSE),IF(AND(AR2=8,AD27=AO1066),VLOOKUP(5,AN1062:BG1074,12,FALSE),IF(AND(AR2=8,AD27=AO1067),VLOOKUP(6,AN1062:BG1074,12,FALSE),IF(AND(AR2=8,AD27=AO1068),VLOOKUP(7,AN1062:BG1074,12,FALSE),IF(AND(AR2=8,AD27=AO1069),VLOOKUP(8,AN1062:BG1074,12,FALSE),IF(AND(AR2=8,AD27=AO1070),VLOOKUP(9,AN1062:BG1074,12,FALSE),IF(AND(AR2=8,AD27=AO1071),VLOOKUP(10,AN1062:BG1074,12,FALSE),IF(AND(AR2=8,AD27=AO1072),VLOOKUP(11,AN1062:BG1074,12,FALSE),IF(AND(AR2=8,AD27=AO1073),VLOOKUP(12,AN1062:BG1074,12,FALSE),IF(AND(AR2=8,AD27=AO1074),VLOOKUP(13,AN1062:BG1074,12,FALSE)))))))))))))) -> FALSE | BO28: cm4
B29: Wy | F29: = | G29: =IF(S24=0,(AE25*COS(AS5)),0.75*((AE25*COS(AS5))+AS11)) -> 31.90948007 | K29: kg./m. | N29: Sx | R29: = | S29: =MAX(S27:V28)*100/G24 -> 0.246215124 | W29: cm.3 | Z29: Iy | AD29: = | AE29: =IF(AND(AS28=FALSE,AV28=FALSE,AY28=FALSE,BB28=FALSE,BE28=FALSE,BH28=FALSE,BK28=FALSE,BN28=FALSE),0.0001,IF(AR2=1,AS28,IF(AR2=2,AV28,IF(AR2=3,AY28,IF(AR2=4,BB28,IF(AR2=5,BE28,IF(AR2=6,BH28,IF(AR2=7,BK28,IF(AR2=8,BN28))))))))) -> 1.28 | AI29: cm4 | AR29: Zx | AS29: =IF(AND(AR2=1,AD27=AO342),VLOOKUP(1,AN342:BC386,13,FALSE),IF(AND(AR2=1,AD27=AO343),VLOOKUP(2,AN342:BC386,13,FALSE),IF(AND(AR2=1,AD27=AO344),VLOOKUP(3,AN342:BC386,13,FALSE),IF(AND(AR2=1,AD27=AO345),VLOOKUP(4,AN342:BC386,13,FALSE),IF(AND(AR2=1,AD27=AO346),VLOOKUP(5,AN342:BC386,13,FALSE),IF(AND(AR2=1,AD27=AO347),VLOOKUP(6,AN342:BC386,13,FALSE),IF(AND(AR2=1,AD27=AO348),VLOOKUP(7,AN342:BC386,13,FALSE),IF(AND(AR2=1,AD27=AO349),VLOOKUP(8,AN342:BC386,13,FALSE),IF(AND(AR2=1,AD27=AO350),VLOOKUP(9,AN342:BC386,13,FALSE),IF(AND(AR2=1,AD27=AO351),VLOOKUP(10,AN342:BC386,13,FALSE),IF(AND(AR2=1,AD27=AO352),VLOOKUP(11,AN342:BC386,13,FALSE),IF(AND(AR2=1,AD27=AO353),VLOOKUP(12,AN342:BC386,13,FALSE),IF(AND(AR2=1,AD27=AO354),VLOOKUP(13,AN342:BC386,13,FALSE),IF(AND(AR2=1,AD27=AO355),VLOOKUP(14,AN342:BC386,13,FALSE),IF(AND(AR2=1,AD27=AO356),VLOOKUP(15,AN342:BC386,13,FALSE),IF(AND(AR2=1,AD27=AO357),VLOOKUP(16,AN342:BC386,13,FALSE),IF(AND(AR2=1,AD27=AO358),VLOOKUP(17,AN342:BC386,13,FALSE),IF(AND(AR2=1,AD27=AO359),VLOOKUP(18,AN342:BC386,13,FALSE),IF(AND(AR2=1,AD27=AO360),VLOOKUP(19,AN342:BC386,13,FALSE),IF(AND(AR2=1,AD27=AO361),VLOOKUP(20,AN342:BC386,13,FALSE),IF(AND(AR2=1,AD27=AO362),VLOOKUP(21,AN342:BC386,13,FALSE),IF(AND(AR2=1,AD27=AO363),VLOOKUP(22,AN342:BC386,13,FALSE),IF(AND(AR2=1,AD27=AO364),VLOOKUP(23,AN342:BC386,13,FALSE),IF(AND(AR2=1,AD27=AO365),VLOOKUP(24,AN342:BC386,13,FALSE),IF(AND(AR2=1,AD27=AO366),VLOOKUP(25,AN342:BC386,13,FALSE),IF(AND(AR2=1,AD27=AO367),VLOOKUP(26,AN342:BC386,13,FALSE),IF(AND(AR2=1,AD27=AO368),VLOOKUP(27,AN342:BC386,13,FALSE),IF(AND(AR2=1,AD27=AO369),VLOOKUP(28,AN342:BC386,13,FALSE),IF(AND(AR2=1,AD27=AO370),VLOOKUP(29,AN342:BC386,13,FALSE),IF(AND(AR2=1,AD27=AO371),VLOOKUP(30,AN342:BC386,13,FALSE),IF(AND(AR2=1,AD27=AO372),VLOOKUP(31,AN342:BC386,13,FALSE),IF(AND(AR2=1,AD27=AO373),VLOOKUP(32,AN342:BC386,13,FALSE),IF(AND(AR2=1,AD27=AO374),VLOOKUP(33,AN342:BC386,13,FALSE),IF(AND(AR2=1,AD27=AO375),VLOOKUP(34,AN342:BC386,13,FALSE),IF(AND(AR2=1,AD27=AO376),VLOOKUP(35,AN342:BC386,13,FALSE),IF(AND(AR2=1,AD27=AO377),VLOOKUP(36,AN342:BC386,13,FALSE),IF(AND(AR2=1,AD27=AO378),VLOOKUP(37,AN342:BC386,13,FALSE),IF(AND(AR2=1,AD27=AO379),VLOOKUP(38,AN342:BC386,13,FALSE),IF(AND(AR2=1,AD27=AO380),VLOOKUP(39,AN342:BC386,13,FALSE),IF(AND(AR2=1,AD27=AO381),VLOOKUP(40,AN342:BC386,13,FALSE),IF(AND(AR2=1,AD27=AO382),VLOOKUP(41,AN342:BC386,13,FALSE),IF(AND(AR2=1,AD27=AO383),VLOOKUP(42,AN342:BC386,13,FALSE),IF(AND(AR2=1,AD27=AO384),VLOOKUP(43,AN342:BC386,13,FALSE),IF(AND(AR2=1,AD27=AO385),VLOOKUP(44,AN342:BC386,13,FALSE),IF(AND(AR2=1,AD27=AO386),VLOOKUP(45,AN342:BC386,13,FALSE)))))))))))))))))))))))))))))))))))))))))))))) -> FALSE | AT29: cm3 | AU29: Zx | AV29: =IF(AND(AR2=2,AD27=AO443),VLOOKUP(1,AN443:BH475,9,FALSE),IF(AND(AR2=2,AD27=AO444),VLOOKUP(2,AN443:BH475,9,FALSE),IF(AND(AR2=2,AD27=AO445),VLOOKUP(3,AN443:BH475,9,FALSE),IF(AND(AR2=2,AD27=AO446),VLOOKUP(4,AN443:BH475,9,FALSE),IF(AND(AR2=2,AD27=AO447),VLOOKUP(5,AN443:BH475,9,FALSE),IF(AND(AR2=2,AD27=AO448),VLOOKUP(6,AN443:BH474,9,FALSE),IF(AND(AR2=2,AD27=AO449),VLOOKUP(7,AN443:BH475,9,FALSE),IF(AND(AR2=2,AD27=AO450),VLOOKUP(8,AN443:BH475,9,FALSE),IF(AND(AR2=2,AD27=AO451),VLOOKUP(9,AN443:BH475,9,FALSE),IF(AND(AR2=2,AD27=AO452),VLOOKUP(10,AN443:BH475,9,FALSE),IF(AND(AR2=2,AD27=AO453),VLOOKUP(11,AN443:BH475,9,FALSE),IF(AND(AR2=2,AD27=AO454),VLOOKUP(12,AN443:BH475,9,FALSE),IF(AND(AR2=2,AD27=AO455),VLOOKUP(13,AN443:BH475,9,FALSE),IF(AND(AR2=2,AD27=AO456),VLOOKUP(14,AN443:BH475,9,FALSE),IF(AND(AR2=2,AD27=AO457),VLOOKUP(15,AN443:BH475,9,FALSE),IF(AND(AR2=2,AD27=AO458),VLOOKUP(16,AN443:BH475,9,FALSE),IF(AND(AR2=2,AD27=AO459),VLOOKUP(17,AN443:BH475,9,FALSE),IF(AND(AR2=2,AD27=AO460),VLOOKUP(18,AN443:BH475,9,FALSE),IF(AND(AR2=2,AD27=AO461),VLOOKUP(19,AN443:BH475,9,FALSE),IF(AND(AR2=2,AD27=AO462),VLOOKUP(20,AN443:BH475,9,FALSE),IF(AND(AR2=2,AD27=AO463),VLOOKUP(21,AN443:BH475,9,FALSE),IF(AND(AR2=2,AD27=AO464),VLOOKUP(22,AN443:BH475,9,FALSE),IF(AND(AR2=2,AD27=AO465),VLOOKUP(23,AN443:BH475,9,FALSE),IF(AND(AR2=2,AD27=AO466),VLOOKUP(24,AN443:BH475,9,FALSE),IF(AND(AR2=2,AD27=AO467),VLOOKUP(25,AN443:BH475,9,FALSE),IF(AND(AR2=2,AD27=AO468),VLOOKUP(26,AN443:BH475,9,FALSE),IF(AND(AR2=2,AD27=AO469),VLOOKUP(27,AN443:BH475,9,FALSE),IF(AND(AR2=2,AD27=AO470),VLOOKUP(28,AN443:BH475,9,FALSE),IF(AND(AR2=2,AD27=AO471),VLOOKUP(29,AN443:BH475,9,FALSE),IF(AND(AR2=2,AD27=AO472),VLOOKUP(30,AN443:BH475,9,FALSE),IF(AND(AR2=2,AD27=AO473),VLOOKUP(31,AN443:BH475,9,FALSE),IF(AND(AR2=2,AD27=AO474),VLOOKUP(32,AN443:BH475,9,FALSE),IF(AND(AR2=2,AD27=AO475),VLOOKUP(33,AN443:BH475,9,FALSE)))))))))))))))))))))))))))))))))) -> 1.02 | AW29: cm3 | AX29: Zx | AY29: =IF(AND(AR2=3,AD27=AO402),VLOOKUP(1,AN402:AZ427,10,FALSE),IF(AND(AR2=3,AD27=AO403),VLOOKUP(2,AN402:AZ427,10,FALSE),IF(AND(AR2=3,AD27=AO404),VLOOKUP(3,AN402:AZ427,10,FALSE),IF(AND(AR2=3,AD27=AO405),VLOOKUP(4,AN402:AZ427,10,FALSE),IF(AND(AR2=3,AD27=AO406),VLOOKUP(5,AN402:AZ427,10,FALSE),IF(AND(AR2=3,AD27=AO407),VLOOKUP(6,AN402:AZ427,10,FALSE),IF(AND(AR2=3,AD27=AO408),VLOOKUP(7,AN402:AZ427,10,FALSE),IF(AND(AR2=3,AD27=AO409),VLOOKUP(8,AN402:AZ427,10,FALSE),IF(AND(AR2=3,AD27=AO410),VLOOKUP(9,AN402:AZ427,10,FALSE),IF(AND(AR2=3,AD27=AO411),VLOOKUP(10,AN402:AZ427,10,FALSE),IF(AND(AR2=3,AD27=AO412),VLOOKUP(11,AN402:AZ427,10,FALSE),IF(AND(AR2=3,AD27=AO413),VLOOKUP(12,AN402:AZ427,10,FALSE),IF(AND(AR2=3,AD27=AO414),VLOOKUP(13,AN402:AZ427,10,FALSE),IF(AND(AR2=3,AD27=AO415),VLOOKUP(14,AN402:AZ427,10,FALSE),IF(AND(AR2=3,AD27=AO416),VLOOKUP(15,AN402:AZ427,10,FALSE),IF(AND(AR2=3,AD27=AO417),VLOOKUP(16,AN402:AZ427,10,FALSE),IF(AND(AR2=3,AD27=AO418),VLOOKUP(17,AN402:AZ427,10,FALSE),IF(AND(AR2=3,AD27=AO419),VLOOKUP(18,AN402:AZ427,10,FALSE),IF(AND(AR2=3,AD27=AO420),VLOOKUP(19,AN402:AZ427,10,FALSE),IF(AND(AR2=3,AD27=AO421),VLOOKUP(20,AN402:AZ427,10,FALSE),IF(AND(AR2=3,AD27=AO422),VLOOKUP(21,AN402:AZ427,10,FALSE),IF(AND(AR2=3,AD27=AO423),VLOOKUP(22,AN402:AZ427,10,FALSE),IF(AND(AR2=3,AD27=AO424),VLOOKUP(23,AN402:AZ427,10,FALSE),IF(AND(AR2=3,AD27=AO425),VLOOKUP(24,AN402:AZ427,10,FALSE),IF(AND(AR2=3,AD27=AO426),VLOOKUP(25,AN402:AZ427,10,FALSE),IF(AND(AR2=3,AD27=AO427),VLOOKUP(26,AN402:AZ427,10,FALSE))))))))))))))))))))))))))) -> FALSE | AZ29: cm3 | BA29: Zx | BB29: =IF(AND(AR2=4,AD27=AO157),VLOOKUP(1,AN157:BG202,19,FALSE),IF(AND(AR2=4,AD27=AO158),VLOOKUP(2,AN157:BG202,19,FALSE),IF(AND(AR2=4,AD27=AO159),VLOOKUP(3,AN157:BG202,19,FALSE),IF(AND(AR2=4,AD27=AO160),VLOOKUP(4,AN157:BG202,19,FALSE),IF(AND(AR2=4,AD27=AO161),VLOOKUP(5,AN157:BG202,19,FALSE),IF(AND(AR2=4,AD27=AO162),VLOOKUP(6,AN157:BG202,19,FALSE),IF(AND(AR2=4,AD27=AO163),VLOOKUP(7,AN157:BG202,19,FALSE),IF(AND(AR2=4,AD27=AO164),VLOOKUP(8,AN157:BG202,19,FALSE),IF(AND(AR2=4,AD27=AO165),VLOOKUP(9,AN157:BG202,19,FALSE),IF(AND(AR2=4,AD27=AO166),VLOOKUP(10,AN157:BG202,19,FALSE),IF(AND(AR2=4,AD27=AO167),VLOOKUP(11,AN157:BG202,19,FALSE),IF(AND(AR2=4,AD27=AO168),VLOOKUP(12,AN157:BG202,19,FALSE),IF(AND(AR2=4,AD27=AO169),VLOOKUP(13,AN157:BG202,19,FALSE),IF(AND(AR2=4,AD27=AO170),VLOOKUP(14,AN157:BG202,19,FALSE),IF(AND(AR2=4,AD27=AO171),VLOOKUP(15,AN157:BG202,19,FALSE),IF(AND(AR2=4,AD27=AO172),VLOOKUP(16,AN157:BG202,19,FALSE),IF(AND(AR2=4,AD27=AO173),VLOOKUP(17,AN157:BG202,19,FALSE),IF(AND(AR2=4,AD27=AO174),VLOOKUP(18,AN157:BG202,19,FALSE),IF(AND(AR2=4,AD27=AO175),VLOOKUP(19,AN157:BG202,19,FALSE),IF(AND(AR2=4,AD27=AO176),VLOOKUP(20,AN157:BG202,19,FALSE),IF(AND(AR2=4,AD27=AO177),VLOOKUP(21,AN157:BG202,19,FALSE),IF(AND(AR2=4,AD27=AO178),VLOOKUP(22,AN157:BG202,19,FALSE),IF(AND(AR2=4,AD27=AO179),VLOOKUP(23,AN157:BG202,19,FALSE),IF(AND(AR2=4,AD27=AO180),VLOOKUP(24,AN157:BG202,19,FALSE),IF(AND(AR2=4,AD27=AO181),VLOOKUP(25,AN157:BG202,19,FALSE),IF(AND(AR2=4,AD27=AO182),VLOOKUP(26,AN157:BG202,19,FALSE),IF(AND(AR2=4,AD27=AO183),VLOOKUP(27,AN157:BG202,19,FALSE),IF(AND(AR2=4,AD27=AO184),VLOOKUP(28,AN157:BG202,19,FALSE),IF(AND(AR2=4,AD27=AO185),VLOOKUP(29,AN157:BG202,19,FALSE),IF(AND(AR2=4,AD27=AO186),VLOOKUP(30,AN157:BG202,19,FALSE),IF(AND(AR2=4,AD27=AO187),VLOOKUP(31,AN157:BG202,19,FALSE),IF(AND(AR2=4,AD27=AO188),VLOOKUP(32,AN157:BG202,19,FALSE),IF(AND(AR2=4,AD27=AO189),VLOOKUP(33,AN157:BG202,19,FALSE),IF(AND(AR2=4,AD27=AO190),VLOOKUP(34,AN157:BG202,19,FALSE),IF(AND(AR2=4,AD27=AO191),VLOOKUP(35,AN157:BG202,19,FALSE),IF(AND(AR2=4,AD27=AO192),VLOOKUP(36,AN157:BG202,19,FALSE),IF(AND(AR2=4,AD27=AO193),VLOOKUP(37,AN157:BG202,19,FALSE),IF(AND(AR2=4,AD27=AO194),VLOOKUP(38,AN157:BG202,19,FALSE),IF(AND(AR2=4,AD27=AO195),VLOOKUP(39,AN157:BG202,19,FALSE),IF(AND(AR2=4,AD27=AO196),VLOOKUP(40,AN157:BG202,19,FALSE),IF(AND(AR2=4,AD27=AO197),VLOOKUP(41,AN157:BG202,19,FALSE),IF(AND(AR2=4,AD27=AO198),VLOOKUP(42,AN157:BG202,19,FALSE),IF(AND(AR2=4,AD27=AO199),VLOOKUP(43,AN157:BG202,19,FALSE),IF(AND(AR2=4,AD27=AO200),VLOOKUP(44,AN157:BG202,19,FALSE),IF(AND(AR2=4,AD27=AO201),VLOOKUP(45,AN157:BG202,19,FALSE),IF(AND(AR2=4,AD27=AO202),VLOOKUP(46,AN157:BG202,19,FALSE))))))))))))))))))))))))))))))))))))))))))))))) -> FALSE | BC29: cm3 | BD29: Zx | BE29: =IF(AND(AR2=5,AD27=AO126),VLOOKUP(1,AN126:BD141,16,FALSE),IF(AND(AR2=5,AD27=AO127),VLOOKUP(2,AN126:BD141,16,FALSE),IF(AND(AR2=5,AD27=AO128),VLOOKUP(3,AN126:BD141,16,FALSE),IF(AND(AR2=5,AD27=AO129),VLOOKUP(4,AN126:BD141,16,FALSE),IF(AND(AR2=5,AD27=AO130),VLOOKUP(5,AN126:BD141,16,FALSE),IF(AND(AR2=5,AD27=AO131),VLOOKUP(6,AN126:BD141,16,FALSE),IF(AND(AR2=5,AD27=AO132),VLOOKUP(7,AN126:BD141,16,FALSE),IF(AND(AR2=5,AD27=AO133),VLOOKUP(8,AN126:BD141,16,FALSE),IF(AND(AR2=5,AD27=AO134),VLOOKUP(9,AN126:BD141,16,FALSE),IF(AND(AR2=5,AD27=AO135),VLOOKUP(10,AN126:BD141,16,FALSE),IF(AND(AR2=5,AD27=AO136),VLOOKUP(11,AN126:BD141,16,FALSE),IF(AND(AR2=5,AD27=AO137),VLOOKUP(12,AN126:BD141,16,FALSE),IF(AND(AR2=5,AD27=AO138),VLOOKUP(13,AN126:BD141,16,FALSE),IF(AND(AR2=5,AD27=AO139),VLOOKUP(14,AN126:BD141,16,FALSE),IF(AND(AR2=5,AD27=AO140),VLOOKUP(15,AN126:BD141,16,FALSE),IF(AND(AR2=5,AD27=AO141),VLOOKUP(16,AN126:BD141,16,FALSE))))))))))))))))) -> FALSE | BF29: cm3 | BG29: Zx | BH29: =IF(AND(AR2=6,AD27=AO218),VLOOKUP(1,AN218:BQ290,26,FALSE),IF(AND(AR2=6,AD27=AO219),VLOOKUP(2,AN218:BQ290,26,FALSE),IF(AND(AR2=6,AD27=AO220),VLOOKUP(3,AN218:BQ290,26,FALSE),IF(AND(AR2=6,AD27=AO221),VLOOKUP(4,AN218:BQ290,26,FALSE),IF(AND(AR2=6,AD27=AO222),VLOOKUP(5,AN218:BQ290,26,FALSE),IF(AND(AR2=6,AD27=AO223),VLOOKUP(6,AN218:BQ290,26,FALSE),IF(AND(AR2=6,AD27=AO224),VLOOKUP(7,AN218:BQ290,26,FALSE),IF(AND(AR2=6,AD27=AO225),VLOOKUP(8,AN218:BQ290,26,FALSE),IF(AND(AR2=6,AD27=AO226),VLOOKUP(9,AN218:BQ290,26,FALSE),IF(AND(AR2=6,AD27=AO227),VLOOKUP(10,AN218:BQ290,26,FALSE),IF(AND(AR2=6,AD27=AO228),VLOOKUP(11,AN218:BQ290,26,FALSE),IF(AND(AR2=6,AD27=AO229),VLOOKUP(12,AN218:BQ290,26,FALSE),IF(AND(AR2=6,AD27=AO230),VLOOKUP(13,AN218:BQ290,26,FALSE),IF(AND(AR2=6,AD27=AO231),VLOOKUP(14,AN218:BQ290,26,FALSE),IF(AND(AR2=6,AD27=AO232),VLOOKUP(15,AN218:BQ290,26,FALSE),IF(AND(AR2=6,AD27=AO233),VLOOKUP(16,AN218:BQ290,26,FALSE),IF(AND(AR2=6,AD27=AO234),VLOOKUP(17,AN218:BQ290,26,FALSE),IF(AND(AR2=6,AD27=AO235),VLOOKUP(18,AN218:BQ290,26,FALSE),IF(AND(AR2=6,AD27=AO236),VLOOKUP(19,AN218:BQ290,26,FALSE),IF(AND(AR2=6,AD27=AO237),VLOOKUP(20,AN218:BQ290,26,FALSE),IF(AND(AR2=6,AD27=AO238),VLOOKUP(21,AN218:BQ290,26,FALSE),IF(AND(AR2=6,AD27=AO239),VLOOKUP(22,AN218:BQ290,26,FALSE),IF(AND(AR2=6,AD27=AO240),VLOOKUP(23,AN218:BQ290,26,FALSE),IF(AND(AR2=6,AD27=AO241),VLOOKUP(24,AN218:BQ290,26,FALSE),IF(AND(AR2=6,AD27=AO242),VLOOKUP(25,AN218:BQ290,26,FALSE),IF(AND(AR2=6,AD27=AO243),VLOOKUP(26,AN218:BQ290,26,FALSE),IF(AND(AR2=6,AD27=AO244),VLOOKUP(27,AN218:BQ290,26,FALSE),IF(AND(AR2=6,AD27=AO245),VLOOKUP(28,AN218:BQ290,26,FALSE),IF(AND(AR2=6,AD27=AO246),VLOOKUP(29,AN218:BQ290,26,FALSE),IF(AND(AR2=6,AD27=AO247),VLOOKUP(30,AN218:BQ290,26,FALSE),IF(AND(AR2=6,AD27=AO248),VLOOKUP(31,AN218:BQ290,26,FALSE),IF(AND(AR2=6,AD27=AO249),VLOOKUP(32,AN218:BQ290,26,FALSE),IF(AND(AR2=6,AD27=AO250),VLOOKUP(33,AN218:BQ290,26,FALSE),IF(AND(AR2=6,AD27=AO251),VLOOKUP(34,AN218:BQ290,26,FALSE),IF(AND(AR2=6,AD27=AO252),VLOOKUP(35,AN218:BQ290,26,FALSE),IF(AND(AR2=6,AD27=AO253),VLOOKUP(36,AN218:BQ290,26,FALSE),IF(AND(AR2=6,AD27=AO254),VLOOKUP(37,AN218:BQ290,26,FALSE),IF(AND(AR2=6,AD27=AO255),VLOOKUP(38,AN218:BQ290,26,FALSE),IF(AND(AR2=6,AD27=AO256),VLOOKUP(39,AN218:BQ290,26,FALSE),IF(AND(AR2=6,AD27=AO257),VLOOKUP(40,AN218:BQ290,26,FALSE),IF(AND(AR2=6,AD27=AO258),VLOOKUP(41,AN218:BQ290,26,FALSE),IF(AND(AR2=6,AD27=AO259),VLOOKUP(42,AN218:BQ290,26,FALSE),IF(AND(AR2=6,AD27=AO260),VLOOKUP(43,AN218:BQ290,26,FALSE),IF(AND(AR2=6,AD27=AO261),VLOOKUP(44,AN218:BQ290,26,FALSE),IF(AND(AR2=6,AD27=AO262),VLOOKUP(45,AN218:BQ290,26,FALSE),IF(AND(AR2=6,AD27=AO263),VLOOKUP(46,AN218:BQ290,26,FALSE),IF(AND(AR2=6,AD27=AO264),VLOOKUP(47,AN218:BQ290,26,FALSE),IF(AND(AR2=6,AD27=AO265),VLOOKUP(48,AN218:BQ290,26,FALSE),IF(AND(AR2=6,AD27=AO266),VLOOKUP(49,AN218:BQ290,26,FALSE),IF(AND(AR2=6,AD27=AO267),VLOOKUP(50,AN218:BQ290,26,FALSE),IF(AND(AR2=6,AD27=AO268),VLOOKUP(51,AN218:BQ290,26,FALSE),IF(AND(AR2=6,AD27=AO269),VLOOKUP(52,AN218:BQ290,26,FALSE),IF(AND(AR2=6,AD27=AO270),VLOOKUP(53,AN218:BQ290,26,FALSE),IF(AND(AR2=6,AD27=AO271),VLOOKUP(54,AN218:BQ290,26,FALSE),IF(AND(AR2=6,AD27=AO272),VLOOKUP(55,AN218:BQ290,26,FALSE),IF(AND(AR2=6,AD27=AO273),VLOOKUP(56,AN218:BQ290,26,FALSE),IF(AND(AR2=6,AD27=AO274),VLOOKUP(57,AN218:BQ290,26,FALSE),IF(AND(AR2=6,AD27=AO275),VLOOKUP(58,AN218:BQ290,26,FALSE),IF(AND(AR2=6,AD27=AO276),VLOOKUP(59,AN218:BQ290,26,FALSE),IF(AND(AR2=6,AD27=AO277),VLOOKUP(60,AN218:BQ290,26,FALSE),IF(AND(AR2=6,AD27=AO278),VLOOKUP(61,AN218:BQ290,26,FALSE),IF(AND(AR2=6,AD27=AO279),VLOOKUP(62,AN218:BQ290,26,FALSE),IF(AND(AR2=6,AD27=AO280),VLOOKUP(63,AN218:BQ290,26,FALSE),IF(AND(AR2=6,AD27=AO281),VLOOKUP(64,AN218:BQ290,26,FALSE))))))))))))))))))))))))))))))))))))))))))))))))))))))))))))))))) -> FALSE | BI29: cm3 | BJ29: Zx | BK29: =IF(AND(AR2=7,AD27=AO308),VLOOKUP(1,AN308:BB327,14,FALSE),IF(AND(AR2=7,AD27=AO309),VLOOKUP(2,AN308:BB327,14,FALSE),IF(AND(AR2=7,AD27=AO310),VLOOKUP(3,AN308:BB327,14,FALSE),IF(AND(AR2=7,AD27=AO311),VLOOKUP(4,AN308:BB327,14,FALSE),IF(AND(AR2=7,AD27=AO312),VLOOKUP(5,AN308:BB327,14,FALSE),IF(AND(AR2=7,AD27=AO313),VLOOKUP(6,AN308:BB327,14,FALSE),IF(AND(AR2=7,AD27=AO314),VLOOKUP(7,AN308:BB327,14,FALSE),IF(AND(AR2=7,AD27=AO315),VLOOKUP(8,AN308:BB327,14,FALSE),IF(AND(AR2=7,AD27=AO316),VLOOKUP(9,AN308:BB327,14,FALSE),IF(AND(AR2=7,AD27=AO317),VLOOKUP(10,AN308:BB327,14,FALSE),IF(AND(AR2=7,AD27=AO318),VLOOKUP(11,AN308:BB327,14,FALSE),IF(AND(AR2=7,AD27=AO319),VLOOKUP(12,AN308:BB327,14,FALSE),IF(AND(AR2=7,AD27=AO320),VLOOKUP(13,AN308:BB327,14,FALSE),IF(AND(AR2=7,AD27=AO321),VLOOKUP(14,AN308:BB327,14,FALSE),IF(AND(AR2=7,AD27=AO322),VLOOKUP(15,AN308:BB327,14,FALSE),IF(AND(AR2=7,AD27=AO323),VLOOKUP(16,AN308:BB327,14,FALSE),IF(AND(AR2=7,AD27=AO324),VLOOKUP(17,AN308:BB327,14,FALSE),IF(AND(AR2=7,AD27=AO325),VLOOKUP(18,AN308:BB327,14,FALSE),IF(AND(AR2=7,AD27=AO326),VLOOKUP(19,AN308:BB327,14,FALSE),IF(AND(AR2=7,AD27=AO327),VLOOKUP(20,AN308:BB327,14,FALSE))))))))))))))))))))) -> FALSE | BL29: cm3 | BM29: Zx | BN29: =IF(AND(AR2=8,AD27=AO1062),VLOOKUP(1,AN1062:BG1074,19,FALSE),IF(AND(AR2=8,AD27=AO1063),VLOOKUP(2,AN1062:BG1074,19,FALSE),IF(AND(AR2=8,AD27=AO1064),VLOOKUP(3,AN1062:BG1074,19,FALSE),IF(AND(AR2=8,AD27=AO1065),VLOOKUP(4,AN1062:BG1074,19,FALSE),IF(AND(AR2=8,AD27=AO1066),VLOOKUP(5,AN1062:BG1074,19,FALSE),IF(AND(AR2=8,AD27=AO1067),VLOOKUP(6,AN1062:BG1074,19,FALSE),IF(AND(AR2=8,AD27=AO1068),VLOOKUP(7,AN1062:BG1074,19,FALSE),IF(AND(AR2=8,AD27=AO1069),VLOOKUP(8,AN1062:BG1074,19,FALSE),IF(AND(AR2=8,AD27=AO1070),VLOOKUP(9,AN1062:BG1074,19,FALSE),IF(AND(AR2=8,AD27=AO1071),VLOOKUP(10,AN1062:BG1074,19,FALSE),IF(AND(AR2=8,AD27=AO1072),VLOOKUP(11,AN1062:BG1074,19,FALSE),IF(AND(AR2=8,AD27=AO1073),VLOOKUP(12,AN1062:BG1074,19,FALSE),IF(AND(AR2=8,AD27=AO1074),VLOOKUP(13,AN1062:BG1074,19,FALSE)))))))))))))) -> FALSE | BO29: cm3
B30: ∆ allow. y-y | F30: = | G30: =AE24*100/360 -> 0.2777777778 | K30: cm. | M30: =IF(G30>=S30,"≥","<") -> ≥ | N30: ∆ max. y-y | R30: = | S30: =(5*G29*((AE24*100)^4))/(384*100*G22*AE28) -> 0.1545714367 | W30: cm. | Y30: =IF(G30>=S30,"","Fail") ->  | Z30: Sx | AD30: = | AE30: =IF(AND(AS29=FALSE,AV29=FALSE,AY29=FALSE,BB29=FALSE,BE29=FALSE,BH29=FALSE,BK29=FALSE,BN29=FALSE),0.0001,IF(AR2=1,AS29,IF(AR2=2,AV29,IF(AR2=3,AY29,IF(AR2=4,BB29,IF(AR2=5,BE29,IF(AR2=6,BH29,IF(AR2=7,BK29,IF(AR2=8,BN29))))))))) -> 1.02 | AI30: cm3 | AR30: Zy | AS30: =IF(AND(AR2=1,AD27=AO342),VLOOKUP(1,AN342:BC386,14,FALSE),IF(AND(AR2=1,AD27=AO343),VLOOKUP(2,AN342:BC386,14,FALSE),IF(AND(AR2=1,AD27=AO344),VLOOKUP(3,AN342:BC386,14,FALSE),IF(AND(AR2=1,AD27=AO345),VLOOKUP(4,AN342:BC386,14,FALSE),IF(AND(AR2=1,AD27=AO346),VLOOKUP(5,AN342:BC386,14,FALSE),IF(AND(AR2=1,AD27=AO347),VLOOKUP(6,AN342:BC386,14,FALSE),IF(AND(AR2=1,AD27=AO348),VLOOKUP(7,AN342:BC386,14,FALSE),IF(AND(AR2=1,AD27=AO349),VLOOKUP(8,AN342:BC386,14,FALSE),IF(AND(AR2=1,AD27=AO350),VLOOKUP(9,AN342:BC386,14,FALSE),IF(AND(AR2=1,AD27=AO351),VLOOKUP(10,AN342:BC386,14,FALSE),IF(AND(AR2=1,AD27=AO352),VLOOKUP(11,AN342:BC386,14,FALSE),IF(AND(AR2=1,AD27=AO353),VLOOKUP(12,AN342:BC386,14,FALSE),IF(AND(AR2=1,AD27=AO354),VLOOKUP(13,AN342:BC386,14,FALSE),IF(AND(AR2=1,AD27=AO355),VLOOKUP(14,AN342:BC386,14,FALSE),IF(AND(AR2=1,AD27=AO356),VLOOKUP(15,AN342:BC386,14,FALSE),IF(AND(AR2=1,AD27=AO357),VLOOKUP(16,AN342:BC386,14,FALSE),IF(AND(AR2=1,AD27=AO358),VLOOKUP(17,AN342:BC386,14,FALSE),IF(AND(AR2=1,AD27=AO359),VLOOKUP(18,AN342:BC386,14,FALSE),IF(AND(AR2=1,AD27=AO360),VLOOKUP(19,AN342:BC386,14,FALSE),IF(AND(AR2=1,AD27=AO361),VLOOKUP(20,AN342:BC386,14,FALSE),IF(AND(AR2=1,AD27=AO362),VLOOKUP(21,AN342:BC386,14,FALSE),IF(AND(AR2=1,AD27=AO363),VLOOKUP(22,AN342:BC386,14,FALSE),IF(AND(AR2=1,AD27=AO364),VLOOKUP(23,AN342:BC386,14,FALSE),IF(AND(AR2=1,AD27=AO365),VLOOKUP(24,AN342:BC386,14,FALSE),IF(AND(AR2=1,AD27=AO366),VLOOKUP(25,AN342:BC386,14,FALSE),IF(AND(AR2=1,AD27=AO367),VLOOKUP(26,AN342:BC386,14,FALSE),IF(AND(AR2=1,AD27=AO368),VLOOKUP(27,AN342:BC386,14,FALSE),IF(AND(AR2=1,AD27=AO369),VLOOKUP(28,AN342:BC386,14,FALSE),IF(AND(AR2=1,AD27=AO370),VLOOKUP(29,AN342:BC386,14,FALSE),IF(AND(AR2=1,AD27=AO371),VLOOKUP(30,AN342:BC386,14,FALSE),IF(AND(AR2=1,AD27=AO372),VLOOKUP(31,AN342:BC386,14,FALSE),IF(AND(AR2=1,AD27=AO373),VLOOKUP(32,AN342:BC386,14,FALSE),IF(AND(AR2=1,AD27=AO374),VLOOKUP(33,AN342:BC386,14,FALSE),IF(AND(AR2=1,AD27=AO375),VLOOKUP(34,AN342:BC386,14,FALSE),IF(AND(AR2=1,AD27=AO376),VLOOKUP(35,AN342:BC386,14,FALSE),IF(AND(AR2=1,AD27=AO377),VLOOKUP(36,AN342:BC386,14,FALSE),IF(AND(AR2=1,AD27=AO378),VLOOKUP(37,AN342:BC386,14,FALSE),IF(AND(AR2=1,AD27=AO379),VLOOKUP(38,AN342:BC386,14,FALSE),IF(AND(AR2=1,AD27=AO380),VLOOKUP(39,AN342:BC386,14,FALSE),IF(AND(AR2=1,AD27=AO381),VLOOKUP(40,AN342:BC386,14,FALSE),IF(AND(AR2=1,AD27=AO382),VLOOKUP(41,AN342:BC386,14,FALSE),IF(AND(AR2=1,AD27=AO383),VLOOKUP(42,AN342:BC386,14,FALSE),IF(AND(AR2=1,AD27=AO384),VLOOKUP(43,AN342:BC386,14,FALSE),IF(AND(AR2=1,AD27=AO385),VLOOKUP(44,AN342:BC386,14,FALSE),IF(AND(AR2=1,AD27=AO386),VLOOKUP(45,AN342:BC386,14,FALSE)))))))))))))))))))))))))))))))))))))))))))))) -> FALSE | AT30: cm3 | AU30: Zy | AV30: =IF(AND(AR2=2,AD27=AO443),VLOOKUP(1,AN443:BH475,9,FALSE),IF(AND(AR2=2,AD27=AO444),VLOOKUP(2,AN443:BH475,9,FALSE),IF(AND(AR2=2,AD27=AO445),VLOOKUP(3,AN443:BH475,9,FALSE),IF(AND(AR2=2,AD27=AO446),VLOOKUP(4,AN443:BH475,9,FALSE),IF(AND(AR2=2,AD27=AO447),VLOOKUP(5,AN443:BH475,9,FALSE),IF(AND(AR2=2,AD27=AO448),VLOOKUP(6,AN443:BH474,9,FALSE),IF(AND(AR2=2,AD27=AO449),VLOOKUP(7,AN443:BH475,9,FALSE),IF(AND(AR2=2,AD27=AO450),VLOOKUP(8,AN443:BH475,9,FALSE),IF(AND(AR2=2,AD27=AO451),VLOOKUP(9,AN443:BH475,9,FALSE),IF(AND(AR2=2,AD27=AO452),VLOOKUP(10,AN443:BH475,9,FALSE),IF(AND(AR2=2,AD27=AO453),VLOOKUP(11,AN443:BH475,9,FALSE),IF(AND(AR2=2,AD27=AO454),VLOOKUP(12,AN443:BH475,9,FALSE),IF(AND(AR2=2,AD27=AO455),VLOOKUP(13,AN443:BH475,9,FALSE),IF(AND(AR2=2,AD27=AO456),VLOOKUP(14,AN443:BH475,9,FALSE),IF(AND(AR2=2,AD27=AO457),VLOOKUP(15,AN443:BH475,9,FALSE),IF(AND(AR2=2,AD27=AO458),VLOOKUP(16,AN443:BH475,9,FALSE),IF(AND(AR2=2,AD27=AO459),VLOOKUP(17,AN443:BH475,9,FALSE),IF(AND(AR2=2,AD27=AO460),VLOOKUP(18,AN443:BH475,9,FALSE),IF(AND(AR2=2,AD27=AO461),VLOOKUP(19,AN443:BH475,9,FALSE),IF(AND(AR2=2,AD27=AO462),VLOOKUP(20,AN443:BH475,9,FALSE),IF(AND(AR2=2,AD27=AO463),VLOOKUP(21,AN443:BH475,9,FALSE),IF(AND(AR2=2,AD27=AO464),VLOOKUP(22,AN443:BH475,9,FALSE),IF(AND(AR2=2,AD27=AO465),VLOOKUP(23,AN443:BH475,9,FALSE),IF(AND(AR2=2,AD27=AO466),VLOOKUP(24,AN443:BH475,9,FALSE),IF(AND(AR2=2,AD27=AO467),VLOOKUP(25,AN443:BH475,9,FALSE),IF(AND(AR2=2,AD27=AO468),VLOOKUP(26,AN443:BH475,9,FALSE),IF(AND(AR2=2,AD27=AO469),VLOOKUP(27,AN443:BH475,9,FALSE),IF(AND(AR2=2,AD27=AO470),VLOOKUP(28,AN443:BH475,9,FALSE),IF(AND(AR2=2,AD27=AO471),VLOOKUP(29,AN443:BH475,9,FALSE),IF(AND(AR2=2,AD27=AO472),VLOOKUP(30,AN443:BH475,9,FALSE),IF(AND(AR2=2,AD27=AO473),VLOOKUP(31,AN443:BH475,9,FALSE),IF(AND(AR2=2,AD27=AO474),VLOOKUP(32,AN443:BH475,9,FALSE),IF(AND(AR2=2,AD27=AO475),VLOOKUP(33,AN443:BH475,9,FALSE)))))))))))))))))))))))))))))))))) -> 1.02 | AW30: cm3 | AX30: Zy | AY30: =IF(AND(AR2=3,AD27=AO402),VLOOKUP(1,AN402:AZ427,11,FALSE),IF(AND(AR2=3,AD27=AO403),VLOOKUP(2,AN402:AZ427,11,FALSE),IF(AND(AR2=3,AD27=AO404),VLOOKUP(3,AN402:AZ427,11,FALSE),IF(AND(AR2=3,AD27=AO405),VLOOKUP(4,AN402:AZ427,11,FALSE),IF(AND(AR2=3,AD27=AO406),VLOOKUP(5,AN402:AZ427,11,FALSE),IF(AND(AR2=3,AD27=AO407),VLOOKUP(6,AN402:AZ427,11,FALSE),IF(AND(AR2=3,AD27=AO408),VLOOKUP(7,AN402:AZ427,11,FALSE),IF(AND(AR2=3,AD27=AO409),VLOOKUP(8,AN402:AZ427,11,FALSE),IF(AND(AR2=3,AD27=AO410),VLOOKUP(9,AN402:AZ427,11,FALSE),IF(AND(AR2=3,AD27=AO411),VLOOKUP(10,AN402:AZ427,11,FALSE),IF(AND(AR2=3,AD27=AO412),VLOOKUP(11,AN402:AZ427,11,FALSE),IF(AND(AR2=3,AD27=AO413),VLOOKUP(12,AN402:AZ427,11,FALSE),IF(AND(AR2=3,AD27=AO414),VLOOKUP(13,AN402:AZ427,11,FALSE),IF(AND(AR2=3,AD27=AO415),VLOOKUP(14,AN402:AZ427,11,FALSE),IF(AND(AR2=3,AD27=AO416),VLOOKUP(15,AN402:AZ427,11,FALSE),IF(AND(AR2=3,AD27=AO417),VLOOKUP(16,AN402:AZ427,11,FALSE),IF(AND(AR2=3,AD27=AO418),VLOOKUP(17,AN402:AZ427,11,FALSE),IF(AND(AR2=3,AD27=AO419),VLOOKUP(18,AN402:AZ427,11,FALSE),IF(AND(AR2=3,AD27=AO420),VLOOKUP(19,AN402:AZ427,11,FALSE),IF(AND(AR2=3,AD27=AO421),VLOOKUP(20,AN402:AZ427,11,FALSE),IF(AND(AR2=3,AD27=AO422),VLOOKUP(21,AN402:AZ427,11,FALSE),IF(AND(AR2=3,AD27=AO423),VLOOKUP(22,AN402:AZ427,11,FALSE),IF(AND(AR2=3,AD27=AO424),VLOOKUP(23,AN402:AZ427,11,FALSE),IF(AND(AR2=3,AD27=AO425),VLOOKUP(24,AN402:AZ427,11,FALSE),IF(AND(AR2=3,AD27=AO426),VLOOKUP(25,AN402:AZ427,11,FALSE),IF(AND(AR2=3,AD27=AO427),VLOOKUP(26,AN402:AZ427,11,FALSE))))))))))))))))))))))))))) -> FALSE | AZ30: cm3 | BA30: Zy | BB30: =BB29 -> FALSE | BC30: cm3 | BD30: Zy | BE30: =IF(AND(AR2=5,AD27=AO126),VLOOKUP(1,AN126:BD141,17,FALSE),IF(AND(AR2=5,AD27=AO127),VLOOKUP(2,AN126:BD141,17,FALSE),IF(AND(AR2=5,AD27=AO128),VLOOKUP(3,AN126:BD141,17,FALSE),IF(AND(AR2=5,AD27=AO129),VLOOKUP(4,AN126:BD141,17,FALSE),IF(AND(AR2=5,AD27=AO130),VLOOKUP(5,AN126:BD141,17,FALSE),IF(AND(AR2=5,AD27=AO131),VLOOKUP(6,AN126:BD141,17,FALSE),IF(AND(AR2=5,AD27=AO132),VLOOKUP(7,AN126:BD141,17,FALSE),IF(AND(AR2=5,AD27=AO133),VLOOKUP(8,AN126:BD141,17,FALSE),IF(AND(AR2=5,AD27=AO134),VLOOKUP(9,AN126:BD141,17,FALSE),IF(AND(AR2=5,AD27=AO135),VLOOKUP(10,AN126:BD141,17,FALSE),IF(AND(AR2=5,AD27=AO136),VLOOKUP(11,AN126:BD141,17,FALSE),IF(AND(AR2=5,AD27=AO137),VLOOKUP(12,AN126:BD141,17,FALSE),IF(AND(AR2=5,AD27=AO138),VLOOKUP(13,AN126:BD141,17,FALSE),IF(AND(AR2=5,AD27=AO139),VLOOKUP(14,AN126:BD141,17,FALSE),IF(AND(AR2=5,AD27=AO140),VLOOKUP(15,AN126:BD141,17,FALSE),IF(AND(AR2=5,AD27=AO141),VLOOKUP(16,AN126:BD141,17,FALSE))))))))))))))))) -> FALSE | BF30: cm3 | BG30: Zy | BH30: =IF(AND(AR2=6,AD27=AO218),VLOOKUP(1,AN218:BQ290,28,FALSE),IF(AND(AR2=6,AD27=AO219),VLOOKUP(2,AN218:BQ290,28,FALSE),IF(AND(AR2=6,AD27=AO220),VLOOKUP(3,AN218:BQ290,28,FALSE),IF(AND(AR2=6,AD27=AO221),VLOOKUP(4,AN218:BQ290,28,FALSE),IF(AND(AR2=6,AD27=AO222),VLOOKUP(5,AN218:BQ290,28,FALSE),IF(AND(AR2=6,AD27=AO223),VLOOKUP(6,AN218:BQ290,28,FALSE),IF(AND(AR2=6,AD27=AO224),VLOOKUP(7,AN218:BQ290,28,FALSE),IF(AND(AR2=6,AD27=AO225),VLOOKUP(8,AN218:BQ290,28,FALSE),IF(AND(AR2=6,AD27=AO226),VLOOKUP(9,AN218:BQ290,28,FALSE),IF(AND(AR2=6,AD27=AO227),VLOOKUP(10,AN218:BQ290,28,FALSE),IF(AND(AR2=6,AD27=AO228),VLOOKUP(11,AN218:BQ290,28,FALSE),IF(AND(AR2=6,AD27=AO229),VLOOKUP(12,AN218:BQ290,28,FALSE),IF(AND(AR2=6,AD27=AO230),VLOOKUP(13,AN218:BQ290,28,FALSE),IF(AND(AR2=6,AD27=AO231),VLOOKUP(14,AN218:BQ290,28,FALSE),IF(AND(AR2=6,AD27=AO232),VLOOKUP(15,AN218:BQ290,28,FALSE),IF(AND(AR2=6,AD27=AO233),VLOOKUP(16,AN218:BQ290,28,FALSE),IF(AND(AR2=6,AD27=AO234),VLOOKUP(17,AN218:BQ290,28,FALSE),IF(AND(AR2=6,AD27=AO235),VLOOKUP(18,AN218:BQ290,28,FALSE),IF(AND(AR2=6,AD27=AO236),VLOOKUP(19,AN218:BQ290,28,FALSE),IF(AND(AR2=6,AD27=AO237),VLOOKUP(20,AN218:BQ290,28,FALSE),IF(AND(AR2=6,AD27=AO238),VLOOKUP(21,AN218:BQ290,28,FALSE),IF(AND(AR2=6,AD27=AO239),VLOOKUP(22,AN218:BQ290,28,FALSE),IF(AND(AR2=6,AD27=AO240),VLOOKUP(23,AN218:BQ290,28,FALSE),IF(AND(AR2=6,AD27=AO241),VLOOKUP(24,AN218:BQ290,28,FALSE),IF(AND(AR2=6,AD27=AO242),VLOOKUP(25,AN218:BQ290,28,FALSE),IF(AND(AR2=6,AD27=AO243),VLOOKUP(26,AN218:BQ290,28,FALSE),IF(AND(AR2=6,AD27=AO244),VLOOKUP(27,AN218:BQ290,28,FALSE),IF(AND(AR2=6,AD27=AO245),VLOOKUP(28,AN218:BQ290,28,FALSE),IF(AND(AR2=6,AD27=AO246),VLOOKUP(29,AN218:BQ290,28,FALSE),IF(AND(AR2=6,AD27=AO247),VLOOKUP(30,AN218:BQ290,28,FALSE),IF(AND(AR2=6,AD27=AO248),VLOOKUP(31,AN218:BQ290,28,FALSE),IF(AND(AR2=6,AD27=AO249),VLOOKUP(32,AN218:BQ290,28,FALSE),IF(AND(AR2=6,AD27=AO250),VLOOKUP(33,AN218:BQ290,28,FALSE),IF(AND(AR2=6,AD27=AO251),VLOOKUP(34,AN218:BQ290,28,FALSE),IF(AND(AR2=6,AD27=AO252),VLOOKUP(35,AN218:BQ290,28,FALSE),IF(AND(AR2=6,AD27=AO253),VLOOKUP(36,AN218:BQ290,28,FALSE),IF(AND(AR2=6,AD27=AO254),VLOOKUP(37,AN218:BQ290,28,FALSE),IF(AND(AR2=6,AD27=AO255),VLOOKUP(38,AN218:BQ290,28,FALSE),IF(AND(AR2=6,AD27=AO256),VLOOKUP(39,AN218:BQ290,28,FALSE),IF(AND(AR2=6,AD27=AO257),VLOOKUP(40,AN218:BQ290,28,FALSE),IF(AND(AR2=6,AD27=AO258),VLOOKUP(41,AN218:BQ290,28,FALSE),IF(AND(AR2=6,AD27=AO259),VLOOKUP(42,AN218:BQ290,28,FALSE),IF(AND(AR2=6,AD27=AO260),VLOOKUP(43,AN218:BQ290,28,FALSE),IF(AND(AR2=6,AD27=AO261),VLOOKUP(44,AN218:BQ290,28,FALSE),IF(AND(AR2=6,AD27=AO262),VLOOKUP(45,AN218:BQ290,28,FALSE),IF(AND(AR2=6,AD27=AO263),VLOOKUP(46,AN218:BQ290,28,FALSE),IF(AND(AR2=6,AD27=AO264),VLOOKUP(47,AN218:BQ290,28,FALSE),IF(AND(AR2=6,AD27=AO265),VLOOKUP(48,AN218:BQ290,28,FALSE),IF(AND(AR2=6,AD27=AO266),VLOOKUP(49,AN218:BQ290,28,FALSE),IF(AND(AR2=6,AD27=AO267),VLOOKUP(50,AN218:BQ290,28,FALSE),IF(AND(AR2=6,AD27=AO268),VLOOKUP(51,AN218:BQ290,28,FALSE),IF(AND(AR2=6,AD27=AO269),VLOOKUP(52,AN218:BQ290,28,FALSE),IF(AND(AR2=6,AD27=AO270),VLOOKUP(53,AN218:BQ290,28,FALSE),IF(AND(AR2=6,AD27=AO271),VLOOKUP(54,AN218:BQ290,28,FALSE),IF(AND(AR2=6,AD27=AO272),VLOOKUP(55,AN218:BQ290,28,FALSE),IF(AND(AR2=6,AD27=AO273),VLOOKUP(56,AN218:BQ290,28,FALSE),IF(AND(AR2=6,AD27=AO274),VLOOKUP(57,AN218:BQ290,28,FALSE),IF(AND(AR2=6,AD27=AO275),VLOOKUP(58,AN218:BQ290,28,FALSE),IF(AND(AR2=6,AD27=AO276),VLOOKUP(59,AN218:BQ290,28,FALSE),IF(AND(AR2=6,AD27=AO277),VLOOKUP(60,AN218:BQ290,28,FALSE),IF(AND(AR2=6,AD27=AO278),VLOOKUP(61,AN218:BQ290,28,FALSE),IF(AND(AR2=6,AD27=AO279),VLOOKUP(62,AN218:BQ290,28,FALSE),IF(AND(AR2=6,AD27=AO280),VLOOKUP(63,AN218:BQ290,28,FALSE),IF(AND(AR2=6,AD27=AO281),VLOOKUP(64,AN218:BQ290,28,FALSE))))))))))))))))))))))))))))))))))))))))))))))))))))))))))))))))) -> FALSE | BI30: cm3 | BJ30: Zy | BK30: =IF(AND(AR2=7,AD27=AO308),VLOOKUP(1,AN308:BB327,15,FALSE),IF(AND(AR2=7,AD27=AO309),VLOOKUP(2,AN308:BB327,15,FALSE),IF(AND(AR2=7,AD27=AO310),VLOOKUP(3,AN308:BB327,15,FALSE),IF(AND(AR2=7,AD27=AO311),VLOOKUP(4,AN308:BB327,15,FALSE),IF(AND(AR2=7,AD27=AO312),VLOOKUP(5,AN308:BB327,15,FALSE),IF(AND(AR2=7,AD27=AO313),VLOOKUP(6,AN308:BB327,15,FALSE),IF(AND(AR2=7,AD27=AO314),VLOOKUP(7,AN308:BB327,15,FALSE),IF(AND(AR2=7,AD27=AO315),VLOOKUP(8,AN308:BB327,15,FALSE),IF(AND(AR2=7,AD27=AO316),VLOOKUP(9,AN308:BB327,15,FALSE),IF(AND(AR2=7,AD27=AO317),VLOOKUP(10,AN308:BB327,15,FALSE),IF(AND(AR2=7,AD27=AO318),VLOOKUP(11,AN308:BB327,15,FALSE),IF(AND(AR2=7,AD27=AO319),VLOOKUP(12,AN308:BB327,15,FALSE),IF(AND(AR2=7,AD27=AO320),VLOOKUP(13,AN308:BB327,15,FALSE),IF(AND(AR2=7,AD27=AO321),VLOOKUP(14,AN308:BB327,15,FALSE),IF(AND(AR2=7,AD27=AO322),VLOOKUP(15,AN308:BB327,15,FALSE),IF(AND(AR2=7,AD27=AO323),VLOOKUP(16,AN308:BB327,15,FALSE),IF(AND(AR2=7,AD27=AO324),VLOOKUP(17,AN308:BB327,15,FALSE),IF(AND(AR2=7,AD27=AO325),VLOOKUP(18,AN308:BB327,15,FALSE),IF(AND(AR2=7,AD27=AO326),VLOOKUP(19,AN308:BB327,15,FALSE),IF(AND(AR2=7,AD27=AO327),VLOOKUP(20,AN308:BB327,15,FALSE))))))))))))))))))))) -> FALSE | BL30: cm3 | BM30: Zy | BN30: =IF(AND(AR2=8,AD27=AO1062),VLOOKUP(1,AN1062:BG1074,20,FALSE),IF(AND(AR2=8,AD27=AO1063),VLOOKUP(2,AN1062:BG1074,20,FALSE),IF(AND(AR2=8,AD27=AO1064),VLOOKUP(3,AN1062:BG1074,20,FALSE),IF(AND(AR2=8,AD27=AO1065),VLOOKUP(4,AN1062:BG1074,20,FALSE),IF(AND(AR2=8,AD27=AO1066),VLOOKUP(5,AN1062:BG1074,20,FALSE),IF(AND(AR2=8,AD27=AO1067),VLOOKUP(6,AN1062:BG1074,20,FALSE),IF(AND(AR2=8,AD27=AO1068),VLOOKUP(7,AN1062:BG1074,20,FALSE),IF(AND(AR2=8,AD27=AO1069),VLOOKUP(8,AN1062:BG1074,20,FALSE),IF(AND(AR2=8,AD27=AO1070),VLOOKUP(9,AN1062:BG1074,20,FALSE),IF(AND(AR2=8,AD27=AO1071),VLOOKUP(10,AN1062:BG1074,20,FALSE),IF(AND(AR2=8,AD27=AO1072),VLOOKUP(11,AN1062:BG1074,20,FALSE),IF(AND(AR2=8,AD27=AO1073),VLOOKUP(12,AN1062:BG1074,20,FALSE),IF(AND(AR2=8,AD27=AO1074),VLOOKUP(13,AN1062:BG1074,20,FALSE)))))))))))))) -> FALSE | BO30: cm3
B31: ∆ allow. x-x | F31: = | G31: =IF(G25="No",AE24*100/360,IF(AND(G25="Yes",AE37=1),(AE24/2)*100/360,IF(AND(G25="Yes",AE37=2),(AE24/3)*100/360,IF(AND(G25="Yes",AE37=3),(AE24/4)*100/360,IF(AND(G25="Yes",AE37=4),(AE24/5)*100/360))))) -> 0.2777777778 | K31: cm. | M31: =IF(G31>=S31,"≥","<") -> ≥ | N31: ∆ max. x-x | R31: = | S31: =IF(G25="No",(5*G28*((AE24*100)^4))/(384*100*G22*AE29),IF(AND(G25="Yes",AE37=1),(5*G28*(((AE24/2)*100)^4))/(384*100*G22*AE29),IF(AND(G25="Yes",AE37=2),(5*G28*(((AE24/3)*100)^4))/(384*100*G22*AE29),IF(AND(G25="Yes",AE37=3),(5*G28*(((AE24/4)*100)^4))/(384*100*G22*AE29),IF(AND(G25="Yes",AE37=4),(5*G28*(((AE24/5)*100)^4))/(384*100*G22*AE29)))))) -> 0.08075530937 | W31: cm. | Y31: =IF(G31>=S31,"","Fail") ->  | Z31: Sy | AD31: = | AE31: =IF(AND(AS30=FALSE,AV30=FALSE,AY30=FALSE,BB30=FALSE,BE30=FALSE,BH30=FALSE,BK30=FALSE,BN30=FALSE),0.0001,IF(AR2=1,AS30,IF(AR2=2,AV30,IF(AR2=3,AY30,IF(AR2=4,BB30,IF(AR2=5,BE30,IF(AR2=6,BH30,IF(AR2=7,BK30,IF(AR2=8,BN30))))))))) -> 1.02 | AI31: cm3 | AR31: rx | AS31: =IF(AND(AR2=1,AD27=AO342),VLOOKUP(1,AN342:BC386,11,FALSE),IF(AND(AR2=1,AD27=AO343),VLOOKUP(2,AN342:BC386,11,FALSE),IF(AND(AR2=1,AD27=AO344),VLOOKUP(3,AN342:BC386,11,FALSE),IF(AND(AR2=1,AD27=AO345),VLOOKUP(4,AN342:BC386,11,FALSE),IF(AND(AR2=1,AD27=AO346),VLOOKUP(5,AN342:BC386,11,FALSE),IF(AND(AR2=1,AD27=AO347),VLOOKUP(6,AN342:BC386,11,FALSE),IF(AND(AR2=1,AD27=AO348),VLOOKUP(7,AN342:BC386,11,FALSE),IF(AND(AR2=1,AD27=AO349),VLOOKUP(8,AN342:BC386,11,FALSE),IF(AND(AR2=1,AD27=AO350),VLOOKUP(9,AN342:BC386,11,FALSE),IF(AND(AR2=1,AD27=AO351),VLOOKUP(10,AN342:BC386,11,FALSE),IF(AND(AR2=1,AD27=AO352),VLOOKUP(11,AN342:BC386,11,FALSE),IF(AND(AR2=1,AD27=AO353),VLOOKUP(12,AN342:BC386,11,FALSE),IF(AND(AR2=1,AD27=AO354),VLOOKUP(13,AN342:BC386,11,FALSE),IF(AND(AR2=1,AD27=AO355),VLOOKUP(14,AN342:BC386,11,FALSE),IF(AND(AR2=1,AD27=AO356),VLOOKUP(15,AN342:BC386,11,FALSE),IF(AND(AR2=1,AD27=AO357),VLOOKUP(16,AN342:BC386,11,FALSE),IF(AND(AR2=1,AD27=AO358),VLOOKUP(17,AN342:BC386,11,FALSE),IF(AND(AR2=1,AD27=AO359),VLOOKUP(18,AN342:BC386,11,FALSE),IF(AND(AR2=1,AD27=AO360),VLOOKUP(19,AN342:BC386,11,FALSE),IF(AND(AR2=1,AD27=AO361),VLOOKUP(20,AN342:BC386,11,FALSE),IF(AND(AR2=1,AD27=AO362),VLOOKUP(21,AN342:BC386,11,FALSE),IF(AND(AR2=1,AD27=AO363),VLOOKUP(22,AN342:BC386,11,FALSE),IF(AND(AR2=1,AD27=AO364),VLOOKUP(23,AN342:BC386,11,FALSE),IF(AND(AR2=1,AD27=AO365),VLOOKUP(24,AN342:BC386,11,FALSE),IF(AND(AR2=1,AD27=AO366),VLOOKUP(25,AN342:BC386,11,FALSE),IF(AND(AR2=1,AD27=AO367),VLOOKUP(26,AN342:BC386,11,FALSE),IF(AND(AR2=1,AD27=AO368),VLOOKUP(27,AN342:BC386,11,FALSE),IF(AND(AR2=1,AD27=AO369),VLOOKUP(28,AN342:BC386,11,FALSE),IF(AND(AR2=1,AD27=AO370),VLOOKUP(29,AN342:BC386,11,FALSE),IF(AND(AR2=1,AD27=AO371),VLOOKUP(30,AN342:BC386,11,FALSE),IF(AND(AR2=1,AD27=AO372),VLOOKUP(31,AN342:BC386,11,FALSE),IF(AND(AR2=1,AD27=AO373),VLOOKUP(32,AN342:BC386,11,FALSE),IF(AND(AR2=1,AD27=AO374),VLOOKUP(33,AN342:BC386,11,FALSE),IF(AND(AR2=1,AD27=AO375),VLOOKUP(34,AN342:BC386,11,FALSE),IF(AND(AR2=1,AD27=AO376),VLOOKUP(35,AN342:BC386,11,FALSE),IF(AND(AR2=1,AD27=AO377),VLOOKUP(36,AN342:BC386,11,FALSE),IF(AND(AR2=1,AD27=AO378),VLOOKUP(37,AN342:BC386,11,FALSE),IF(AND(AR2=1,AD27=AO379),VLOOKUP(38,AN342:BC386,11,FALSE),IF(AND(AR2=1,AD27=AO380),VLOOKUP(39,AN342:BC386,11,FALSE),IF(AND(AR2=1,AD27=AO381),VLOOKUP(40,AN342:BC386,11,FALSE),IF(AND(AR2=1,AD27=AO382),VLOOKUP(41,AN342:BC386,11,FALSE),IF(AND(AR2=1,AD27=AO383),VLOOKUP(42,AN342:BC386,11,FALSE),IF(AND(AR2=1,AD27=AO384),VLOOKUP(43,AN342:BC386,11,FALSE),IF(AND(AR2=1,AD27=AO385),VLOOKUP(44,AN342:BC386,11,FALSE),IF(AND(AR2=1,AD27=AO386),VLOOKUP(45,AN342:BC386,11,FALSE)))))))))))))))))))))))))))))))))))))))))))))) -> FALSE | AT31: cm | AU31: rx | AV31: =IF(AND(AR2=2,AD27=AO443),VLOOKUP(1,AN443:BH475,10,FALSE),IF(AND(AR2=2,AD27=AO444),VLOOKUP(2,AN443:BH475,10,FALSE),IF(AND(AR2=2,AD27=AO445),VLOOKUP(3,AN443:BH475,10,FALSE),IF(AND(AR2=2,AD27=AO446),VLOOKUP(4,AN443:BH475,10,FALSE),IF(AND(AR2=2,AD27=AO447),VLOOKUP(5,AN443:BH475,10,FALSE),IF(AND(AR2=2,AD27=AO448),VLOOKUP(6,AN443:BH474,10,FALSE),IF(AND(AR2=2,AD27=AO449),VLOOKUP(7,AN443:BH475,10,FALSE),IF(AND(AR2=2,AD27=AO450),VLOOKUP(8,AN443:BH475,10,FALSE),IF(AND(AR2=2,AD27=AO451),VLOOKUP(9,AN443:BH475,10,FALSE),IF(AND(AR2=2,AD27=AO452),VLOOKUP(10,AN443:BH475,10,FALSE),IF(AND(AR2=2,AD27=AO453),VLOOKUP(11,AN443:BH475,10,FALSE),IF(AND(AR2=2,AD27=AO454),VLOOKUP(12,AN443:BH475,10,FALSE),IF(AND(AR2=2,AD27=AO455),VLOOKUP(13,AN443:BH475,10,FALSE),IF(AND(AR2=2,AD27=AO456),VLOOKUP(14,AN443:BH475,10,FALSE),IF(AND(AR2=2,AD27=AO457),VLOOKUP(15,AN443:BH475,10,FALSE),IF(AND(AR2=2,AD27=AO458),VLOOKUP(16,AN443:BH475,10,FALSE),IF(AND(AR2=2,AD27=AO459),VLOOKUP(17,AN443:BH475,10,FALSE),IF(AND(AR2=2,AD27=AO460),VLOOKUP(18,AN443:BH475,10,FALSE),IF(AND(AR2=2,AD27=AO461),VLOOKUP(19,AN443:BH475,10,FALSE),IF(AND(AR2=2,AD27=AO462),VLOOKUP(20,AN443:BH475,10,FALSE),IF(AND(AR2=2,AD27=AO463),VLOOKUP(21,AN443:BH475,10,FALSE),IF(AND(AR2=2,AD27=AO464),VLOOKUP(22,AN443:BH475,10,FALSE),IF(AND(AR2=2,AD27=AO465),VLOOKUP(23,AN443:BH475,10,FALSE),IF(AND(AR2=2,AD27=AO466),VLOOKUP(24,AN443:BH475,10,FALSE),IF(AND(AR2=2,AD27=AO467),VLOOKUP(25,AN443:BH475,10,FALSE),IF(AND(AR2=2,AD27=AO468),VLOOKUP(26,AN443:BH475,10,FALSE),IF(AND(AR2=2,AD27=AO469),VLOOKUP(27,AN443:BH475,10,FALSE),IF(AND(AR2=2,AD27=AO470),VLOOKUP(28,AN443:BH475,10,FALSE),IF(AND(AR2=2,AD27=AO471),VLOOKUP(29,AN443:BH475,10,FALSE),IF(AND(AR2=2,AD27=AO472),VLOOKUP(30,AN443:BH475,10,FALSE),IF(AND(AR2=2,AD27=AO473),VLOOKUP(31,AN443:BH475,10,FALSE),IF(AND(AR2=2,AD27=AO474),VLOOKUP(32,AN443:BH475,10,FALSE),IF(AND(AR2=2,AD27=AO475),VLOOKUP(33,AN443:BH475,10,FALSE)))))))))))))))))))))))))))))))))) -> 0.34 | AW31: cm | AX31: rx | AY31: =IF(AND(AR2=3,AD27=AO402),VLOOKUP(1,AN402:AZ427,12,FALSE),IF(AND(AR2=3,AD27=AO403),VLOOKUP(2,AN402:AZ427,12,FALSE),IF(AND(AR2=3,AD27=AO404),VLOOKUP(3,AN402:AZ427,12,FALSE),IF(AND(AR2=3,AD27=AO405),VLOOKUP(4,AN402:AZ427,12,FALSE),IF(AND(AR2=3,AD27=AO406),VLOOKUP(5,AN402:AZ427,12,FALSE),IF(AND(AR2=3,AD27=AO407),VLOOKUP(6,AN402:AZ427,12,FALSE),IF(AND(AR2=3,AD27=AO408),VLOOKUP(7,AN402:AZ427,12,FALSE),IF(AND(AR2=3,AD27=AO409),VLOOKUP(8,AN402:AZ427,12,FALSE),IF(AND(AR2=3,AD27=AO410),VLOOKUP(9,AN402:AZ427,12,FALSE),IF(AND(AR2=3,AD27=AO411),VLOOKUP(10,AN402:AZ427,12,FALSE),IF(AND(AR2=3,AD27=AO412),VLOOKUP(11,AN402:AZ427,12,FALSE),IF(AND(AR2=3,AD27=AO413),VLOOKUP(12,AN402:AZ427,12,FALSE),IF(AND(AR2=3,AD27=AO414),VLOOKUP(13,AN402:AZ427,12,FALSE),IF(AND(AR2=3,AD27=AO415),VLOOKUP(14,AN402:AZ427,12,FALSE),IF(AND(AR2=3,AD27=AO416),VLOOKUP(15,AN402:AZ427,12,FALSE),IF(AND(AR2=3,AD27=AO417),VLOOKUP(16,AN402:AZ427,12,FALSE),IF(AND(AR2=3,AD27=AO418),VLOOKUP(17,AN402:AZ427,12,FALSE),IF(AND(AR2=3,AD27=AO419),VLOOKUP(18,AN402:AZ427,12,FALSE),IF(AND(AR2=3,AD27=AO420),VLOOKUP(19,AN402:AZ427,12,FALSE),IF(AND(AR2=3,AD27=AO421),VLOOKUP(20,AN402:AZ427,12,FALSE),IF(AND(AR2=3,AD27=AO422),VLOOKUP(21,AN402:AZ427,12,FALSE),IF(AND(AR2=3,AD27=AO423),VLOOKUP(22,AN402:AZ427,12,FALSE),IF(AND(AR2=3,AD27=AO424),VLOOKUP(23,AN402:AZ427,12,FALSE),IF(AND(AR2=3,AD27=AO425),VLOOKUP(24,AN402:AZ427,12,FALSE),IF(AND(AR2=3,AD27=AO426),VLOOKUP(25,AN402:AZ427,12,FALSE),IF(AND(AR2=3,AD27=AO427),VLOOKUP(26,AN402:AZ427,12,FALSE))))))))))))))))))))))))))) -> FALSE | AZ31: cm | BA31: rx | BB31: =IF(AND(AR2=4,AD27=AO157),VLOOKUP(1,AN157:BG202,15,FALSE),IF(AND(AR2=4,AD27=AO158),VLOOKUP(2,AN157:BG202,15,FALSE),IF(AND(AR2=4,AD27=AO159),VLOOKUP(3,AN157:BG202,15,FALSE),IF(AND(AR2=4,AD27=AO160),VLOOKUP(4,AN157:BG202,15,FALSE),IF(AND(AR2=4,AD27=AO161),VLOOKUP(5,AN157:BG202,15,FALSE),IF(AND(AR2=4,AD27=AO162),VLOOKUP(6,AN157:BG202,15,FALSE),IF(AND(AR2=4,AD27=AO163),VLOOKUP(7,AN157:BG202,15,FALSE),IF(AND(AR2=4,AD27=AO164),VLOOKUP(8,AN157:BG202,15,FALSE),IF(AND(AR2=4,AD27=AO165),VLOOKUP(9,AN157:BG202,15,FALSE),IF(AND(AR2=4,AD27=AO166),VLOOKUP(10,AN157:BG202,15,FALSE),IF(AND(AR2=4,AD27=AO167),VLOOKUP(11,AN157:BG202,15,FALSE),IF(AND(AR2=4,AD27=AO168),VLOOKUP(12,AN157:BG202,15,FALSE),IF(AND(AR2=4,AD27=AO169),VLOOKUP(13,AN157:BG202,15,FALSE),IF(AND(AR2=4,AD27=AO170),VLOOKUP(14,AN157:BG202,15,FALSE),IF(AND(AR2=4,AD27=AO171),VLOOKUP(15,AN157:BG202,15,FALSE),IF(AND(AR2=4,AD27=AO172),VLOOKUP(16,AN157:BG202,15,FALSE),IF(AND(AR2=4,AD27=AO173),VLOOKUP(17,AN157:BG202,15,FALSE),IF(AND(AR2=4,AD27=AO174),VLOOKUP(18,AN157:BG202,15,FALSE),IF(AND(AR2=4,AD27=AO175),VLOOKUP(19,AN157:BG202,15,FALSE),IF(AND(AR2=4,AD27=AO176),VLOOKUP(20,AN157:BG202,15,FALSE),IF(AND(AR2=4,AD27=AO177),VLOOKUP(21,AN157:BG202,15,FALSE),IF(AND(AR2=4,AD27=AO178),VLOOKUP(22,AN157:BG202,15,FALSE),IF(AND(AR2=4,AD27=AO179),VLOOKUP(23,AN157:BG202,15,FALSE),IF(AND(AR2=4,AD27=AO180),VLOOKUP(24,AN157:BG202,15,FALSE),IF(AND(AR2=4,AD27=AO181),VLOOKUP(25,AN157:BG202,15,FALSE),IF(AND(AR2=4,AD27=AO182),VLOOKUP(26,AN157:BG202,15,FALSE),IF(AND(AR2=4,AD27=AO183),VLOOKUP(27,AN157:BG202,15,FALSE),IF(AND(AR2=4,AD27=AO184),VLOOKUP(28,AN157:BG202,15,FALSE),IF(AND(AR2=4,AD27=AO185),VLOOKUP(29,AN157:BG202,15,FALSE),IF(AND(AR2=4,AD27=AO186),VLOOKUP(30,AN157:BG202,15,FALSE),IF(AND(AR2=4,AD27=AO187),VLOOKUP(31,AN157:BG202,15,FALSE),IF(AND(AR2=4,AD27=AO188),VLOOKUP(32,AN157:BG202,15,FALSE),IF(AND(AR2=4,AD27=AO189),VLOOKUP(33,AN157:BG202,15,FALSE),IF(AND(AR2=4,AD27=AO190),VLOOKUP(34,AN157:BG202,15,FALSE),IF(AND(AR2=4,AD27=AO191),VLOOKUP(35,AN157:BG202,15,FALSE),IF(AND(AR2=4,AD27=AO192),VLOOKUP(36,AN157:BG202,15,FALSE),IF(AND(AR2=4,AD27=AO193),VLOOKUP(37,AN157:BG202,15,FALSE),IF(AND(AR2=4,AD27=AO194),VLOOKUP(38,AN157:BG202,15,FALSE),IF(AND(AR2=4,AD27=AO195),VLOOKUP(39,AN157:BG202,15,FALSE),IF(AND(AR2=4,AD27=AO196),VLOOKUP(40,AN157:BG202,15,FALSE),IF(AND(AR2=4,AD27=AO197),VLOOKUP(41,AN157:BG202,15,FALSE),IF(AND(AR2=4,AD27=AO198),VLOOKUP(42,AN157:BG202,15,FALSE),IF(AND(AR2=4,AD27=AO199),VLOOKUP(43,AN157:BG202,15,FALSE),IF(AND(AR2=4,AD27=AO200),VLOOKUP(44,AN157:BG202,15,FALSE),IF(AND(AR2=4,AD27=AO201),VLOOKUP(45,AN157:BG202,15,FALSE),IF(AND(AR2=4,AD27=AO202),VLOOKUP(46,AN157:BG202,15,FALSE))))))))))))))))))))))))))))))))))))))))))))))) -> FALSE | BC31: cm | BD31: rx | BE31: =IF(AND(AR2=5,AD27=AO126),VLOOKUP(1,AN126:BD141,14,FALSE),IF(AND(AR2=5,AD27=AO127),VLOOKUP(2,AN126:BD141,14,FALSE),IF(AND(AR2=5,AD27=AO128),VLOOKUP(3,AN126:BD141,14,FALSE),IF(AND(AR2=5,AD27=AO129),VLOOKUP(4,AN126:BD141,14,FALSE),IF(AND(AR2=5,AD27=AO130),VLOOKUP(5,AN126:BD141,14,FALSE),IF(AND(AR2=5,AD27=AO131),VLOOKUP(6,AN126:BD141,14,FALSE),IF(AND(AR2=5,AD27=AO132),VLOOKUP(7,AN126:BD141,14,FALSE),IF(AND(AR2=5,AD27=AO133),VLOOKUP(8,AN126:BD141,14,FALSE),IF(AND(AR2=5,AD27=AO134),VLOOKUP(9,AN126:BD141,14,FALSE),IF(AND(AR2=5,AD27=AO135),VLOOKUP(10,AN126:BD141,14,FALSE),IF(AND(AR2=5,AD27=AO136),VLOOKUP(11,AN126:BD141,14,FALSE),IF(AND(AR2=5,AD27=AO137),VLOOKUP(12,AN126:BD141,14,FALSE),IF(AND(AR2=5,AD27=AO138),VLOOKUP(13,AN126:BD141,14,FALSE),IF(AND(AR2=5,AD27=AO139),VLOOKUP(14,AN126:BD141,14,FALSE),IF(AND(AR2=5,AD27=AO140),VLOOKUP(15,AN126:BD141,14,FALSE),IF(AND(AR2=5,AD27=AO141),VLOOKUP(16,AN126:BD141,14,FALSE))))))))))))))))) -> FALSE | BF31: cm | BG31: rx | BH31: =IF(AND(AR2=6,AD27=AO218),VLOOKUP(1,AN218:BQ290,22,FALSE),IF(AND(AR2=6,AD27=AO219),VLOOKUP(2,AN218:BQ290,22,FALSE),IF(AND(AR2=6,AD27=AO220),VLOOKUP(3,AN218:BQ290,22,FALSE),IF(AND(AR2=6,AD27=AO221),VLOOKUP(4,AN218:BQ290,22,FALSE),IF(AND(AR2=6,AD27=AO222),VLOOKUP(5,AN218:BQ290,22,FALSE),IF(AND(AR2=6,AD27=AO223),VLOOKUP(6,AN218:BQ290,22,FALSE),IF(AND(AR2=6,AD27=AO224),VLOOKUP(7,AN218:BQ290,22,FALSE),IF(AND(AR2=6,AD27=AO225),VLOOKUP(8,AN218:BQ290,22,FALSE),IF(AND(AR2=6,AD27=AO226),VLOOKUP(9,AN218:BQ290,22,FALSE),IF(AND(AR2=6,AD27=AO227),VLOOKUP(10,AN218:BQ290,22,FALSE),IF(AND(AR2=6,AD27=AO228),VLOOKUP(11,AN218:BQ290,22,FALSE),IF(AND(AR2=6,AD27=AO229),VLOOKUP(12,AN218:BQ290,22,FALSE),IF(AND(AR2=6,AD27=AO230),VLOOKUP(13,AN218:BQ290,22,FALSE),IF(AND(AR2=6,AD27=AO231),VLOOKUP(14,AN218:BQ290,22,FALSE),IF(AND(AR2=6,AD27=AO232),VLOOKUP(15,AN218:BQ290,22,FALSE),IF(AND(AR2=6,AD27=AO233),VLOOKUP(16,AN218:BQ290,22,FALSE),IF(AND(AR2=6,AD27=AO234),VLOOKUP(17,AN218:BQ290,22,FALSE),IF(AND(AR2=6,AD27=AO235),VLOOKUP(18,AN218:BQ290,22,FALSE),IF(AND(AR2=6,AD27=AO236),VLOOKUP(19,AN218:BQ290,22,FALSE),IF(AND(AR2=6,AD27=AO237),VLOOKUP(20,AN218:BQ290,22,FALSE),IF(AND(AR2=6,AD27=AO238),VLOOKUP(21,AN218:BQ290,22,FALSE),IF(AND(AR2=6,AD27=AO239),VLOOKUP(22,AN218:BQ290,22,FALSE),IF(AND(AR2=6,AD27=AO240),VLOOKUP(23,AN218:BQ290,22,FALSE),IF(AND(AR2=6,AD27=AO241),VLOOKUP(24,AN218:BQ290,22,FALSE),IF(AND(AR2=6,AD27=AO242),VLOOKUP(25,AN218:BQ290,22,FALSE),IF(AND(AR2=6,AD27=AO243),VLOOKUP(26,AN218:BQ290,22,FALSE),IF(AND(AR2=6,AD27=AO244),VLOOKUP(27,AN218:BQ290,22,FALSE),IF(AND(AR2=6,AD27=AO245),VLOOKUP(28,AN218:BQ290,22,FALSE),IF(AND(AR2=6,AD27=AO246),VLOOKUP(29,AN218:BQ290,22,FALSE),IF(AND(AR2=6,AD27=AO247),VLOOKUP(30,AN218:BQ290,22,FALSE),IF(AND(AR2=6,AD27=AO248),VLOOKUP(31,AN218:BQ290,22,FALSE),IF(AND(AR2=6,AD27=AO249),VLOOKUP(32,AN218:BQ290,22,FALSE),IF(AND(AR2=6,AD27=AO250),VLOOKUP(33,AN218:BQ290,22,FALSE),IF(AND(AR2=6,AD27=AO251),VLOOKUP(34,AN218:BQ290,22,FALSE),IF(AND(AR2=6,AD27=AO252),VLOOKUP(35,AN218:BQ290,22,FALSE),IF(AND(AR2=6,AD27=AO253),VLOOKUP(36,AN218:BQ290,22,FALSE),IF(AND(AR2=6,AD27=AO254),VLOOKUP(37,AN218:BQ290,22,FALSE),IF(AND(AR2=6,AD27=AO255),VLOOKUP(38,AN218:BQ290,22,FALSE),IF(AND(AR2=6,AD27=AO256),VLOOKUP(39,AN218:BQ290,22,FALSE),IF(AND(AR2=6,AD27=AO257),VLOOKUP(40,AN218:BQ290,22,FALSE),IF(AND(AR2=6,AD27=AO258),VLOOKUP(41,AN218:BQ290,22,FALSE),IF(AND(AR2=6,AD27=AO259),VLOOKUP(42,AN218:BQ290,22,FALSE),IF(AND(AR2=6,AD27=AO260),VLOOKUP(43,AN218:BQ290,22,FALSE),IF(AND(AR2=6,AD27=AO261),VLOOKUP(44,AN218:BQ290,22,FALSE),IF(AND(AR2=6,AD27=AO262),VLOOKUP(45,AN218:BQ290,22,FALSE),IF(AND(AR2=6,AD27=AO263),VLOOKUP(46,AN218:BQ290,22,FALSE),IF(AND(AR2=6,AD27=AO264),VLOOKUP(47,AN218:BQ290,22,FALSE),IF(AND(AR2=6,AD27=AO265),VLOOKUP(48,AN218:BQ290,22,FALSE),IF(AND(AR2=6,AD27=AO266),VLOOKUP(49,AN218:BQ290,22,FALSE),IF(AND(AR2=6,AD27=AO267),VLOOKUP(50,AN218:BQ290,22,FALSE),IF(AND(AR2=6,AD27=AO268),VLOOKUP(51,AN218:BQ290,22,FALSE),IF(AND(AR2=6,AD27=AO269),VLOOKUP(52,AN218:BQ290,22,FALSE),IF(AND(AR2=6,AD27=AO270),VLOOKUP(53,AN218:BQ290,22,FALSE),IF(AND(AR2=6,AD27=AO271),VLOOKUP(54,AN218:BQ290,22,FALSE),IF(AND(AR2=6,AD27=AO272),VLOOKUP(55,AN218:BQ290,22,FALSE),IF(AND(AR2=6,AD27=AO273),VLOOKUP(56,AN218:BQ290,22,FALSE),IF(AND(AR2=6,AD27=AO274),VLOOKUP(57,AN218:BQ290,22,FALSE),IF(AND(AR2=6,AD27=AO275),VLOOKUP(58,AN218:BQ290,22,FALSE),IF(AND(AR2=6,AD27=AO276),VLOOKUP(59,AN218:BQ290,22,FALSE),IF(AND(AR2=6,AD27=AO277),VLOOKUP(60,AN218:BQ290,22,FALSE),IF(AND(AR2=6,AD27=AO278),VLOOKUP(61,AN218:BQ290,22,FALSE),IF(AND(AR2=6,AD27=AO279),VLOOKUP(62,AN218:BQ290,22,FALSE),IF(AND(AR2=6,AD27=AO280),VLOOKUP(63,AN218:BQ290,22,FALSE),IF(AND(AR2=6,AD27=AO281),VLOOKUP(64,AN218:BQ290,22,FALSE))))))))))))))))))))))))))))))))))))))))))))))))))))))))))))))))) -> FALSE | BI31: cm | BJ31: rx | BK31: =IF(AND(AR2=7,AD27=AO308),VLOOKUP(1,AN308:BB327,12,FALSE),IF(AND(AR2=7,AD27=AO309),VLOOKUP(2,AN308:BB327,12,FALSE),IF(AND(AR2=7,AD27=AO310),VLOOKUP(3,AN308:BB327,12,FALSE),IF(AND(AR2=7,AD27=AO311),VLOOKUP(4,AN308:BB327,12,FALSE),IF(AND(AR2=7,AD27=AO312),VLOOKUP(5,AN308:BB327,12,FALSE),IF(AND(AR2=7,AD27=AO313),VLOOKUP(6,AN308:BB327,12,FALSE),IF(AND(AR2=7,AD27=AO314),VLOOKUP(7,AN308:BB327,12,FALSE),IF(AND(AR2=7,AD27=AO315),VLOOKUP(8,AN308:BB327,12,FALSE),IF(AND(AR2=7,AD27=AO316),VLOOKUP(9,AN308:BB327,12,FALSE),IF(AND(AR2=7,AD27=AO317),VLOOKUP(10,AN308:BB327,12,FALSE),IF(AND(AR2=7,AD27=AO318),VLOOKUP(11,AN308:BB327,12,FALSE),IF(AND(AR2=7,AD27=AO319),VLOOKUP(12,AN308:BB327,12,FALSE),IF(AND(AR2=7,AD27=AO320),VLOOKUP(13,AN308:BB327,12,FALSE),IF(AND(AR2=7,AD27=AO321),VLOOKUP(14,AN308:BB327,12,FALSE),IF(AND(AR2=7,AD27=AO322),VLOOKUP(15,AN308:BB327,12,FALSE),IF(AND(AR2=7,AD27=AO323),VLOOKUP(16,AN308:BB327,12,FALSE),IF(AND(AR2=7,AD27=AO324),VLOOKUP(17,AN308:BB327,12,FALSE),IF(AND(AR2=7,AD27=AO325),VLOOKUP(18,AN308:BB327,12,FALSE),IF(AND(AR2=7,AD27=AO326),VLOOKUP(19,AN308:BB327,12,FALSE),IF(AND(AR2=7,AD27=AO327),VLOOKUP(20,AN308:BB327,12,FALSE))))))))))))))))))))) -> FALSE | BL31: cm | BM31: rx | BN31: =IF(AND(AR2=8,AD27=AO1062),VLOOKUP(1,AN1062:BG1074,15,FALSE),IF(AND(AR2=8,AD27=AO1063),VLOOKUP(2,AN1062:BG1074,15,FALSE),IF(AND(AR2=8,AD27=AO1064),VLOOKUP(3,AN1062:BG1074,15,FALSE),IF(AND(AR2=8,AD27=AO1065),VLOOKUP(4,AN1062:BG1074,15,FALSE),IF(AND(AR2=8,AD27=AO1066),VLOOKUP(5,AN1062:BG1074,15,FALSE),IF(AND(AR2=8,AD27=AO1067),VLOOKUP(6,AN1062:BG1074,15,FALSE),IF(AND(AR2=8,AD27=AO1068),VLOOKUP(7,AN1062:BG1074,15,FALSE),IF(AND(AR2=8,AD27=AO1069),VLOOKUP(8,AN1062:BG1074,15,FALSE),IF(AND(AR2=8,AD27=AO1070),VLOOKUP(9,AN1062:BG1074,15,FALSE),IF(AND(AR2=8,AD27=AO1071),VLOOKUP(10,AN1062:BG1074,15,FALSE),IF(AND(AR2=8,AD27=AO1072),VLOOKUP(11,AN1062:BG1074,15,FALSE),IF(AND(AR2=8,AD27=AO1073),VLOOKUP(12,AN1062:BG1074,15,FALSE),IF(AND(AR2=8,AD27=AO1074),VLOOKUP(13,AN1062:BG1074,15,FALSE)))))))))))))) -> FALSE | BO31: cm
B32: fb | F32: = | G32: =IF(G25="No",((S27*100)/AE30)+((S28*100)/AE31),((S27*100)/AE30)+((G37*100)/S37)) -> 529.1990951 | K32: kg./cm.2 | M32: =IF(G32<=S32,"≤",">") -> ≤ | N32: Fb | R32: = | S32: =0.6*G23 -> 1440 | W32: kg./cm.2 | Y32: =IF(G32<=S32,"","Fail") ->  | Z32: rx | AD32: = | AE32: =IF(AND(AS31=FALSE,AV31=FALSE,AY31=FALSE,BB31=FALSE,BE31=FALSE,BH31=FALSE,BK31=FALSE,BN31=FALSE),0.0001,IF(AR2=1,AS31,IF(AR2=2,AV31,IF(AR2=3,AY31,IF(AR2=4,BB31,IF(AR2=5,BE31,IF(AR2=6,BH31,IF(AR2=7,BK31,IF(AR2=8,BN31))))))))) -> 0.34 | AI32: cm | AR32: ry | AS32: =IF(AND(AR2=1,AD27=AO342),VLOOKUP(1,AN342:BC386,12,FALSE),IF(AND(AR2=1,AD27=AO343),VLOOKUP(2,AN342:BC386,12,FALSE),IF(AND(AR2=1,AD27=AO344),VLOOKUP(3,AN342:BC386,12,FALSE),IF(AND(AR2=1,AD27=AO345),VLOOKUP(4,AN342:BC386,12,FALSE),IF(AND(AR2=1,AD27=AO346),VLOOKUP(5,AN342:BC386,12,FALSE),IF(AND(AR2=1,AD27=AO347),VLOOKUP(6,AN342:BC386,12,FALSE),IF(AND(AR2=1,AD27=AO348),VLOOKUP(7,AN342:BC386,12,FALSE),IF(AND(AR2=1,AD27=AO349),VLOOKUP(8,AN342:BC386,12,FALSE),IF(AND(AR2=1,AD27=AO350),VLOOKUP(9,AN342:BC386,12,FALSE),IF(AND(AR2=1,AD27=AO351),VLOOKUP(10,AN342:BC386,12,FALSE),IF(AND(AR2=1,AD27=AO352),VLOOKUP(11,AN342:BC386,12,FALSE),IF(AND(AR2=1,AD27=AO353),VLOOKUP(12,AN342:BC386,12,FALSE),IF(AND(AR2=1,AD27=AO354),VLOOKUP(13,AN342:BC386,12,FALSE),IF(AND(AR2=1,AD27=AO355),VLOOKUP(14,AN342:BC386,12,FALSE),IF(AND(AR2=1,AD27=AO356),VLOOKUP(15,AN342:BC386,12,FALSE),IF(AND(AR2=1,AD27=AO357),VLOOKUP(16,AN342:BC386,12,FALSE),IF(AND(AR2=1,AD27=AO358),VLOOKUP(17,AN342:BC386,12,FALSE),IF(AND(AR2=1,AD27=AO359),VLOOKUP(18,AN342:BC386,12,FALSE),IF(AND(AR2=1,AD27=AO360),VLOOKUP(19,AN342:BC386,12,FALSE),IF(AND(AR2=1,AD27=AO361),VLOOKUP(20,AN342:BC386,12,FALSE),IF(AND(AR2=1,AD27=AO362),VLOOKUP(21,AN342:BC386,12,FALSE),IF(AND(AR2=1,AD27=AO363),VLOOKUP(22,AN342:BC386,12,FALSE),IF(AND(AR2=1,AD27=AO364),VLOOKUP(23,AN342:BC386,12,FALSE),IF(AND(AR2=1,AD27=AO365),VLOOKUP(24,AN342:BC386,12,FALSE),IF(AND(AR2=1,AD27=AO366),VLOOKUP(25,AN342:BC386,12,FALSE),IF(AND(AR2=1,AD27=AO367),VLOOKUP(26,AN342:BC386,12,FALSE),IF(AND(AR2=1,AD27=AO368),VLOOKUP(27,AN342:BC386,12,FALSE),IF(AND(AR2=1,AD27=AO369),VLOOKUP(28,AN342:BC386,12,FALSE),IF(AND(AR2=1,AD27=AO370),VLOOKUP(29,AN342:BC386,12,FALSE),IF(AND(AR2=1,AD27=AO371),VLOOKUP(30,AN342:BC386,12,FALSE),IF(AND(AR2=1,AD27=AO372),VLOOKUP(31,AN342:BC386,12,FALSE),IF(AND(AR2=1,AD27=AO373),VLOOKUP(32,AN342:BC386,12,FALSE),IF(AND(AR2=1,AD27=AO374),VLOOKUP(33,AN342:BC386,12,FALSE),IF(AND(AR2=1,AD27=AO375),VLOOKUP(34,AN342:BC386,12,FALSE),IF(AND(AR2=1,AD27=AO376),VLOOKUP(35,AN342:BC386,12,FALSE),IF(AND(AR2=1,AD27=AO377),VLOOKUP(36,AN342:BC386,12,FALSE),IF(AND(AR2=1,AD27=AO378),VLOOKUP(37,AN342:BC386,12,FALSE),IF(AND(AR2=1,AD27=AO379),VLOOKUP(38,AN342:BC386,12,FALSE),IF(AND(AR2=1,AD27=AO380),VLOOKUP(39,AN342:BC386,12,FALSE),IF(AND(AR2=1,AD27=AO381),VLOOKUP(40,AN342:BC386,12,FALSE),IF(AND(AR2=1,AD27=AO382),VLOOKUP(41,AN342:BC386,12,FALSE),IF(AND(AR2=1,AD27=AO383),VLOOKUP(42,AN342:BC386,12,FALSE),IF(AND(AR2=1,AD27=AO384),VLOOKUP(43,AN342:BC386,12,FALSE),IF(AND(AR2=1,AD27=AO385),VLOOKUP(44,AN342:BC386,12,FALSE),IF(AND(AR2=1,AD27=AO386),VLOOKUP(45,AN342:BC386,12,FALSE)))))))))))))))))))))))))))))))))))))))))))))) -> FALSE | AT32: cm | AU32: ry | AV32: =IF(AND(AR2=2,AD27=AO443),VLOOKUP(1,AN443:BH475,10,FALSE),IF(AND(AR2=2,AD27=AO444),VLOOKUP(2,AN443:BH475,10,FALSE),IF(AND(AR2=2,AD27=AO445),VLOOKUP(3,AN443:BH475,10,FALSE),IF(AND(AR2=2,AD27=AO446),VLOOKUP(4,AN443:BH475,10,FALSE),IF(AND(AR2=2,AD27=AO447),VLOOKUP(5,AN443:BH475,10,FALSE),IF(AND(AR2=2,AD27=AO448),VLOOKUP(6,AN443:BH474,10,FALSE),IF(AND(AR2=2,AD27=AO449),VLOOKUP(7,AN443:BH475,10,FALSE),IF(AND(AR2=2,AD27=AO450),VLOOKUP(8,AN443:BH475,10,FALSE),IF(AND(AR2=2,AD27=AO451),VLOOKUP(9,AN443:BH475,10,FALSE),IF(AND(AR2=2,AD27=AO452),VLOOKUP(10,AN443:BH475,10,FALSE),IF(AND(AR2=2,AD27=AO453),VLOOKUP(11,AN443:BH475,10,FALSE),IF(AND(AR2=2,AD27=AO454),VLOOKUP(12,AN443:BH475,10,FALSE),IF(AND(AR2=2,AD27=AO455),VLOOKUP(13,AN443:BH475,10,FALSE),IF(AND(AR2=2,AD27=AO456),VLOOKUP(14,AN443:BH475,10,FALSE),IF(AND(AR2=2,AD27=AO457),VLOOKUP(15,AN443:BH475,10,FALSE),IF(AND(AR2=2,AD27=AO458),VLOOKUP(16,AN443:BH475,10,FALSE),IF(AND(AR2=2,AD27=AO459),VLOOKUP(17,AN443:BH475,10,FALSE),IF(AND(AR2=2,AD27=AO460),VLOOKUP(18,AN443:BH475,10,FALSE),IF(AND(AR2=2,AD27=AO461),VLOOKUP(19,AN443:BH475,10,FALSE),IF(AND(AR2=2,AD27=AO462),VLOOKUP(20,AN443:BH475,10,FALSE),IF(AND(AR2=2,AD27=AO463),VLOOKUP(21,AN443:BH475,10,FALSE),IF(AND(AR2=2,AD27=AO464),VLOOKUP(22,AN443:BH475,10,FALSE),IF(AND(AR2=2,AD27=AO465),VLOOKUP(23,AN443:BH475,10,FALSE),IF(AND(AR2=2,AD27=AO466),VLOOKUP(24,AN443:BH475,10,FALSE),IF(AND(AR2=2,AD27=AO467),VLOOKUP(25,AN443:BH475,10,FALSE),IF(AND(AR2=2,AD27=AO468),VLOOKUP(26,AN443:BH475,10,FALSE),IF(AND(AR2=2,AD27=AO469),VLOOKUP(27,AN443:BH475,10,FALSE),IF(AND(AR2=2,AD27=AO470),VLOOKUP(28,AN443:BH475,10,FALSE),IF(AND(AR2=2,AD27=AO471),VLOOKUP(29,AN443:BH475,10,FALSE),IF(AND(AR2=2,AD27=AO472),VLOOKUP(30,AN443:BH475,10,FALSE),IF(AND(AR2=2,AD27=AO473),VLOOKUP(31,AN443:BH475,10,FALSE),IF(AND(AR2=2,AD27=AO474),VLOOKUP(32,AN443:BH475,10,FALSE),IF(AND(AR2=2,AD27=AO475),VLOOKUP(33,AN443:BH475,10,FALSE)))))))))))))))))))))))))))))))))) -> 0.34 | AW32: cm | AX32: ry | AY32: =IF(AND(AR2=3,AD27=AO402),VLOOKUP(1,AN402:AZ427,13,FALSE),IF(AND(AR2=3,AD27=AO403),VLOOKUP(2,AN402:AZ427,13,FALSE),IF(AND(AR2=3,AD27=AO404),VLOOKUP(3,AN402:AZ427,13,FALSE),IF(AND(AR2=3,AD27=AO405),VLOOKUP(4,AN402:AZ427,13,FALSE),IF(AND(AR2=3,AD27=AO406),VLOOKUP(5,AN402:AZ427,13,FALSE),IF(AND(AR2=3,AD27=AO407),VLOOKUP(6,AN402:AZ427,13,FALSE),IF(AND(AR2=3,AD27=AO408),VLOOKUP(7,AN402:AZ427,13,FALSE),IF(AND(AR2=3,AD27=AO409),VLOOKUP(8,AN402:AZ427,13,FALSE),IF(AND(AR2=3,AD27=AO410),VLOOKUP(9,AN402:AZ427,13,FALSE),IF(AND(AR2=3,AD27=AO411),VLOOKUP(10,AN402:AZ427,13,FALSE),IF(AND(AR2=3,AD27=AO412),VLOOKUP(11,AN402:AZ427,13,FALSE),IF(AND(AR2=3,AD27=AO413),VLOOKUP(12,AN402:AZ427,13,FALSE),IF(AND(AR2=3,AD27=AO414),VLOOKUP(13,AN402:AZ427,13,FALSE),IF(AND(AR2=3,AD27=AO415),VLOOKUP(14,AN402:AZ427,13,FALSE),IF(AND(AR2=3,AD27=AO416),VLOOKUP(15,AN402:AZ427,13,FALSE),IF(AND(AR2=3,AD27=AO417),VLOOKUP(16,AN402:AZ427,13,FALSE),IF(AND(AR2=3,AD27=AO418),VLOOKUP(17,AN402:AZ427,13,FALSE),IF(AND(AR2=3,AD27=AO419),VLOOKUP(18,AN402:AZ427,13,FALSE),IF(AND(AR2=3,AD27=AO420),VLOOKUP(19,AN402:AZ427,13,FALSE),IF(AND(AR2=3,AD27=AO421),VLOOKUP(20,AN402:AZ427,13,FALSE),IF(AND(AR2=3,AD27=AO422),VLOOKUP(21,AN402:AZ427,13,FALSE),IF(AND(AR2=3,AD27=AO423),VLOOKUP(22,AN402:AZ427,13,FALSE),IF(AND(AR2=3,AD27=AO424),VLOOKUP(23,AN402:AZ427,13,FALSE),IF(AND(AR2=3,AD27=AO425),VLOOKUP(24,AN402:AZ427,13,FALSE),IF(AND(AR2=3,AD27=AO426),VLOOKUP(25,AN402:AZ427,13,FALSE),IF(AND(AR2=3,AD27=AO427),VLOOKUP(26,AN402:AZ427,13,FALSE))))))))))))))))))))))))))) -> FALSE | AZ32: cm | BA32: ry | BB32: =BB31 -> FALSE | BC32: cm | BD32: ry | BE32: =IF(AND(AR2=5,AD27=AO126),VLOOKUP(1,AN126:BD141,15,FALSE),IF(AND(AR2=5,AD27=AO127),VLOOKUP(2,AN126:BD141,15,FALSE),IF(AND(AR2=5,AD27=AO128),VLOOKUP(3,AN126:BD141,15,FALSE),IF(AND(AR2=5,AD27=AO129),VLOOKUP(4,AN126:BD141,15,FALSE),IF(AND(AR2=5,AD27=AO130),VLOOKUP(5,AN126:BD141,15,FALSE),IF(AND(AR2=5,AD27=AO131),VLOOKUP(6,AN126:BD141,15,FALSE),IF(AND(AR2=5,AD27=AO132),VLOOKUP(7,AN126:BD141,15,FALSE),IF(AND(AR2=5,AD27=AO133),VLOOKUP(8,AN126:BD141,15,FALSE),IF(AND(AR2=5,AD27=AO134),VLOOKUP(9,AN126:BD141,15,FALSE),IF(AND(AR2=5,AD27=AO135),VLOOKUP(10,AN126:BD141,15,FALSE),IF(AND(AR2=5,AD27=AO136),VLOOKUP(11,AN126:BD141,15,FALSE),IF(AND(AR2=5,AD27=AO137),VLOOKUP(12,AN126:BD141,15,FALSE),IF(AND(AR2=5,AD27=AO138),VLOOKUP(13,AN126:BD141,15,FALSE),IF(AND(AR2=5,AD27=AO139),VLOOKUP(14,AN126:BD141,15,FALSE),IF(AND(AR2=5,AD27=AO140),VLOOKUP(15,AN126:BD141,15,FALSE),IF(AND(AR2=5,AD27=AO141),VLOOKUP(16,AN126:BD141,15,FALSE))))))))))))))))) -> FALSE | BF32: cm | BG32: ry | BH32: =IF(AND(AR2=6,AD27=AO218),VLOOKUP(1,AN218:BQ290,24,FALSE),IF(AND(AR2=6,AD27=AO219),VLOOKUP(2,AN218:BQ290,24,FALSE),IF(AND(AR2=6,AD27=AO220),VLOOKUP(3,AN218:BQ290,24,FALSE),IF(AND(AR2=6,AD27=AO221),VLOOKUP(4,AN218:BQ290,24,FALSE),IF(AND(AR2=6,AD27=AO222),VLOOKUP(5,AN218:BQ290,24,FALSE),IF(AND(AR2=6,AD27=AO223),VLOOKUP(6,AN218:BQ290,24,FALSE),IF(AND(AR2=6,AD27=AO224),VLOOKUP(7,AN218:BQ290,24,FALSE),IF(AND(AR2=6,AD27=AO225),VLOOKUP(8,AN218:BQ290,24,FALSE),IF(AND(AR2=6,AD27=AO226),VLOOKUP(9,AN218:BQ290,24,FALSE),IF(AND(AR2=6,AD27=AO227),VLOOKUP(10,AN218:BQ290,24,FALSE),IF(AND(AR2=6,AD27=AO228),VLOOKUP(11,AN218:BQ290,24,FALSE),IF(AND(AR2=6,AD27=AO229),VLOOKUP(12,AN218:BQ290,24,FALSE),IF(AND(AR2=6,AD27=AO230),VLOOKUP(13,AN218:BQ290,24,FALSE),IF(AND(AR2=6,AD27=AO231),VLOOKUP(14,AN218:BQ290,24,FALSE),IF(AND(AR2=6,AD27=AO232),VLOOKUP(15,AN218:BQ290,24,FALSE),IF(AND(AR2=6,AD27=AO233),VLOOKUP(16,AN218:BQ290,24,FALSE),IF(AND(AR2=6,AD27=AO234),VLOOKUP(17,AN218:BQ290,24,FALSE),IF(AND(AR2=6,AD27=AO235),VLOOKUP(18,AN218:BQ290,24,FALSE),IF(AND(AR2=6,AD27=AO236),VLOOKUP(19,AN218:BQ290,24,FALSE),IF(AND(AR2=6,AD27=AO237),VLOOKUP(20,AN218:BQ290,24,FALSE),IF(AND(AR2=6,AD27=AO238),VLOOKUP(21,AN218:BQ290,24,FALSE),IF(AND(AR2=6,AD27=AO239),VLOOKUP(22,AN218:BQ290,24,FALSE),IF(AND(AR2=6,AD27=AO240),VLOOKUP(23,AN218:BQ290,24,FALSE),IF(AND(AR2=6,AD27=AO241),VLOOKUP(24,AN218:BQ290,24,FALSE),IF(AND(AR2=6,AD27=AO242),VLOOKUP(25,AN218:BQ290,24,FALSE),IF(AND(AR2=6,AD27=AO243),VLOOKUP(26,AN218:BQ290,24,FALSE),IF(AND(AR2=6,AD27=AO244),VLOOKUP(27,AN218:BQ290,24,FALSE),IF(AND(AR2=6,AD27=AO245),VLOOKUP(28,AN218:BQ290,24,FALSE),IF(AND(AR2=6,AD27=AO246),VLOOKUP(29,AN218:BQ290,24,FALSE),IF(AND(AR2=6,AD27=AO247),VLOOKUP(30,AN218:BQ290,24,FALSE),IF(AND(AR2=6,AD27=AO248),VLOOKUP(31,AN218:BQ290,24,FALSE),IF(AND(AR2=6,AD27=AO249),VLOOKUP(32,AN218:BQ290,24,FALSE),IF(AND(AR2=6,AD27=AO250),VLOOKUP(33,AN218:BQ290,24,FALSE),IF(AND(AR2=6,AD27=AO251),VLOOKUP(34,AN218:BQ290,24,FALSE),IF(AND(AR2=6,AD27=AO252),VLOOKUP(35,AN218:BQ290,24,FALSE),IF(AND(AR2=6,AD27=AO253),VLOOKUP(36,AN218:BQ290,24,FALSE),IF(AND(AR2=6,AD27=AO254),VLOOKUP(37,AN218:BQ290,24,FALSE),IF(AND(AR2=6,AD27=AO255),VLOOKUP(38,AN218:BQ290,24,FALSE),IF(AND(AR2=6,AD27=AO256),VLOOKUP(39,AN218:BQ290,24,FALSE),IF(AND(AR2=6,AD27=AO257),VLOOKUP(40,AN218:BQ290,24,FALSE),IF(AND(AR2=6,AD27=AO258),VLOOKUP(41,AN218:BQ290,24,FALSE),IF(AND(AR2=6,AD27=AO259),VLOOKUP(42,AN218:BQ290,24,FALSE),IF(AND(AR2=6,AD27=AO260),VLOOKUP(43,AN218:BQ290,24,FALSE),IF(AND(AR2=6,AD27=AO261),VLOOKUP(44,AN218:BQ290,24,FALSE),IF(AND(AR2=6,AD27=AO262),VLOOKUP(45,AN218:BQ290,24,FALSE),IF(AND(AR2=6,AD27=AO263),VLOOKUP(46,AN218:BQ290,24,FALSE),IF(AND(AR2=6,AD27=AO264),VLOOKUP(47,AN218:BQ290,24,FALSE),IF(AND(AR2=6,AD27=AO265),VLOOKUP(48,AN218:BQ290,24,FALSE),IF(AND(AR2=6,AD27=AO266),VLOOKUP(49,AN218:BQ290,24,FALSE),IF(AND(AR2=6,AD27=AO267),VLOOKUP(50,AN218:BQ290,24,FALSE),IF(AND(AR2=6,AD27=AO268),VLOOKUP(51,AN218:BQ290,24,FALSE),IF(AND(AR2=6,AD27=AO269),VLOOKUP(52,AN218:BQ290,24,FALSE),IF(AND(AR2=6,AD27=AO270),VLOOKUP(53,AN218:BQ290,24,FALSE),IF(AND(AR2=6,AD27=AO271),VLOOKUP(54,AN218:BQ290,24,FALSE),IF(AND(AR2=6,AD27=AO272),VLOOKUP(55,AN218:BQ290,24,FALSE),IF(AND(AR2=6,AD27=AO273),VLOOKUP(56,AN218:BQ290,24,FALSE),IF(AND(AR2=6,AD27=AO274),VLOOKUP(57,AN218:BQ290,24,FALSE),IF(AND(AR2=6,AD27=AO275),VLOOKUP(58,AN218:BQ290,24,FALSE),IF(AND(AR2=6,AD27=AO276),VLOOKUP(59,AN218:BQ290,24,FALSE),IF(AND(AR2=6,AD27=AO277),VLOOKUP(60,AN218:BQ290,24,FALSE),IF(AND(AR2=6,AD27=AO278),VLOOKUP(61,AN218:BQ290,24,FALSE),IF(AND(AR2=6,AD27=AO279),VLOOKUP(62,AN218:BQ290,24,FALSE),IF(AND(AR2=6,AD27=AO280),VLOOKUP(63,AN218:BQ290,24,FALSE),IF(AND(AR2=6,AD27=AO281),VLOOKUP(64,AN218:BQ290,24,FALSE))))))))))))))))))))))))))))))))))))))))))))))))))))))))))))))))) -> FALSE | BI32: cm | BJ32: ry | BK32: =IF(AND(AR2=7,AD27=AO308),VLOOKUP(1,AN308:BB327,13,FALSE),IF(AND(AR2=7,AD27=AO309),VLOOKUP(2,AN308:BB327,13,FALSE),IF(AND(AR2=7,AD27=AO310),VLOOKUP(3,AN308:BB327,13,FALSE),IF(AND(AR2=7,AD27=AO311),VLOOKUP(4,AN308:BB327,13,FALSE),IF(AND(AR2=7,AD27=AO312),VLOOKUP(5,AN308:BB327,13,FALSE),IF(AND(AR2=7,AD27=AO313),VLOOKUP(6,AN308:BB327,13,FALSE),IF(AND(AR2=7,AD27=AO314),VLOOKUP(7,AN308:BB327,13,FALSE),IF(AND(AR2=7,AD27=AO315),VLOOKUP(8,AN308:BB327,13,FALSE),IF(AND(AR2=7,AD27=AO316),VLOOKUP(9,AN308:BB327,13,FALSE),IF(AND(AR2=7,AD27=AO317),VLOOKUP(10,AN308:BB327,13,FALSE),IF(AND(AR2=7,AD27=AO318),VLOOKUP(11,AN308:BB327,13,FALSE),IF(AND(AR2=7,AD27=AO319),VLOOKUP(12,AN308:BB327,13,FALSE),IF(AND(AR2=7,AD27=AO320),VLOOKUP(13,AN308:BB327,13,FALSE),IF(AND(AR2=7,AD27=AO321),VLOOKUP(14,AN308:BB327,13,FALSE),IF(AND(AR2=7,AD27=AO322),VLOOKUP(15,AN308:BB327,13,FALSE),IF(AND(AR2=7,AD27=AO323),VLOOKUP(16,AN308:BB327,13,FALSE),IF(AND(AR2=7,AD27=AO324),VLOOKUP(17,AN308:BB327,13,FALSE),IF(AND(AR2=7,AD27=AO325),VLOOKUP(18,AN308:BB327,13,FALSE),IF(AND(AR2=7,AD27=AO326),VLOOKUP(19,AN308:BB327,13,FALSE),IF(AND(AR2=7,AD27=AO327),VLOOKUP(20,AN308:BB327,13,FALSE))))))))))))))))))))) -> FALSE | BL32: cm | BM32: ry | BN32: =IF(AND(AR2=8,AD27=AO1062),VLOOKUP(1,AN1062:BG1074,16,FALSE),IF(AND(AR2=8,AD27=AO1063),VLOOKUP(2,AN1062:BG1074,16,FALSE),IF(AND(AR2=8,AD27=AO1064),VLOOKUP(3,AN1062:BG1074,16,FALSE),IF(AND(AR2=8,AD27=AO1065),VLOOKUP(4,AN1062:BG1074,16,FALSE),IF(AND(AR2=8,AD27=AO1066),VLOOKUP(5,AN1062:BG1074,16,FALSE),IF(AND(AR2=8,AD27=AO1067),VLOOKUP(6,AN1062:BG1074,16,FALSE),IF(AND(AR2=8,AD27=AO1068),VLOOKUP(7,AN1062:BG1074,16,FALSE),IF(AND(AR2=8,AD27=AO1069),VLOOKUP(8,AN1062:BG1074,16,FALSE),IF(AND(AR2=8,AD27=AO1070),VLOOKUP(9,AN1062:BG1074,16,FALSE),IF(AND(AR2=8,AD27=AO1071),VLOOKUP(10,AN1062:BG1074,16,FALSE),IF(AND(AR2=8,AD27=AO1072),VLOOKUP(11,AN1062:BG1074,16,FALSE),IF(AND(AR2=8,AD27=AO1073),VLOOKUP(12,AN1062:BG1074,16,FALSE),IF(AND(AR2=8,AD27=AO1074),VLOOKUP(13,AN1062:BG1074,16,FALSE)))))))))))))) -> FALSE | BO32: cm
Z33: ry | AD33: = | AE33: =IF(AND(AS32=FALSE,AV32=FALSE,AY32=FALSE,BB32=FALSE,BE32=FALSE,BH32=FALSE,BK32=FALSE,BN32=FALSE),0.0001,IF(AR2=1,AS32,IF(AR2=2,AV32,IF(AR2=3,AY32,IF(AR2=4,BB32,IF(AR2=5,BE32,IF(AR2=6,BH32,IF(AR2=7,BK32,IF(AR2=8,BN32))))))))) -> 0.34 | AI33: cm | AR33: Section Area | AS33: =IF(AND(AR2=1,AD27=AO342),VLOOKUP(1,AN342:BC386,5,FALSE),IF(AND(AR2=1,AD27=AO343),VLOOKUP(2,AN342:BC386,5,FALSE),IF(AND(AR2=1,AD27=AO344),VLOOKUP(3,AN342:BC386,5,FALSE),IF(AND(AR2=1,AD27=AO345),VLOOKUP(4,AN342:BC386,5,FALSE),IF(AND(AR2=1,AD27=AO346),VLOOKUP(5,AN342:BC386,5,FALSE),IF(AND(AR2=1,AD27=AO347),VLOOKUP(6,AN342:BC386,5,FALSE),IF(AND(AR2=1,AD27=AO348),VLOOKUP(7,AN342:BC386,5,FALSE),IF(AND(AR2=1,AD27=AO349),VLOOKUP(8,AN342:BC386,5,FALSE),IF(AND(AR2=1,AD27=AO350),VLOOKUP(9,AN342:BC386,5,FALSE),IF(AND(AR2=1,AD27=AO351),VLOOKUP(10,AN342:BC386,5,FALSE),IF(AND(AR2=1,AD27=AO352),VLOOKUP(11,AN342:BC386,5,FALSE),IF(AND(AR2=1,AD27=AO353),VLOOKUP(12,AN342:BC386,5,FALSE),IF(AND(AR2=1,AD27=AO354),VLOOKUP(13,AN342:BC386,5,FALSE),IF(AND(AR2=1,AD27=AO355),VLOOKUP(14,AN342:BC386,5,FALSE),IF(AND(AR2=1,AD27=AO356),VLOOKUP(15,AN342:BC386,5,FALSE),IF(AND(AR2=1,AD27=AO357),VLOOKUP(16,AN342:BC386,5,FALSE),IF(AND(AR2=1,AD27=AO358),VLOOKUP(17,AN342:BC386,5,FALSE),IF(AND(AR2=1,AD27=AO359),VLOOKUP(18,AN342:BC386,5,FALSE),IF(AND(AR2=1,AD27=AO360),VLOOKUP(19,AN342:BC386,5,FALSE),IF(AND(AR2=1,AD27=AO361),VLOOKUP(20,AN342:BC386,5,FALSE),IF(AND(AR2=1,AD27=AO362),VLOOKUP(21,AN342:BC386,5,FALSE),IF(AND(AR2=1,AD27=AO363),VLOOKUP(22,AN342:BC386,5,FALSE),IF(AND(AR2=1,AD27=AO364),VLOOKUP(23,AN342:BC386,5,FALSE),IF(AND(AR2=1,AD27=AO365),VLOOKUP(24,AN342:BC386,5,FALSE),IF(AND(AR2=1,AD27=AO366),VLOOKUP(25,AN342:BC386,5,FALSE),IF(AND(AR2=1,AD27=AO367),VLOOKUP(26,AN342:BC386,5,FALSE),IF(AND(AR2=1,AD27=AO368),VLOOKUP(27,AN342:BC386,5,FALSE),IF(AND(AR2=1,AD27=AO369),VLOOKUP(28,AN342:BC386,5,FALSE),IF(AND(AR2=1,AD27=AO370),VLOOKUP(29,AN342:BC386,5,FALSE),IF(AND(AR2=1,AD27=AO371),VLOOKUP(30,AN342:BC386,5,FALSE),IF(AND(AR2=1,AD27=AO372),VLOOKUP(31,AN342:BC386,5,FALSE),IF(AND(AR2=1,AD27=AO373),VLOOKUP(32,AN342:BC386,5,FALSE),IF(AND(AR2=1,AD27=AO374),VLOOKUP(33,AN342:BC386,5,FALSE),IF(AND(AR2=1,AD27=AO375),VLOOKUP(34,AN342:BC386,5,FALSE),IF(AND(AR2=1,AD27=AO376),VLOOKUP(35,AN342:BC386,5,FALSE),IF(AND(AR2=1,AD27=AO377),VLOOKUP(36,AN342:BC386,5,FALSE),IF(AND(AR2=1,AD27=AO378),VLOOKUP(37,AN342:BC386,5,FALSE),IF(AND(AR2=1,AD27=AO379),VLOOKUP(38,AN342:BC386,5,FALSE),IF(AND(AR2=1,AD27=AO380),VLOOKUP(39,AN342:BC386,5,FALSE),IF(AND(AR2=1,AD27=AO381),VLOOKUP(40,AN342:BC386,5,FALSE),IF(AND(AR2=1,AD27=AO382),VLOOKUP(41,AN342:BC386,5,FALSE),IF(AND(AR2=1,AD27=AO383),VLOOKUP(42,AN342:BC386,5,FALSE),IF(AND(AR2=1,AD27=AO384),VLOOKUP(43,AN342:BC386,5,FALSE),IF(AND(AR2=1,AD27=AO385),VLOOKUP(44,AN342:BC386,5,FALSE),IF(AND(AR2=1,AD27=AO386),VLOOKUP(45,AN342:BC386,5,FALSE)))))))))))))))))))))))))))))))))))))))))))))) -> FALSE | AT33: cm2 | AU33: Section Area | AV33: =IF(AND(AR2=2,AD27=AO443),VLOOKUP(1,AN443:BH475,7,FALSE),IF(AND(AR2=2,AD27=AO444),VLOOKUP(2,AN443:BH475,7,FALSE),IF(AND(AR2=2,AD27=AO445),VLOOKUP(3,AN443:BH475,7,FALSE),IF(AND(AR2=2,AD27=AO446),VLOOKUP(4,AN443:BH475,7,FALSE),IF(AND(AR2=2,AD27=AO447),VLOOKUP(5,AN443:BH475,7,FALSE),IF(AND(AR2=2,AD27=AO448),VLOOKUP(6,AN443:BH474,7,FALSE),IF(AND(AR2=2,AD27=AO449),VLOOKUP(7,AN443:BH475,7,FALSE),IF(AND(AR2=2,AD27=AO450),VLOOKUP(8,AN443:BH475,7,FALSE),IF(AND(AR2=2,AD27=AO451),VLOOKUP(9,AN443:BH475,7,FALSE),IF(AND(AR2=2,AD27=AO452),VLOOKUP(10,AN443:BH475,7,FALSE),IF(AND(AR2=2,AD27=AO453),VLOOKUP(11,AN443:BH475,7,FALSE),IF(AND(AR2=2,AD27=AO454),VLOOKUP(12,AN443:BH475,7,FALSE),IF(AND(AR2=2,AD27=AO455),VLOOKUP(13,AN443:BH475,7,FALSE),IF(AND(AR2=2,AD27=AO456),VLOOKUP(14,AN443:BH475,7,FALSE),IF(AND(AR2=2,AD27=AO457),VLOOKUP(15,AN443:BH475,7,FALSE),IF(AND(AR2=2,AD27=AO458),VLOOKUP(16,AN443:BH475,7,FALSE),IF(AND(AR2=2,AD27=AO459),VLOOKUP(17,AN443:BH475,7,FALSE),IF(AND(AR2=2,AD27=AO460),VLOOKUP(18,AN443:BH475,7,FALSE),IF(AND(AR2=2,AD27=AO461),VLOOKUP(19,AN443:BH475,7,FALSE),IF(AND(AR2=2,AD27=AO462),VLOOKUP(20,AN443:BH475,7,FALSE),IF(AND(AR2=2,AD27=AO463),VLOOKUP(21,AN443:BH475,7,FALSE),IF(AND(AR2=2,AD27=AO464),VLOOKUP(22,AN443:BH475,7,FALSE),IF(AND(AR2=2,AD27=AO465),VLOOKUP(23,AN443:BH475,7,FALSE),IF(AND(AR2=2,AD27=AO466),VLOOKUP(24,AN443:BH475,7,FALSE),IF(AND(AR2=2,AD27=AO467),VLOOKUP(25,AN443:BH475,7,FALSE),IF(AND(AR2=2,AD27=AO468),VLOOKUP(26,AN443:BH475,7,FALSE),IF(AND(AR2=2,AD27=AO469),VLOOKUP(27,AN443:BH475,7,FALSE),IF(AND(AR2=2,AD27=AO470),VLOOKUP(28,AN443:BH475,7,FALSE),IF(AND(AR2=2,AD27=AO471),VLOOKUP(29,AN443:BH475,7,FALSE),IF(AND(AR2=2,AD27=AO472),VLOOKUP(30,AN443:BH475,7,FALSE),IF(AND(AR2=2,AD27=AO473),VLOOKUP(31,AN443:BH475,7,FALSE),IF(AND(AR2=2,AD27=AO474),VLOOKUP(32,AN443:BH475,7,FALSE),IF(AND(AR2=2,AD27=AO475),VLOOKUP(33,AN443:BH475,7,FALSE)))))))))))))))))))))))))))))))))) -> 1.432 | AW33: cm2 | AX33: Section Area | AY33: =IF(AND(AR2=3,AD27=AO402),VLOOKUP(1,AN402:AZ427,7,FALSE),IF(AND(AR2=3,AD27=AO403),VLOOKUP(2,AN402:AZ427,7,FALSE),IF(AND(AR2=3,AD27=AO404),VLOOKUP(3,AN402:AZ427,7,FALSE),IF(AND(AR2=3,AD27=AO405),VLOOKUP(4,AN402:AZ427,7,FALSE),IF(AND(AR2=3,AD27=AO406),VLOOKUP(5,AN402:AZ427,7,FALSE),IF(AND(AR2=3,AD27=AO407),VLOOKUP(6,AN402:AZ427,7,FALSE),IF(AND(AR2=3,AD27=AO408),VLOOKUP(7,AN402:AZ427,7,FALSE),IF(AND(AR2=3,AD27=AO409),VLOOKUP(8,AN402:AZ427,7,FALSE),IF(AND(AR2=3,AD27=AO410),VLOOKUP(9,AN402:AZ427,7,FALSE),IF(AND(AR2=3,AD27=AO411),VLOOKUP(10,AN402:AZ427,7,FALSE),IF(AND(AR2=3,AD27=AO412),VLOOKUP(11,AN402:AZ427,7,FALSE),IF(AND(AR2=3,AD27=AO413),VLOOKUP(12,AN402:AZ427,7,FALSE),IF(AND(AR2=3,AD27=AO414),VLOOKUP(13,AN402:AZ427,7,FALSE),IF(AND(AR2=3,AD27=AO415),VLOOKUP(14,AN402:AZ427,7,FALSE),IF(AND(AR2=3,AD27=AO416),VLOOKUP(15,AN402:AZ427,7,FALSE),IF(AND(AR2=3,AD27=AO417),VLOOKUP(16,AN402:AZ427,7,FALSE),IF(AND(AR2=3,AD27=AO418),VLOOKUP(17,AN402:AZ427,7,FALSE),IF(AND(AR2=3,AD27=AO419),VLOOKUP(18,AN402:AZ427,7,FALSE),IF(AND(AR2=3,AD27=AO420),VLOOKUP(19,AN402:AZ427,7,FALSE),IF(AND(AR2=3,AD27=AO421),VLOOKUP(20,AN402:AZ427,7,FALSE),IF(AND(AR2=3,AD27=AO422),VLOOKUP(21,AN402:AZ427,7,FALSE),IF(AND(AR2=3,AD27=AO423),VLOOKUP(22,AN402:AZ427,7,FALSE),IF(AND(AR2=3,AD27=AO424),VLOOKUP(23,AN402:AZ427,7,FALSE),IF(AND(AR2=3,AD27=AO425),VLOOKUP(24,AN402:AZ427,7,FALSE),IF(AND(AR2=3,AD27=AO426),VLOOKUP(25,AN402:AZ427,7,FALSE),IF(AND(AR2=3,AD27=AO427),VLOOKUP(26,AN402:AZ427,7,FALSE))))))))))))))))))))))))))) -> FALSE | AZ33: cm2 | BA33: Section Area | BB33: =IF(AND(AR2=4,AD27=AO157),VLOOKUP(1,AN157:BG202,7,FALSE),IF(AND(AR2=4,AD27=AO158),VLOOKUP(2,AN157:BG202,7,FALSE),IF(AND(AR2=4,AD27=AO159),VLOOKUP(3,AN157:BG202,7,FALSE),IF(AND(AR2=4,AD27=AO160),VLOOKUP(4,AN157:BG202,7,FALSE),IF(AND(AR2=4,AD27=AO161),VLOOKUP(5,AN157:BG202,7,FALSE),IF(AND(AR2=4,AD27=AO162),VLOOKUP(6,AN157:BG202,7,FALSE),IF(AND(AR2=4,AD27=AO163),VLOOKUP(7,AN157:BG202,7,FALSE),IF(AND(AR2=4,AD27=AO164),VLOOKUP(8,AN157:BG202,7,FALSE),IF(AND(AR2=4,AD27=AO165),VLOOKUP(9,AN157:BG202,7,FALSE),IF(AND(AR2=4,AD27=AO166),VLOOKUP(10,AN157:BG202,7,FALSE),IF(AND(AR2=4,AD27=AO167),VLOOKUP(11,AN157:BG202,7,FALSE),IF(AND(AR2=4,AD27=AO168),VLOOKUP(12,AN157:BG202,7,FALSE),IF(AND(AR2=4,AD27=AO169),VLOOKUP(13,AN157:BG202,7,FALSE),IF(AND(AR2=4,AD27=AO170),VLOOKUP(14,AN157:BG202,7,FALSE),IF(AND(AR2=4,AD27=AO171),VLOOKUP(15,AN157:BG202,7,FALSE),IF(AND(AR2=4,AD27=AO172),VLOOKUP(16,AN157:BG202,7,FALSE),IF(AND(AR2=4,AD27=AO173),VLOOKUP(17,AN157:BG202,7,FALSE),IF(AND(AR2=4,AD27=AO174),VLOOKUP(18,AN157:BG202,7,FALSE),IF(AND(AR2=4,AD27=AO175),VLOOKUP(19,AN157:BG202,7,FALSE),IF(AND(AR2=4,AD27=AO176),VLOOKUP(20,AN157:BG202,7,FALSE),IF(AND(AR2=4,AD27=AO177),VLOOKUP(21,AN157:BG202,7,FALSE),IF(AND(AR2=4,AD27=AO178),VLOOKUP(22,AN157:BG202,7,FALSE),IF(AND(AR2=4,AD27=AO179),VLOOKUP(23,AN157:BG202,7,FALSE),IF(AND(AR2=4,AD27=AO180),VLOOKUP(24,AN157:BG202,7,FALSE),IF(AND(AR2=4,AD27=AO181),VLOOKUP(25,AN157:BG202,7,FALSE),IF(AND(AR2=4,AD27=AO182),VLOOKUP(26,AN157:BG202,7,FALSE),IF(AND(AR2=4,AD27=AO183),VLOOKUP(27,AN157:BG202,7,FALSE),IF(AND(AR2=4,AD27=AO184),VLOOKUP(28,AN157:BG202,7,FALSE),IF(AND(AR2=4,AD27=AO185),VLOOKUP(29,AN157:BG202,7,FALSE),IF(AND(AR2=4,AD27=AO186),VLOOKUP(30,AN157:BG202,7,FALSE),IF(AND(AR2=4,AD27=AO187),VLOOKUP(31,AN157:BG202,7,FALSE),IF(AND(AR2=4,AD27=AO188),VLOOKUP(32,AN157:BG202,7,FALSE),IF(AND(AR2=4,AD27=AO189),VLOOKUP(33,AN157:BG202,7,FALSE),IF(AND(AR2=4,AD27=AO190),VLOOKUP(34,AN157:BG202,7,FALSE),IF(AND(AR2=4,AD27=AO191),VLOOKUP(35,AN157:BG202,7,FALSE),IF(AND(AR2=4,AD27=AO192),VLOOKUP(36,AN157:BG202,7,FALSE),IF(AND(AR2=4,AD27=AO193),VLOOKUP(37,AN157:BG202,7,FALSE),IF(AND(AR2=4,AD27=AO194),VLOOKUP(38,AN157:BG202,7,FALSE),IF(AND(AR2=4,AD27=AO195),VLOOKUP(39,AN157:BG202,7,FALSE),IF(AND(AR2=4,AD27=AO196),VLOOKUP(40,AN157:BG202,7,FALSE),IF(AND(AR2=4,AD27=AO197),VLOOKUP(41,AN157:BG202,7,FALSE),IF(AND(AR2=4,AD27=AO198),VLOOKUP(42,AN157:BG202,7,FALSE),IF(AND(AR2=4,AD27=AO199),VLOOKUP(43,AN157:BG202,7,FALSE),IF(AND(AR2=4,AD27=AO200),VLOOKUP(44,AN157:BG202,7,FALSE),IF(AND(AR2=4,AD27=AO201),VLOOKUP(45,AN157:BG202,7,FALSE),IF(AND(AR2=4,AD27=AO202),VLOOKUP(46,AN157:BG202,7,FALSE))))))))))))))))))))))))))))))))))))))))))))))) -> FALSE | BC33: cm2 | BD33: Section Area | BE33: =IF(AND(AR2=5,AD27=AO126),VLOOKUP(1,AN126:BD141,8,FALSE),IF(AND(AR2=5,AD27=AO127),VLOOKUP(2,AN126:BD141,8,FALSE),IF(AND(AR2=5,AD27=AO128),VLOOKUP(3,AN126:BD141,8,FALSE),IF(AND(AR2=5,AD27=AO129),VLOOKUP(4,AN126:BD141,8,FALSE),IF(AND(AR2=5,AD27=AO130),VLOOKUP(5,AN126:BD141,8,FALSE),IF(AND(AR2=5,AD27=AO131),VLOOKUP(6,AN126:BD141,8,FALSE),IF(AND(AR2=5,AD27=AO132),VLOOKUP(7,AN126:BD141,8,FALSE),IF(AND(AR2=5,AD27=AO133),VLOOKUP(8,AN126:BD141,8,FALSE),IF(AND(AR2=5,AD27=AO134),VLOOKUP(9,AN126:BD141,8,FALSE),IF(AND(AR2=5,AD27=AO135),VLOOKUP(10,AN126:BD141,8,FALSE),IF(AND(AR2=5,AD27=AO136),VLOOKUP(11,AN126:BD141,8,FALSE),IF(AND(AR2=5,AD27=AO137),VLOOKUP(12,AN126:BD141,8,FALSE),IF(AND(AR2=5,AD27=AO138),VLOOKUP(13,AN126:BD141,8,FALSE),IF(AND(AR2=5,AD27=AO139),VLOOKUP(14,AN126:BD141,8,FALSE),IF(AND(AR2=5,AD27=AO140),VLOOKUP(15,AN126:BD141,8,FALSE),IF(AND(AR2=5,AD27=AO141),VLOOKUP(16,AN126:BD141,8,FALSE))))))))))))))))) -> FALSE | BF33: cm2 | BG33: Section Area | BH33: =IF(AND(AR2=6,AD27=AO218),VLOOKUP(1,AN218:BQ290,16,FALSE),IF(AND(AR2=6,AD27=AO219),VLOOKUP(2,AN218:BQ290,16,FALSE),IF(AND(AR2=6,AD27=AO220),VLOOKUP(3,AN218:BQ290,16,FALSE),IF(AND(AR2=6,AD27=AO221),VLOOKUP(4,AN218:BQ290,16,FALSE),IF(AND(AR2=6,AD27=AO222),VLOOKUP(5,AN218:BQ290,16,FALSE),IF(AND(AR2=6,AD27=AO223),VLOOKUP(6,AN218:BQ290,16,FALSE),IF(AND(AR2=6,AD27=AO224),VLOOKUP(7,AN218:BQ290,16,FALSE),IF(AND(AR2=6,AD27=AO225),VLOOKUP(8,AN218:BQ290,16,FALSE),IF(AND(AR2=6,AD27=AO226),VLOOKUP(9,AN218:BQ290,16,FALSE),IF(AND(AR2=6,AD27=AO227),VLOOKUP(10,AN218:BQ290,16,FALSE),IF(AND(AR2=6,AD27=AO228),VLOOKUP(11,AN218:BQ290,16,FALSE),IF(AND(AR2=6,AD27=AO229),VLOOKUP(12,AN218:BQ290,16,FALSE),IF(AND(AR2=6,AD27=AO230),VLOOKUP(13,AN218:BQ290,16,FALSE),IF(AND(AR2=6,AD27=AO231),VLOOKUP(14,AN218:BQ290,16,FALSE),IF(AND(AR2=6,AD27=AO232),VLOOKUP(15,AN218:BQ290,16,FALSE),IF(AND(AR2=6,AD27=AO233),VLOOKUP(16,AN218:BQ290,16,FALSE),IF(AND(AR2=6,AD27=AO234),VLOOKUP(17,AN218:BQ290,16,FALSE),IF(AND(AR2=6,AD27=AO235),VLOOKUP(18,AN218:BQ290,16,FALSE),IF(AND(AR2=6,AD27=AO236),VLOOKUP(19,AN218:BQ290,16,FALSE),IF(AND(AR2=6,AD27=AO237),VLOOKUP(20,AN218:BQ290,16,FALSE),IF(AND(AR2=6,AD27=AO238),VLOOKUP(21,AN218:BQ290,16,FALSE),IF(AND(AR2=6,AD27=AO239),VLOOKUP(22,AN218:BQ290,16,FALSE),IF(AND(AR2=6,AD27=AO240),VLOOKUP(23,AN218:BQ290,16,FALSE),IF(AND(AR2=6,AD27=AO241),VLOOKUP(24,AN218:BQ290,16,FALSE),IF(AND(AR2=6,AD27=AO242),VLOOKUP(25,AN218:BQ290,16,FALSE),IF(AND(AR2=6,AD27=AO243),VLOOKUP(26,AN218:BQ290,16,FALSE),IF(AND(AR2=6,AD27=AO244),VLOOKUP(27,AN218:BQ290,16,FALSE),IF(AND(AR2=6,AD27=AO245),VLOOKUP(28,AN218:BQ290,16,FALSE),IF(AND(AR2=6,AD27=AO246),VLOOKUP(29,AN218:BQ290,16,FALSE),IF(AND(AR2=6,AD27=AO247),VLOOKUP(30,AN218:BQ290,16,FALSE),IF(AND(AR2=6,AD27=AO248),VLOOKUP(31,AN218:BQ290,16,FALSE),IF(AND(AR2=6,AD27=AO249),VLOOKUP(32,AN218:BQ290,16,FALSE),IF(AND(AR2=6,AD27=AO250),VLOOKUP(33,AN218:BQ290,16,FALSE),IF(AND(AR2=6,AD27=AO251),VLOOKUP(34,AN218:BQ290,16,FALSE),IF(AND(AR2=6,AD27=AO252),VLOOKUP(35,AN218:BQ290,16,FALSE),IF(AND(AR2=6,AD27=AO253),VLOOKUP(36,AN218:BQ290,16,FALSE),IF(AND(AR2=6,AD27=AO254),VLOOKUP(37,AN218:BQ290,16,FALSE),IF(AND(AR2=6,AD27=AO255),VLOOKUP(38,AN218:BQ290,16,FALSE),IF(AND(AR2=6,AD27=AO256),VLOOKUP(39,AN218:BQ290,16,FALSE),IF(AND(AR2=6,AD27=AO257),VLOOKUP(40,AN218:BQ290,16,FALSE),IF(AND(AR2=6,AD27=AO258),VLOOKUP(41,AN218:BQ290,16,FALSE),IF(AND(AR2=6,AD27=AO259),VLOOKUP(42,AN218:BQ290,16,FALSE),IF(AND(AR2=6,AD27=AO260),VLOOKUP(43,AN218:BQ290,16,FALSE),IF(AND(AR2=6,AD27=AO261),VLOOKUP(44,AN218:BQ290,16,FALSE),IF(AND(AR2=6,AD27=AO262),VLOOKUP(45,AN218:BQ290,16,FALSE),IF(AND(AR2=6,AD27=AO263),VLOOKUP(46,AN218:BQ290,16,FALSE),IF(AND(AR2=6,AD27=AO264),VLOOKUP(47,AN218:BQ290,16,FALSE),IF(AND(AR2=6,AD27=AO265),VLOOKUP(48,AN218:BQ290,16,FALSE),IF(AND(AR2=6,AD27=AO266),VLOOKUP(49,AN218:BQ290,16,FALSE),IF(AND(AR2=6,AD27=AO267),VLOOKUP(50,AN218:BQ290,16,FALSE),IF(AND(AR2=6,AD27=AO268),VLOOKUP(51,AN218:BQ290,16,FALSE),IF(AND(AR2=6,AD27=AO269),VLOOKUP(52,AN218:BQ290,16,FALSE),IF(AND(AR2=6,AD27=AO270),VLOOKUP(53,AN218:BQ290,16,FALSE),IF(AND(AR2=6,AD27=AO271),VLOOKUP(54,AN218:BQ290,16,FALSE),IF(AND(AR2=6,AD27=AO272),VLOOKUP(55,AN218:BQ290,16,FALSE),IF(AND(AR2=6,AD27=AO273),VLOOKUP(56,AN218:BQ290,16,FALSE),IF(AND(AR2=6,AD27=AO274),VLOOKUP(57,AN218:BQ290,16,FALSE),IF(AND(AR2=6,AD27=AO275),VLOOKUP(58,AN218:BQ290,16,FALSE),IF(AND(AR2=6,AD27=AO276),VLOOKUP(59,AN218:BQ290,16,FALSE),IF(AND(AR2=6,AD27=AO277),VLOOKUP(60,AN218:BQ290,16,FALSE),IF(AND(AR2=6,AD27=AO278),VLOOKUP(61,AN218:BQ290,16,FALSE),IF(AND(AR2=6,AD27=AO279),VLOOKUP(62,AN218:BQ290,16,FALSE),IF(AND(AR2=6,AD27=AO280),VLOOKUP(63,AN218:BQ290,16,FALSE),IF(AND(AR2=6,AD27=AO281),VLOOKUP(64,AN218:BQ290,16,FALSE))))))))))))))))))))))))))))))))))))))))))))))))))))))))))))))))) -> FALSE | BI33: cm2 | BJ33: Section Area | BK33: =IF(AND(AR2=7,AD27=AO308),VLOOKUP(1,AN308:BB327,8,FALSE),IF(AND(AR2=7,AD27=AO309),VLOOKUP(2,AN308:BB327,8,FALSE),IF(AND(AR2=7,AD27=AO310),VLOOKUP(3,AN308:BB327,8,FALSE),IF(AND(AR2=7,AD27=AO311),VLOOKUP(4,AN308:BB327,8,FALSE),IF(AND(AR2=7,AD27=AO312),VLOOKUP(5,AN308:BB327,8,FALSE),IF(AND(AR2=7,AD27=AO313),VLOOKUP(6,AN308:BB327,8,FALSE),IF(AND(AR2=7,AD27=AO314),VLOOKUP(7,AN308:BB327,8,FALSE),IF(AND(AR2=7,AD27=AO315),VLOOKUP(8,AN308:BB327,8,FALSE),IF(AND(AR2=7,AD27=AO316),VLOOKUP(9,AN308:BB327,8,FALSE),IF(AND(AR2=7,AD27=AO317),VLOOKUP(10,AN308:BB327,8,FALSE),IF(AND(AR2=7,AD27=AO318),VLOOKUP(11,AN308:BB327,8,FALSE),IF(AND(AR2=7,AD27=AO319),VLOOKUP(12,AN308:BB327,8,FALSE),IF(AND(AR2=7,AD27=AO320),VLOOKUP(13,AN308:BB327,8,FALSE),IF(AND(AR2=7,AD27=AO321),VLOOKUP(14,AN308:BB327,8,FALSE),IF(AND(AR2=7,AD27=AO322),VLOOKUP(15,AN308:BB327,8,FALSE),IF(AND(AR2=7,AD27=AO323),VLOOKUP(16,AN308:BB327,8,FALSE),IF(AND(AR2=7,AD27=AO324),VLOOKUP(17,AN308:BB327,8,FALSE),IF(AND(AR2=7,AD27=AO325),VLOOKUP(18,AN308:BB327,8,FALSE),IF(AND(AR2=7,AD27=AO326),VLOOKUP(19,AN308:BB327,8,FALSE),IF(AND(AR2=7,AD27=AO327),VLOOKUP(20,AN308:BB327,8,FALSE))))))))))))))))))))) -> FALSE | BL33: cm2 | BM33: Section Area | BN33: =IF(AND(AR2=8,AD27=AO1062),VLOOKUP(1,AN1062:BG1074,7,FALSE),IF(AND(AR2=8,AD27=AO1063),VLOOKUP(2,AN1062:BG1074,7,FALSE),IF(AND(AR2=8,AD27=AO1064),VLOOKUP(3,AN1062:BG1074,7,FALSE),IF(AND(AR2=8,AD27=AO1065),VLOOKUP(4,AN1062:BG1074,7,FALSE),IF(AND(AR2=8,AD27=AO1066),VLOOKUP(5,AN1062:BG1074,7,FALSE),IF(AND(AR2=8,AD27=AO1067),VLOOKUP(6,AN1062:BG1074,7,FALSE),IF(AND(AR2=8,AD27=AO1068),VLOOKUP(7,AN1062:BG1074,7,FALSE),IF(AND(AR2=8,AD27=AO1069),VLOOKUP(8,AN1062:BG1074,7,FALSE),IF(AND(AR2=8,AD27=AO1070),VLOOKUP(9,AN1062:BG1074,7,FALSE),IF(AND(AR2=8,AD27=AO1071),VLOOKUP(10,AN1062:BG1074,7,FALSE),IF(AND(AR2=8,AD27=AO1072),VLOOKUP(11,AN1062:BG1074,7,FALSE),IF(AND(AR2=8,AD27=AO1073),VLOOKUP(12,AN1062:BG1074,7,FALSE),IF(AND(AR2=8,AD27=AO1074),VLOOKUP(13,AN1062:BG1074,7,FALSE)))))))))))))) -> FALSE | BO33: cm2
Z34: Sectional Area | AD34: = | AE34: =IF(AND(AS33=FALSE,AV33=FALSE,AY33=FALSE,BB33=FALSE,BE33=FALSE,BH33=FALSE,BK33=FALSE,BN33=FALSE),0.0001,IF(AR2=1,AS33,IF(AR2=2,AV33,IF(AR2=3,AY33,IF(AR2=4,BB33,IF(AR2=5,BE33,IF(AR2=6,BH33,IF(AR2=7,BK33,IF(AR2=8,BN33))))))))) -> 1.432 | AI34: cm2 | AR34: Unit Weight | AS34: =IF(AND(AR2=1,AD27=AO342),VLOOKUP(1,AN342:BC386,6,FALSE),IF(AND(AR2=1,AD27=AO343),VLOOKUP(2,AN342:BC386,6,FALSE),IF(AND(AR2=1,AD27=AO344),VLOOKUP(3,AN342:BC386,6,FALSE),IF(AND(AR2=1,AD27=AO345),VLOOKUP(4,AN342:BC386,6,FALSE),IF(AND(AR2=1,AD27=AO346),VLOOKUP(5,AN342:BC386,6,FALSE),IF(AND(AR2=1,AD27=AO347),VLOOKUP(6,AN342:BC386,6,FALSE),IF(AND(AR2=1,AD27=AO348),VLOOKUP(7,AN342:BC386,6,FALSE),IF(AND(AR2=1,AD27=AO349),VLOOKUP(8,AN342:BC386,6,FALSE),IF(AND(AR2=1,AD27=AO350),VLOOKUP(9,AN342:BC386,6,FALSE),IF(AND(AR2=1,AD27=AO351),VLOOKUP(10,AN342:BC386,6,FALSE),IF(AND(AR2=1,AD27=AO352),VLOOKUP(11,AN342:BC386,6,FALSE),IF(AND(AR2=1,AD27=AO353),VLOOKUP(12,AN342:BC386,6,FALSE),IF(AND(AR2=1,AD27=AO354),VLOOKUP(13,AN342:BC386,6,FALSE),IF(AND(AR2=1,AD27=AO355),VLOOKUP(14,AN342:BC386,6,FALSE),IF(AND(AR2=1,AD27=AO356),VLOOKUP(15,AN342:BC386,6,FALSE),IF(AND(AR2=1,AD27=AO357),VLOOKUP(16,AN342:BC386,6,FALSE),IF(AND(AR2=1,AD27=AO358),VLOOKUP(17,AN342:BC386,6,FALSE),IF(AND(AR2=1,AD27=AO359),VLOOKUP(18,AN342:BC386,6,FALSE),IF(AND(AR2=1,AD27=AO360),VLOOKUP(19,AN342:BC386,6,FALSE),IF(AND(AR2=1,AD27=AO361),VLOOKUP(20,AN342:BC386,6,FALSE),IF(AND(AR2=1,AD27=AO362),VLOOKUP(21,AN342:BC386,6,FALSE),IF(AND(AR2=1,AD27=AO363),VLOOKUP(22,AN342:BC386,6,FALSE),IF(AND(AR2=1,AD27=AO364),VLOOKUP(23,AN342:BC386,6,FALSE),IF(AND(AR2=1,AD27=AO365),VLOOKUP(24,AN342:BC386,6,FALSE),IF(AND(AR2=1,AD27=AO366),VLOOKUP(25,AN342:BC386,6,FALSE),IF(AND(AR2=1,AD27=AO367),VLOOKUP(26,AN342:BC386,6,FALSE),IF(AND(AR2=1,AD27=AO368),VLOOKUP(27,AN342:BC386,6,FALSE),IF(AND(AR2=1,AD27=AO369),VLOOKUP(28,AN342:BC386,6,FALSE),IF(AND(AR2=1,AD27=AO370),VLOOKUP(29,AN342:BC386,6,FALSE),IF(AND(AR2=1,AD27=AO371),VLOOKUP(30,AN342:BC386,6,FALSE),IF(AND(AR2=1,AD27=AO372),VLOOKUP(31,AN342:BC386,6,FALSE),IF(AND(AR2=1,AD27=AO373),VLOOKUP(32,AN342:BC386,6,FALSE),IF(AND(AR2=1,AD27=AO374),VLOOKUP(33,AN342:BC386,6,FALSE),IF(AND(AR2=1,AD27=AO375),VLOOKUP(34,AN342:BC386,6,FALSE),IF(AND(AR2=1,AD27=AO376),VLOOKUP(35,AN342:BC386,6,FALSE),IF(AND(AR2=1,AD27=AO377),VLOOKUP(36,AN342:BC386,6,FALSE),IF(AND(AR2=1,AD27=AO378),VLOOKUP(37,AN342:BC386,6,FALSE),IF(AND(AR2=1,AD27=AO379),VLOOKUP(38,AN342:BC386,6,FALSE),IF(AND(AR2=1,AD27=AO380),VLOOKUP(39,AN342:BC386,6,FALSE),IF(AND(AR2=1,AD27=AO381),VLOOKUP(40,AN342:BC386,6,FALSE),IF(AND(AR2=1,AD27=AO382),VLOOKUP(41,AN342:BC386,6,FALSE),IF(AND(AR2=1,AD27=AO383),VLOOKUP(42,AN342:BC386,6,FALSE),IF(AND(AR2=1,AD27=AO384),VLOOKUP(43,AN342:BC386,6,FALSE),IF(AND(AR2=1,AD27=AO385),VLOOKUP(44,AN342:BC386,6,FALSE),IF(AND(AR2=1,AD27=AO386),VLOOKUP(45,AN342:BC386,6,FALSE)))))))))))))))))))))))))))))))))))))))))))))) -> FALSE | AT34: kg./m. | AU34: Unit Weight | AV34: =IF(AND(AR2=2,AD27=AO443),VLOOKUP(1,AN443:BH475,6,FALSE),IF(AND(AR2=2,AD27=AO444),VLOOKUP(2,AN443:BH475,6,FALSE),IF(AND(AR2=2,AD27=AO445),VLOOKUP(3,AN443:BH475,6,FALSE),IF(AND(AR2=2,AD27=AO446),VLOOKUP(4,AN443:BH475,6,FALSE),IF(AND(AR2=2,AD27=AO447),VLOOKUP(5,AN443:BH475,6,FALSE),IF(AND(AR2=2,AD27=AO448),VLOOKUP(6,AN443:BH474,6,FALSE),IF(AND(AR2=2,AD27=AO449),VLOOKUP(7,AN443:BH475,6,FALSE),IF(AND(AR2=2,AD27=AO450),VLOOKUP(8,AN443:BH475,6,FALSE),IF(AND(AR2=2,AD27=AO451),VLOOKUP(9,AN443:BH475,6,FALSE),IF(AND(AR2=2,AD27=AO452),VLOOKUP(10,AN443:BH475,6,FALSE),IF(AND(AR2=2,AD27=AO453),VLOOKUP(11,AN443:BH475,6,FALSE),IF(AND(AR2=2,AD27=AO454),VLOOKUP(12,AN443:BH475,6,FALSE),IF(AND(AR2=2,AD27=AO455),VLOOKUP(13,AN443:BH475,6,FALSE),IF(AND(AR2=2,AD27=AO456),VLOOKUP(14,AN443:BH475,6,FALSE),IF(AND(AR2=2,AD27=AO457),VLOOKUP(15,AN443:BH475,6,FALSE),IF(AND(AR2=2,AD27=AO458),VLOOKUP(16,AN443:BH475,6,FALSE),IF(AND(AR2=2,AD27=AO459),VLOOKUP(17,AN443:BH475,6,FALSE),IF(AND(AR2=2,AD27=AO460),VLOOKUP(18,AN443:BH475,6,FALSE),IF(AND(AR2=2,AD27=AO461),VLOOKUP(19,AN443:BH475,6,FALSE),IF(AND(AR2=2,AD27=AO462),VLOOKUP(20,AN443:BH475,6,FALSE),IF(AND(AR2=2,AD27=AO463),VLOOKUP(21,AN443:BH475,6,FALSE),IF(AND(AR2=2,AD27=AO464),VLOOKUP(22,AN443:BH475,6,FALSE),IF(AND(AR2=2,AD27=AO465),VLOOKUP(23,AN443:BH475,6,FALSE),IF(AND(AR2=2,AD27=AO466),VLOOKUP(24,AN443:BH475,6,FALSE),IF(AND(AR2=2,AD27=AO467),VLOOKUP(25,AN443:BH475,6,FALSE),IF(AND(AR2=2,AD27=AO468),VLOOKUP(26,AN443:BH475,6,FALSE),IF(AND(AR2=2,AD27=AO469),VLOOKUP(27,AN443:BH475,6,FALSE),IF(AND(AR2=2,AD27=AO470),VLOOKUP(28,AN443:BH475,6,FALSE),IF(AND(AR2=2,AD27=AO471),VLOOKUP(29,AN443:BH475,6,FALSE),IF(AND(AR2=2,AD27=AO472),VLOOKUP(30,AN443:BH475,6,FALSE),IF(AND(AR2=2,AD27=AO473),VLOOKUP(31,AN443:BH475,6,FALSE),IF(AND(AR2=2,AD27=AO474),VLOOKUP(32,AN443:BH475,6,FALSE),IF(AND(AR2=2,AD27=AO475),VLOOKUP(33,AN443:BH475,6,FALSE)))))))))))))))))))))))))))))))))) -> 1.12 | AW34: kg./m. | AX34: Unit Weight | AY34: =IF(AND(AR2=3,AD27=AO402),VLOOKUP(1,AN402:AZ427,6,FALSE),IF(AND(AR2=3,AD27=AO403),VLOOKUP(2,AN402:AZ427,6,FALSE),IF(AND(AR2=3,AD27=AO404),VLOOKUP(3,AN402:AZ427,6,FALSE),IF(AND(AR2=3,AD27=AO405),VLOOKUP(4,AN402:AZ427,6,FALSE),IF(AND(AR2=3,AD27=AO406),VLOOKUP(5,AN402:AZ427,6,FALSE),IF(AND(AR2=3,AD27=AO407),VLOOKUP(6,AN402:AZ427,6,FALSE),IF(AND(AR2=3,AD27=AO408),VLOOKUP(7,AN402:AZ427,6,FALSE),IF(AND(AR2=3,AD27=AO409),VLOOKUP(8,AN402:AZ427,6,FALSE),IF(AND(AR2=3,AD27=AO410),VLOOKUP(9,AN402:AZ427,6,FALSE),IF(AND(AR2=3,AD27=AO411),VLOOKUP(10,AN402:AZ427,6,FALSE),IF(AND(AR2=3,AD27=AO412),VLOOKUP(11,AN402:AZ427,6,FALSE),IF(AND(AR2=3,AD27=AO413),VLOOKUP(12,AN402:AZ427,6,FALSE),IF(AND(AR2=3,AD27=AO414),VLOOKUP(13,AN402:AZ427,6,FALSE),IF(AND(AR2=3,AD27=AO415),VLOOKUP(14,AN402:AZ427,6,FALSE),IF(AND(AR2=3,AD27=AO416),VLOOKUP(15,AN402:AZ427,6,FALSE),IF(AND(AR2=3,AD27=AO417),VLOOKUP(16,AN402:AZ427,6,FALSE),IF(AND(AR2=3,AD27=AO418),VLOOKUP(17,AN402:AZ427,6,FALSE),IF(AND(AR2=3,AD27=AO419),VLOOKUP(18,AN402:AZ427,6,FALSE),IF(AND(AR2=3,AD27=AO420),VLOOKUP(19,AN402:AZ427,6,FALSE),IF(AND(AR2=3,AD27=AO421),VLOOKUP(20,AN402:AZ427,6,FALSE),IF(AND(AR2=3,AD27=AO422),VLOOKUP(21,AN402:AZ427,6,FALSE),IF(AND(AR2=3,AD27=AO423),VLOOKUP(22,AN402:AZ427,6,FALSE),IF(AND(AR2=3,AD27=AO424),VLOOKUP(23,AN402:AZ427,6,FALSE),IF(AND(AR2=3,AD27=AO425),VLOOKUP(24,AN402:AZ427,6,FALSE),IF(AND(AR2=3,AD27=AO426),VLOOKUP(25,AN402:AZ427,6,FALSE),IF(AND(AR2=3,AD27=AO427),VLOOKUP(26,AN402:AZ427,6,FALSE))))))))))))))))))))))))))) -> FALSE | AZ34: kg./m. | BA34: Unit Weight | BB34: =IF(AND(AR2=4,AD27=AO157),VLOOKUP(1,AN157:BG202,8,FALSE),IF(AND(AR2=4,AD27=AO158),VLOOKUP(2,AN157:BG202,8,FALSE),IF(AND(AR2=4,AD27=AO159),VLOOKUP(3,AN157:BG202,8,FALSE),IF(AND(AR2=4,AD27=AO160),VLOOKUP(4,AN157:BG202,8,FALSE),IF(AND(AR2=4,AD27=AO161),VLOOKUP(5,AN157:BG202,8,FALSE),IF(AND(AR2=4,AD27=AO162),VLOOKUP(6,AN157:BG202,8,FALSE),IF(AND(AR2=4,AD27=AO163),VLOOKUP(7,AN157:BG202,8,FALSE),IF(AND(AR2=4,AD27=AO164),VLOOKUP(8,AN157:BG202,8,FALSE),IF(AND(AR2=4,AD27=AO165),VLOOKUP(9,AN157:BG202,8,FALSE),IF(AND(AR2=4,AD27=AO166),VLOOKUP(10,AN157:BG202,8,FALSE),IF(AND(AR2=4,AD27=AO167),VLOOKUP(11,AN157:BG202,8,FALSE),IF(AND(AR2=4,AD27=AO168),VLOOKUP(12,AN157:BG202,8,FALSE),IF(AND(AR2=4,AD27=AO169),VLOOKUP(13,AN157:BG202,8,FALSE),IF(AND(AR2=4,AD27=AO170),VLOOKUP(14,AN157:BG202,8,FALSE),IF(AND(AR2=4,AD27=AO171),VLOOKUP(15,AN157:BG202,8,FALSE),IF(AND(AR2=4,AD27=AO172),VLOOKUP(16,AN157:BG202,8,FALSE),IF(AND(AR2=4,AD27=AO173),VLOOKUP(17,AN157:BG202,8,FALSE),IF(AND(AR2=4,AD27=AO174),VLOOKUP(18,AN157:BG202,8,FALSE),IF(AND(AR2=4,AD27=AO175),VLOOKUP(19,AN157:BG202,8,FALSE),IF(AND(AR2=4,AD27=AO176),VLOOKUP(20,AN157:BG202,8,FALSE),IF(AND(AR2=4,AD27=AO177),VLOOKUP(21,AN157:BG202,8,FALSE),IF(AND(AR2=4,AD27=AO178),VLOOKUP(22,AN157:BG202,8,FALSE),IF(AND(AR2=4,AD27=AO179),VLOOKUP(23,AN157:BG202,8,FALSE),IF(AND(AR2=4,AD27=AO180),VLOOKUP(24,AN157:BG202,8,FALSE),IF(AND(AR2=4,AD27=AO181),VLOOKUP(25,AN157:BG202,8,FALSE),IF(AND(AR2=4,AD27=AO182),VLOOKUP(26,AN157:BG202,8,FALSE),IF(AND(AR2=4,AD27=AO183),VLOOKUP(27,AN157:BG202,8,FALSE),IF(AND(AR2=4,AD27=AO184),VLOOKUP(28,AN157:BG202,8,FALSE),IF(AND(AR2=4,AD27=AO185),VLOOKUP(29,AN157:BG202,8,FALSE),IF(AND(AR2=4,AD27=AO186),VLOOKUP(30,AN157:BG202,8,FALSE),IF(AND(AR2=4,AD27=AO187),VLOOKUP(31,AN157:BG202,8,FALSE),IF(AND(AR2=4,AD27=AO188),VLOOKUP(32,AN157:BG202,8,FALSE),IF(AND(AR2=4,AD27=AO189),VLOOKUP(33,AN157:BG202,8,FALSE),IF(AND(AR2=4,AD27=AO190),VLOOKUP(34,AN157:BG202,8,FALSE),IF(AND(AR2=4,AD27=AO191),VLOOKUP(35,AN157:BG202,8,FALSE),IF(AND(AR2=4,AD27=AO192),VLOOKUP(36,AN157:BG202,8,FALSE),IF(AND(AR2=4,AD27=AO193),VLOOKUP(37,AN157:BG202,8,FALSE),IF(AND(AR2=4,AD27=AO194),VLOOKUP(38,AN157:BG202,8,FALSE),IF(AND(AR2=4,AD27=AO195),VLOOKUP(39,AN157:BG202,8,FALSE),IF(AND(AR2=4,AD27=AO196),VLOOKUP(40,AN157:BG202,8,FALSE),IF(AND(AR2=4,AD27=AO197),VLOOKUP(41,AN157:BG202,8,FALSE),IF(AND(AR2=4,AD27=AO198),VLOOKUP(42,AN157:BG202,8,FALSE),IF(AND(AR2=4,AD27=AO199),VLOOKUP(43,AN157:BG202,8,FALSE),IF(AND(AR2=4,AD27=AO200),VLOOKUP(44,AN157:BG202,8,FALSE),IF(AND(AR2=4,AD27=AO201),VLOOKUP(45,AN157:BG202,8,FALSE),IF(AND(AR2=4,AD27=AO202),VLOOKUP(46,AN157:BG202,8,FALSE))))))))))))))))))))))))))))))))))))))))))))))) -> FALSE | BC34: kg./m. | BD34: Unit Weight | BE34: =IF(AND(AR2=5,AD27=AO126),VLOOKUP(1,AN126:BD141,9,FALSE),IF(AND(AR2=5,AD27=AO127),VLOOKUP(2,AN126:BD141,9,FALSE),IF(AND(AR2=5,AD27=AO128),VLOOKUP(3,AN126:BD141,9,FALSE),IF(AND(AR2=5,AD27=AO129),VLOOKUP(4,AN126:BD141,9,FALSE),IF(AND(AR2=5,AD27=AO130),VLOOKUP(5,AN126:BD141,9,FALSE),IF(AND(AR2=5,AD27=AO131),VLOOKUP(6,AN126:BD141,9,FALSE),IF(AND(AR2=5,AD27=AO132),VLOOKUP(7,AN126:BD141,9,FALSE),IF(AND(AR2=5,AD27=AO133),VLOOKUP(8,AN126:BD141,9,FALSE),IF(AND(AR2=5,AD27=AO134),VLOOKUP(9,AN126:BD141,9,FALSE),IF(AND(AR2=5,AD27=AO135),VLOOKUP(10,AN126:BD141,9,FALSE),IF(AND(AR2=5,AD27=AO136),VLOOKUP(11,AN126:BD141,9,FALSE),IF(AND(AR2=5,AD27=AO137),VLOOKUP(12,AN126:BD141,9,FALSE),IF(AND(AR2=5,AD27=AO138),VLOOKUP(13,AN126:BD141,9,FALSE),IF(AND(AR2=5,AD27=AO139),VLOOKUP(14,AN126:BD141,9,FALSE),IF(AND(AR2=5,AD27=AO140),VLOOKUP(15,AN126:BD141,9,FALSE),IF(AND(AR2=5,AD27=AO141),VLOOKUP(16,AN126:BD141,9,FALSE))))))))))))))))) -> FALSE | BF34: kg./m. | BG34: Unit Weight | BH34: =IF(AND(AR2=6,AD27=AO218),VLOOKUP(1,AN218:BQ290,4,FALSE),IF(AND(AR2=6,AD27=AO219),VLOOKUP(2,AN218:BQ290,4,FALSE),IF(AND(AR2=6,AD27=AO220),VLOOKUP(3,AN218:BQ290,4,FALSE),IF(AND(AR2=6,AD27=AO221),VLOOKUP(4,AN218:BQ290,4,FALSE),IF(AND(AR2=6,AD27=AO222),VLOOKUP(5,AN218:BQ290,4,FALSE),IF(AND(AR2=6,AD27=AO223),VLOOKUP(6,AN218:BQ290,4,FALSE),IF(AND(AR2=6,AD27=AO224),VLOOKUP(7,AN218:BQ290,4,FALSE),IF(AND(AR2=6,AD27=AO225),VLOOKUP(8,AN218:BQ290,4,FALSE),IF(AND(AR2=6,AD27=AO226),VLOOKUP(9,AN218:BQ290,4,FALSE),IF(AND(AR2=6,AD27=AO227),VLOOKUP(10,AN218:BQ290,4,FALSE),IF(AND(AR2=6,AD27=AO228),VLOOKUP(11,AN218:BQ290,4,FALSE),IF(AND(AR2=6,AD27=AO229),VLOOKUP(12,AN218:BQ290,4,FALSE),IF(AND(AR2=6,AD27=AO230),VLOOKUP(13,AN218:BQ290,4,FALSE),IF(AND(AR2=6,AD27=AO231),VLOOKUP(14,AN218:BQ290,4,FALSE),IF(AND(AR2=6,AD27=AO232),VLOOKUP(15,AN218:BQ290,4,FALSE),IF(AND(AR2=6,AD27=AO233),VLOOKUP(16,AN218:BQ290,4,FALSE),IF(AND(AR2=6,AD27=AO234),VLOOKUP(17,AN218:BQ290,4,FALSE),IF(AND(AR2=6,AD27=AO235),VLOOKUP(18,AN218:BQ290,4,FALSE),IF(AND(AR2=6,AD27=AO236),VLOOKUP(19,AN218:BQ290,4,FALSE),IF(AND(AR2=6,AD27=AO237),VLOOKUP(20,AN218:BQ290,4,FALSE),IF(AND(AR2=6,AD27=AO238),VLOOKUP(21,AN218:BQ290,4,FALSE),IF(AND(AR2=6,AD27=AO239),VLOOKUP(22,AN218:BQ290,4,FALSE),IF(AND(AR2=6,AD27=AO240),VLOOKUP(23,AN218:BQ290,4,FALSE),IF(AND(AR2=6,AD27=AO241),VLOOKUP(24,AN218:BQ290,4,FALSE),IF(AND(AR2=6,AD27=AO242),VLOOKUP(25,AN218:BQ290,4,FALSE),IF(AND(AR2=6,AD27=AO243),VLOOKUP(26,AN218:BQ290,4,FALSE),IF(AND(AR2=6,AD27=AO244),VLOOKUP(27,AN218:BQ290,4,FALSE),IF(AND(AR2=6,AD27=AO245),VLOOKUP(28,AN218:BQ290,4,FALSE),IF(AND(AR2=6,AD27=AO246),VLOOKUP(29,AN218:BQ290,4,FALSE),IF(AND(AR2=6,AD27=AO247),VLOOKUP(30,AN218:BQ290,4,FALSE),IF(AND(AR2=6,AD27=AO248),VLOOKUP(31,AN218:BQ290,4,FALSE),IF(AND(AR2=6,AD27=AO249),VLOOKUP(32,AN218:BQ290,4,FALSE),IF(AND(AR2=6,AD27=AO250),VLOOKUP(33,AN218:BQ290,4,FALSE),IF(AND(AR2=6,AD27=AO251),VLOOKUP(34,AN218:BQ290,4,FALSE),IF(AND(AR2=6,AD27=AO252),VLOOKUP(35,AN218:BQ290,4,FALSE),IF(AND(AR2=6,AD27=AO253),VLOOKUP(36,AN218:BQ290,4,FALSE),IF(AND(AR2=6,AD27=AO254),VLOOKUP(37,AN218:BQ290,4,FALSE),IF(AND(AR2=6,AD27=AO255),VLOOKUP(38,AN218:BQ290,4,FALSE),IF(AND(AR2=6,AD27=AO256),VLOOKUP(39,AN218:BQ290,4,FALSE),IF(AND(AR2=6,AD27=AO257),VLOOKUP(40,AN218:BQ290,4,FALSE),IF(AND(AR2=6,AD27=AO258),VLOOKUP(41,AN218:BQ290,4,FALSE),IF(AND(AR2=6,AD27=AO259),VLOOKUP(42,AN218:BQ290,4,FALSE),IF(AND(AR2=6,AD27=AO260),VLOOKUP(43,AN218:BQ290,4,FALSE),IF(AND(AR2=6,AD27=AO261),VLOOKUP(44,AN218:BQ290,4,FALSE),IF(AND(AR2=6,AD27=AO262),VLOOKUP(45,AN218:BQ290,4,FALSE),IF(AND(AR2=6,AD27=AO263),VLOOKUP(46,AN218:BQ290,4,FALSE),IF(AND(AR2=6,AD27=AO264),VLOOKUP(47,AN218:BQ290,4,FALSE),IF(AND(AR2=6,AD27=AO265),VLOOKUP(48,AN218:BQ290,4,FALSE),IF(AND(AR2=6,AD27=AO266),VLOOKUP(49,AN218:BQ290,4,FALSE),IF(AND(AR2=6,AD27=AO267),VLOOKUP(50,AN218:BQ290,4,FALSE),IF(AND(AR2=6,AD27=AO268),VLOOKUP(51,AN218:BQ290,4,FALSE),IF(AND(AR2=6,AD27=AO269),VLOOKUP(52,AN218:BQ290,4,FALSE),IF(AND(AR2=6,AD27=AO270),VLOOKUP(53,AN218:BQ290,4,FALSE),IF(AND(AR2=6,AD27=AO271),VLOOKUP(54,AN218:BQ290,4,FALSE),IF(AND(AR2=6,AD27=AO272),VLOOKUP(55,AN218:BQ290,4,FALSE),IF(AND(AR2=6,AD27=AO273),VLOOKUP(56,AN218:BQ290,4,FALSE),IF(AND(AR2=6,AD27=AO274),VLOOKUP(57,AN218:BQ290,4,FALSE),IF(AND(AR2=6,AD27=AO275),VLOOKUP(58,AN218:BQ290,4,FALSE),IF(AND(AR2=6,AD27=AO276),VLOOKUP(59,AN218:BQ290,4,FALSE),IF(AND(AR2=6,AD27=AO277),VLOOKUP(60,AN218:BQ290,4,FALSE),IF(AND(AR2=6,AD27=AO278),VLOOKUP(61,AN218:BQ290,4,FALSE),IF(AND(AR2=6,AD27=AO279),VLOOKUP(62,AN218:BQ290,4,FALSE),IF(AND(AR2=6,AD27=AO280),VLOOKUP(63,AN218:BQ290,4,FALSE),IF(AND(AR2=6,AD27=AO281),VLOOKUP(64,AN218:BQ290,4,FALSE))))))))))))))))))))))))))))))))))))))))))))))))))))))))))))))))) -> FALSE | BI34: kg./m. | BJ34: Unit Weight | BK34: =IF(AND(AR2=7,AD27=AO308),VLOOKUP(1,AN308:BB327,9,FALSE),IF(AND(AR2=7,AD27=AO309),VLOOKUP(2,AN308:BB327,9,FALSE),IF(AND(AR2=7,AD27=AO310),VLOOKUP(3,AN308:BB327,9,FALSE),IF(AND(AR2=7,AD27=AO311),VLOOKUP(4,AN308:BB327,9,FALSE),IF(AND(AR2=7,AD27=AO312),VLOOKUP(5,AN308:BB327,9,FALSE),IF(AND(AR2=7,AD27=AO313),VLOOKUP(6,AN308:BB327,9,FALSE),IF(AND(AR2=7,AD27=AO314),VLOOKUP(7,AN308:BB327,9,FALSE),IF(AND(AR2=7,AD27=AO315),VLOOKUP(8,AN308:BB327,9,FALSE),IF(AND(AR2=7,AD27=AO316),VLOOKUP(9,AN308:BB327,9,FALSE),IF(AND(AR2=7,AD27=AO317),VLOOKUP(10,AN308:BB327,9,FALSE),IF(AND(AR2=7,AD27=AO318),VLOOKUP(11,AN308:BB327,9,FALSE),IF(AND(AR2=7,AD27=AO319),VLOOKUP(12,AN308:BB327,9,FALSE),IF(AND(AR2=7,AD27=AO320),VLOOKUP(13,AN308:BB327,9,FALSE),IF(AND(AR2=7,AD27=AO321),VLOOKUP(14,AN308:BB327,9,FALSE),IF(AND(AR2=7,AD27=AO322),VLOOKUP(15,AN308:BB327,9,FALSE),IF(AND(AR2=7,AD27=AO323),VLOOKUP(16,AN308:BB327,9,FALSE),IF(AND(AR2=7,AD27=AO324),VLOOKUP(17,AN308:BB327,9,FALSE),IF(AND(AR2=7,AD27=AO325),VLOOKUP(18,AN308:BB327,9,FALSE),IF(AND(AR2=7,AD27=AO326),VLOOKUP(19,AN308:BB327,9,FALSE),IF(AND(AR2=7,AD27=AO327),VLOOKUP(20,AN308:BB327,9,FALSE))))))))))))))))))))) -> FALSE | BL34: kg./m. | BM34: Unit Weight | BN34: =IF(AND(AR2=8,AD27=AO1062),VLOOKUP(1,AN1062:BG1074,8,FALSE),IF(AND(AR2=8,AD27=AO1063),VLOOKUP(2,AN1062:BG1074,8,FALSE),IF(AND(AR2=8,AD27=AO1064),VLOOKUP(3,AN1062:BG1074,8,FALSE),IF(AND(AR2=8,AD27=AO1065),VLOOKUP(4,AN1062:BG1074,8,FALSE),IF(AND(AR2=8,AD27=AO1066),VLOOKUP(5,AN1062:BG1074,8,FALSE),IF(AND(AR2=8,AD27=AO1067),VLOOKUP(6,AN1062:BG1074,8,FALSE),IF(AND(AR2=8,AD27=AO1068),VLOOKUP(7,AN1062:BG1074,8,FALSE),IF(AND(AR2=8,AD27=AO1069),VLOOKUP(8,AN1062:BG1074,8,FALSE),IF(AND(AR2=8,AD27=AO1070),VLOOKUP(9,AN1062:BG1074,8,FALSE),IF(AND(AR2=8,AD27=AO1071),VLOOKUP(10,AN1062:BG1074,8,FALSE),IF(AND(AR2=8,AD27=AO1072),VLOOKUP(11,AN1062:BG1074,8,FALSE),IF(AND(AR2=8,AD27=AO1073),VLOOKUP(12,AN1062:BG1074,8,FALSE),IF(AND(AR2=8,AD27=AO1074),VLOOKUP(13,AN1062:BG1074,8,FALSE)))))))))))))) -> FALSE | BO34: kg./m.
Z35: Unit Weight | AD35: = | AE35: =IF(AND(AS34=FALSE,AV34=FALSE,AY34=FALSE,BB34=FALSE,BE34=FALSE,BH34=FALSE,BK34=FALSE,BN34=FALSE),0.0001,IF(AR2=1,AS34,IF(AR2=2,AV34,IF(AR2=3,AY34,IF(AR2=4,BB34,IF(AR2=5,BE34,IF(AR2=6,BH34,IF(AR2=7,BK34,IF(AR2=8,BN34))))))))) -> 1.12 | AI35: kg./m.
B36: Sagrod design
B37: My | F37: = | G37: =IF(AND(G25="Yes",AE37=1),G28*((AE24/2)^2)/9,IF(AND(G25="Yes",AE37=2),G28*((AE24/3)^2)/9,IF(AND(G25="Yes",AE37=3),G28*((AE24/4)^2)/9,IF(AND(G25="Yes",AE37=4),G28*((AE24/5)^2)/9,IF(G25="No","*******"))))) -> ******* | K37: kg./m. | N37: Sy | R37: = | S37: =IF(AND(G25="Yes",AE37=1),AE31/2,IF(AND(G25="Yes",AE37=2),AE31/3,IF(AND(G25="Yes",AE37=3),AE31/4,IF(AND(G25="Yes",AE37=4),AE31/5,IF(G25="No","*******"))))) -> ******* | W37: cm.3 | Z37: Use sagrod | AD37: = | AE37: 1 | AH37: Row
B38: fb | F38: = | G38: =IF(G25="No","*******",((S27*100)/AE30)+((G37*100)/S37)) -> ******* | K38: kg./cm.2 | M38: =IF(G25="No","",IF(G38<=S38,"≤",">")) ->  | N38: Fb | R38: = | S38: =IF(G25="No","*******",0.6*G23) -> ******* | W38: kg./cm.2 | Y38: =IF(G25="No","",IF(G38<=S38,"","Fail")) ->  | Z38: Required (As) | AD38: = | AE38: =IF(G25="No","*******",AS17/S39) -> ******* | AH38: cm.2
B39: Fy | F39: = | G39: 2400 | K39: kg./cm.2 | N39: Ft | R39: = | S39: =IF(G25="No","*******",0.6*G39) -> ******* | W39: kg./cm.2 | AC39: As | AD39: = | AE39: =IF(AND(G25="Yes",AV2=1),VLOOKUP(1,AY74:BD91,5,FALSE),IF(AND(G25="Yes",AV2=2),VLOOKUP(2,AY74:BD91,5,FALSE),IF(AND(G25="Yes",AV2=3),VLOOKUP(3,AY74:BD91,5,FALSE),IF(AND(G25="Yes",AV2=4),VLOOKUP(4,AY74:BD91,5,FALSE),IF(AND(G25="Yes",AV2=5),VLOOKUP(5,AY74:BD91,5,FALSE),IF(AND(G25="Yes",AV2=6),VLOOKUP(6,AY74:BD91,5,FALSE),IF(AND(G25="Yes",AV2=7),VLOOKUP(7,AY74:BD91,5,FALSE),IF(AND(G25="Yes",AV2=8),VLOOKUP(8,AY74:BD91,5,FALSE),IF(AND(G25="Yes",AV2=9),VLOOKUP(9,AY74:BD91,5,FALSE),IF(AND(G25="Yes",AV2=10),VLOOKUP(10,AY74:BD91,5,FALSE),IF(AND(G25="Yes",AV2=11),VLOOKUP(11,AY74:BD91,5,FALSE),IF(AND(G25="Yes",AV2=12),VLOOKUP(12,AY74:BD91,5,FALSE),IF(AND(G25="Yes",AV2=13),VLOOKUP(13,AY74:BD91,5,FALSE),IF(AND(G25="Yes",AV2=14),VLOOKUP(14,AY74:BD91,5,FALSE),IF(AND(G25="Yes",AV2=15),VLOOKUP(15,AY74:BD91,5,FALSE),IF(AND(G25="Yes",AV2=16),VLOOKUP(16,AY74:BD91,5,FALSE),IF(AND(G25="Yes",AV2=17),VLOOKUP(17,AY74:BD91,5,FALSE),IF(AND(G25="Yes",AV2=18),VLOOKUP(18,AY74:BD91,5,FALSE),IF(G25="No","*******"))))))))))))))))))) -> ******* | AH39: cm.2 | AJ39: =IF(G25="No","",IF(AND(G25="Yes",AE38<=AE39),"",IF(AND(G25="Yes",AE38>AE39),"Fail"))) -> 
B40: Check Slender Ratio | N40: r | O40: = | P40: =IF(G25="No","*******",AE23*100/300) -> ******* | S40: cm. | T40: Dc | U40: = | V40: =IF(G25="No","*******",4*P40) -> ******* | Y40: cm. | Z40: =IF(G25="No","*******",IF(V40<=AE40,"≤",">")) -> ******* | AC40: Da | AD40: = | AE40: =IF(AND(G25="Yes",AV2=1),VLOOKUP(1,AY74:BD91,6,FALSE),IF(AND(G25="Yes",AV2=2),VLOOKUP(2,AY74:BD91,6,FALSE),IF(AND(G25="Yes",AV2=3),VLOOKUP(3,AY74:BD91,6,FALSE),IF(AND(G25="Yes",AV2=4),VLOOKUP(4,AY74:BD91,6,FALSE),IF(AND(G25="Yes",AV2=5),VLOOKUP(5,AY74:BD91,6,FALSE),IF(AND(G25="Yes",AV2=6),VLOOKUP(6,AY74:BD91,6,FALSE),IF(AND(G25="Yes",AV2=7),VLOOKUP(7,AY74:BD91,6,FALSE),IF(AND(G25="Yes",AV2=8),VLOOKUP(8,AY74:BD91,6,FALSE),IF(AND(G25="Yes",AV2=9),VLOOKUP(9,AY74:BD91,6,FALSE),IF(AND(G25="Yes",AV2=10),VLOOKUP(10,AY74:BD91,6,FALSE),IF(AND(G25="Yes",AV2=11),VLOOKUP(11,AY74:BD91,6,FALSE),IF(AND(G25="Yes",AV2=12),VLOOKUP(12,AY74:BD91,6,FALSE),IF(AND(G25="Yes",AV2=13),VLOOKUP(13,AY74:BD91,6,FALSE),IF(AND(G25="Yes",AV2=14),VLOOKUP(14,AY74:BD91,6,FALSE),IF(AND(G25="Yes",AV2=15),VLOOKUP(15,AY74:BD91,6,FALSE),IF(AND(G25="Yes",AV2=16),VLOOKUP(16,AY74:BD91,6,FALSE),IF(AND(G25="Yes",AV2=17),VLOOKUP(17,AY74:BD91,6,FALSE),IF(AND(G25="Yes",AV2=18),VLOOKUP(18,AY74:BD91,6,FALSE),IF(G25="No","*******"))))))))))))))))))) -> ******* | AH40: cm. | AJ40: =IF(G25="No","",IF(AND(G25="Yes",V40<=AE40),"",IF(AND(G25="Yes",V40>AE40),"Fail"))) -> 
B41: Results => | I41: =AQ18&" "&AD27&" mm." -> Use : Square Tube 25x25x1.6 mm. | X41: Weight | Z41: =AE35 -> 1.12 | AC41: kg./m. | AE41: =IF(OR(Y30="Fail",Y32="Fail"),"Try again !",IF(OR(Y31="Fail",Y38="Fail"),"Required Sagrod !","Complete !!")) -> Complete !!
I42: =IF(G25="Yes","Use : Sagrod "&AK42&" "&AE37&" Row",IF(G25="No","Not used Sagrod")) -> Not used Sagrod | T42: Max.Reaction | Y42: = | Z42: =((AE25*AE24/2)/AE23)*2 -> 98.29411765 | AC42: kg./m. | AK42: =IF(AV2=1,"RB 6",IF(AV2=2,"RB 9",IF(AV2=3,"RB 12",IF(AV2=4,"RB 15",IF(AV2=5,"RB 19",IF(AV2=6,"RB 25",IF(AV2=7,"RB 28",IF(AV2=8,"RB 34",IF(AV2=9,"DB 10",IF(AV2=10,"DB 12",IF(AV2=11,"DB 16",IF(AV2=12,"DB 20",IF(AV2=13,"DB 22",IF(AV2=14,"DB 25",IF(AV2=15,"DB 28",IF(AV2=16,"DB 32",IF(AV2=17,"DB 34",IF(AV2=18,"DB 40")))))))))))))))))) -> RB 15
AR64: Carbon Steel Pipe | AT64: (For General Structural Purposes)
AR66: Dimension Tolerance
AR68: Side Length
AR69: : O. D< 50 mm. ± 1.5 mm. Thickness : Under 3 mm. ± 0.3 mm.
AR70: : O. D > 50 mm. ± 1.5 % Thickness : 3 mm. or over, ± 10%
AR71: : ± 10% Lenght : +50 mm., -0 mm.
AP73: Nominal dimention | AQ73: Outside Diameter | AR73: Thickness | AS73: Calculate Weight | AT73: Cross Sectional Area | AU73: Geometrical Moment of Inertia | AV73: Modulus of Section | AW73: Radius of Gyration | AZ73: Name | BA73: Diameter (mm.) | BB73: Weight (kg/m.) | BC73: Cross Section Area (sq.cm.) | BD73: Circumference (cm.)
AP74: DN | AQ74: D | AR74: T | AS74: W | AT74: A | AU74: I | AV74: Z | AW74: I | AY74: 1 | AZ74: RB 6 | BA74: 6 | BB74: 0.222 | BC74: 0.283 | BD74: 1.88
AP75: in. | AQ75: mm. | AR75: mm. | AS75: kg./m. | AT75: cm2 | AU75: cm4 | AV75: cm3 | AW75: cm. | AY75: 2 | AZ75: RB 9 | BA75: 9 | BB75: 0.499 | BC75: 0.636 | BD75: 2.82
AN76: 1 | AO76: 21.7x2.0 | AP76: 1/2 (15) | AQ76: 21.7 | AR76: 2 | AS76: 0.97 | AT76: 1.24 | AU76: 0.61 | AV76: 0.56 | AW76: 0.7 | AY76: 3 | AZ76: RB 12 | BA76: 12 | BB76: 0.888 | BC76: 1.131 | BD76: 3.77
AN77: 2 | AO77: 27.2x2.0 | AP77: 3/4 (20) | AQ77: 27.2 | AR77: 2 | AS77: 1.24 | AT77: 1.58 | AU77: 1.26 | AV77: 0.93 | AW77: 0.89 | AY77: 4 | AZ77: RB 15 | BA77: 15 | BB77: 1.387 | BC77: 1.767 | BD77: 4.71
AN78: 3 | AO78: 27.2x2.3 | AR78: 2.3 | AS78: 1.41 | AT78: 1.8 | AU78: 1.41 | AV78: 1.03 | AW78: 0.88 | AY78: 5 | AZ78: RB 19 | BA78: 19 | BB78: 2.226 | BC78: 2.835 | BD78: 5.96
AN79: 4 | AO79: 34.0x2.3 | AP79: 1 (25) | AQ79: 34 | AR79: 2.3 | AS79: 1.8 | AT79: 2.29 | AU79: 2.89 | AV79: 1.7 | AW79: 1.12 | AY79: 6 | AZ79: RB 25 | BA79: 25 | BB79: 3.853 | BC79: 4.909 | BD79: 7.85
AN80: 5 | AO80: 42.7x2.3 | AP80: 1 1/4 (32) | AQ80: 42.7 | AR80: 2.3 | AS80: 2.29 | AT80: 2.92 | AU80: 5.97 | AV80: 2.8 | AW80: 1.43 | AY80: 7 | AZ80: RB 28 | BA80: 28 | BB80: 4.834 | BC80: 6.158 | BD80: 8.79
AN81: 6 | AO81: 42.7x2.5 | AR81: 2.5 | AS81: 2.48 | AT81: 3.16 | AU81: 6.4 | AV81: 3 | AW81: 1.42 | AY81: 8 | AZ81: RB 34 | BA81: 34 | BB81: 7.127 | BC81: 9.079 | BD81: 10.68
AN82: 7 | AO82: 48.6x2.3 | AP82: 1 1/2 (40) | AQ82: 48.6 | AR82: 2.3 | AS82: 2.63 | AT82: 3.35 | AU82: 8.99 | AV82: 3.7 | AW82: 1.64 | AY82: 9 | AZ82: DB 10 | BA82: 10 | BB82: 0.616 | BC82: 0.785 | BD82: 3.14
AN83: 8 | AO83: 48.6x2.5 | AR83: 2.5 | AS83: 2.84 | AT83: 3.62 | AU83: 9.65 | AV83: 3.97 | AW83: 1.63 | AY83: 10 | AZ83: DB 12 | BA83: 12 | BB83: 0.888 | BC83: 1.131 | BD83: 3.77
AN84: 9 | AO84: 48.6x2.8 | AR84: 2.8 | AS84: 3.16 | AT84: 4.03 | AU84: 10.6 | AV84: 4.36 | AW84: 1.62 | AY84: 11 | AZ84: DB 16 | BA84: 16 | BB84: 1.578 | BC84: 2.01 | BD84: 5.03
AN85: 10 | AO85: 48.6x3.2 | AR85: 3.2 | AS85: 3.58 | AT85: 4.56 | AU85: 11.8 | AV85: 4.86 | AW85: 1.61 | AY85: 12 | AZ85: DB 20 | BA85: 20 | BB85: 2.466 | BC85: 3.146 | BD85: 6.29
AN86: 11 | AO86: 60.5x2.3 | AP86: 2(50) | AQ86: 60.5 | AR86: 2.3 | AS86: 3.3 | AT86: 4.21 | AU86: 17.8 | AV86: 5.9 | AW86: 2.06 | AY86: 13 | AZ86: DB 22 | BA86: 22 | BB86: 2.984 | BC86: 3.801 | BD86: 6.91
AN87: 12 | AO87: 60.5x3.2 | AR87: 3.2 | AS87: 4.52 | AT87: 5.76 | AU87: 23.7 | AV87: 7.84 | AW87: 2.03 | AY87: 14 | AZ87: DB 25 | BA87: 25 | BB87: 3.853 | BC87: 4.908 | BD87: 7.86
AN88: 13 | AO88: 60.5x4.0 | AR88: 4 | AS88: 5.57 | AT88: 7.1 | AU88: 28.5 | AV88: 9.41 | AW88: 2 | AY88: 15 | AZ88: DB 28 | BA88: 28 | BB88: 4.834 | BC88: 6.157 | BD88: 8.8
AN89: 14 | AO89: 76.3x2.8 | AP89: 2 1/2 (65) | AQ89: 76.3 | AR89: 2.8 | AS89: 5.08 | AT89: 6.47 | AU89: 43.7 | AV89: 11.5 | AW89: 2.6 | AY89: 16 | AZ89: DB 32 | BA89: 32 | BB89: 6.313 | BC89: 8.042 | BD89: 10.06
AN90: 15 | AO90: 76.3x3.2 | AR90: 3.2 | AS90: 5.77 | AT90: 7.35 | AU90: 49.2 | AV90: 12.9 | AW90: 2.59 | AY90: 17 | AZ90: DB 36 | BA90: 36 | BB90: 7.99 | BC90: 10.178 | BD90: 11.31
AN91: 16 | AO91: 76.3x4.0 | AR91: 4 | AS91: 7.13 | AT91: 9.09 | AU91: 59.5 | AV91: 15.6 | AW91: 2.58 | AY91: 18 | AZ91: DB 40 | BA91: 40 | BB91: 9.865 | BC91: 12.566 | BD91: 12.6
AN92: 17 | AO92: 89.1x2.8 | AP92: 3 (80) | AQ92: 89.1 | AR92: 2.8 | AS92: 5.96 | AT92: 7.59 | AU92: 70.7 | AV92: 15.9 | AW92: 3.05
AN93: 18 | AO93: 89.1x3.2 | AR93: 3.2 | AS93: 6.78 | AT93: 8.64 | AU93: 79.8 | AV93: 17.9 | AW93: 3.04
AN94: 19 | AO94: 101.6x3.2 | AP94: 3 1/2 (90) | AQ94: 101.6 | AR94: 3.2 | AS94: 7.76 | AT94: 9.89 | AU94: 120 | AV94: 23.6 | AW94: 3.48
AN95: 20 | AO95: 101.6x4.0 | AR95: 4 | AS95: 9.63 | AT95: 12.26 | AU95: 146 | AV95: 28.8 | AW95: 3.45
AN96: 21 | AO96: 114.3x3.2 | AP96: 4 (100) | AQ96: 114.3 | AR96: 3.2 | AS96: 8.77 | AT96: 11.17 | AU96: 172 | AV96: 30.2 | AW96: 3.93
AN97: 22 | AO97: 114.3x3.5 | AR97: 3.5 | AS97: 9.58 | AT97: 12.18 | AU97: 187 | AV97: 32.7 | AW97: 3.92
AN98: 23 | AO98: 114.3x4.5 | AR98: 4.5 | AS98: 12.2 | AT98: 15.52 | AU98: 234 | AV98: 41 | AW98: 3.89
AN99: 24 | AO99: 139.8x3.6 | AP99: 5 (125) | AQ99: 139.8 | AR99: 3.6 | AS99: 12.1 | AT99: 15.4 | AU99: 357 | AV99: 51.1 | AW99: 4.82
AN100: 25 | AO100: 139.8x4.0 | AR100: 4 | AS100: 13.4 | AT100: 17.07 | AU100: 394 | AV100: 56.3 | AW100: 4.8
AN101: 26 | AO101: 139.8x4.5 | AR101: 4.5 | AS101: 15 | AT101: 19.13 | AU101: 438 | AV101: 62.7 | AW101: 4.79
AN102: 27 | AO102: 139.8x6.0 | AR102: 6 | AS102: 19.8 | AT102: 25.22 | AU102: 566 | AV102: 80.2 | AW102: 4.74
AN103: 28 | AO103: 165.2x4.5 | AP103: 6 (150) | AQ103: 165.2 | AR103: 4.5 | AS103: 17.8 | AT103: 22.72 | AU103: 734 | AV103: 88.9 | AW103: 5.68
AN104: 29 | AO104: 165.2x5.0 | AR104: 5 | AS104: 19.8 | AT104: 25.16 | AU104: 808 | AV104: 97.8 | AW104: 5.67
AN105: 30 | AO105: 165.2x6.0 | AR105: 6 | AS105: 23.6 | AT105: 30.01 | AU105: 952 | AV105: 115 | AW105: 5.63
AN106: 31 | AO106: 165.2x7.1 | AR106: 7.1 | AS106: 27.7 | AT106: 35.26 | AU106: 1100 | AV106: 134 | AW106: 5.6
AN107: 32 | AO107: 216.3x4.5 | AP107: 8 (200) | AQ107: 216.3 | AR107: 4.5 | AS107: 23.5 | AT107: 29.94 | AU107: 1680 | AV107: 155 | AW107: 7.49
AN108: 33 | AO108: 216.3x5.8 | AR108: 5.8 | AS108: 30.1 | AT108: 38.36 | AU108: 2130 | AV108: 197 | AW108: 7.45
AN109: 34 | AO109: 216.3x7.0 | AR109: 7 | AS109: 36.1 | AT109: 46.03 | AU109: 2520 | AV109: 233 | AW109: 7.4
AN110: 35 | AO110: 216.3x8.2 | AR110: 8.2 | AS110: 42.1 | AT110: 53.61 | AU110: 2910 | AV110: 269 | AW110: 7.36
AT114: Channels
AT116: TIS / JIS STANDARDS
AT118: ( TIS 1227 : 1996 / JIS G3192 : 1990)
AT120: Size & Properties
AP123: Standard Sectional Dimension (mm.) | AU123: Sectional Area (cm2) | AV123: Weight (kg/m.) | AW123: Reference
AP124: H x B | AQ124: t1 | AR124: t2 | AS124: r1 | AT124: r2 | AW124: Position of Center of Gravity (cm.) | AY124: Moment of Inertia (cm4) | BA124: Raidus of Gyration (cm.) | BC124: Modulus of Section (cm3)
AW125: Cx | AX125: Cy | AY125: lx | AZ125: ly | BA125: ix | BB125: iy | BC125: Zx | BD125: Zy
AN126: 1 | AO126: =AP126&"x"&AQ126&"x"&AR126 -> 75x40x5x7 | AP126: 75x40 | AQ126: 5 | AR126: 7 | AS126: 8 | AT126: 4 | AU126: 8.818 | AV126: 6.92 | AW126: 0 | AX126: 1.28 | AY126: 75.3 | AZ126: 12.2 | BA126: 2.92 | BB126: 1.17 | BC126: 20.1 | BD126: 4.47
AN127: 2 | AO127: =AP127&"x"&AQ127&"x"&AR127 -> 100x50x5x7.5 | AP127: 100x50 | AQ127: 5 | AR127: 7.5 | AS127: 8 | AT127: 4 | AU127: 11.92 | AV127: 9.36 | AW127: 0 | AX127: 1.54 | AY127: 188 | AZ127: 26 | BA127: 3.97 | BB127: 1.48 | BC127: 37.6 | BD127: 7.52
AN128: 3 | AO128: 125x65x6x8 | AP128: 125x65 | AQ128: 6 | AR128: 8 | AS128: 8 | AT128: 4 | AU128: 17.11 | AV128: 13.4 | AW128: 0 | AX128: 1.9 | AY128: 424 | AZ128: 61.8 | BA128: 4.98 | BB128: 1.9 | BC128: 67.8 | BD128: 13.4
AN129: 4 | AO129: 150x75x6.5x10 | AP129: 150x75 | AQ129: 6.5 | AR129: 10 | AS129: 10 | AT129: 5 | AU129: 23.71 | AV129: 18.6 | AW129: 0 | AX129: 2.28 | AY129: 861 | AZ129: 117 | BA129: 6.03 | BB129: 2.22 | BC129: 115 | BD129: 22.4
AN130: 5 | AO130: 150x75x9x12.5 | AP130: 150x75 | AQ130: 9 | AR130: 12.5 | AS130: 15 | AT130: 7.5 | AU130: 30.59 | AV130: 24 | AW130: 0 | AX130: 2.31 | AY130: 1050 | AZ130: 147 | BA130: 5.86 | BB130: 2.19 | BC130: 140 | BD130: 28.3
AN131: 6 | AO131: 180x75x7x10.5 | AP131: 180x75 | AQ131: 7 | AR131: 10.5 | AS131: 11 | AT131: 5.5 | AU131: 27.2 | AV131: 21.4 | AW131: 0 | AX131: 2.13 | AY131: 1380 | AZ131: 131 | BA131: 7.12 | BB131: 2.19 | BC131: 15.3 | BD131: 24.3
AN132: 7 | AO132: 200x80x7.5x11 | AP132: 200x80 | AQ132: 7.5 | AR132: 11 | AS132: 12 | AT132: 6 | AU132: 31.33 | AV132: 24.6 | AW132: 0 | AX132: 2.21 | AY132: 1950 | AZ132: 168 | BA132: 7.88 | BB132: 2.32 | BC132: 195 | BD132: 29.1
AN133: 8 | AO133: 200x90x8x13.5 | AP133: 200x90 | AQ133: 8 | AR133: 13.5 | AS133: 14 | AT133: 7 | AU133: 38.65 | AV133: 30.3 | AW133: 0 | AX133: 2.74 | AY133: 2490 | AZ133: 277 | BA133: 8.02 | BB133: 2.68 | BC133: 249 | BD133: 44.2
AN134: 9 | AO134: 250x90x9x13 | AP134: 250x90 | AQ134: 9 | AR134: 13 | AS134: 14 | AT134: 7 | AU134: 44.07 | AV134: 34.6 | AW134: 0 | AX134: 2.4 | AY134: 4180 | AZ134: 294 | BA134: 9.74 | BB134: 2.58 | BC134: 334 | BD134: 44.5
AN135: 10 | AO135: 250x90x11x14.5 | AP135: 250x90 | AQ135: 11 | AR135: 14.5 | AS135: 17 | AT135: 8.5 | AU135: 51.17 | AV135: 40.2 | AW135: 0 | AX135: 2.4 | AY135: 4680 | AZ135: 329 | BA135: 9.56 | BB135: 2.54 | BC135: 374 | BD135: 49.9
AN136: 11 | AO136: 300x90x9x13 | AP136: 300x90 | AQ136: 9 | AR136: 13 | AS136: 14 | AT136: 7 | AU136: 48.57 | AV136: 38.1 | AW136: 0 | AX136: 2.22 | AY136: 6440 | AZ136: 309 | BA136: 11.5 | BB136: 2.52 | BC136: 429 | BD136: 45.7
AN137: 12 | AO137: =AP137&"x"&AQ137&"x"&AR137 -> 300x90x10x15.5 | AP137: 300x90 | AQ137: 10 | AR137: 15.5 | AS137: 19 | AT137: 9.5 | AU137: 55.74 | AV137: 43.8 | AW137: 0 | AX137: 2.34 | AY137: 7410 | AZ137: 360 | BA137: 11.5 | BB137: 2.54 | BC137: 494 | BD137: 54.1
AN138: 13 | AO138: 300x90x12x16 | AP138: 300x90 | AQ138: 12 | AR138: 16 | AS138: 19 | AT138: 9.5 | AU138: 61.9 | AV138: 48.6 | AW138: 0 | AX138: 2.28 | AY138: 7870 | AZ138: 379 | BA138: 11.3 | BB138: 2.48 | BC138: 525 | BD138: 56.4
AN139: 14 | AO139: 380x100x10.5x16 | AP139: 380x100 | AQ139: 10.5 | AR139: 16 | AS139: 18 | AT139: 9 | AU139: 63.39 | AV139: 54.5 | AW139: 0 | AX139: 2.41 | AY139: 14500 | AZ139: 535 | BA139: 14.5 | BB139: 2.78 | BC139: 763 | BD139: 70.5
AN140: 15 | AO140: 380x100x13x16.5 | AP140: 380x100 | AQ140: 13 | AR140: 16.5 | AS140: 18 | AT140: 9 | AU140: 78.96 | AV140: 62 | AW140: 0 | AX140: 2.33 | AY140: 15600 | AZ140: 565 | BA140: 14.1 | BB140: 2.67 | BC140: 823 | BD140: 73.6
AN141: 16 | AO141: =AP141&"x"&AQ141&"x"&AR141 -> 380x100x13x20 | AP141: 380x100 | AQ141: 13 | AR141: 20 | AS141: 24 | AT141: 12 | AU141: 85.71 | AV141: 67.3 | AW141: 0 | AX141: 2.54 | AY141: 17600 | AZ141: 655 | BA141: 14.3 | BB141: 2.76 | BC141: 926 | BD141: 87.8
AT145: Equal Angles
AT147: TIS / JIS STANDARDS
AT149: (TIS 1227 : 1996 / JIS G3192 : 1990)
AT151: Size & Properties
AP154: Standard Sectional Dimesion mm. | AT154: Sectional Area cm2 | AU154: Unit Weight kg/m | AV154: Reference
AV155: Position of Center of Gravity cm. | AX155: Geometrical Moment of Ineryia cm4 | BB155: Raidus of Gyration of Area cm. | BF155: Modulus of Section cm3
AP156: AxB | AQ156: t | AR156: r1 | AS156: r2 | AV156: Cx | AW156: Cy | AX156: Ix | AY156: Iy | AZ156: Max ix | BA156: Min iy | BB156: ix | BC156: iy | BD156: Max ix | BE156: Max iy | BF156: Zx | BG156: Zy
AN157: 1 | AO157: =AP157&"x"&AQ157 -> 25x25x3 | AP157: 25x25 | AQ157: 3 | AR157: 4 | AS157: 2 | AT157: 1.427 | AU157: 1.12 | AV157: 0.719 | AW157: 0.719 | AX157: 0.797 | AY157: 0.797 | AZ157: 1.26 | BA157: 0.332 | BB157: 0.747 | BC157: 0.747 | BD157: 0.94 | BE157: 0.483 | BF157: 0.448 | BG157: 0.448
AN158: 2 | AO158: =AP158&"x"&AQ158 -> 25x25x5 | AP158: 25x25 | AQ158: 5 | AR158: 3.5 | AS158: 2.4 | AT158: 2.26 | AU158: 1.77 | AV158: 0.8 | AW158: 0.8 | AX158: 1.2 | AY158: 1.2 | AZ158: 1.89 | BA158: 0.52 | BB158: 0.73 | BC158: 0.73 | BD158: 0.91 | BE158: 0.48 | BF158: 0.71 | BG158: 0.71
AN159: 3 | AO159: 30x30x3 | AP159: 30x30 | AQ159: 3 | AR159: 4 | AS159: 2 | AT159: 1.727 | AU159: 1.36 | AV159: 0.844 | AW159: 0.844 | AX159: 1.42 | AY159: 1.42 | AZ159: 2.26 | BA159: 0.59 | BB159: 0.908 | BC159: 0.908 | BD159: 1.14 | BE159: 0.585 | BF159: 0.661 | BG159: 0.661
AN160: 4 | AO160: 30x30x5 | AP160: 30x30 | AQ160: 5 | AR160: 5 | AS160: 2.4 | AT160: 2.78 | AU160: 2.18 | AV160: 0.92 | AW160: 0.92 | AX160: 2.16 | AY160: 2.16 | AZ160: 3.41 | BA160: 0.92 | BB160: 0.88 | BC160: 0.88 | BD160: 1.11 | BE160: 0.57 | BF160: 1.04 | BG160: 1.04
AN161: 5 | AO161: 40x40x3 | AP161: 40x40 | AQ161: 3 | AR161: 4.5 | AS161: 2 | AT161: 2.336 | AU161: 1.83 | AV161: 1.09 | AW161: 1.09 | AX161: 3.53 | AY161: 3.53 | AZ161: 5.6 | BA161: 1.46 | BB161: 1.23 | BC161: 1.23 | BD161: 1.55 | BE161: 0.79 | BF161: 1.21 | BG161: 1.21
AN162: 6 | AO162: 40x40x5 | AP162: 40x40 | AQ162: 5 | AR162: 4.5 | AS162: 3 | AT162: 3.755 | AU162: 2.95 | AV162: 1.17 | AW162: 1.17 | AX162: 5.42 | AY162: 5.42 | AZ162: 8.59 | BA162: 2.25 | BB162: 1.2 | BC162: 1.2 | BD162: 1.51 | BE162: 0.774 | BF162: 1.91 | BG162: 1.91
AN163: 7 | AO163: 40x40x6 | AP163: 40x40 | AQ163: 6 | AR163: 6 | AS163: 2.4 | AT163: 4.48 | AU163: 3.52 | AV163: 1.2 | AW163: 1.2 | AX163: 6.31 | AY163: 6.31 | AZ163: 9.98 | BA163: 2.65 | BB163: 1.19 | BC163: 1.19 | BD163: 1.49 | BE163: 0.77 | BF163: 2.26 | BG163: 2.26
AN164: 8 | AO164: 45x45x4 | AP164: 45x45 | AQ164: 4 | AR164: 6.5 | AS164: 3 | AT164: 3.492 | AU164: 2.74 | AV164: 1.24 | AW164: 1.24 | AX164: 6.5 | AY164: 6.5 | AZ164: 10.3 | BA164: 2.7 | BB164: 1.36 | BC164: 1.36 | BD164: 1.72 | BE164: 0.88 | BF164: 2 | BG164: 2
AN165: 9 | AO165: 45x45x5 | AP165: 45x45 | AQ165: 5 | AR165: 6.5 | AS165: 3 | AT165: 4.302 | AU165: 3.38 | AV165: 1.28 | AW165: 1.28 | AX165: 7.91 | AY165: 7.91 | AZ165: 12.5 | BA165: 3.29 | BB165: 1.36 | BC165: 1.36 | BD165: 1.71 | BE165: 0.874 | BF165: 2.46 | BG165: 2.46
AN166: 10 | AO166: 50x50x3 | AP166: 50x50 | AQ166: 3 | AR166: 7 | AS166: 2.4 | AT166: 2.96 | AU166: 2.33 | AV166: 1.31 | AW166: 1.31 | AX166: 6.86 | AY166: 6.86 | AZ166: 10.8 | BA166: 2.88 | BB166: 1.52 | BC166: 1.52 | BD166: 1.91 | BE166: 0.99 | BF166: 1.86 | BG166: 1.86
AN167: 11 | AO167: 50x50x4 | AP167: 50x50 | AQ167: 4 | AR167: 6.5 | AS167: 3 | AT167: 3.892 | AU167: 3.06 | AV167: 1.37 | AW167: 1.37 | AX167: 9.06 | AY167: 9.06 | AZ167: 14.4 | BA167: 3.76 | BB167: 1.53 | BC167: 1.53 | BD167: 1.92 | BE167: 0.983 | BF167: 2.49 | BG167: 2.49
AN168: 12 | AO168: 50x50x5 | AP168: 50x50 | AQ168: 5 | AR168: 6.5 | AS168: 3 | AT168: 4.802 | AU168: 3.77 | AV168: 1.41 | AW168: 1.41 | AX168: 11.1 | AY168: 11.1 | AZ168: 17.5 | BA168: 4.58 | BB168: 1.52 | BC168: 1.52 | BD168: 1.91 | BE168: 0.976 | BF168: 3.08 | BG168: 3.08
AN169: 13 | AO169: 50x50x6 | AP169: 50x50 | AQ169: 6 | AR169: 6.5 | AS169: 4.5 | AT169: 5.644 | AU169: 4.43 | AV169: 1.44 | AW169: 1.44 | AX169: 12.6 | AY169: 12.6 | AZ169: 20 | BA169: 5.23 | BB169: 1.5 | BC169: 1.5 | BD169: 1.88 | BE169: 0.963 | BF169: 3.55 | BG169: 3.55
AN170: 14 | AO170: 60x60x4 | AP170: 60x60 | AQ170: 4 | AR170: 6.5 | AS170: 3 | AT170: 4.692 | AU170: 3.68 | AV170: 1.61 | AW170: 1.61 | AX170: 16 | AY170: 16 | AZ170: 25.4 | BA170: 6.62 | BB170: 1.85 | BC170: 1.85 | BD170: 2.33 | BE170: 1.19 | BF170: 3.66 | BG170: 3.66
AN171: 15 | AO171: 60x60x5 | AP171: 60x60 | AQ171: 5 | AR171: 6.5 | AS171: 3 | AT171: 5.802 | AU171: 4.55 | AV171: 1.66 | AW171: 1.66 | AX171: 19.6 | AY171: 19.6 | AZ171: 31.2 | BA171: 8.09 | BB171: 1.84 | BC171: 1.84 | BD171: 2.32 | BE171: 1.18 | BF171: 4.52 | BG171: 4.52
AN172: 16 | AO172: 65x65x5 | AP172: 65x65 | AQ172: 5 | AR172: 8.5 | AS172: 3 | AT172: 6.367 | AU172: 5 | AV172: 1.77 | AW172: 1.77 | AX172: 25.3 | AY172: 25.3 | AZ172: 40.1 | BA172: 10.5 | BB172: 1.99 | BC172: 1.99 | BD172: 2.51 | BE172: 1.28 | BF172: 5.35 | BG172: 5.35
AN173: 17 | AO173: 65x65x6 | AP173: 65x65 | AQ173: 6 | AR173: 8.5 | AS173: 4 | AT173: 7.527 | AU173: 5.91 | AV173: 1.81 | AW173: 1.81 | AX173: 29.4 | AY173: 29.4 | AZ173: 46.6 | BA173: 12.2 | BB173: 1.98 | BC173: 1.98 | BD173: 2.49 | BE173: 1.27 | BF173: 6.26 | BG173: 6.26
AN174: 18 | AO174: 65x65x8 | AP174: 65x65 | AQ174: 8 | AR174: 8.5 | AS174: 6 | AT174: 9.761 | AU174: 7.66 | AV174: 1.88 | AW174: 1.88 | AX174: 36.8 | AY174: 36.8 | AZ174: 58.3 | BA174: 15.3 | BB174: 1.94 | BC174: 1.94 | BD174: 2.44 | BE174: 1.25 | BF174: 7.96 | BG174: 7.96
AN175: 19 | AO175: 70x70x6 | AP175: 70x70 | AQ175: 6 | AR175: 8.5 | AS175: 4 | AT175: 8.127 | AU175: 6.38 | AV175: 1.93 | AW175: 1.93 | AX175: 37.1 | AY175: 37.1 | AZ175: 58.9 | BA175: 15.3 | BB175: 2.14 | BC175: 2.14 | BD175: 2.69 | BE175: 1.37 | BF175: 7.33 | BG175: 7.33
AN176: 20 | AO176: 75x75x6 | AP176: 75x75 | AQ176: 6 | AR176: 8.5 | AS176: 4 | AT176: 8.727 | AU176: 6.85 | AV176: 2.06 | AW176: 2.06 | AX176: 46.1 | AY176: 46.1 | AZ176: 73.2 | BA176: 19 | BB176: 2.3 | BC176: 2.3 | BD176: 2.9 | BE176: 1.48 | BF176: 8.47 | BG176: 8.47
AN177: 21 | AO177: 75x75x9 | AP177: 75x75 | AQ177: 9 | AR177: 8.5 | AS177: 6 | AT177: 12.69 | AU177: 9.96 | AV177: 2.17 | AW177: 2.17 | AX177: 64.4 | AY177: 64.4 | AZ177: 102 | BA177: 26.7 | BB177: 2.25 | BC177: 2.25 | BD177: 2.84 | BE177: 1.45 | BF177: 12.1 | BG177: 12.1
AN178: 22 | AO178: 75x75x12 | AP178: 75x75 | AQ178: 12 | AR178: 8.5 | AS178: 6 | AT178: 16.56 | AU178: 13 | AV178: 2.29 | AW178: 2.29 | AX178: 81.9 | AY178: 81.9 | AZ178: 129 | BA178: 34.5 | BB178: 2.22 | BC178: 2.22 | BD178: 2.79 | BE178: 1.44 | BF178: 15.7 | BG178: 15.7
AN179: 23 | AO179: 80x80x6 | AP179: 80x80 | AQ179: 6 | AR179: 8.5 | AS179: 4 | AT179: 9.327 | AU179: 7.32 | AV179: 2.18 | AW179: 2.18 | AX179: 56.4 | AY179: 56.4 | AZ179: 89.6 | BA179: 23.2 | BB179: 2.46 | BC179: 2.46 | BD179: 3.1 | BE179: 1.58 | BF179: 9.7 | BG179: 9.7
AN180: 24 | AO180: 90x90x6 | AP180: 90x90 | AQ180: 6 | AR180: 10 | AS180: 5 | AT180: 10.55 | AU180: 8.28 | AV180: 2.42 | AW180: 2.42 | AX180: 80.7 | AY180: 80.7 | AZ180: 128 | BA180: 33.4 | BB180: 2.77 | BC180: 2.77 | BD180: 3.48 | BE180: 1.78 | BF180: 12.3 | BG180: 12.3
AN181: 25 | AO181: 90x90x7 | AP181: 90x90 | AQ181: 7 | AR181: 10 | AS181: 5 | AT181: 12.22 | AU181: 9.59 | AV181: 2.46 | AW181: 2.46 | AX181: 93 | AY181: 93 | AZ181: 148 | BA181: 38.3 | BB181: 2.76 | BC181: 2.76 | BD181: 3.48 | BE181: 1.77 | BF181: 14.2 | BG181: 14.2
AN182: 26 | AO182: 90x90x10 | AP182: 90x90 | AQ182: 10 | AR182: 10 | AS182: 7 | AT182: 17 | AU182: 13.3 | AV182: 2.57 | AW182: 2.57 | AX182: 125 | AY182: 125 | AZ182: 199 | BA182: 51.7 | BB182: 2.71 | BC182: 2.71 | BD182: 3.42 | BE182: 1.74 | BF182: 19.5 | BG182: 19.5
AN183: 27 | AO183: 90x90x12 | AP183: 90x90 | AQ183: 12 | AR183: 11 | AS183: 4.8 | AT183: 20.3 | AU183: 15.9 | AV183: 2.66 | AW183: 2.66 | AX183: 148 | AY183: 148 | AZ183: 234 | BA183: 61.7 | BB183: 2.7 | BC183: 2.7 | BD183: 3.4 | BE183: 1.75 | BF183: 23.3 | BG183: 23.3
AN184: 28 | AO184: 90x90x13 | AP184: 90x90 | AQ184: 13 | AR184: 10 | AS184: 7 | AT184: 21.71 | AU184: 17 | AV184: 2.69 | AW184: 2.69 | AX184: 156 | AY184: 156 | AZ184: 248 | BA184: 65.3 | BB184: 2.68 | BC184: 2.68 | BD184: 3.38 | BE184: 1.73 | BF184: 24.8 | BG184: 24.8
AN185: 29 | AO185: 100x100x7 | AP185: 100x100 | AQ185: 7 | AR185: 10 | AS185: 5 | AT185: 13.62 | AU185: 10.7 | AV185: 2.71 | AW185: 2.71 | AX185: 129 | AY185: 129 | AZ185: 205 | BA185: 53.2 | BB185: 3.08 | BC185: 3.08 | BD185: 3.88 | BE185: 1.98 | BF185: 17.7 | BG185: 17.7
AN186: 30 | AO186: 100x100x10 | AP186: 100x100 | AQ186: 10 | AR186: 10 | AS186: 7 | AT186: 19 | AU186: 14.9 | AV186: 2.82 | AW186: 2.82 | AX186: 175 | AY186: 175 | AZ186: 278 | BA186: 72 | BB186: 3.04 | BC186: 3.04 | BD186: 3.83 | BE186: 1.95 | BF186: 24.4 | BG186: 24.4
AN187: 31 | AO187: 100x100x12 | AP187: 100x100 | AQ187: 12 | AR187: 12 | AS187: 4.8 | AT187: 22.7 | AU187: 17.8 | AV187: 2.9 | AW187: 2.9 | AX187: 207 | AY187: 207 | AZ187: 328 | BA187: 85.7 | BB187: 3.02 | BC187: 3.02 | BD187: 3.8 | BE187: 1.94 | BF187: 29.1 | BG187: 29.1
AN188: 32 | AO188: 100x100x13 | AP188: 100x100 | AQ188: 13 | AR188: 10 | AS188: 7 | AT188: 24.31 | AU188: 19.1 | AV188: 2.94 | AW188: 2.94 | AX188: 220 | AY188: 220 | AZ188: 348 | BA188: 91.1 | BB188: 3 | BC188: 3 | BD188: 3.78 | BE188: 1.94 | BF188: 31.1 | BG188: 31.1
AN189: 33 | AO189: 120x120x8 | AP189: 120x120 | AQ189: 8 | AR189: 12 | AS189: 5 | AT189: 18.76 | AU189: 14.7 | AV189: 3.24 | AW189: 3.24 | AX189: 258 | AY189: 258 | AZ189: 410 | BA189: 106 | BB189: 3.71 | BC189: 3.71 | BD189: 4.67 | BE189: 2.38 | BF189: 29.5 | BG189: 29.5
AN190: 34 | AO190: 130x130x9 | AP190: 130x130 | AQ190: 9 | AR190: 12 | AS190: 6 | AT190: 22.74 | AU190: 17.9 | AV190: 3.53 | AW190: 3.53 | AX190: 366 | AY190: 366 | AZ190: 583 | BA190: 150 | BB190: 4.01 | BC190: 4.01 | BD190: 5.06 | BE190: 2.57 | BF190: 38.7 | BG190: 38.7
AN191: 35 | AO191: 130x130x12 | AP191: 130x130 | AQ191: 12 | AR191: 12 | AS191: 8.5 | AT191: 29.76 | AU191: 23.4 | AV191: 3.64 | AW191: 3.64 | AX191: 467 | AY191: 467 | AZ191: 743 | BA191: 192 | BB191: 3.96 | BC191: 3.96 | BD191: 5 | BE191: 2.54 | BF191: 49.9 | BG191: 49.9
AN192: 36 | AO192: 130x130x15 | AP192: 130x130 | AQ192: 15 | AR192: 12 | AS192: 8.5 | AT192: 36.75 | AU192: 28.8 | AV192: 3.76 | AW192: 3.76 | AX192: 568 | AY192: 568 | AZ192: 902 | BA192: 234 | BB192: 3.93 | BC192: 3.93 | BD192: 4.95 | BE192: 2.53 | BF192: 21.5 | BG192: 21.5
AN193: 37 | AO193: 150x150x12 | AP193: 150x150 | AQ193: 12 | AR193: 14 | AS193: 7 | AT193: 34.77 | AU193: 27.3 | AV193: 4.14 | AW193: 4.14 | AX193: 740 | AY193: 740 | AZ193: 1180 | BA193: 304 | BB193: 4.16 | BC193: 4.16 | BD193: 5.82 | BE193: 2.96 | BF193: 68.1 | BG193: 68.1
AN194: 38 | AO194: 150x150x15 | AP194: 150x150 | AQ194: 15 | AR194: 14 | AS194: 10 | AT194: 42.74 | AU194: 33.6 | AV194: 4.24 | AW194: 4.24 | AX194: 888 | AY194: 888 | AZ194: 1410 | BA194: 365 | BB194: 4.56 | BC194: 4.56 | BD194: 5.75 | BE194: 2.92 | BF194: 82.6 | BG194: 82.6
AN195: 39 | AO195: 150x150x19 | AP195: 150x150 | AQ195: 19 | AR195: 14 | AS195: 10 | AT195: 53.38 | AU195: 41.9 | AV195: 4.4 | AW195: 4.4 | AX195: 1090 | AY195: 1090 | AZ195: 1730 | BA195: 451 | BB195: 4.52 | BC195: 4.52 | BD195: 5.69 | BE195: 2.91 | BF195: 103 | BG195: 103
AN196: 40 | AO196: 175x175x12 | AP196: 175x175 | AQ196: 12 | AR196: 15 | AS196: 11 | AT196: 40.52 | AU196: 31.8 | AV196: 4.73 | AW196: 4.73 | AX196: 1170 | AY196: 1170 | AZ196: 1860 | BA196: 480 | BB196: 5.38 | BC196: 5.38 | BD196: 6.78 | BE196: 3.44 | BF196: 91.8 | BG196: 91.8
AN197: 41 | AO197: 175x175x15 | AP197: 175x175 | AQ197: 15 | AR197: 15 | AS197: 11 | AT197: 50.21 | AU197: 39.4 | AV197: 4.85 | AW197: 4.85 | AX197: 1440 | AY197: 1440 | AZ197: 2290 | BA197: 589 | BB197: 5.35 | BC197: 5.35 | BD197: 6.75 | BE197: 3.42 | BF197: 114 | BG197: 114
AN198: 42 | AO198: 200x200x15 | AP198: 200x200 | AQ198: 15 | AR198: 17 | AS198: 12 | AT198: 57.75 | AU198: 45.3 | AV198: 5.46 | AW198: 5.46 | AX198: 2180 | AY198: 2180 | AZ198: 3470 | BA198: 891 | BB198: 6.14 | BC198: 6.14 | BD198: 7.75 | BE198: 3.93 | BF198: 150 | BG198: 150
AN199: 43 | AO199: 200x200x20 | AP199: 200x200 | AQ199: 20 | AR199: 17 | AS199: 12 | AT199: 76 | AU199: 59.7 | AV199: 5.67 | AW199: 5.67 | AX199: 2820 | AY199: 2820 | AZ199: 4490 | BA199: 1160 | BB199: 6.09 | BC199: 6.09 | BD199: 7.68 | BE199: 3.9 | BF199: 197 | BG199: 197
AN200: 44 | AO200: 200x200x25 | AP200: 200x200 | AQ200: 25 | AR200: 17 | AS200: 12 | AT200: 93.75 | AU200: 73.6 | AV200: 5.86 | AW200: 5.86 | AX200: 3420 | AY200: 3420 | AZ200: 5420 | BA200: 1410 | BB200: 6.04 | BC200: 6.04 | BD200: 7.61 | BE200: 3.88 | BF200: 242 | BG200: 242
AN201: 45 | AO201: 250x250x25 | AP201: 250x250 | AQ201: 25 | AR201: 24 | AS201: 12 | AT201: 119.4 | AU201: 93.7 | AV201: 7.1 | AW201: 7.1 | AX201: 6950 | AY201: 6950 | AZ201: 11000 | BA201: 2860 | BB201: 7.63 | BC201: 7.63 | BD201: 9.62 | BE201: 4.9 | BF201: 388 | BG201: 388
AN202: 46 | AO202: 250x250x35 | AP202: 250x250 | AQ202: 35 | AR202: 24 | AS202: 18 | AT202: 162.6 | AU202: 128 | AV202: 7.45 | AW202: 7.45 | AX202: 9110 | AY202: 9110 | AZ202: 14400 | BA202: 3790 | BB202: 7.49 | BC202: 7.49 | BD202: 9.42 | BE202: 4.83 | BF202: 519 | BG202: 519
AT206: H-Sections or WF-Wide Flange
AT208: TIS / JIS STANDARDS
AT210: (TIS 1227 : 1996 / JIS G3192 : 1990)
AT212: Size & Properties
AP215: Nominal Size mm. | AQ215: Weight | AS215: Sectional Dimension | BC215: Sectional Area cm2 | BD215: Sectional Area in2 | BE215: Moment of Inertia | BI215: Radius of Gyration | BM215: Modulus of Section | BQ215: Nominal Size mm.
AS216: H | AU216: B | AW216: t1 | AY216: t2 | BA216: r | BE216: Ix | BG216: Iy | BI216: Ix | BK216: Iy | BM216: Ix | BO216: Iy
AQ217: kg/m. | AR217: lb/ft. | AS217: mm. | AT217: in. | AU217: mm. | AV217: in. | AW217: mm. | AX217: in. | AY217: mm. | AZ217: in. | BA217: mm. | BB217: in. | BE217: cm4 | BF217: in4 | BG217: cm4 | BH217: in4 | BI217: cm. | BJ217: in. | BK217: cm. | BL217: in. | BM217: cm3 | BN217: in3 | BO217: cm3 | BP217: in3
AN218: 1 | AO218: =AP218&"x"&AW218&"x"&AY218 -> 100x100x6x8 | AP218: 100x100 | AQ218: 17.2 | AR218: 11.6 | AS218: 100 | AT218: 3.94 | AU218: 100 | AV218: 3.94 | AW218: 6 | AX218: 0.236 | AY218: 8 | AZ218: 0.315 | BA218: 10 | BB218: 0.394 | BC218: 21.9 | BD218: 3.39 | BE218: 383 | BF218: 9.2 | BG218: 134 | BH218: 3.22 | BI218: 4.2 | BJ218: 1.65 | BK218: 2.47 | BL218: 0.97 | BM218: 77 | BN218: 4.7 | BO218: 27 | BP218: 1.63 | BQ218: 100x100
AN219: 2 | AO219: =AP219&"x"&AW219&"x"&AY219 -> 125x125x6.5x9 | AP219: 125x125 | AQ219: 23.8 | AR219: 16 | AS219: 125 | AT219: 4.92 | AU219: 125 | AV219: 4.92 | AW219: 6.5 | AX219: 0.256 | AY219: 9 | AZ219: 0.354 | BA219: 10 | BB219: 0.394 | BC219: 30.31 | BD219: 4.7 | BE219: 847 | BF219: 20.35 | BG219: 293 | BH219: 7.04 | BI219: 5.3 | BJ219: 2.08 | BK219: 3.11 | BL219: 1.22 | BM219: 136 | BN219: 8.3 | BO219: 47 | BP219: 2.87 | BQ219: 125x125
AN220: 3 | AO220: =AP220&"x"&AW220&"x"&AY220 -> 150x75x5x7 | AP220: 150x75 | AQ220: 14 | AR220: 9.4 | AS220: 150 | AT220: 5.91 | AU220: 75 | AV220: 2.95 | AW220: 5 | AX220: 0.2 | AY220: 7 | AZ220: 0.28 | BA220: 8 | BB220: 0.31 | BC220: 17.85 | BD220: 2.77 | BE220: 666 | BF220: 16 | BG220: 50 | BH220: 1.19 | BI220: 6.1 | BJ220: 2.41 | BK220: 1.66 | BL220: 0.65 | BM220: 89 | BN220: 5.4 | BO220: 13 | BP220: 0.81 | BQ220: 150x75
AN221: 4 | AO221: =AP221&"x"&AW221&"x"&AY221 -> 150x100x6x9 | AP221: 150x100 | AQ221: 21.1 | AR221: 14.2 | AS221: 148 | AT221: 5.83 | AU221: 100 | AV221: 3.94 | AW221: 6 | AX221: 0.236 | AY221: 9 | AZ221: 0.354 | BA221: 11 | BB221: 0.433 | BC221: 26.84 | BD221: 4.16 | BE221: 1020 | BF221: 24.51 | BG221: 151 | BH221: 3.63 | BI221: 6.2 | BJ221: 2.43 | BK221: 2.37 | BL221: 0.93 | BM221: 138 | BN221: 8.4 | BO221: 30 | BP221: 1.84 | BQ221: 150x100
AN222: 5 | AO222: 150x150x7x10 | AP222: 150x150 | AQ222: 31.5 | AR222: 21.2 | AS222: 150 | AT222: 5.91 | AU222: 150 | AV222: 5.91 | AW222: 7 | AX222: 0.276 | AY222: 10 | AZ222: 0.394 | BA222: 11 | BB222: 0.433 | BC222: 40.14 | BD222: 6.22 | BE222: 1640 | BF222: 39.4 | BG222: 563 | BH222: 13.53 | BI222: 6.4 | BJ222: 2.52 | BK222: 3.75 | BL222: 1.48 | BM222: 219 | BN222: 13.4 | BO222: 75 | BP222: 4.58 | BQ222: 150x150
AN223: 6 | AO223: 175x175x7.5x11 | AP223: 175x175 | AQ223: 40.2 | AR223: 27 | AS223: 175 | AT223: 6.89 | AU223: 175 | AV223: 6.89 | AW223: 7.5 | AX223: 0.295 | AY223: 11 | AZ223: 0.433 | BA223: 12 | BB223: 0.472 | BC223: 51.21 | BD223: 7.94 | BE223: 2880 | BF223: 69.19 | BG223: 984 | BH223: 23.64 | BI223: 7.5 | BJ223: 2.95 | BK223: 4.38 | BL223: 1.72 | BM223: 330 | BN223: 20.1 | BO223: 112 | BP223: 6.83 | BQ223: 175x175
AN224: 7 | AO224: 200x100x4.5x7 | AP224: 200x100 | AQ224: 18.2 | AR224: 12.2 | AS224: 198 | AT224: 7.8 | AU224: 99 | AV224: 3.9 | AW224: 4.5 | AX224: 0.177 | AY224: 7 | AZ224: 0.276 | BA224: 11 | BB224: 0.433 | BC224: 23.18 | BD224: 3.59 | BE224: 1580 | BF224: 37.96 | BG224: 114 | BH224: 2.74 | BI224: 8.3 | BJ224: 3.25 | BK224: 2.21 | BL224: 0.87 | BM224: 160 | BN224: 9.8 | BO224: 23 | BP224: 1.4 | BQ224: 200x100
AN225: 8 | AO225: 200x100x5.5x8 | AP225: 200x100 | AQ225: 21.3 | AR225: 14.3 | AS225: 200 | AT225: 7.87 | AU225: 100 | AV225: 3.94 | AW225: 5.5 | AX225: 0.217 | AY225: 8 | AZ225: 0.315 | BA225: 11 | BB225: 0.433 | BC225: 27.16 | BD225: 4.21 | BE225: 1840 | BF225: 44.21 | BG225: 134 | BH225: 3.22 | BI225: 8.2 | BJ225: 3.24 | BK225: 2.22 | BL225: 0.87 | BM225: 184 | BN225: 11.2 | BO225: 27 | BP225: 1.64
AN226: 9 | AO226: 200x150x6x9 | AP226: 200x150 | AQ226: 30.6 | AR226: 20.6 | AS226: 194 | AT226: 7.64 | AU226: 150 | AV226: 5.91 | AW226: 6 | AX226: 0.236 | AY226: 9 | AZ226: 0.354 | BA226: 13 | BB226: 0.512 | BC226: 39.01 | BD226: 6.05 | BE226: 2690 | BF226: 64.63 | BG226: 507 | BH226: 12.18 | BI226: 8.3 | BJ226: 3.27 | BK226: 3.61 | BL226: 1.42 | BM226: 227 | BN226: 16.9 | BO226: 68 | BP226: 4.13 | BQ226: 200x150
AN227: 10 | AO227: 200x200x8x12 | AP227: 200x200 | AQ227: 49.9 | AR227: 33.5 | AS227: 200 | AT227: 7.87 | AU227: 200 | AV227: 7.87 | AW227: 8 | AX227: 0.315 | AY227: 12 | AZ227: 0.472 | BA227: 13 | BB227: 0.512 | BC227: 63.53 | BD227: 9.85 | BE227: 4720 | BF227: 113.4 | BG227: 1600 | BH227: 38.44 | BI227: 8.6 | BJ227: 3.39 | BK227: 5.02 | BL227: 1.98 | BM227: 472 | BN227: 28.8 | BO227: 160 | BP227: 9.76 | BQ227: 200x200
AN228: 11 | AO228: 200x200x12x12 | AP228: 200x200 | AQ228: 56.2 | AR228: 37.8 | AS228: 200 | AT228: 7.87 | AU228: 204 | AV228: 8.03 | AW228: 12 | AX228: 0.472 | AY228: 12 | AZ228: 0.472 | BA228: 13 | BB228: 0.512 | BC228: 71.53 | BD228: 11.09 | BE228: 4980 | BF228: 119.64 | BG228: 1700 | BH228: 40.84 | BI228: 8.4 | BJ228: 3.29 | BK228: 4.88 | BL228: 1.92 | BM228: 498 | BN228: 30.4 | BO228: 167 | BP228: 10.19
AN229: 12 | AO229: 200x200x10x16 | AP229: 200x200 | AQ229: 65.7 | AR229: 44.2 | AS229: 208 | AT229: 8.19 | AU229: 202 | AV229: 7.95 | AW229: 10 | AX229: 0.394 | AY229: 16 | AZ229: 0.63 | BA229: 13 | BB229: 0.512 | BC229: 83.69 | BD229: 12.97 | BE229: 6530 | BF229: 156.88 | BG229: 2200 | BH229: 52.86 | BI229: 8.8 | BJ229: 3.48 | BK229: 5.13 | BL229: 2.02 | BM229: 628 | BN229: 38.3 | BO229: 218 | BP229: 13.3
AN230: 13 | AO230: 250x125x5x8 | AP230: 250x125 | AQ230: 25.7 | AR230: 17.3 | AS230: 248 | AT230: 9.76 | AU230: 124 | AV230: 4.88 | AW230: 5 | AX230: 0.197 | AY230: 8 | AZ230: 0.315 | BA230: 12 | BB230: 0.472 | BC230: 32.68 | BD230: 5.07 | BE230: 3540 | BF230: 85.05 | BG230: 255 | BH230: 6.13 | BI230: 10.4 | BJ230: 4.09 | BK230: 2.79 | BL230: 1.1 | BM230: 285 | BN230: 17.4 | BO230: 41 | BP230: 2.51 | BQ230: 250x125
AN231: 14 | AO231: 250x125x6x9 | AP231: 250x125 | AQ231: 29.6 | AR231: 19.9 | AS231: 250 | AT231: 9.84 | AU231: 125 | AV231: 4.92 | AW231: 6 | AX231: 0.236 | AY231: 9 | AZ231: 0.354 | BA231: 12 | BB231: 0.472 | BC231: 37.66 | BD231: 5.84 | BE231: 4050 | BF231: 97.3 | BG231: 294 | BH231: 7.06 | BI231: 10.4 | BJ231: 4.09 | BK231: 2.79 | BL231: 1.1 | BM231: 324 | BN231: 19.8 | BO231: 47 | BP231: 2.87
AN232: 15 | AO232: 250x175x7x11 | AP232: 250x175 | AQ232: 44.1 | AR232: 29.6 | AS232: 244 | AT232: 9.61 | AU232: 175 | AV232: 6.89 | AW232: 7 | AX232: 0.276 | AY232: 11 | AZ232: 0.433 | BA232: 16 | BB232: 0.63 | BC232: 56.24 | BD232: 8.72 | BE232: 6120 | BF232: 147.03 | BG232: 984 | BH232: 23.64 | BI232: 10.4 | BJ232: 4.09 | BK232: 4.18 | BL232: 1.65 | BM232: 502 | BN232: 30.6 | BO232: 113 | BP232: 6.9 | BQ232: 250x175
AN233: 16 | AO233: 250x250x11x11 | AP233: 250x250 | AQ233: 64.4 | AR233: 43.3 | AS233: 244 | AT233: 9.61 | AU233: 252 | AV233: 9.92 | AW233: 11 | AX233: 0.433 | AY233: 11 | AZ233: 0.433 | BA233: 16 | BB233: 0.63 | BC233: 82.06 | BD233: 12.72 | BE233: 8790 | BF233: 211.18 | BG233: 2940 | BH233: 70.63 | BI233: 10.3 | BJ233: 4.06 | BK233: 5.98 | BL233: 2.35 | BM233: 720 | BN233: 43.9 | BO233: 233 | BP233: 14.22 | BQ233: 250x250
AN234: 17 | AO234: 250x250x8x13 | AP234: 250x250 | AQ234: 66.5 | AR234: 44.7 | AS234: 248 | AT234: 9.76 | AU234: 249 | AV234: 9.8 | AW234: 8 | AX234: 0.315 | AY234: 13 | AZ234: 0.512 | BA234: 16 | BB234: 0.63 | BC234: 84.7 | BD234: 13.13 | BE234: 9930 | BF234: 238.57 | BG234: 3350 | BH234: 80.48 | BI234: 10.8 | BJ234: 4.25 | BK234: 6.29 | BL234: 2.48 | BM234: 801 | BN234: 48.9 | BO234: 269 | BP234: 16.42
AN235: 18 | AO235: 250x250x9x14 | AP235: 250x250 | AQ235: 72.4 | AR235: 48.7 | AS235: 250 | AT235: 9.84 | AU235: 250 | AV235: 9.84 | AW235: 9 | AX235: 0.354 | AY235: 14 | AZ235: 0.551 | BA235: 16 | BB235: 0.63 | BC235: 92.18 | BD235: 14.29 | BE235: 10800 | BF235: 259.47 | BG235: 3650 | BH235: 87.69 | BI235: 10.8 | BJ235: 4.25 | BK235: 6.29 | BL235: 2.48 | BM235: 867 | BN235: 52.9 | BO235: 292 | BP235: 17.82
AN236: 19 | AO236: 250x250x14x14 | AP236: 250x250 | AQ236: 82.2 | AR236: 55.2 | AS236: 250 | AT236: 9.84 | AU236: 255 | AV236: 10.04 | AW236: 14 | AX236: 0.551 | AY236: 14 | AZ236: 0.551 | BA236: 16 | BB236: 0.63 | BC236: 104.7 | BD236: 16.23 | BE236: 11500 | BF236: 276.29 | BG236: 3880 | BH236: 93.22 | BI236: 10.5 | BJ236: 4.13 | BK236: 6.09 | BL236: 2.4 | BM236: 919 | BN236: 56.1 | BO236: 304 | BP236: 18.55
AN237: 20 | AO237: 300x150 x5.5x8 | AP237: 300x150 | AQ237: 32 | AR237: 21.5 | AS237: 298 | AT237: 11.73 | AU237: 149 | AV237: 5.87 | AW237: 5.5 | AX237: 0.217 | AY237: 8 | AZ237: 0.315 | BA237: 13 | BB237: 0.512 | BC237: 40.8 | BD237: 6.32 | BE237: 6320 | BF237: 151.84 | BG237: 442 | BH237: 10.62 | BI237: 12.4 | BJ237: 4.88 | BK237: 3.29 | BL237: 1.3 | BM237: 424 | BN237: 25.9 | BO237: 59 | BP237: 3.62 | BQ237: 300x150
AN238: 21 | AO238: 300x150 x6.5x9 | AP238: 300x150 | AQ238: 36.7 | AR238: 24.7 | AS238: 300 | AT238: 11.81 | AU238: 150 | AV238: 5.91 | AW238: 6.5 | AX238: 0.256 | AY238: 9 | AZ238: 0.354 | BA238: 13 | BB238: 0.512 | BC238: 46.78 | BD238: 7.25 | BE238: 7210 | BF238: 173.22 | BG238: 508 | BH238: 12.2 | BI238: 12.4 | BJ238: 4.88 | BK238: 3.29 | BL238: 1.3 | BM238: 481 | BN238: 29.4 | BO238: 68 | BP238: 4.13
AN239: 22 | AO239: 300x200x8x12 | AP239: 300x200 | AQ239: 56.8 | AR239: 38.2 | AS239: 294 | AT239: 11.57 | AU239: 200 | AV239: 7.87 | AW239: 8 | AX239: 0.315 | AY239: 12 | AZ239: 0.472 | BA239: 18 | BB239: 0.709 | BC239: 72.38 | BD239: 11.22 | BE239: 11300 | BF239: 271.48 | BG239: 1600 | BH239: 38.44 | BI239: 12.5 | BJ239: 4.92 | BK239: 4.71 | BL239: 1.85 | BM239: 771 | BN239: 47 | BO239: 160 | BP239: 9.76 | BQ239: 300x200
AN240: 23 | AO240: 300x200x9x14 | AP240: 300x200 | AQ240: 65.4 | AR240: 44 | AS240: 298 | AT240: 11.73 | AU240: 201 | AV240: 7.91 | AW240: 9 | AX240: 0.354 | AY240: 14 | AZ240: 0.551 | BA240: 18 | BB240: 0.709 | BC240: 83.36 | BD240: 12.92 | BE240: 13300 | BF240: 319.53 | BG240: 1900 | BH240: 45.65 | BI240: 12.6 | BJ240: 4.96 | BK240: 4.77 | BL240: 1.88 | BM240: 893 | BN240: 54.5 | BO240: 189 | BP240: 11.53
AN241: 24 | AO241: 300x300x12x12 | AP241: 300x300 | AQ241: 84.5 | AR241: 56.8 | AS241: 294 | AT241: 11.57 | AU241: 302 | AV241: 11.89 | AW241: 12 | AX241: 0.472 | AY241: 12 | AZ241: 0.472 | BA241: 18 | BB241: 0.709 | BC241: 107.7 | BD241: 16.69 | BE241: 16900 | BF241: 406 | BG241: 5520 | BH241: 133 | BI241: 12.5 | BJ241: 4.92 | BK241: 7.16 | BL241: 2.82 | BM241: 1150 | BN241: 70.2 | BO241: 365 | BP241: 22.27 | BQ241: 300x300
AN242: 25 | AO242: 300x300x9x14 | AP242: 300x300 | AQ242: 87 | AR242: 58.5 | AS242: 298 | AT242: 11.73 | AU242: 299 | AV242: 11.77 | AW242: 9 | AX242: 0.354 | AY242: 14 | AZ242: 0.551 | BA242: 18 | BB242: 0.709 | BC242: 110.8 | BD242: 17.17 | BE242: 18800 | BF242: 452 | BG242: 6240 | BH242: 150 | BI242: 13 | BJ242: 5.12 | BK242: 7.51 | BL242: 2.96 | BM242: 1270 | BN242: 77.5 | BO242: 417 | BP242: 25.4
AN243: 26 | AO243: 300x300x10x15 | AP243: 300x300 | AQ243: 94 | AR243: 63.2 | AS243: 300 | AT243: 11.81 | AU243: 300 | AV243: 11.81 | AW243: 10 | AX243: 0.394 | AY243: 15 | AZ243: 0.591 | BA243: 18 | BB243: 0.709 | BC243: 119.8 | BD243: 18.57 | BE243: 20400 | BF243: 490 | BG243: 6750 | BH243: 162 | BI243: 13.1 | BJ243: 5.16 | BK243: 7.51 | BL243: 2.96 | BM243: 1360 | BN243: 83 | BO243: 450 | BP243: 27.5
AN244: 27 | AO244: 300x300x15x15 | AP244: 300x300 | AQ244: 106 | AR244: 71.2 | AS244: 300 | AT244: 11.81 | AU244: 305 | AV244: 12.01 | AW244: 15 | AX244: 0.591 | AY244: 15 | AZ244: 0.591 | BA244: 18 | BB244: 0.709 | BC244: 134.8 | BD244: 20.89 | BE244: 21500 | BF244: 516.54 | BG244: 7100 | BH244: 170.58 | BI244: 12.6 | BJ244: 4.96 | BK244: 7.26 | BL244: 2.86 | BM244: 1440 | BN244: 87.9 | BO244: 466 | BP244: 28.4
AN245: 28 | AO245: 300x300x11x17 | AP245: 300x300 | AQ245: 106 | AR245: 71.2 | AS245: 304 | AT245: 11.97 | AU245: 301 | AV245: 11.85 | AW245: 11 | AX245: 0.433 | AY245: 17 | AZ245: 0.669 | BA245: 18 | BB245: 0.709 | BC245: 134.8 | BD245: 20.89 | BE245: 23400 | BF245: 562.19 | BG245: 7730 | BH245: 185.71 | BI245: 13.2 | BJ245: 5.2 | BK245: 7.57 | BL245: 2.98 | BM245: 1540 | BN245: 94 | BO245: 514 | BP245: 31.37
AN246: 29 | AO246: 350x175x6x9 | AP246: 350x175 | AQ246: 41.4 | AR246: 27.8 | AS246: 346 | AT246: 13.62 | AU246: 174 | AV246: 6.85 | AW246: 6 | AX246: 0.236 | AY246: 9 | AZ246: 0.354 | BA246: 14 | BB246: 0.551 | BC246: 52.68 | BD246: 8.17 | BE246: 11100 | BF246: 266.68 | BG246: 792 | BH246: 19.03 | BI246: 14.5 | BJ246: 5.71 | BK246: 3.88 | BL246: 1.53 | BM246: 641 | BN246: 39.1 | BO246: 91 | BP246: 5.55 | BQ246: 350x175
AN247: 30 | AO247: 350x175x7x11 | AP247: 350x175 | AQ247: 49.6 | AR247: 33.3 | AS247: 350 | AT247: 13.78 | AU247: 175 | AV247: 6.89 | AW247: 7 | AX247: 0.276 | AY247: 11 | AZ247: 0.433 | BA247: 14 | BB247: 0.551 | BC247: 63.14 | BD247: 9.79 | BE247: 13600 | BF247: 326.74 | BG247: 984 | BH247: 23.64 | BI247: 14.7 | BJ247: 5.79 | BK247: 3.95 | BL247: 1.56 | BM247: 775 | BN247: 47.3 | BO247: 112 | BP247: 6.83
AN248: 31 | AO248: 350x175x8x13 | AP248: 350x175 | AQ248: 57.8 | AR248: 38.8 | AS248: 354 | AT248: 13.94 | AU248: 176 | AV248: 6.93 | AW248: 8 | AX248: 0.315 | AY248: 13 | AZ248: 0.512 | BA248: 14 | BB248: 0.551 | BC248: 73.68 | BD248: 11.42 | BE248: 16100 | BF248: 386.8 | BG248: 1180 | BH248: 28.35 | BI248: 14.8 | BJ248: 5.83 | BK248: 4.01 | BL248: 1.58 | BM248: 909 | BN248: 55.5 | BO248: 134 | BP248: 8.18
AN249: 32 | AO249: 350x250x8x12 | AP249: 350x250 | AQ249: 69.2 | AR249: 46.5 | AS249: 336 | AT249: 13.23 | AU249: 249 | AV249: 9.8 | AW249: 8 | AX249: 0.315 | AY249: 12 | AZ249: 0.472 | BA249: 20 | BB249: 0.787 | BC249: 88.15 | BD249: 13.66 | BE249: 18500 | BF249: 444.46 | BG249: 3090 | BH249: 74.24 | BI249: 14.5 | BJ249: 5.71 | BK249: 5.92 | BL249: 2.33 | BM249: 1100 | BN249: 67.1 | BO249: 248 | BP249: 15.13 | BQ249: 350x250
... 738 more rows

Sheet Rafter
B1: Rafter steel design : ASD | AK1: Created & Development
B2: ◙ Project | E2: : | F2: อาคารพานิชย์ 3 ชั้น | R2: ◙ Date | V2: : | W2: =TODAY() -> 2012-12-09 | AC2: ◙ Time | AF2: : | AG2: =NOW() -> 41252.77582 | AK2: Mr. Jirawat Kaewsup | AR2: 1 | AU2: 1 | AV2: 4
B3: ◙ Owner | E3: : | F3: คุณสมหวัง ดังปรารถนา | R3: ◙ Engineer | V3: : | W3: นายจิรวัฒน์ แก้วทรัพย์ | AC3: ◙ License | AF3: : | AG3: ภย.30857 | AK3: Introduction | AR3: E | AS3: 2040000 | AU3: 2 | AV3: =IF(AV2=1,"RB 6",IF(AV2=2,"RB 9",IF(AV2=3,"RB 12",IF(AV2=4,"RB 15",IF(AV2=5,"RB 19",IF(AV2=6,"RB 25",IF(AV2=7,"RB 28",IF(AV2=8,"RB 34",IF(AV2=9,"DB 10",IF(AV2=10,"DB 12",IF(AV2=11,"DB 16",IF(AV2=12,"DB 20",IF(AV2=13,"DB 22",IF(AV2=14,"DB 25",IF(AV2=15,"DB 28",IF(AV2=16,"DB 32",IF(AV2=17,"DB 34",IF(AV2=18,"DB 40")))))))))))))))))) -> RB 15
B4: ◙ Location | E4: : | F4: ตำบลในเมือง อำเภอเมือง จังหวัดนครราชสีมา | R4: ◙ Rafter No. | V4: : | W4: Rafter-1 | AC4: ◙ Floor | AF4: : | AG4: Roof | AK4: -ออกแบบตามมาตรฐาน AISC หรือ ว.ส.ท. | AS4: 2100000 | AU4: 3 | AV4: Fe-24
AK5: -Allowable Stress Design : ASD | AR5: ɵ | AS5: =ATAN(AE21/(AE26/2)) -> 0.5222516943 | AU5: 4 | AV5: Fe-30
AK6: -ป้อนข้อมูลเฉพาะตัวอักษรหรือตัวเลขสีน้ำเงิน | AR6: L/2 | AS6: =AE26/2 -> 4.5 | AT6: m. | AU6: Yes
AR7: Wx | AS7: =ROUNDDOWN(G36,2)&" kg./m." -> 19.41 kg./m. | AU7: No
AR8: Wy | AS8: =ROUNDDOWN(G37,2)&" kg./m." -> 192.46 kg./m.
AR9: W | AS9: =ROUNDDOWN(G26,2)&" kg./m." -> 33.42 kg./m.
AR10: L/2 | AS10: =G37/2 -> 96.23483191
AR11: Win load | AS11: =(S24*(2*SIN(AS5))/(1+(SIN(AS5)^2)))*AE25 -> 13.58092097 | AT11: kg./m.
AS12: =SQRT((AE21^2)+(AS6^2)) -> 5.192119028 | AT12: m.
AS13: =ROUNDUP(AS12/AE25,0)+1 -> 17 | AT13: bar.
AS14: =IF(S24=0,(G26*COS(AS5)),0.75*((G26*COS(AS5))+AS11)) -> 31.90948007 | AT14: kg./m.
AS15: =AE22/COS(AS5) -> 1.384565074 | AT15: m.
AS16: =AS12-AS15 -> 3.807553954 | AT16: m.
AQ18: =IF(AR2=1,"Use : C-Light Lip Channel",IF(AR2=2,"Use : Square Tube",IF(AR2=3,"Use : Rectangular Tube",IF(AR2=4,"Use : Equal leg Angel",IF(AR2=5,"Use : C-Channel",IF(AR2=6,"Use : WF-Wide Flange",IF(AR2=7,"Use : I-Beam",IF(AR2=8,"Use : Unequal leg Angel")))))))) -> Use : C-Light Lip Channel
B20: Input Data
B21: Use Steel Grade | F21: = | G21: Fe-24 | N21: roofing material | R21: = | S21: 50 | W21: kg./m.2 | Z21: H | AD21: = | AE21: 2.59 | AI21: m.
B22: Es | F22: = | G22: 2100000 | K22: kg./cm.2 | N22: Weight of purlin | R22: = | S22: 1.12 | W22: kg./m. | Z22: L3 | AD22: = | AE22: 1.2 | AI22: m.
B23: Fy | F23: = | G23: =IF(G21="Fe-24",2400,IF(G21="Fe-30",3000)) -> 2400 | K23: kg./cm.2 | N23: Live load | R23: = | S23: 30 | W23: kg./m.2 | Z23: L4 | AD23: = | AE23: 3.3 | AI23: m.
B24: Fb | F24: = | G24: =0.6*G23 -> 1440 | K24: kg./cm.2 | N24: Wind load | R24: = | S24: 50 | W24: kg./m.2 | Z24: D | AD24: = | AE24: 2 | AI24: m.
B25: W | F25: = | G25: =(((AS14*AE24/2)/AE25)*2)+(S26*COS(AS5)) -> 192.4696638 | K25: kg./m. | N25: Weight Ect. | R25: = | S25: 15 | W25: kg./m.2 | Z25: s | AD25: = | AE25: 0.34 | AI25: m.
B26: Wg | F26: = | G26: =((S21+S23+S25)*AE25)+S22 -> 33.42 | K26: kg./m. | N26: Weight of rafter | R26: = | S26: 5.5 | W26: kg./m. | Z26: L | AD26: = | AE26: =(AE23+AE22)*2 -> 9 | AI26: m. | AR26: C-Light Lip Channel | AU26: Square Tube | AX26: Rectangular Tube | BA26: Equal leg Angle | BD26: C-Channel | BG26: WF-Wide Flange | BJ26: I-Beam | BM26: Unequal leg Angle
B27: Analysis & Design | AR27: Ix | AS27: =IF(AND(AR2=1,AD35=AO342),VLOOKUP(1,AN342:BC386,9,FALSE),IF(AND(AR2=1,AD35=AO343),VLOOKUP(2,AN342:BC386,9,FALSE),IF(AND(AR2=1,AD35=AO344),VLOOKUP(3,AN342:BC386,9,FALSE),IF(AND(AR2=1,AD35=AO345),VLOOKUP(4,AN342:BC386,9,FALSE),IF(AND(AR2=1,AD35=AO346),VLOOKUP(5,AN342:BC386,9,FALSE),IF(AND(AR2=1,AD35=AO347),VLOOKUP(6,AN342:BC386,9,FALSE),IF(AND(AR2=1,AD35=AO348),VLOOKUP(7,AN342:BC386,9,FALSE),IF(AND(AR2=1,AD35=AO349),VLOOKUP(8,AN342:BC386,9,FALSE),IF(AND(AR2=1,AD35=AO350),VLOOKUP(9,AN342:BC386,9,FALSE),IF(AND(AR2=1,AD35=AO351),VLOOKUP(10,AN342:BC386,9,FALSE),IF(AND(AR2=1,AD35=AO352),VLOOKUP(11,AN342:BC386,9,FALSE),IF(AND(AR2=1,AD35=AO353),VLOOKUP(12,AN342:BC386,9,FALSE),IF(AND(AR2=1,AD35=AO354),VLOOKUP(13,AN342:BC386,9,FALSE),IF(AND(AR2=1,AD35=AO355),VLOOKUP(14,AN342:BC386,9,FALSE),IF(AND(AR2=1,AD35=AO356),VLOOKUP(15,AN342:BC386,9,FALSE),IF(AND(AR2=1,AD35=AO357),VLOOKUP(16,AN342:BC386,9,FALSE),IF(AND(AR2=1,AD35=AO358),VLOOKUP(17,AN342:BC386,9,FALSE),IF(AND(AR2=1,AD35=AO359),VLOOKUP(18,AN342:BC386,9,FALSE),IF(AND(AR2=1,AD35=AO360),VLOOKUP(19,AN342:BC386,9,FALSE),IF(AND(AR2=1,AD35=AO361),VLOOKUP(20,AN342:BC386,9,FALSE),IF(AND(AR2=1,AD35=AO362),VLOOKUP(21,AN342:BC386,9,FALSE),IF(AND(AR2=1,AD35=AO363),VLOOKUP(22,AN342:BC386,9,FALSE),IF(AND(AR2=1,AD35=AO364),VLOOKUP(23,AN342:BC386,9,FALSE),IF(AND(AR2=1,AD35=AO365),VLOOKUP(24,AN342:BC386,9,FALSE),IF(AND(AR2=1,AD35=AO366),VLOOKUP(25,AN342:BC386,9,FALSE),IF(AND(AR2=1,AD35=AO367),VLOOKUP(26,AN342:BC386,9,FALSE),IF(AND(AR2=1,AD35=AO368),VLOOKUP(27,AN342:BC386,9,FALSE),IF(AND(AR2=1,AD35=AO369),VLOOKUP(28,AN342:BC386,9,FALSE),IF(AND(AR2=1,AD35=AO370),VLOOKUP(29,AN342:BC386,9,FALSE),IF(AND(AR2=1,AD35=AO371),VLOOKUP(30,AN342:BC386,9,FALSE),IF(AND(AR2=1,AD35=AO372),VLOOKUP(31,AN342:BC386,9,FALSE),IF(AND(AR2=1,AD35=AO373),VLOOKUP(32,AN342:BC386,9,FALSE),IF(AND(AR2=1,AD35=AO374),VLOOKUP(33,AN342:BC386,9,FALSE),IF(AND(AR2=1,AD35=AO375),VLOOKUP(34,AN342:BC386,9,FALSE),IF(AND(AR2=1,AD35=AO376),VLOOKUP(35,AN342:BC386,9,FALSE),IF(AND(AR2=1,AD35=AO377),VLOOKUP(36,AN342:BC386,9,FALSE),IF(AND(AR2=1,AD35=AO378),VLOOKUP(37,AN342:BC386,9,FALSE),IF(AND(AR2=1,AD35=AO379),VLOOKUP(38,AN342:BC386,9,FALSE),IF(AND(AR2=1,AD35=AO380),VLOOKUP(39,AN342:BC386,9,FALSE),IF(AND(AR2=1,AD35=AO381),VLOOKUP(40,AN342:BC386,9,FALSE),IF(AND(AR2=1,AD35=AO382),VLOOKUP(41,AN342:BC386,9,FALSE),IF(AND(AR2=1,AD35=AO383),VLOOKUP(42,AN342:BC386,9,FALSE),IF(AND(AR2=1,AD35=AO384),VLOOKUP(43,AN342:BC386,9,FALSE),IF(AND(AR2=1,AD35=AO385),VLOOKUP(44,AN342:BC386,9,FALSE),IF(AND(AR2=1,AD35=AO386),VLOOKUP(45,AN342:BC386,9,FALSE)))))))))))))))))))))))))))))))))))))))))))))) -> 107 | AT27: cm4 | AU27: Ix | AV27: =IF(AND(AR2=2,AD35=AO443),VLOOKUP(1,AN443:AW474,8,FALSE),IF(AND(AR2=2,AD35=AO444),VLOOKUP(2,AN443:AW474,8,FALSE),IF(AND(AR2=2,AD35=AO445),VLOOKUP(3,AN443:AW474,8,FALSE),IF(AND(AR2=2,AD35=AO446),VLOOKUP(4,AN443:AW474,8,FALSE),IF(AND(AR2=2,AD35=AO447),VLOOKUP(5,AN443:AW474,8,FALSE),IF(AND(AR2=2,AD35=AO448),VLOOKUP(6,AN443:AW474,8,FALSE),IF(AND(AR2=2,AD35=AO449),VLOOKUP(7,AN443:AW474,8,FALSE),IF(AND(AR2=2,AD35=AO450),VLOOKUP(8,AN443:AW474,8,FALSE),IF(AND(AR2=2,AD35=AO451),VLOOKUP(9,AN443:AW474,8,FALSE),IF(AND(AR2=2,AD35=AO452),VLOOKUP(10,AN443:AW474,8,FALSE),IF(AND(AR2=2,AD35=AO453),VLOOKUP(11,AN443:AW474,8,FALSE),IF(AND(AR2=2,AD35=AO454),VLOOKUP(12,AN443:AW474,8,FALSE),IF(AND(AR2=2,AD35=AO455),VLOOKUP(13,AN443:AW474,8,FALSE),IF(AND(AR2=2,AD35=AO456),VLOOKUP(14,AN443:AW474,8,FALSE),IF(AND(AR2=2,AD35=AO457),VLOOKUP(15,AN443:AW474,8,FALSE),IF(AND(AR2=2,AD35=AO458),VLOOKUP(16,AN443:AW474,8,FALSE),IF(AND(AR2=2,AD35=AO459),VLOOKUP(17,AN443:AW474,8,FALSE),IF(AND(AR2=2,AD35=AO460),VLOOKUP(18,AN443:AW474,8,FALSE),IF(AND(AR2=2,AD35=AO461),VLOOKUP(19,AN443:AW474,8,FALSE),IF(AND(AR2=2,AD35=AO462),VLOOKUP(20,AN443:AW474,8,FALSE),IF(AND(AR2=2,AD35=AO463),VLOOKUP(21,AN443:AW474,8,FALSE),IF(AND(AR2=2,AD35=AO464),VLOOKUP(22,AN443:AW474,8,FALSE),IF(AND(AR2=2,AD35=AO465),VLOOKUP(23,AN443:AW474,8,FALSE),IF(AND(AR2=2,AD35=AO466),VLOOKUP(24,AN443:AW474,8,FALSE),IF(AND(AR2=2,AD35=AO467),VLOOKUP(25,AN443:AW474,8,FALSE),IF(AND(AR2=2,AD35=AO468),VLOOKUP(26,AN443:AW474,8,FALSE),IF(AND(AR2=2,AD35=AO469),VLOOKUP(27,AN443:AW474,8,FALSE),IF(AND(AR2=2,AD35=AO470),VLOOKUP(28,AN443:AW474,8,FALSE),IF(AND(AR2=2,AD35=AO471),VLOOKUP(29,AN443:AW474,8,FALSE),IF(AND(AR2=2,AD35=AO472),VLOOKUP(30,AN443:AW474,8,FALSE),IF(AND(AR2=2,AD35=AO473),VLOOKUP(31,AN443:AW474,8,FALSE),IF(AND(AR2=2,AD35=AO474),VLOOKUP(32,AN443:AW474,8,FALSE))))))))))))))))))))))))))))))))) -> FALSE | AW27: cm4 | AX27: Ix | AY27: =IF(AND(AR2=3,AD35=AO402),VLOOKUP(1,AN402:AZ427,8,FALSE),IF(AND(AR2=3,AD35=AO403),VLOOKUP(2,AN402:AZ427,8,FALSE),IF(AND(AR2=3,AD35=AO404),VLOOKUP(3,AN402:AZ427,8,FALSE),IF(AND(AR2=3,AD35=AO405),VLOOKUP(4,AN402:AZ427,8,FALSE),IF(AND(AR2=3,AD35=AO406),VLOOKUP(5,AN402:AZ427,8,FALSE),IF(AND(AR2=3,AD35=AO407),VLOOKUP(6,AN402:AZ427,8,FALSE),IF(AND(AR2=3,AD35=AO408),VLOOKUP(7,AN402:AZ427,8,FALSE),IF(AND(AR2=3,AD35=AO409),VLOOKUP(8,AN402:AZ427,8,FALSE),IF(AND(AR2=3,AD35=AO410),VLOOKUP(9,AN402:AZ427,8,FALSE),IF(AND(AR2=3,AD35=AO411),VLOOKUP(10,AN402:AZ427,8,FALSE),IF(AND(AR2=3,AD35=AO412),VLOOKUP(11,AN402:AZ427,8,FALSE),IF(AND(AR2=3,AD35=AO413),VLOOKUP(12,AN402:AZ427,8,FALSE),IF(AND(AR2=3,AD35=AO414),VLOOKUP(13,AN402:AZ427,8,FALSE),IF(AND(AR2=3,AD35=AO415),VLOOKUP(14,AN402:AZ427,8,FALSE),IF(AND(AR2=3,AD35=AO416),VLOOKUP(15,AN402:AZ427,8,FALSE),IF(AND(AR2=3,AD35=AO417),VLOOKUP(16,AN402:AZ427,8,FALSE),IF(AND(AR2=3,AD35=AO418),VLOOKUP(17,AN402:AZ427,8,FALSE),IF(AND(AR2=3,AD35=AO419),VLOOKUP(18,AN402:AZ427,8,FALSE),IF(AND(AR2=3,AD35=AO420),VLOOKUP(19,AN402:AZ427,8,FALSE),IF(AND(AR2=3,AD35=AO421),VLOOKUP(20,AN402:AZ427,8,FALSE),IF(AND(AR2=3,AD35=AO422),VLOOKUP(21,AN402:AZ427,8,FALSE),IF(AND(AR2=3,AD35=AO423),VLOOKUP(22,AN402:AZ427,8,FALSE),IF(AND(AR2=3,AD35=AO424),VLOOKUP(23,AN402:AZ427,8,FALSE),IF(AND(AR2=3,AD35=AO425),VLOOKUP(24,AN402:AZ427,8,FALSE),IF(AND(AR2=3,AD35=AO426),VLOOKUP(25,AN402:AZ427,8,FALSE),IF(AND(AR2=3,AD35=AO427),VLOOKUP(26,AN402:AZ427,8,FALSE))))))))))))))))))))))))))) -> FALSE | AZ27: cm4 | BA27: Ix | BB27: =IF(AND(AR2=4,AD35=AO157),VLOOKUP(1,AN157:BG202,11,FALSE),IF(AND(AR2=4,AD35=AO158),VLOOKUP(2,AN157:BG202,11,FALSE),IF(AND(AR2=4,AD35=AO159),VLOOKUP(3,AN157:BG202,11,FALSE),IF(AND(AR2=4,AD35=AO160),VLOOKUP(4,AN157:BG202,11,FALSE),IF(AND(AR2=4,AD35=AO161),VLOOKUP(5,AN157:BG202,11,FALSE),IF(AND(AR2=4,AD35=AO162),VLOOKUP(6,AN157:BG202,11,FALSE),IF(AND(AR2=4,AD35=AO163),VLOOKUP(7,AN157:BG202,11,FALSE),IF(AND(AR2=4,AD35=AO164),VLOOKUP(8,AN157:BG202,11,FALSE),IF(AND(AR2=4,AD35=AO165),VLOOKUP(9,AN157:BG202,11,FALSE),IF(AND(AR2=4,AD35=AO166),VLOOKUP(10,AN157:BG202,11,FALSE),IF(AND(AR2=4,AD35=AO167),VLOOKUP(11,AN157:BG202,11,FALSE),IF(AND(AR2=4,AD35=AO168),VLOOKUP(12,AN157:BG202,11,FALSE),IF(AND(AR2=4,AD35=AO169),VLOOKUP(13,AN157:BG202,11,FALSE),IF(AND(AR2=4,AD35=AO170),VLOOKUP(14,AN157:BG202,11,FALSE),IF(AND(AR2=4,AD35=AO171),VLOOKUP(15,AN157:BG202,11,FALSE),IF(AND(AR2=4,AD35=AO172),VLOOKUP(16,AN157:BG202,11,FALSE),IF(AND(AR2=4,AD35=AO173),VLOOKUP(17,AN157:BG202,11,FALSE),IF(AND(AR2=4,AD35=AO174),VLOOKUP(18,AN157:BG202,11,FALSE),IF(AND(AR2=4,AD35=AO175),VLOOKUP(19,AN157:BG202,11,FALSE),IF(AND(AR2=4,AD35=AO176),VLOOKUP(20,AN157:BG202,11,FALSE),IF(AND(AR2=4,AD35=AO177),VLOOKUP(21,AN157:BG202,11,FALSE),IF(AND(AR2=4,AD35=AO178),VLOOKUP(22,AN157:BG202,11,FALSE),IF(AND(AR2=4,AD35=AO179),VLOOKUP(23,AN157:BG202,11,FALSE),IF(AND(AR2=4,AD35=AO180),VLOOKUP(24,AN157:BG202,11,FALSE),IF(AND(AR2=4,AD35=AO181),VLOOKUP(25,AN157:BG202,11,FALSE),IF(AND(AR2=4,AD35=AO182),VLOOKUP(26,AN157:BG202,11,FALSE),IF(AND(AR2=4,AD35=AO183),VLOOKUP(27,AN157:BG202,11,FALSE),IF(AND(AR2=4,AD35=AO184),VLOOKUP(28,AN157:BG202,11,FALSE),IF(AND(AR2=4,AD35=AO185),VLOOKUP(29,AN157:BG202,11,FALSE),IF(AND(AR2=4,AD35=AO186),VLOOKUP(30,AN157:BG202,11,FALSE),IF(AND(AR2=4,AD35=AO187),VLOOKUP(31,AN157:BG202,11,FALSE),IF(AND(AR2=4,AD35=AO188),VLOOKUP(32,AN157:BG202,11,FALSE),IF(AND(AR2=4,AD35=AO189),VLOOKUP(33,AN157:BG202,11,FALSE),IF(AND(AR2=4,AD35=AO190),VLOOKUP(34,AN157:BG202,11,FALSE),IF(AND(AR2=4,AD35=AO191),VLOOKUP(35,AN157:BG202,11,FALSE),IF(AND(AR2=4,AD35=AO192),VLOOKUP(36,AN157:BG202,11,FALSE),IF(AND(AR2=4,AD35=AO193),VLOOKUP(37,AN157:BG202,11,FALSE),IF(AND(AR2=4,AD35=AO194),VLOOKUP(38,AN157:BG202,11,FALSE),IF(AND(AR2=4,AD35=AO195),VLOOKUP(39,AN157:BG202,11,FALSE),IF(AND(AR2=4,AD35=AO196),VLOOKUP(40,AN157:BG202,11,FALSE),IF(AND(AR2=4,AD35=AO197),VLOOKUP(41,AN157:BG202,11,FALSE),IF(AND(AR2=4,AD35=AO198),VLOOKUP(42,AN157:BG202,11,FALSE),IF(AND(AR2=4,AD35=AO199),VLOOKUP(43,AN157:BG202,11,FALSE),IF(AND(AR2=4,AD35=AO200),VLOOKUP(44,AN157:BG202,11,FALSE),IF(AND(AR2=4,AD35=AO201),VLOOKUP(45,AN157:BG202,11,FALSE),IF(AND(AR2=4,AD35=AO202),VLOOKUP(46,AN157:BG202,11,FALSE))))))))))))))))))))))))))))))))))))))))))))))) -> FALSE | BC27: cm4 | BD27: Ix | BE27: =IF(AND(AR2=5,AD35=AO126),VLOOKUP(1,AN126:BD141,12,FALSE),IF(AND(AR2=5,AD35=AO127),VLOOKUP(2,AN126:BD141,12,FALSE),IF(AND(AR2=5,AD35=AO128),VLOOKUP(3,AN126:BD141,12,FALSE),IF(AND(AR2=5,AD35=AO129),VLOOKUP(4,AN126:BD141,12,FALSE),IF(AND(AR2=5,AD35=AO130),VLOOKUP(5,AN126:BD141,12,FALSE),IF(AND(AR2=5,AD35=AO131),VLOOKUP(6,AN126:BD141,12,FALSE),IF(AND(AR2=5,AD35=AO132),VLOOKUP(7,AN126:BD141,12,FALSE),IF(AND(AR2=5,AD35=AO133),VLOOKUP(8,AN126:BD141,12,FALSE),IF(AND(AR2=5,AD35=AO134),VLOOKUP(9,AN126:BD141,12,FALSE),IF(AND(AR2=5,AD35=AO135),VLOOKUP(10,AN126:BD141,12,FALSE),IF(AND(AR2=5,AD35=AO136),VLOOKUP(11,AN126:BD141,12,FALSE),IF(AND(AR2=5,AD35=AO137),VLOOKUP(12,AN126:BD141,12,FALSE),IF(AND(AR2=5,AD35=AO138),VLOOKUP(13,AN126:BD141,12,FALSE),IF(AND(AR2=5,AD35=AO139),VLOOKUP(14,AN126:BD141,12,FALSE),IF(AND(AR2=5,AD35=AO140),VLOOKUP(15,AN126:BD141,12,FALSE),IF(AND(AR2=5,AD35=AO141),VLOOKUP(16,AN126:BD141,12,FALSE))))))))))))))))) -> FALSE | BF27: cm4 | BG27: Ix | BH27: =IF(AND(AR2=6,AD35=AO218),VLOOKUP(1,AN218:BQ290,18,FALSE),IF(AND(AR2=6,AD35=AO219),VLOOKUP(2,AN218:BQ290,18,FALSE),IF(AND(AR2=6,AD35=AO220),VLOOKUP(3,AN218:BQ290,18,FALSE),IF(AND(AR2=6,AD35=AO221),VLOOKUP(4,AN218:BQ290,18,FALSE),IF(AND(AR2=6,AD35=AO222),VLOOKUP(5,AN218:BQ290,18,FALSE),IF(AND(AR2=6,AD35=AO223),VLOOKUP(6,AN218:BQ290,18,FALSE),IF(AND(AR2=6,AD35=AO224),VLOOKUP(7,AN218:BQ290,18,FALSE),IF(AND(AR2=6,AD35=AO225),VLOOKUP(8,AN218:BQ290,18,FALSE),IF(AND(AR2=6,AD35=AO226),VLOOKUP(9,AN218:BQ290,18,FALSE),IF(AND(AR2=6,AD35=AO227),VLOOKUP(10,AN218:BQ290,18,FALSE),IF(AND(AR2=6,AD35=AO228),VLOOKUP(11,AN218:BQ290,18,FALSE),IF(AND(AR2=6,AD35=AO229),VLOOKUP(12,AN218:BQ290,18,FALSE),IF(AND(AR2=6,AD35=AO230),VLOOKUP(13,AN218:BQ290,18,FALSE),IF(AND(AR2=6,AD35=AO231),VLOOKUP(14,AN218:BQ290,18,FALSE),IF(AND(AR2=6,AD35=AO232),VLOOKUP(15,AN218:BQ290,18,FALSE),IF(AND(AR2=6,AD35=AO233),VLOOKUP(16,AN218:BQ290,18,FALSE),IF(AND(AR2=6,AD35=AO234),VLOOKUP(17,AN218:BQ290,18,FALSE),IF(AND(AR2=6,AD35=AO235),VLOOKUP(18,AN218:BQ290,18,FALSE),IF(AND(AR2=6,AD35=AO236),VLOOKUP(19,AN218:BQ290,18,FALSE),IF(AND(AR2=6,AD35=AO237),VLOOKUP(20,AN218:BQ290,18,FALSE),IF(AND(AR2=6,AD35=AO238),VLOOKUP(21,AN218:BQ290,18,FALSE),IF(AND(AR2=6,AD35=AO239),VLOOKUP(22,AN218:BQ290,18,FALSE),IF(AND(AR2=6,AD35=AO240),VLOOKUP(23,AN218:BQ290,18,FALSE),IF(AND(AR2=6,AD35=AO241),VLOOKUP(24,AN218:BQ290,18,FALSE),IF(AND(AR2=6,AD35=AO242),VLOOKUP(25,AN218:BQ290,18,FALSE),IF(AND(AR2=6,AD35=AO243),VLOOKUP(26,AN218:BQ290,18,FALSE),IF(AND(AR2=6,AD35=AO244),VLOOKUP(27,AN218:BQ290,18,FALSE),IF(AND(AR2=6,AD35=AO245),VLOOKUP(28,AN218:BQ290,18,FALSE),IF(AND(AR2=6,AD35=AO246),VLOOKUP(29,AN218:BQ290,18,FALSE),IF(AND(AR2=6,AD35=AO247),VLOOKUP(30,AN218:BQ290,18,FALSE),IF(AND(AR2=6,AD35=AO248),VLOOKUP(31,AN218:BQ290,18,FALSE),IF(AND(AR2=6,AD35=AO249),VLOOKUP(32,AN218:BQ290,18,FALSE),IF(AND(AR2=6,AD35=AO250),VLOOKUP(33,AN218:BQ290,18,FALSE),IF(AND(AR2=6,AD35=AO251),VLOOKUP(34,AN218:BQ290,18,FALSE),IF(AND(AR2=6,AD35=AO252),VLOOKUP(35,AN218:BQ290,18,FALSE),IF(AND(AR2=6,AD35=AO253),VLOOKUP(36,AN218:BQ290,18,FALSE),IF(AND(AR2=6,AD35=AO254),VLOOKUP(37,AN218:BQ290,18,FALSE),IF(AND(AR2=6,AD35=AO255),VLOOKUP(38,AN218:BQ290,18,FALSE),IF(AND(AR2=6,AD35=AO256),VLOOKUP(39,AN218:BQ290,18,FALSE),IF(AND(AR2=6,AD35=AO257),VLOOKUP(40,AN218:BQ290,18,FALSE),IF(AND(AR2=6,AD35=AO258),VLOOKUP(41,AN218:BQ290,18,FALSE),IF(AND(AR2=6,AD35=AO259),VLOOKUP(42,AN218:BQ290,18,FALSE),IF(AND(AR2=6,AD35=AO260),VLOOKUP(43,AN218:BQ290,18,FALSE),IF(AND(AR2=6,AD35=AO261),VLOOKUP(44,AN218:BQ290,18,FALSE),IF(AND(AR2=6,AD35=AO262),VLOOKUP(45,AN218:BQ290,18,FALSE),IF(AND(AR2=6,AD35=AO263),VLOOKUP(46,AN218:BQ290,18,FALSE),IF(AND(AR2=6,AD35=AO264),VLOOKUP(47,AN218:BQ290,18,FALSE),IF(AND(AR2=6,AD35=AO265),VLOOKUP(48,AN218:BQ290,18,FALSE),IF(AND(AR2=6,AD35=AO266),VLOOKUP(49,AN218:BQ290,18,FALSE),IF(AND(AR2=6,AD35=AO267),VLOOKUP(50,AN218:BQ290,18,FALSE),IF(AND(AR2=6,AD35=AO268),VLOOKUP(51,AN218:BQ290,18,FALSE),IF(AND(AR2=6,AD35=AO269),VLOOKUP(52,AN218:BQ290,18,FALSE),IF(AND(AR2=6,AD35=AO270),VLOOKUP(53,AN218:BQ290,18,FALSE),IF(AND(AR2=6,AD35=AO271),VLOOKUP(54,AN218:BQ290,18,FALSE),IF(AND(AR2=6,AD35=AO272),VLOOKUP(55,AN218:BQ290,18,FALSE),IF(AND(AR2=6,AD35=AO273),VLOOKUP(56,AN218:BQ290,18,FALSE),IF(AND(AR2=6,AD35=AO274),VLOOKUP(57,AN218:BQ290,18,FALSE),IF(AND(AR2=6,AD35=AO275),VLOOKUP(58,AN218:BQ290,18,FALSE),IF(AND(AR2=6,AD35=AO276),VLOOKUP(59,AN218:BQ290,18,FALSE),IF(AND(AR2=6,AD35=AO277),VLOOKUP(60,AN218:BQ290,18,FALSE),IF(AND(AR2=6,AD35=AO278),VLOOKUP(61,AN218:BQ290,18,FALSE),IF(AND(AR2=6,AD35=AO279),VLOOKUP(62,AN218:BQ290,18,FALSE),IF(AND(AR2=6,AD35=AO280),VLOOKUP(63,AN218:BQ290,18,FALSE),IF(AND(AR2=6,AD35=AO281),VLOOKUP(64,AN218:BQ290,18,FALSE))))))))))))))))))))))))))))))))))))))))))))))))))))))))))))))))) -> FALSE | BI27: cm4 | BJ27: Ix | BK27: =IF(AND(AR2=7,AD35=AO308),VLOOKUP(1,AN308:BB327,10,FALSE),IF(AND(AR2=7,AD35=AO309),VLOOKUP(2,AN308:BB327,10,FALSE),IF(AND(AR2=7,AD35=AO310),VLOOKUP(3,AN308:BB327,10,FALSE),IF(AND(AR2=7,AD35=AO311),VLOOKUP(4,AN308:BB327,10,FALSE),IF(AND(AR2=7,AD35=AO312),VLOOKUP(5,AN308:BB327,10,FALSE),IF(AND(AR2=7,AD35=AO313),VLOOKUP(6,AN308:BB327,10,FALSE),IF(AND(AR2=7,AD35=AO314),VLOOKUP(7,AN308:BB327,10,FALSE),IF(AND(AR2=7,AD35=AO315),VLOOKUP(8,AN308:BB327,10,FALSE),IF(AND(AR2=7,AD35=AO316),VLOOKUP(9,AN308:BB327,10,FALSE),IF(AND(AR2=7,AD35=AO317),VLOOKUP(10,AN308:BB327,10,FALSE),IF(AND(AR2=7,AD35=AO318),VLOOKUP(11,AN308:BB327,10,FALSE),IF(AND(AR2=7,AD35=AO319),VLOOKUP(12,AN308:BB327,10,FALSE),IF(AND(AR2=7,AD35=AO320),VLOOKUP(13,AN308:BB327,10,FALSE),IF(AND(AR2=7,AD35=AO321),VLOOKUP(14,AN308:BB327,10,FALSE),IF(AND(AR2=7,AD35=AO322),VLOOKUP(15,AN308:BB327,10,FALSE),IF(AND(AR2=7,AD35=AO323),VLOOKUP(16,AN308:BB327,10,FALSE),IF(AND(AR2=7,AD35=AO324),VLOOKUP(17,AN308:BB327,10,FALSE),IF(AND(AR2=7,AD35=AO325),VLOOKUP(18,AN308:BB327,10,FALSE),IF(AND(AR2=7,AD35=AO326),VLOOKUP(19,AN308:BB327,10,FALSE),IF(AND(AR2=7,AD35=AO327),VLOOKUP(20,AN308:BB327,10,FALSE))))))))))))))))))))) -> FALSE | BL27: cm4 | BM27: Ix | BN27: =IF(AND(AR2=8,AD35=AO1062),VLOOKUP(1,AN1062:BG1074,11,FALSE),IF(AND(AR2=8,AD35=AO1063),VLOOKUP(2,AN1062:BG1074,11,FALSE),IF(AND(AR2=8,AD35=AO1064),VLOOKUP(3,AN1062:BG1074,11,FALSE),IF(AND(AR2=8,AD35=AO1065),VLOOKUP(4,AN1062:BG1074,11,FALSE),IF(AND(AR2=8,AD35=AO1066),VLOOKUP(5,AN1062:BG1074,11,FALSE),IF(AND(AR2=8,AD35=AO1067),VLOOKUP(6,AN1062:BG1074,11,FALSE),IF(AND(AR2=8,AD35=AO1068),VLOOKUP(7,AN1062:BG1074,11,FALSE),IF(AND(AR2=8,AD35=AO1069),VLOOKUP(8,AN1062:BG1074,11,FALSE),IF(AND(AR2=8,AD35=AO1070),VLOOKUP(9,AN1062:BG1074,11,FALSE),IF(AND(AR2=8,AD35=AO1071),VLOOKUP(10,AN1062:BG1074,11,FALSE),IF(AND(AR2=8,AD35=AO1072),VLOOKUP(11,AN1062:BG1074,11,FALSE),IF(AND(AR2=8,AD35=AO1073),VLOOKUP(12,AN1062:BG1074,11,FALSE),IF(AND(AR2=8,AD35=AO1074),VLOOKUP(13,AN1062:BG1074,11,FALSE)))))))))))))) -> FALSE | BO27: cm4
AR28: Iy | AS28: =IF(AND(AR2=1,AD35=AO342),VLOOKUP(1,AN342:BC386,10,FALSE),IF(AND(AR2=1,AD35=AO343),VLOOKUP(2,AN342:BC386,10,FALSE),IF(AND(AR2=1,AD35=AO344),VLOOKUP(3,AN342:BC386,10,FALSE),IF(AND(AR2=1,AD35=AO345),VLOOKUP(4,AN342:BC386,10,FALSE),IF(AND(AR2=1,AD35=AO346),VLOOKUP(5,AN342:BC386,10,FALSE),IF(AND(AR2=1,AD35=AO347),VLOOKUP(6,AN342:BC386,10,FALSE),IF(AND(AR2=1,AD35=AO348),VLOOKUP(7,AN342:BC386,10,FALSE),IF(AND(AR2=1,AD35=AO349),VLOOKUP(8,AN342:BC386,10,FALSE),IF(AND(AR2=1,AD35=AO350),VLOOKUP(9,AN342:BC386,10,FALSE),IF(AND(AR2=1,AD35=AO351),VLOOKUP(10,AN342:BC386,10,FALSE),IF(AND(AR2=1,AD35=AO352),VLOOKUP(11,AN342:BC386,10,FALSE),IF(AND(AR2=1,AD35=AO353),VLOOKUP(12,AN342:BC386,10,FALSE),IF(AND(AR2=1,AD35=AO354),VLOOKUP(13,AN342:BC386,10,FALSE),IF(AND(AR2=1,AD35=AO355),VLOOKUP(14,AN342:BC386,10,FALSE),IF(AND(AR2=1,AD35=AO356),VLOOKUP(15,AN342:BC386,10,FALSE),IF(AND(AR2=1,AD35=AO357),VLOOKUP(16,AN342:BC386,10,FALSE),IF(AND(AR2=1,AD35=AO358),VLOOKUP(17,AN342:BC386,10,FALSE),IF(AND(AR2=1,AD35=AO359),VLOOKUP(18,AN342:BC386,10,FALSE),IF(AND(AR2=1,AD35=AO360),VLOOKUP(19,AN342:BC386,10,FALSE),IF(AND(AR2=1,AD35=AO361),VLOOKUP(20,AN342:BC386,10,FALSE),IF(AND(AR2=1,AD35=AO362),VLOOKUP(21,AN342:BC386,10,FALSE),IF(AND(AR2=1,AD35=AO363),VLOOKUP(22,AN342:BC386,10,FALSE),IF(AND(AR2=1,AD35=AO364),VLOOKUP(23,AN342:BC386,10,FALSE),IF(AND(AR2=1,AD35=AO365),VLOOKUP(24,AN342:BC386,10,FALSE),IF(AND(AR2=1,AD35=AO366),VLOOKUP(25,AN342:BC386,10,FALSE),IF(AND(AR2=1,AD35=AO367),VLOOKUP(26,AN342:BC386,10,FALSE),IF(AND(AR2=1,AD35=AO368),VLOOKUP(27,AN342:BC386,10,FALSE),IF(AND(AR2=1,AD35=AO369),VLOOKUP(28,AN342:BC386,10,FALSE),IF(AND(AR2=1,AD35=AO370),VLOOKUP(29,AN342:BC386,10,FALSE),IF(AND(AR2=1,AD35=AO371),VLOOKUP(30,AN342:BC386,10,FALSE),IF(AND(AR2=1,AD35=AO372),VLOOKUP(31,AN342:BC386,10,FALSE),IF(AND(AR2=1,AD35=AO373),VLOOKUP(32,AN342:BC386,10,FALSE),IF(AND(AR2=1,AD35=AO374),VLOOKUP(33,AN342:BC386,10,FALSE),IF(AND(AR2=1,AD35=AO375),VLOOKUP(34,AN342:BC386,10,FALSE),IF(AND(AR2=1,AD35=AO376),VLOOKUP(35,AN342:BC386,10,FALSE),IF(AND(AR2=1,AD35=AO377),VLOOKUP(36,AN342:BC386,10,FALSE),IF(AND(AR2=1,AD35=AO378),VLOOKUP(37,AN342:BC386,10,FALSE),IF(AND(AR2=1,AD35=AO379),VLOOKUP(38,AN342:BC386,10,FALSE),IF(AND(AR2=1,AD35=AO380),VLOOKUP(39,AN342:BC386,10,FALSE),IF(AND(AR2=1,AD35=AO381),VLOOKUP(40,AN342:BC386,10,FALSE),IF(AND(AR2=1,AD35=AO382),VLOOKUP(41,AN342:BC386,10,FALSE),IF(AND(AR2=1,AD35=AO383),VLOOKUP(42,AN342:BC386,10,FALSE),IF(AND(AR2=1,AD35=AO384),VLOOKUP(43,AN342:BC386,10,FALSE),IF(AND(AR2=1,AD35=AO385),VLOOKUP(44,AN342:BC386,10,FALSE),IF(AND(AR2=1,AD35=AO386),VLOOKUP(45,AN342:BC386,10,FALSE)))))))))))))))))))))))))))))))))))))))))))))) -> 24.5 | AT28: cm4 | AU28: Iy | AV28: =IF(AND(AR2=2,AD35=AO443),VLOOKUP(1,AN443:AW474,8,FALSE),IF(AND(AR2=2,AD35=AO444),VLOOKUP(2,AN443:AW474,8,FALSE),IF(AND(AR2=2,AD35=AO445),VLOOKUP(3,AN443:AW474,8,FALSE),IF(AND(AR2=2,AD35=AO446),VLOOKUP(4,AN443:AW474,8,FALSE),IF(AND(AR2=2,AD35=AO447),VLOOKUP(5,AN443:AW474,8,FALSE),IF(AND(AR2=2,AD35=AO448),VLOOKUP(6,AN443:AW474,8,FALSE),IF(AND(AR2=2,AD35=AO449),VLOOKUP(7,AN443:AW474,8,FALSE),IF(AND(AR2=2,AD35=AO450),VLOOKUP(8,AN443:AW474,8,FALSE),IF(AND(AR2=2,AD35=AO451),VLOOKUP(9,AN443:AW474,8,FALSE),IF(AND(AR2=2,AD35=AO452),VLOOKUP(10,AN443:AW474,8,FALSE),IF(AND(AR2=2,AD35=AO453),VLOOKUP(11,AN443:AW474,8,FALSE),IF(AND(AR2=2,AD35=AO454),VLOOKUP(12,AN443:AW474,8,FALSE),IF(AND(AR2=2,AD35=AO455),VLOOKUP(13,AN443:AW474,8,FALSE),IF(AND(AR2=2,AD35=AO456),VLOOKUP(14,AN443:AW474,8,FALSE),IF(AND(AR2=2,AD35=AO457),VLOOKUP(15,AN443:AW474,8,FALSE),IF(AND(AR2=2,AD35=AO458),VLOOKUP(16,AN443:AW474,8,FALSE),IF(AND(AR2=2,AD35=AO459),VLOOKUP(17,AN443:AW474,8,FALSE),IF(AND(AR2=2,AD35=AO460),VLOOKUP(18,AN443:AW474,8,FALSE),IF(AND(AR2=2,AD35=AO461),VLOOKUP(19,AN443:AW474,8,FALSE),IF(AND(AR2=2,AD35=AO462),VLOOKUP(20,AN443:AW474,8,FALSE),IF(AND(AR2=2,AD35=AO463),VLOOKUP(21,AN443:AW474,8,FALSE),IF(AND(AR2=2,AD35=AO464),VLOOKUP(22,AN443:AW474,8,FALSE),IF(AND(AR2=2,AD35=AO465),VLOOKUP(23,AN443:AW474,8,FALSE),IF(AND(AR2=2,AD35=AO466),VLOOKUP(24,AN443:AW474,8,FALSE),IF(AND(AR2=2,AD35=AO467),VLOOKUP(25,AN443:AW474,8,FALSE),IF(AND(AR2=2,AD35=AO468),VLOOKUP(26,AN443:AW474,8,FALSE),IF(AND(AR2=2,AD35=AO469),VLOOKUP(27,AN443:AW474,8,FALSE),IF(AND(AR2=2,AD35=AO470),VLOOKUP(28,AN443:AW474,8,FALSE),IF(AND(AR2=2,AD35=AO471),VLOOKUP(29,AN443:AW474,8,FALSE),IF(AND(AR2=2,AD35=AO472),VLOOKUP(30,AN443:AW474,8,FALSE),IF(AND(AR2=2,AD35=AO473),VLOOKUP(31,AN443:AW474,8,FALSE),IF(AND(AR2=2,AD35=AO474),VLOOKUP(32,AN443:AW474,8,FALSE))))))))))))))))))))))))))))))))) -> FALSE | AW28: cm4 | AX28: Iy | AY28: =IF(AND(AR2=3,AD35=AO402),VLOOKUP(1,AN402:AZ427,9,FALSE),IF(AND(AR2=3,AD35=AO403),VLOOKUP(2,AN402:AZ427,9,FALSE),IF(AND(AR2=3,AD35=AO404),VLOOKUP(3,AN402:AZ427,9,FALSE),IF(AND(AR2=3,AD35=AO405),VLOOKUP(4,AN402:AZ427,9,FALSE),IF(AND(AR2=3,AD35=AO406),VLOOKUP(5,AN402:AZ427,9,FALSE),IF(AND(AR2=3,AD35=AO407),VLOOKUP(6,AN402:AZ427,9,FALSE),IF(AND(AR2=3,AD35=AO408),VLOOKUP(7,AN402:AZ427,9,FALSE),IF(AND(AR2=3,AD35=AO409),VLOOKUP(8,AN402:AZ427,9,FALSE),IF(AND(AR2=3,AD35=AO410),VLOOKUP(9,AN402:AZ427,9,FALSE),IF(AND(AR2=3,AD35=AO411),VLOOKUP(10,AN402:AZ427,9,FALSE),IF(AND(AR2=3,AD35=AO412),VLOOKUP(11,AN402:AZ427,9,FALSE),IF(AND(AR2=3,AD35=AO413),VLOOKUP(12,AN402:AZ427,9,FALSE),IF(AND(AR2=3,AD35=AO414),VLOOKUP(13,AN402:AZ427,9,FALSE),IF(AND(AR2=3,AD35=AO415),VLOOKUP(14,AN402:AZ427,9,FALSE),IF(AND(AR2=3,AD35=AO416),VLOOKUP(15,AN402:AZ427,9,FALSE),IF(AND(AR2=3,AD35=AO417),VLOOKUP(16,AN402:AZ427,9,FALSE),IF(AND(AR2=3,AD35=AO418),VLOOKUP(17,AN402:AZ427,9,FALSE),IF(AND(AR2=3,AD35=AO419),VLOOKUP(18,AN402:AZ427,9,FALSE),IF(AND(AR2=3,AD35=AO420),VLOOKUP(19,AN402:AZ427,9,FALSE),IF(AND(AR2=3,AD35=AO421),VLOOKUP(20,AN402:AZ427,9,FALSE),IF(AND(AR2=3,AD35=AO422),VLOOKUP(21,AN402:AZ427,9,FALSE),IF(AND(AR2=3,AD35=AO423),VLOOKUP(22,AN402:AZ427,9,FALSE),IF(AND(AR2=3,AD35=AO424),VLOOKUP(23,AN402:AZ427,9,FALSE),IF(AND(AR2=3,AD35=AO425),VLOOKUP(24,AN402:AZ427,9,FALSE),IF(AND(AR2=3,AD35=AO426),VLOOKUP(25,AN402:AZ427,9,FALSE),IF(AND(AR2=3,AD35=AO427),VLOOKUP(26,AN402:AZ427,9,FALSE))))))))))))))))))))))))))) -> FALSE | AZ28: cm4 | BA28: Iy | BB28: =BB27 -> FALSE | BC28: cm4 | BD28: Iy | BE28: =IF(AND(AR2=5,AD35=AO126),VLOOKUP(1,AN126:BD141,13,FALSE),IF(AND(AR2=5,AD35=AO127),VLOOKUP(2,AN126:BD141,13,FALSE),IF(AND(AR2=5,AD35=AO128),VLOOKUP(3,AN126:BD141,13,FALSE),IF(AND(AR2=5,AD35=AO129),VLOOKUP(4,AN126:BD141,13,FALSE),IF(AND(AR2=5,AD35=AO130),VLOOKUP(5,AN126:BD141,13,FALSE),IF(AND(AR2=5,AD35=AO131),VLOOKUP(6,AN126:BD141,13,FALSE),IF(AND(AR2=5,AD35=AO132),VLOOKUP(7,AN126:BD141,13,FALSE),IF(AND(AR2=5,AD35=AO133),VLOOKUP(8,AN126:BD141,13,FALSE),IF(AND(AR2=5,AD35=AO134),VLOOKUP(9,AN126:BD141,13,FALSE),IF(AND(AR2=5,AD35=AO135),VLOOKUP(10,AN126:BD141,13,FALSE),IF(AND(AR2=5,AD35=AO136),VLOOKUP(11,AN126:BD141,13,FALSE),IF(AND(AR2=5,AD35=AO137),VLOOKUP(12,AN126:BD141,13,FALSE),IF(AND(AR2=5,AD35=AO138),VLOOKUP(13,AN126:BD141,13,FALSE),IF(AND(AR2=5,AD35=AO139),VLOOKUP(14,AN126:BD141,13,FALSE),IF(AND(AR2=5,AD35=AO140),VLOOKUP(15,AN126:BD141,13,FALSE),IF(AND(AR2=5,AD35=AO141),VLOOKUP(16,AN126:BD141,13,FALSE))))))))))))))))) -> FALSE | BF28: cm4 | BG28: Iy | BH28: =IF(AND(AR2=6,AD35=AO218),VLOOKUP(1,AN218:BQ290,20,FALSE),IF(AND(AR2=6,AD35=AO219),VLOOKUP(2,AN218:BQ290,20,FALSE),IF(AND(AR2=6,AD35=AO220),VLOOKUP(3,AN218:BQ290,20,FALSE),IF(AND(AR2=6,AD35=AO221),VLOOKUP(4,AN218:BQ290,20,FALSE),IF(AND(AR2=6,AD35=AO222),VLOOKUP(5,AN218:BQ290,20,FALSE),IF(AND(AR2=6,AD35=AO223),VLOOKUP(6,AN218:BQ290,20,FALSE),IF(AND(AR2=6,AD35=AO224),VLOOKUP(7,AN218:BQ290,20,FALSE),IF(AND(AR2=6,AD35=AO225),VLOOKUP(8,AN218:BQ290,20,FALSE),IF(AND(AR2=6,AD35=AO226),VLOOKUP(9,AN218:BQ290,20,FALSE),IF(AND(AR2=6,AD35=AO227),VLOOKUP(10,AN218:BQ290,20,FALSE),IF(AND(AR2=6,AD35=AO228),VLOOKUP(11,AN218:BQ290,20,FALSE),IF(AND(AR2=6,AD35=AO229),VLOOKUP(12,AN218:BQ290,20,FALSE),IF(AND(AR2=6,AD35=AO230),VLOOKUP(13,AN218:BQ290,20,FALSE),IF(AND(AR2=6,AD35=AO231),VLOOKUP(14,AN218:BQ290,20,FALSE),IF(AND(AR2=6,AD35=AO232),VLOOKUP(15,AN218:BQ290,20,FALSE),IF(AND(AR2=6,AD35=AO233),VLOOKUP(16,AN218:BQ290,20,FALSE),IF(AND(AR2=6,AD35=AO234),VLOOKUP(17,AN218:BQ290,20,FALSE),IF(AND(AR2=6,AD35=AO235),VLOOKUP(18,AN218:BQ290,20,FALSE),IF(AND(AR2=6,AD35=AO236),VLOOKUP(19,AN218:BQ290,20,FALSE),IF(AND(AR2=6,AD35=AO237),VLOOKUP(20,AN218:BQ290,20,FALSE),IF(AND(AR2=6,AD35=AO238),VLOOKUP(21,AN218:BQ290,20,FALSE),IF(AND(AR2=6,AD35=AO239),VLOOKUP(22,AN218:BQ290,20,FALSE),IF(AND(AR2=6,AD35=AO240),VLOOKUP(23,AN218:BQ290,20,FALSE),IF(AND(AR2=6,AD35=AO241),VLOOKUP(24,AN218:BQ290,20,FALSE),IF(AND(AR2=6,AD35=AO242),VLOOKUP(25,AN218:BQ290,20,FALSE),IF(AND(AR2=6,AD35=AO243),VLOOKUP(26,AN218:BQ290,20,FALSE),IF(AND(AR2=6,AD35=AO244),VLOOKUP(27,AN218:BQ290,20,FALSE),IF(AND(AR2=6,AD35=AO245),VLOOKUP(28,AN218:BQ290,20,FALSE),IF(AND(AR2=6,AD35=AO246),VLOOKUP(29,AN218:BQ290,20,FALSE),IF(AND(AR2=6,AD35=AO247),VLOOKUP(30,AN218:BQ290,20,FALSE),IF(AND(AR2=6,AD35=AO248),VLOOKUP(31,AN218:BQ290,20,FALSE),IF(AND(AR2=6,AD35=AO249),VLOOKUP(32,AN218:BQ290,20,FALSE),IF(AND(AR2=6,AD35=AO250),VLOOKUP(33,AN218:BQ290,20,FALSE),IF(AND(AR2=6,AD35=AO251),VLOOKUP(34,AN218:BQ290,20,FALSE),IF(AND(AR2=6,AD35=AO252),VLOOKUP(35,AN218:BQ290,20,FALSE),IF(AND(AR2=6,AD35=AO253),VLOOKUP(36,AN218:BQ290,20,FALSE),IF(AND(AR2=6,AD35=AO254),VLOOKUP(37,AN218:BQ290,20,FALSE),IF(AND(AR2=6,AD35=AO255),VLOOKUP(38,AN218:BQ290,20,FALSE),IF(AND(AR2=6,AD35=AO256),VLOOKUP(39,AN218:BQ290,20,FALSE),IF(AND(AR2=6,AD35=AO257),VLOOKUP(40,AN218:BQ290,20,FALSE),IF(AND(AR2=6,AD35=AO258),VLOOKUP(41,AN218:BQ290,20,FALSE),IF(AND(AR2=6,AD35=AO259),VLOOKUP(42,AN218:BQ290,20,FALSE),IF(AND(AR2=6,AD35=AO260),VLOOKUP(43,AN218:BQ290,20,FALSE),IF(AND(AR2=6,AD35=AO261),VLOOKUP(44,AN218:BQ290,20,FALSE),IF(AND(AR2=6,AD35=AO262),VLOOKUP(45,AN218:BQ290,20,FALSE),IF(AND(AR2=6,AD35=AO263),VLOOKUP(46,AN218:BQ290,20,FALSE),IF(AND(AR2=6,AD35=AO264),VLOOKUP(47,AN218:BQ290,20,FALSE),IF(AND(AR2=6,AD35=AO265),VLOOKUP(48,AN218:BQ290,20,FALSE),IF(AND(AR2=6,AD35=AO266),VLOOKUP(49,AN218:BQ290,20,FALSE),IF(AND(AR2=6,AD35=AO267),VLOOKUP(50,AN218:BQ290,20,FALSE),IF(AND(AR2=6,AD35=AO268),VLOOKUP(51,AN218:BQ290,20,FALSE),IF(AND(AR2=6,AD35=AO269),VLOOKUP(52,AN218:BQ290,20,FALSE),IF(AND(AR2=6,AD35=AO270),VLOOKUP(53,AN218:BQ290,20,FALSE),IF(AND(AR2=6,AD35=AO271),VLOOKUP(54,AN218:BQ290,20,FALSE),IF(AND(AR2=6,AD35=AO272),VLOOKUP(55,AN218:BQ290,20,FALSE),IF(AND(AR2=6,AD35=AO273),VLOOKUP(56,AN218:BQ290,20,FALSE),IF(AND(AR2=6,AD35=AO274),VLOOKUP(57,AN218:BQ290,20,FALSE),IF(AND(AR2=6,AD35=AO275),VLOOKUP(58,AN218:BQ290,20,FALSE),IF(AND(AR2=6,AD35=AO276),VLOOKUP(59,AN218:BQ290,20,FALSE),IF(AND(AR2=6,AD35=AO277),VLOOKUP(60,AN218:BQ290,20,FALSE),IF(AND(AR2=6,AD35=AO278),VLOOKUP(61,AN218:BQ290,20,FALSE),IF(AND(AR2=6,AD35=AO279),VLOOKUP(62,AN218:BQ290,20,FALSE),IF(AND(AR2=6,AD35=AO280),VLOOKUP(63,AN218:BQ290,20,FALSE),IF(AND(AR2=6,AD35=AO281),VLOOKUP(64,AN218:BQ290,20,FALSE))))))))))))))))))))))))))))))))))))))))))))))))))))))))))))))))) -> FALSE | BI28: cm4 | BJ28: Iy | BK28: =IF(AND(AR2=7,AD35=AO308),VLOOKUP(1,AN308:BB327,11,FALSE),IF(AND(AR2=7,AD35=AO309),VLOOKUP(2,AN308:BB327,11,FALSE),IF(AND(AR2=7,AD35=AO310),VLOOKUP(3,AN308:BB327,11,FALSE),IF(AND(AR2=7,AD35=AO311),VLOOKUP(4,AN308:BB327,11,FALSE),IF(AND(AR2=7,AD35=AO312),VLOOKUP(5,AN308:BB327,11,FALSE),IF(AND(AR2=7,AD35=AO313),VLOOKUP(6,AN308:BB327,11,FALSE),IF(AND(AR2=7,AD35=AO314),VLOOKUP(7,AN308:BB327,11,FALSE),IF(AND(AR2=7,AD35=AO315),VLOOKUP(8,AN308:BB327,11,FALSE),IF(AND(AR2=7,AD35=AO316),VLOOKUP(9,AN308:BB327,11,FALSE),IF(AND(AR2=7,AD35=AO317),VLOOKUP(10,AN308:BB327,11,FALSE),IF(AND(AR2=7,AD35=AO318),VLOOKUP(11,AN308:BB327,11,FALSE),IF(AND(AR2=7,AD35=AO319),VLOOKUP(12,AN308:BB327,11,FALSE),IF(AND(AR2=7,AD35=AO320),VLOOKUP(13,AN308:BB327,11,FALSE),IF(AND(AR2=7,AD35=AO321),VLOOKUP(14,AN308:BB327,11,FALSE),IF(AND(AR2=7,AD35=AO322),VLOOKUP(15,AN308:BB327,11,FALSE),IF(AND(AR2=7,AD35=AO323),VLOOKUP(16,AN308:BB327,11,FALSE),IF(AND(AR2=7,AD35=AO324),VLOOKUP(17,AN308:BB327,11,FALSE),IF(AND(AR2=7,AD35=AO325),VLOOKUP(18,AN308:BB327,11,FALSE),IF(AND(AR2=7,AD35=AO326),VLOOKUP(19,AN308:BB327,11,FALSE),IF(AND(AR2=7,AD35=AO327),VLOOKUP(20,AN308:BB327,11,FALSE))))))))))))))))))))) -> FALSE | BL28: cm4 | BM28: Iy | BN28: =IF(AND(AR2=8,AD35=AO1062),VLOOKUP(1,AN1062:BG1074,12,FALSE),IF(AND(AR2=8,AD35=AO1063),VLOOKUP(2,AN1062:BG1074,12,FALSE),IF(AND(AR2=8,AD35=AO1064),VLOOKUP(3,AN1062:BG1074,12,FALSE),IF(AND(AR2=8,AD35=AO1065),VLOOKUP(4,AN1062:BG1074,12,FALSE),IF(AND(AR2=8,AD35=AO1066),VLOOKUP(5,AN1062:BG1074,12,FALSE),IF(AND(AR2=8,AD35=AO1067),VLOOKUP(6,AN1062:BG1074,12,FALSE),IF(AND(AR2=8,AD35=AO1068),VLOOKUP(7,AN1062:BG1074,12,FALSE),IF(AND(AR2=8,AD35=AO1069),VLOOKUP(8,AN1062:BG1074,12,FALSE),IF(AND(AR2=8,AD35=AO1070),VLOOKUP(9,AN1062:BG1074,12,FALSE),IF(AND(AR2=8,AD35=AO1071),VLOOKUP(10,AN1062:BG1074,12,FALSE),IF(AND(AR2=8,AD35=AO1072),VLOOKUP(11,AN1062:BG1074,12,FALSE),IF(AND(AR2=8,AD35=AO1073),VLOOKUP(12,AN1062:BG1074,12,FALSE),IF(AND(AR2=8,AD35=AO1074),VLOOKUP(13,AN1062:BG1074,12,FALSE)))))))))))))) -> FALSE | BO28: cm4
AR29: Zx | AS29: =IF(AND(AR2=1,AD35=AO342),VLOOKUP(1,AN342:BC386,13,FALSE),IF(AND(AR2=1,AD35=AO343),VLOOKUP(2,AN342:BC386,13,FALSE),IF(AND(AR2=1,AD35=AO344),VLOOKUP(3,AN342:BC386,13,FALSE),IF(AND(AR2=1,AD35=AO345),VLOOKUP(4,AN342:BC386,13,FALSE),IF(AND(AR2=1,AD35=AO346),VLOOKUP(5,AN342:BC386,13,FALSE),IF(AND(AR2=1,AD35=AO347),VLOOKUP(6,AN342:BC386,13,FALSE),IF(AND(AR2=1,AD35=AO348),VLOOKUP(7,AN342:BC386,13,FALSE),IF(AND(AR2=1,AD35=AO349),VLOOKUP(8,AN342:BC386,13,FALSE),IF(AND(AR2=1,AD35=AO350),VLOOKUP(9,AN342:BC386,13,FALSE),IF(AND(AR2=1,AD35=AO351),VLOOKUP(10,AN342:BC386,13,FALSE),IF(AND(AR2=1,AD35=AO352),VLOOKUP(11,AN342:BC386,13,FALSE),IF(AND(AR2=1,AD35=AO353),VLOOKUP(12,AN342:BC386,13,FALSE),IF(AND(AR2=1,AD35=AO354),VLOOKUP(13,AN342:BC386,13,FALSE),IF(AND(AR2=1,AD35=AO355),VLOOKUP(14,AN342:BC386,13,FALSE),IF(AND(AR2=1,AD35=AO356),VLOOKUP(15,AN342:BC386,13,FALSE),IF(AND(AR2=1,AD35=AO357),VLOOKUP(16,AN342:BC386,13,FALSE),IF(AND(AR2=1,AD35=AO358),VLOOKUP(17,AN342:BC386,13,FALSE),IF(AND(AR2=1,AD35=AO359),VLOOKUP(18,AN342:BC386,13,FALSE),IF(AND(AR2=1,AD35=AO360),VLOOKUP(19,AN342:BC386,13,FALSE),IF(AND(AR2=1,AD35=AO361),VLOOKUP(20,AN342:BC386,13,FALSE),IF(AND(AR2=1,AD35=AO362),VLOOKUP(21,AN342:BC386,13,FALSE),IF(AND(AR2=1,AD35=AO363),VLOOKUP(22,AN342:BC386,13,FALSE),IF(AND(AR2=1,AD35=AO364),VLOOKUP(23,AN342:BC386,13,FALSE),IF(AND(AR2=1,AD35=AO365),VLOOKUP(24,AN342:BC386,13,FALSE),IF(AND(AR2=1,AD35=AO366),VLOOKUP(25,AN342:BC386,13,FALSE),IF(AND(AR2=1,AD35=AO367),VLOOKUP(26,AN342:BC386,13,FALSE),IF(AND(AR2=1,AD35=AO368),VLOOKUP(27,AN342:BC386,13,FALSE),IF(AND(AR2=1,AD35=AO369),VLOOKUP(28,AN342:BC386,13,FALSE),IF(AND(AR2=1,AD35=AO370),VLOOKUP(29,AN342:BC386,13,FALSE),IF(AND(AR2=1,AD35=AO371),VLOOKUP(30,AN342:BC386,13,FALSE),IF(AND(AR2=1,AD35=AO372),VLOOKUP(31,AN342:BC386,13,FALSE),IF(AND(AR2=1,AD35=AO373),VLOOKUP(32,AN342:BC386,13,FALSE),IF(AND(AR2=1,AD35=AO374),VLOOKUP(33,AN342:BC386,13,FALSE),IF(AND(AR2=1,AD35=AO375),VLOOKUP(34,AN342:BC386,13,FALSE),IF(AND(AR2=1,AD35=AO376),VLOOKUP(35,AN342:BC386,13,FALSE),IF(AND(AR2=1,AD35=AO377),VLOOKUP(36,AN342:BC386,13,FALSE),IF(AND(AR2=1,AD35=AO378),VLOOKUP(37,AN342:BC386,13,FALSE),IF(AND(AR2=1,AD35=AO379),VLOOKUP(38,AN342:BC386,13,FALSE),IF(AND(AR2=1,AD35=AO380),VLOOKUP(39,AN342:BC386,13,FALSE),IF(AND(AR2=1,AD35=AO381),VLOOKUP(40,AN342:BC386,13,FALSE),IF(AND(AR2=1,AD35=AO382),VLOOKUP(41,AN342:BC386,13,FALSE),IF(AND(AR2=1,AD35=AO383),VLOOKUP(42,AN342:BC386,13,FALSE),IF(AND(AR2=1,AD35=AO384),VLOOKUP(43,AN342:BC386,13,FALSE),IF(AND(AR2=1,AD35=AO385),VLOOKUP(44,AN342:BC386,13,FALSE),IF(AND(AR2=1,AD35=AO386),VLOOKUP(45,AN342:BC386,13,FALSE)))))))))))))))))))))))))))))))))))))))))))))) -> 21.3 | AT29: cm3 | AU29: Zx | AV29: =IF(AND(AR2=2,AD35=AO443),VLOOKUP(1,AN443:AW474,9,FALSE),IF(AND(AR2=2,AD35=AO444),VLOOKUP(2,AN443:AW474,9,FALSE),IF(AND(AR2=2,AD35=AO445),VLOOKUP(3,AN443:AW474,9,FALSE),IF(AND(AR2=2,AD35=AO446),VLOOKUP(4,AN443:AW474,9,FALSE),IF(AND(AR2=2,AD35=AO447),VLOOKUP(5,AN443:AW474,9,FALSE),IF(AND(AR2=2,AD35=AO448),VLOOKUP(6,AN443:AW474,9,FALSE),IF(AND(AR2=2,AD35=AO449),VLOOKUP(7,AN443:AW474,9,FALSE),IF(AND(AR2=2,AD35=AO450),VLOOKUP(8,AN443:AW474,9,FALSE),IF(AND(AR2=2,AD35=AO451),VLOOKUP(9,AN443:AW474,9,FALSE),IF(AND(AR2=2,AD35=AO452),VLOOKUP(10,AN443:AW474,9,FALSE),IF(AND(AR2=2,AD35=AO453),VLOOKUP(11,AN443:AW474,9,FALSE),IF(AND(AR2=2,AD35=AO454),VLOOKUP(12,AN443:AW474,9,FALSE),IF(AND(AR2=2,AD35=AO455),VLOOKUP(13,AN443:AW474,9,FALSE),IF(AND(AR2=2,AD35=AO456),VLOOKUP(14,AN443:AW474,9,FALSE),IF(AND(AR2=2,AD35=AO457),VLOOKUP(15,AN443:AW474,9,FALSE),IF(AND(AR2=2,AD35=AO458),VLOOKUP(16,AN443:AW474,9,FALSE),IF(AND(AR2=2,AD35=AO459),VLOOKUP(17,AN443:AW474,9,FALSE),IF(AND(AR2=2,AD35=AO460),VLOOKUP(18,AN443:AW474,9,FALSE),IF(AND(AR2=2,AD35=AO461),VLOOKUP(19,AN443:AW474,9,FALSE),IF(AND(AR2=2,AD35=AO462),VLOOKUP(20,AN443:AW474,9,FALSE),IF(AND(AR2=2,AD35=AO463),VLOOKUP(21,AN443:AW474,9,FALSE),IF(AND(AR2=2,AD35=AO464),VLOOKUP(22,AN443:AW474,9,FALSE),IF(AND(AR2=2,AD35=AO465),VLOOKUP(23,AN443:AW474,9,FALSE),IF(AND(AR2=2,AD35=AO466),VLOOKUP(24,AN443:AW474,9,FALSE),IF(AND(AR2=2,AD35=AO467),VLOOKUP(25,AN443:AW474,9,FALSE),IF(AND(AR2=2,AD35=AO468),VLOOKUP(26,AN443:AW474,9,FALSE),IF(AND(AR2=2,AD35=AO469),VLOOKUP(27,AN443:AW474,9,FALSE),IF(AND(AR2=2,AD35=AO470),VLOOKUP(28,AN443:AW474,9,FALSE),IF(AND(AR2=2,AD35=AO471),VLOOKUP(29,AN443:AW474,9,FALSE),IF(AND(AR2=2,AD35=AO472),VLOOKUP(30,AN443:AW474,9,FALSE),IF(AND(AR2=2,AD35=AO473),VLOOKUP(31,AN443:AW474,9,FALSE),IF(AND(AR2=2,AD35=AO474),VLOOKUP(32,AN443:AW474,9,FALSE))))))))))))))))))))))))))))))))) -> FALSE | AW29: cm3 | AX29: Zx | AY29: =IF(AND(AR2=3,AD35=AO402),VLOOKUP(1,AN402:AZ427,10,FALSE),IF(AND(AR2=3,AD35=AO403),VLOOKUP(2,AN402:AZ427,10,FALSE),IF(AND(AR2=3,AD35=AO404),VLOOKUP(3,AN402:AZ427,10,FALSE),IF(AND(AR2=3,AD35=AO405),VLOOKUP(4,AN402:AZ427,10,FALSE),IF(AND(AR2=3,AD35=AO406),VLOOKUP(5,AN402:AZ427,10,FALSE),IF(AND(AR2=3,AD35=AO407),VLOOKUP(6,AN402:AZ427,10,FALSE),IF(AND(AR2=3,AD35=AO408),VLOOKUP(7,AN402:AZ427,10,FALSE),IF(AND(AR2=3,AD35=AO409),VLOOKUP(8,AN402:AZ427,10,FALSE),IF(AND(AR2=3,AD35=AO410),VLOOKUP(9,AN402:AZ427,10,FALSE),IF(AND(AR2=3,AD35=AO411),VLOOKUP(10,AN402:AZ427,10,FALSE),IF(AND(AR2=3,AD35=AO412),VLOOKUP(11,AN402:AZ427,10,FALSE),IF(AND(AR2=3,AD35=AO413),VLOOKUP(12,AN402:AZ427,10,FALSE),IF(AND(AR2=3,AD35=AO414),VLOOKUP(13,AN402:AZ427,10,FALSE),IF(AND(AR2=3,AD35=AO415),VLOOKUP(14,AN402:AZ427,10,FALSE),IF(AND(AR2=3,AD35=AO416),VLOOKUP(15,AN402:AZ427,10,FALSE),IF(AND(AR2=3,AD35=AO417),VLOOKUP(16,AN402:AZ427,10,FALSE),IF(AND(AR2=3,AD35=AO418),VLOOKUP(17,AN402:AZ427,10,FALSE),IF(AND(AR2=3,AD35=AO419),VLOOKUP(18,AN402:AZ427,10,FALSE),IF(AND(AR2=3,AD35=AO420),VLOOKUP(19,AN402:AZ427,10,FALSE),IF(AND(AR2=3,AD35=AO421),VLOOKUP(20,AN402:AZ427,10,FALSE),IF(AND(AR2=3,AD35=AO422),VLOOKUP(21,AN402:AZ427,10,FALSE),IF(AND(AR2=3,AD35=AO423),VLOOKUP(22,AN402:AZ427,10,FALSE),IF(AND(AR2=3,AD35=AO424),VLOOKUP(23,AN402:AZ427,10,FALSE),IF(AND(AR2=3,AD35=AO425),VLOOKUP(24,AN402:AZ427,10,FALSE),IF(AND(AR2=3,AD35=AO426),VLOOKUP(25,AN402:AZ427,10,FALSE),IF(AND(AR2=3,AD35=AO427),VLOOKUP(26,AN402:AZ427,10,FALSE))))))))))))))))))))))))))) -> FALSE | AZ29: cm3 | BA29: Zx | BB29: =IF(AND(AR2=4,AD35=AO157),VLOOKUP(1,AN157:BG202,19,FALSE),IF(AND(AR2=4,AD35=AO158),VLOOKUP(2,AN157:BG202,19,FALSE),IF(AND(AR2=4,AD35=AO159),VLOOKUP(3,AN157:BG202,19,FALSE),IF(AND(AR2=4,AD35=AO160),VLOOKUP(4,AN157:BG202,19,FALSE),IF(AND(AR2=4,AD35=AO161),VLOOKUP(5,AN157:BG202,19,FALSE),IF(AND(AR2=4,AD35=AO162),VLOOKUP(6,AN157:BG202,19,FALSE),IF(AND(AR2=4,AD35=AO163),VLOOKUP(7,AN157:BG202,19,FALSE),IF(AND(AR2=4,AD35=AO164),VLOOKUP(8,AN157:BG202,19,FALSE),IF(AND(AR2=4,AD35=AO165),VLOOKUP(9,AN157:BG202,19,FALSE),IF(AND(AR2=4,AD35=AO166),VLOOKUP(10,AN157:BG202,19,FALSE),IF(AND(AR2=4,AD35=AO167),VLOOKUP(11,AN157:BG202,19,FALSE),IF(AND(AR2=4,AD35=AO168),VLOOKUP(12,AN157:BG202,19,FALSE),IF(AND(AR2=4,AD35=AO169),VLOOKUP(13,AN157:BG202,19,FALSE),IF(AND(AR2=4,AD35=AO170),VLOOKUP(14,AN157:BG202,19,FALSE),IF(AND(AR2=4,AD35=AO171),VLOOKUP(15,AN157:BG202,19,FALSE),IF(AND(AR2=4,AD35=AO172),VLOOKUP(16,AN157:BG202,19,FALSE),IF(AND(AR2=4,AD35=AO173),VLOOKUP(17,AN157:BG202,19,FALSE),IF(AND(AR2=4,AD35=AO174),VLOOKUP(18,AN157:BG202,19,FALSE),IF(AND(AR2=4,AD35=AO175),VLOOKUP(19,AN157:BG202,19,FALSE),IF(AND(AR2=4,AD35=AO176),VLOOKUP(20,AN157:BG202,19,FALSE),IF(AND(AR2=4,AD35=AO177),VLOOKUP(21,AN157:BG202,19,FALSE),IF(AND(AR2=4,AD35=AO178),VLOOKUP(22,AN157:BG202,19,FALSE),IF(AND(AR2=4,AD35=AO179),VLOOKUP(23,AN157:BG202,19,FALSE),IF(AND(AR2=4,AD35=AO180),VLOOKUP(24,AN157:BG202,19,FALSE),IF(AND(AR2=4,AD35=AO181),VLOOKUP(25,AN157:BG202,19,FALSE),IF(AND(AR2=4,AD35=AO182),VLOOKUP(26,AN157:BG202,19,FALSE),IF(AND(AR2=4,AD35=AO183),VLOOKUP(27,AN157:BG202,19,FALSE),IF(AND(AR2=4,AD35=AO184),VLOOKUP(28,AN157:BG202,19,FALSE),IF(AND(AR2=4,AD35=AO185),VLOOKUP(29,AN157:BG202,19,FALSE),IF(AND(AR2=4,AD35=AO186),VLOOKUP(30,AN157:BG202,19,FALSE),IF(AND(AR2=4,AD35=AO187),VLOOKUP(31,AN157:BG202,19,FALSE),IF(AND(AR2=4,AD35=AO188),VLOOKUP(32,AN157:BG202,19,FALSE),IF(AND(AR2=4,AD35=AO189),VLOOKUP(33,AN157:BG202,19,FALSE),IF(AND(AR2=4,AD35=AO190),VLOOKUP(34,AN157:BG202,19,FALSE),IF(AND(AR2=4,AD35=AO191),VLOOKUP(35,AN157:BG202,19,FALSE),IF(AND(AR2=4,AD35=AO192),VLOOKUP(36,AN157:BG202,19,FALSE),IF(AND(AR2=4,AD35=AO193),VLOOKUP(37,AN157:BG202,19,FALSE),IF(AND(AR2=4,AD35=AO194),VLOOKUP(38,AN157:BG202,19,FALSE),IF(AND(AR2=4,AD35=AO195),VLOOKUP(39,AN157:BG202,19,FALSE),IF(AND(AR2=4,AD35=AO196),VLOOKUP(40,AN157:BG202,19,FALSE),IF(AND(AR2=4,AD35=AO197),VLOOKUP(41,AN157:BG202,19,FALSE),IF(AND(AR2=4,AD35=AO198),VLOOKUP(42,AN157:BG202,19,FALSE),IF(AND(AR2=4,AD35=AO199),VLOOKUP(43,AN157:BG202,19,FALSE),IF(AND(AR2=4,AD35=AO200),VLOOKUP(44,AN157:BG202,19,FALSE),IF(AND(AR2=4,AD35=AO201),VLOOKUP(45,AN157:BG202,19,FALSE),IF(AND(AR2=4,AD35=AO202),VLOOKUP(46,AN157:BG202,19,FALSE))))))))))))))))))))))))))))))))))))))))))))))) -> FALSE | BC29: cm3 | BD29: Zx | BE29: =IF(AND(AR2=5,AD35=AO126),VLOOKUP(1,AN126:BD141,16,FALSE),IF(AND(AR2=5,AD35=AO127),VLOOKUP(2,AN126:BD141,16,FALSE),IF(AND(AR2=5,AD35=AO128),VLOOKUP(3,AN126:BD141,16,FALSE),IF(AND(AR2=5,AD35=AO129),VLOOKUP(4,AN126:BD141,16,FALSE),IF(AND(AR2=5,AD35=AO130),VLOOKUP(5,AN126:BD141,16,FALSE),IF(AND(AR2=5,AD35=AO131),VLOOKUP(6,AN126:BD141,16,FALSE),IF(AND(AR2=5,AD35=AO132),VLOOKUP(7,AN126:BD141,16,FALSE),IF(AND(AR2=5,AD35=AO133),VLOOKUP(8,AN126:BD141,16,FALSE),IF(AND(AR2=5,AD35=AO134),VLOOKUP(9,AN126:BD141,16,FALSE),IF(AND(AR2=5,AD35=AO135),VLOOKUP(10,AN126:BD141,16,FALSE),IF(AND(AR2=5,AD35=AO136),VLOOKUP(11,AN126:BD141,16,FALSE),IF(AND(AR2=5,AD35=AO137),VLOOKUP(12,AN126:BD141,16,FALSE),IF(AND(AR2=5,AD35=AO138),VLOOKUP(13,AN126:BD141,16,FALSE),IF(AND(AR2=5,AD35=AO139),VLOOKUP(14,AN126:BD141,16,FALSE),IF(AND(AR2=5,AD35=AO140),VLOOKUP(15,AN126:BD141,16,FALSE),IF(AND(AR2=5,AD35=AO141),VLOOKUP(16,AN126:BD141,16,FALSE))))))))))))))))) -> FALSE | BF29: cm3 | BG29: Zx | BH29: =IF(AND(AR2=6,AD35=AO218),VLOOKUP(1,AN218:BQ290,26,FALSE),IF(AND(AR2=6,AD35=AO219),VLOOKUP(2,AN218:BQ290,26,FALSE),IF(AND(AR2=6,AD35=AO220),VLOOKUP(3,AN218:BQ290,26,FALSE),IF(AND(AR2=6,AD35=AO221),VLOOKUP(4,AN218:BQ290,26,FALSE),IF(AND(AR2=6,AD35=AO222),VLOOKUP(5,AN218:BQ290,26,FALSE),IF(AND(AR2=6,AD35=AO223),VLOOKUP(6,AN218:BQ290,26,FALSE),IF(AND(AR2=6,AD35=AO224),VLOOKUP(7,AN218:BQ290,26,FALSE),IF(AND(AR2=6,AD35=AO225),VLOOKUP(8,AN218:BQ290,26,FALSE),IF(AND(AR2=6,AD35=AO226),VLOOKUP(9,AN218:BQ290,26,FALSE),IF(AND(AR2=6,AD35=AO227),VLOOKUP(10,AN218:BQ290,26,FALSE),IF(AND(AR2=6,AD35=AO228),VLOOKUP(11,AN218:BQ290,26,FALSE),IF(AND(AR2=6,AD35=AO229),VLOOKUP(12,AN218:BQ290,26,FALSE),IF(AND(AR2=6,AD35=AO230),VLOOKUP(13,AN218:BQ290,26,FALSE),IF(AND(AR2=6,AD35=AO231),VLOOKUP(14,AN218:BQ290,26,FALSE),IF(AND(AR2=6,AD35=AO232),VLOOKUP(15,AN218:BQ290,26,FALSE),IF(AND(AR2=6,AD35=AO233),VLOOKUP(16,AN218:BQ290,26,FALSE),IF(AND(AR2=6,AD35=AO234),VLOOKUP(17,AN218:BQ290,26,FALSE),IF(AND(AR2=6,AD35=AO235),VLOOKUP(18,AN218:BQ290,26,FALSE),IF(AND(AR2=6,AD35=AO236),VLOOKUP(19,AN218:BQ290,26,FALSE),IF(AND(AR2=6,AD35=AO237),VLOOKUP(20,AN218:BQ290,26,FALSE),IF(AND(AR2=6,AD35=AO238),VLOOKUP(21,AN218:BQ290,26,FALSE),IF(AND(AR2=6,AD35=AO239),VLOOKUP(22,AN218:BQ290,26,FALSE),IF(AND(AR2=6,AD35=AO240),VLOOKUP(23,AN218:BQ290,26,FALSE),IF(AND(AR2=6,AD35=AO241),VLOOKUP(24,AN218:BQ290,26,FALSE),IF(AND(AR2=6,AD35=AO242),VLOOKUP(25,AN218:BQ290,26,FALSE),IF(AND(AR2=6,AD35=AO243),VLOOKUP(26,AN218:BQ290,26,FALSE),IF(AND(AR2=6,AD35=AO244),VLOOKUP(27,AN218:BQ290,26,FALSE),IF(AND(AR2=6,AD35=AO245),VLOOKUP(28,AN218:BQ290,26,FALSE),IF(AND(AR2=6,AD35=AO246),VLOOKUP(29,AN218:BQ290,26,FALSE),IF(AND(AR2=6,AD35=AO247),VLOOKUP(30,AN218:BQ290,26,FALSE),IF(AND(AR2=6,AD35=AO248),VLOOKUP(31,AN218:BQ290,26,FALSE),IF(AND(AR2=6,AD35=AO249),VLOOKUP(32,AN218:BQ290,26,FALSE),IF(AND(AR2=6,AD35=AO250),VLOOKUP(33,AN218:BQ290,26,FALSE),IF(AND(AR2=6,AD35=AO251),VLOOKUP(34,AN218:BQ290,26,FALSE),IF(AND(AR2=6,AD35=AO252),VLOOKUP(35,AN218:BQ290,26,FALSE),IF(AND(AR2=6,AD35=AO253),VLOOKUP(36,AN218:BQ290,26,FALSE),IF(AND(AR2=6,AD35=AO254),VLOOKUP(37,AN218:BQ290,26,FALSE),IF(AND(AR2=6,AD35=AO255),VLOOKUP(38,AN218:BQ290,26,FALSE),IF(AND(AR2=6,AD35=AO256),VLOOKUP(39,AN218:BQ290,26,FALSE),IF(AND(AR2=6,AD35=AO257),VLOOKUP(40,AN218:BQ290,26,FALSE),IF(AND(AR2=6,AD35=AO258),VLOOKUP(41,AN218:BQ290,26,FALSE),IF(AND(AR2=6,AD35=AO259),VLOOKUP(42,AN218:BQ290,26,FALSE),IF(AND(AR2=6,AD35=AO260),VLOOKUP(43,AN218:BQ290,26,FALSE),IF(AND(AR2=6,AD35=AO261),VLOOKUP(44,AN218:BQ290,26,FALSE),IF(AND(AR2=6,AD35=AO262),VLOOKUP(45,AN218:BQ290,26,FALSE),IF(AND(AR2=6,AD35=AO263),VLOOKUP(46,AN218:BQ290,26,FALSE),IF(AND(AR2=6,AD35=AO264),VLOOKUP(47,AN218:BQ290,26,FALSE),IF(AND(AR2=6,AD35=AO265),VLOOKUP(48,AN218:BQ290,26,FALSE),IF(AND(AR2=6,AD35=AO266),VLOOKUP(49,AN218:BQ290,26,FALSE),IF(AND(AR2=6,AD35=AO267),VLOOKUP(50,AN218:BQ290,26,FALSE),IF(AND(AR2=6,AD35=AO268),VLOOKUP(51,AN218:BQ290,26,FALSE),IF(AND(AR2=6,AD35=AO269),VLOOKUP(52,AN218:BQ290,26,FALSE),IF(AND(AR2=6,AD35=AO270),VLOOKUP(53,AN218:BQ290,26,FALSE),IF(AND(AR2=6,AD35=AO271),VLOOKUP(54,AN218:BQ290,26,FALSE),IF(AND(AR2=6,AD35=AO272),VLOOKUP(55,AN218:BQ290,26,FALSE),IF(AND(AR2=6,AD35=AO273),VLOOKUP(56,AN218:BQ290,26,FALSE),IF(AND(AR2=6,AD35=AO274),VLOOKUP(57,AN218:BQ290,26,FALSE),IF(AND(AR2=6,AD35=AO275),VLOOKUP(58,AN218:BQ290,26,FALSE),IF(AND(AR2=6,AD35=AO276),VLOOKUP(59,AN218:BQ290,26,FALSE),IF(AND(AR2=6,AD35=AO277),VLOOKUP(60,AN218:BQ290,26,FALSE),IF(AND(AR2=6,AD35=AO278),VLOOKUP(61,AN218:BQ290,26,FALSE),IF(AND(AR2=6,AD35=AO279),VLOOKUP(62,AN218:BQ290,26,FALSE),IF(AND(AR2=6,AD35=AO280),VLOOKUP(63,AN218:BQ290,26,FALSE),IF(AND(AR2=6,AD35=AO281),VLOOKUP(64,AN218:BQ290,26,FALSE))))))))))))))))))))))))))))))))))))))))))))))))))))))))))))))))) -> FALSE | BI29: cm3 | BJ29: Zx | BK29: =IF(AND(AR2=7,AD35=AO308),VLOOKUP(1,AN308:BB327,14,FALSE),IF(AND(AR2=7,AD35=AO309),VLOOKUP(2,AN308:BB327,14,FALSE),IF(AND(AR2=7,AD35=AO310),VLOOKUP(3,AN308:BB327,14,FALSE),IF(AND(AR2=7,AD35=AO311),VLOOKUP(4,AN308:BB327,14,FALSE),IF(AND(AR2=7,AD35=AO312),VLOOKUP(5,AN308:BB327,14,FALSE),IF(AND(AR2=7,AD35=AO313),VLOOKUP(6,AN308:BB327,14,FALSE),IF(AND(AR2=7,AD35=AO314),VLOOKUP(7,AN308:BB327,14,FALSE),IF(AND(AR2=7,AD35=AO315),VLOOKUP(8,AN308:BB327,14,FALSE),IF(AND(AR2=7,AD35=AO316),VLOOKUP(9,AN308:BB327,14,FALSE),IF(AND(AR2=7,AD35=AO317),VLOOKUP(10,AN308:BB327,14,FALSE),IF(AND(AR2=7,AD35=AO318),VLOOKUP(11,AN308:BB327,14,FALSE),IF(AND(AR2=7,AD35=AO319),VLOOKUP(12,AN308:BB327,14,FALSE),IF(AND(AR2=7,AD35=AO320),VLOOKUP(13,AN308:BB327,14,FALSE),IF(AND(AR2=7,AD35=AO321),VLOOKUP(14,AN308:BB327,14,FALSE),IF(AND(AR2=7,AD35=AO322),VLOOKUP(15,AN308:BB327,14,FALSE),IF(AND(AR2=7,AD35=AO323),VLOOKUP(16,AN308:BB327,14,FALSE),IF(AND(AR2=7,AD35=AO324),VLOOKUP(17,AN308:BB327,14,FALSE),IF(AND(AR2=7,AD35=AO325),VLOOKUP(18,AN308:BB327,14,FALSE),IF(AND(AR2=7,AD35=AO326),VLOOKUP(19,AN308:BB327,14,FALSE),IF(AND(AR2=7,AD35=AO327),VLOOKUP(20,AN308:BB327,14,FALSE))))))))))))))))))))) -> FALSE | BL29: cm3 | BM29: Zx | BN29: =IF(AND(AR2=8,AD35=AO1062),VLOOKUP(1,AN1062:BG1074,19,FALSE),IF(AND(AR2=8,AD35=AO1063),VLOOKUP(2,AN1062:BG1074,19,FALSE),IF(AND(AR2=8,AD35=AO1064),VLOOKUP(3,AN1062:BG1074,19,FALSE),IF(AND(AR2=8,AD35=AO1065),VLOOKUP(4,AN1062:BG1074,19,FALSE),IF(AND(AR2=8,AD35=AO1066),VLOOKUP(5,AN1062:BG1074,19,FALSE),IF(AND(AR2=8,AD35=AO1067),VLOOKUP(6,AN1062:BG1074,19,FALSE),IF(AND(AR2=8,AD35=AO1068),VLOOKUP(7,AN1062:BG1074,19,FALSE),IF(AND(AR2=8,AD35=AO1069),VLOOKUP(8,AN1062:BG1074,19,FALSE),IF(AND(AR2=8,AD35=AO1070),VLOOKUP(9,AN1062:BG1074,19,FALSE),IF(AND(AR2=8,AD35=AO1071),VLOOKUP(10,AN1062:BG1074,19,FALSE),IF(AND(AR2=8,AD35=AO1072),VLOOKUP(11,AN1062:BG1074,19,FALSE),IF(AND(AR2=8,AD35=AO1073),VLOOKUP(12,AN1062:BG1074,19,FALSE),IF(AND(AR2=8,AD35=AO1074),VLOOKUP(13,AN1062:BG1074,19,FALSE)))))))))))))) -> FALSE | BO29: cm3
AR30: Zy | AS30: =IF(AND(AR2=1,AD35=AO342),VLOOKUP(1,AN342:BC386,14,FALSE),IF(AND(AR2=1,AD35=AO343),VLOOKUP(2,AN342:BC386,14,FALSE),IF(AND(AR2=1,AD35=AO344),VLOOKUP(3,AN342:BC386,14,FALSE),IF(AND(AR2=1,AD35=AO345),VLOOKUP(4,AN342:BC386,14,FALSE),IF(AND(AR2=1,AD35=AO346),VLOOKUP(5,AN342:BC386,14,FALSE),IF(AND(AR2=1,AD35=AO347),VLOOKUP(6,AN342:BC386,14,FALSE),IF(AND(AR2=1,AD35=AO348),VLOOKUP(7,AN342:BC386,14,FALSE),IF(AND(AR2=1,AD35=AO349),VLOOKUP(8,AN342:BC386,14,FALSE),IF(AND(AR2=1,AD35=AO350),VLOOKUP(9,AN342:BC386,14,FALSE),IF(AND(AR2=1,AD35=AO351),VLOOKUP(10,AN342:BC386,14,FALSE),IF(AND(AR2=1,AD35=AO352),VLOOKUP(11,AN342:BC386,14,FALSE),IF(AND(AR2=1,AD35=AO353),VLOOKUP(12,AN342:BC386,14,FALSE),IF(AND(AR2=1,AD35=AO354),VLOOKUP(13,AN342:BC386,14,FALSE),IF(AND(AR2=1,AD35=AO355),VLOOKUP(14,AN342:BC386,14,FALSE),IF(AND(AR2=1,AD35=AO356),VLOOKUP(15,AN342:BC386,14,FALSE),IF(AND(AR2=1,AD35=AO357),VLOOKUP(16,AN342:BC386,14,FALSE),IF(AND(AR2=1,AD35=AO358),VLOOKUP(17,AN342:BC386,14,FALSE),IF(AND(AR2=1,AD35=AO359),VLOOKUP(18,AN342:BC386,14,FALSE),IF(AND(AR2=1,AD35=AO360),VLOOKUP(19,AN342:BC386,14,FALSE),IF(AND(AR2=1,AD35=AO361),VLOOKUP(20,AN342:BC386,14,FALSE),IF(AND(AR2=1,AD35=AO362),VLOOKUP(21,AN342:BC386,14,FALSE),IF(AND(AR2=1,AD35=AO363),VLOOKUP(22,AN342:BC386,14,FALSE),IF(AND(AR2=1,AD35=AO364),VLOOKUP(23,AN342:BC386,14,FALSE),IF(AND(AR2=1,AD35=AO365),VLOOKUP(24,AN342:BC386,14,FALSE),IF(AND(AR2=1,AD35=AO366),VLOOKUP(25,AN342:BC386,14,FALSE),IF(AND(AR2=1,AD35=AO367),VLOOKUP(26,AN342:BC386,14,FALSE),IF(AND(AR2=1,AD35=AO368),VLOOKUP(27,AN342:BC386,14,FALSE),IF(AND(AR2=1,AD35=AO369),VLOOKUP(28,AN342:BC386,14,FALSE),IF(AND(AR2=1,AD35=AO370),VLOOKUP(29,AN342:BC386,14,FALSE),IF(AND(AR2=1,AD35=AO371),VLOOKUP(30,AN342:BC386,14,FALSE),IF(AND(AR2=1,AD35=AO372),VLOOKUP(31,AN342:BC386,14,FALSE),IF(AND(AR2=1,AD35=AO373),VLOOKUP(32,AN342:BC386,14,FALSE),IF(AND(AR2=1,AD35=AO374),VLOOKUP(33,AN342:BC386,14,FALSE),IF(AND(AR2=1,AD35=AO375),VLOOKUP(34,AN342:BC386,14,FALSE),IF(AND(AR2=1,AD35=AO376),VLOOKUP(35,AN342:BC386,14,FALSE),IF(AND(AR2=1,AD35=AO377),VLOOKUP(36,AN342:BC386,14,FALSE),IF(AND(AR2=1,AD35=AO378),VLOOKUP(37,AN342:BC386,14,FALSE),IF(AND(AR2=1,AD35=AO379),VLOOKUP(38,AN342:BC386,14,FALSE),IF(AND(AR2=1,AD35=AO380),VLOOKUP(39,AN342:BC386,14,FALSE),IF(AND(AR2=1,AD35=AO381),VLOOKUP(40,AN342:BC386,14,FALSE),IF(AND(AR2=1,AD35=AO382),VLOOKUP(41,AN342:BC386,14,FALSE),IF(AND(AR2=1,AD35=AO383),VLOOKUP(42,AN342:BC386,14,FALSE),IF(AND(AR2=1,AD35=AO384),VLOOKUP(43,AN342:BC386,14,FALSE),IF(AND(AR2=1,AD35=AO385),VLOOKUP(44,AN342:BC386,14,FALSE),IF(AND(AR2=1,AD35=AO386),VLOOKUP(45,AN342:BC386,14,FALSE)))))))))))))))))))))))))))))))))))))))))))))) -> 7.81 | AT30: cm3 | AU30: Zy | AV30: =IF(AND(AR2=2,AD35=AO443),VLOOKUP(1,AN443:AW474,9,FALSE),IF(AND(AR2=2,AD35=AO444),VLOOKUP(2,AN443:AW474,9,FALSE),IF(AND(AR2=2,AD35=AO445),VLOOKUP(3,AN443:AW474,9,FALSE),IF(AND(AR2=2,AD35=AO446),VLOOKUP(4,AN443:AW474,9,FALSE),IF(AND(AR2=2,AD35=AO447),VLOOKUP(5,AN443:AW474,9,FALSE),IF(AND(AR2=2,AD35=AO448),VLOOKUP(6,AN443:AW474,9,FALSE),IF(AND(AR2=2,AD35=AO449),VLOOKUP(7,AN443:AW474,9,FALSE),IF(AND(AR2=2,AD35=AO450),VLOOKUP(8,AN443:AW474,9,FALSE),IF(AND(AR2=2,AD35=AO451),VLOOKUP(9,AN443:AW474,9,FALSE),IF(AND(AR2=2,AD35=AO452),VLOOKUP(10,AN443:AW474,9,FALSE),IF(AND(AR2=2,AD35=AO453),VLOOKUP(11,AN443:AW474,9,FALSE),IF(AND(AR2=2,AD35=AO454),VLOOKUP(12,AN443:AW474,9,FALSE),IF(AND(AR2=2,AD35=AO455),VLOOKUP(13,AN443:AW474,9,FALSE),IF(AND(AR2=2,AD35=AO456),VLOOKUP(14,AN443:AW474,9,FALSE),IF(AND(AR2=2,AD35=AO457),VLOOKUP(15,AN443:AW474,9,FALSE),IF(AND(AR2=2,AD35=AO458),VLOOKUP(16,AN443:AW474,9,FALSE),IF(AND(AR2=2,AD35=AO459),VLOOKUP(17,AN443:AW474,9,FALSE),IF(AND(AR2=2,AD35=AO460),VLOOKUP(18,AN443:AW474,9,FALSE),IF(AND(AR2=2,AD35=AO461),VLOOKUP(19,AN443:AW474,9,FALSE),IF(AND(AR2=2,AD35=AO462),VLOOKUP(20,AN443:AW474,9,FALSE),IF(AND(AR2=2,AD35=AO463),VLOOKUP(21,AN443:AW474,9,FALSE),IF(AND(AR2=2,AD35=AO464),VLOOKUP(22,AN443:AW474,9,FALSE),IF(AND(AR2=2,AD35=AO465),VLOOKUP(23,AN443:AW474,9,FALSE),IF(AND(AR2=2,AD35=AO466),VLOOKUP(24,AN443:AW474,9,FALSE),IF(AND(AR2=2,AD35=AO467),VLOOKUP(25,AN443:AW474,9,FALSE),IF(AND(AR2=2,AD35=AO468),VLOOKUP(26,AN443:AW474,9,FALSE),IF(AND(AR2=2,AD35=AO469),VLOOKUP(27,AN443:AW474,9,FALSE),IF(AND(AR2=2,AD35=AO470),VLOOKUP(28,AN443:AW474,9,FALSE),IF(AND(AR2=2,AD35=AO471),VLOOKUP(29,AN443:AW474,9,FALSE),IF(AND(AR2=2,AD35=AO472),VLOOKUP(30,AN443:AW474,9,FALSE),IF(AND(AR2=2,AD35=AO473),VLOOKUP(31,AN443:AW474,9,FALSE),IF(AND(AR2=2,AD35=AO474),VLOOKUP(32,AN443:AW474,9,FALSE))))))))))))))))))))))))))))))))) -> FALSE | AW30: cm3 | AX30: Zy | AY30: =IF(AND(AR2=3,AD35=AO402),VLOOKUP(1,AN402:AZ427,11,FALSE),IF(AND(AR2=3,AD35=AO403),VLOOKUP(2,AN402:AZ427,11,FALSE),IF(AND(AR2=3,AD35=AO404),VLOOKUP(3,AN402:AZ427,11,FALSE),IF(AND(AR2=3,AD35=AO405),VLOOKUP(4,AN402:AZ427,11,FALSE),IF(AND(AR2=3,AD35=AO406),VLOOKUP(5,AN402:AZ427,11,FALSE),IF(AND(AR2=3,AD35=AO407),VLOOKUP(6,AN402:AZ427,11,FALSE),IF(AND(AR2=3,AD35=AO408),VLOOKUP(7,AN402:AZ427,11,FALSE),IF(AND(AR2=3,AD35=AO409),VLOOKUP(8,AN402:AZ427,11,FALSE),IF(AND(AR2=3,AD35=AO410),VLOOKUP(9,AN402:AZ427,11,FALSE),IF(AND(AR2=3,AD35=AO411),VLOOKUP(10,AN402:AZ427,11,FALSE),IF(AND(AR2=3,AD35=AO412),VLOOKUP(11,AN402:AZ427,11,FALSE),IF(AND(AR2=3,AD35=AO413),VLOOKUP(12,AN402:AZ427,11,FALSE),IF(AND(AR2=3,AD35=AO414),VLOOKUP(13,AN402:AZ427,11,FALSE),IF(AND(AR2=3,AD35=AO415),VLOOKUP(14,AN402:AZ427,11,FALSE),IF(AND(AR2=3,AD35=AO416),VLOOKUP(15,AN402:AZ427,11,FALSE),IF(AND(AR2=3,AD35=AO417),VLOOKUP(16,AN402:AZ427,11,FALSE),IF(AND(AR2=3,AD35=AO418),VLOOKUP(17,AN402:AZ427,11,FALSE),IF(AND(AR2=3,AD35=AO419),VLOOKUP(18,AN402:AZ427,11,FALSE),IF(AND(AR2=3,AD35=AO420),VLOOKUP(19,AN402:AZ427,11,FALSE),IF(AND(AR2=3,AD35=AO421),VLOOKUP(20,AN402:AZ427,11,FALSE),IF(AND(AR2=3,AD35=AO422),VLOOKUP(21,AN402:AZ427,11,FALSE),IF(AND(AR2=3,AD35=AO423),VLOOKUP(22,AN402:AZ427,11,FALSE),IF(AND(AR2=3,AD35=AO424),VLOOKUP(23,AN402:AZ427,11,FALSE),IF(AND(AR2=3,AD35=AO425),VLOOKUP(24,AN402:AZ427,11,FALSE),IF(AND(AR2=3,AD35=AO426),VLOOKUP(25,AN402:AZ427,11,FALSE),IF(AND(AR2=3,AD35=AO427),VLOOKUP(26,AN402:AZ427,11,FALSE))))))))))))))))))))))))))) -> FALSE | AZ30: cm3 | BA30: Zy | BB30: =BB29 -> FALSE | BC30: cm3 | BD30: Zy | BE30: =IF(AND(AR2=5,AD35=AO126),VLOOKUP(1,AN126:BD141,17,FALSE),IF(AND(AR2=5,AD35=AO127),VLOOKUP(2,AN126:BD141,17,FALSE),IF(AND(AR2=5,AD35=AO128),VLOOKUP(3,AN126:BD141,17,FALSE),IF(AND(AR2=5,AD35=AO129),VLOOKUP(4,AN126:BD141,17,FALSE),IF(AND(AR2=5,AD35=AO130),VLOOKUP(5,AN126:BD141,17,FALSE),IF(AND(AR2=5,AD35=AO131),VLOOKUP(6,AN126:BD141,17,FALSE),IF(AND(AR2=5,AD35=AO132),VLOOKUP(7,AN126:BD141,17,FALSE),IF(AND(AR2=5,AD35=AO133),VLOOKUP(8,AN126:BD141,17,FALSE),IF(AND(AR2=5,AD35=AO134),VLOOKUP(9,AN126:BD141,17,FALSE),IF(AND(AR2=5,AD35=AO135),VLOOKUP(10,AN126:BD141,17,FALSE),IF(AND(AR2=5,AD35=AO136),VLOOKUP(11,AN126:BD141,17,FALSE),IF(AND(AR2=5,AD35=AO137),VLOOKUP(12,AN126:BD141,17,FALSE),IF(AND(AR2=5,AD35=AO138),VLOOKUP(13,AN126:BD141,17,FALSE),IF(AND(AR2=5,AD35=AO139),VLOOKUP(14,AN126:BD141,17,FALSE),IF(AND(AR2=5,AD35=AO140),VLOOKUP(15,AN126:BD141,17,FALSE),IF(AND(AR2=5,AD35=AO141),VLOOKUP(16,AN126:BD141,17,FALSE))))))))))))))))) -> FALSE | BF30: cm3 | BG30: Zy | BH30: =IF(AND(AR2=6,AD35=AO218),VLOOKUP(1,AN218:BQ290,28,FALSE),IF(AND(AR2=6,AD35=AO219),VLOOKUP(2,AN218:BQ290,28,FALSE),IF(AND(AR2=6,AD35=AO220),VLOOKUP(3,AN218:BQ290,28,FALSE),IF(AND(AR2=6,AD35=AO221),VLOOKUP(4,AN218:BQ290,28,FALSE),IF(AND(AR2=6,AD35=AO222),VLOOKUP(5,AN218:BQ290,28,FALSE),IF(AND(AR2=6,AD35=AO223),VLOOKUP(6,AN218:BQ290,28,FALSE),IF(AND(AR2=6,AD35=AO224),VLOOKUP(7,AN218:BQ290,28,FALSE),IF(AND(AR2=6,AD35=AO225),VLOOKUP(8,AN218:BQ290,28,FALSE),IF(AND(AR2=6,AD35=AO226),VLOOKUP(9,AN218:BQ290,28,FALSE),IF(AND(AR2=6,AD35=AO227),VLOOKUP(10,AN218:BQ290,28,FALSE),IF(AND(AR2=6,AD35=AO228),VLOOKUP(11,AN218:BQ290,28,FALSE),IF(AND(AR2=6,AD35=AO229),VLOOKUP(12,AN218:BQ290,28,FALSE),IF(AND(AR2=6,AD35=AO230),VLOOKUP(13,AN218:BQ290,28,FALSE),IF(AND(AR2=6,AD35=AO231),VLOOKUP(14,AN218:BQ290,28,FALSE),IF(AND(AR2=6,AD35=AO232),VLOOKUP(15,AN218:BQ290,28,FALSE),IF(AND(AR2=6,AD35=AO233),VLOOKUP(16,AN218:BQ290,28,FALSE),IF(AND(AR2=6,AD35=AO234),VLOOKUP(17,AN218:BQ290,28,FALSE),IF(AND(AR2=6,AD35=AO235),VLOOKUP(18,AN218:BQ290,28,FALSE),IF(AND(AR2=6,AD35=AO236),VLOOKUP(19,AN218:BQ290,28,FALSE),IF(AND(AR2=6,AD35=AO237),VLOOKUP(20,AN218:BQ290,28,FALSE),IF(AND(AR2=6,AD35=AO238),VLOOKUP(21,AN218:BQ290,28,FALSE),IF(AND(AR2=6,AD35=AO239),VLOOKUP(22,AN218:BQ290,28,FALSE),IF(AND(AR2=6,AD35=AO240),VLOOKUP(23,AN218:BQ290,28,FALSE),IF(AND(AR2=6,AD35=AO241),VLOOKUP(24,AN218:BQ290,28,FALSE),IF(AND(AR2=6,AD35=AO242),VLOOKUP(25,AN218:BQ290,28,FALSE),IF(AND(AR2=6,AD35=AO243),VLOOKUP(26,AN218:BQ290,28,FALSE),IF(AND(AR2=6,AD35=AO244),VLOOKUP(27,AN218:BQ290,28,FALSE),IF(AND(AR2=6,AD35=AO245),VLOOKUP(28,AN218:BQ290,28,FALSE),IF(AND(AR2=6,AD35=AO246),VLOOKUP(29,AN218:BQ290,28,FALSE),IF(AND(AR2=6,AD35=AO247),VLOOKUP(30,AN218:BQ290,28,FALSE),IF(AND(AR2=6,AD35=AO248),VLOOKUP(31,AN218:BQ290,28,FALSE),IF(AND(AR2=6,AD35=AO249),VLOOKUP(32,AN218:BQ290,28,FALSE),IF(AND(AR2=6,AD35=AO250),VLOOKUP(33,AN218:BQ290,28,FALSE),IF(AND(AR2=6,AD35=AO251),VLOOKUP(34,AN218:BQ290,28,FALSE),IF(AND(AR2=6,AD35=AO252),VLOOKUP(35,AN218:BQ290,28,FALSE),IF(AND(AR2=6,AD35=AO253),VLOOKUP(36,AN218:BQ290,28,FALSE),IF(AND(AR2=6,AD35=AO254),VLOOKUP(37,AN218:BQ290,28,FALSE),IF(AND(AR2=6,AD35=AO255),VLOOKUP(38,AN218:BQ290,28,FALSE),IF(AND(AR2=6,AD35=AO256),VLOOKUP(39,AN218:BQ290,28,FALSE),IF(AND(AR2=6,AD35=AO257),VLOOKUP(40,AN218:BQ290,28,FALSE),IF(AND(AR2=6,AD35=AO258),VLOOKUP(41,AN218:BQ290,28,FALSE),IF(AND(AR2=6,AD35=AO259),VLOOKUP(42,AN218:BQ290,28,FALSE),IF(AND(AR2=6,AD35=AO260),VLOOKUP(43,AN218:BQ290,28,FALSE),IF(AND(AR2=6,AD35=AO261),VLOOKUP(44,AN218:BQ290,28,FALSE),IF(AND(AR2=6,AD35=AO262),VLOOKUP(45,AN218:BQ290,28,FALSE),IF(AND(AR2=6,AD35=AO263),VLOOKUP(46,AN218:BQ290,28,FALSE),IF(AND(AR2=6,AD35=AO264),VLOOKUP(47,AN218:BQ290,28,FALSE),IF(AND(AR2=6,AD35=AO265),VLOOKUP(48,AN218:BQ290,28,FALSE),IF(AND(AR2=6,AD35=AO266),VLOOKUP(49,AN218:BQ290,28,FALSE),IF(AND(AR2=6,AD35=AO267),VLOOKUP(50,AN218:BQ290,28,FALSE),IF(AND(AR2=6,AD35=AO268),VLOOKUP(51,AN218:BQ290,28,FALSE),IF(AND(AR2=6,AD35=AO269),VLOOKUP(52,AN218:BQ290,28,FALSE),IF(AND(AR2=6,AD35=AO270),VLOOKUP(53,AN218:BQ290,28,FALSE),IF(AND(AR2=6,AD35=AO271),VLOOKUP(54,AN218:BQ290,28,FALSE),IF(AND(AR2=6,AD35=AO272),VLOOKUP(55,AN218:BQ290,28,FALSE),IF(AND(AR2=6,AD35=AO273),VLOOKUP(56,AN218:BQ290,28,FALSE),IF(AND(AR2=6,AD35=AO274),VLOOKUP(57,AN218:BQ290,28,FALSE),IF(AND(AR2=6,AD35=AO275),VLOOKUP(58,AN218:BQ290,28,FALSE),IF(AND(AR2=6,AD35=AO276),VLOOKUP(59,AN218:BQ290,28,FALSE),IF(AND(AR2=6,AD35=AO277),VLOOKUP(60,AN218:BQ290,28,FALSE),IF(AND(AR2=6,AD35=AO278),VLOOKUP(61,AN218:BQ290,28,FALSE),IF(AND(AR2=6,AD35=AO279),VLOOKUP(62,AN218:BQ290,28,FALSE),IF(AND(AR2=6,AD35=AO280),VLOOKUP(63,AN218:BQ290,28,FALSE),IF(AND(AR2=6,AD35=AO281),VLOOKUP(64,AN218:BQ290,28,FALSE))))))))))))))))))))))))))))))))))))))))))))))))))))))))))))))))) -> FALSE | BI30: cm3 | BJ30: Zy | BK30: =IF(AND(AR2=7,AD35=AO308),VLOOKUP(1,AN308:BB327,15,FALSE),IF(AND(AR2=7,AD35=AO309),VLOOKUP(2,AN308:BB327,15,FALSE),IF(AND(AR2=7,AD35=AO310),VLOOKUP(3,AN308:BB327,15,FALSE),IF(AND(AR2=7,AD35=AO311),VLOOKUP(4,AN308:BB327,15,FALSE),IF(AND(AR2=7,AD35=AO312),VLOOKUP(5,AN308:BB327,15,FALSE),IF(AND(AR2=7,AD35=AO313),VLOOKUP(6,AN308:BB327,15,FALSE),IF(AND(AR2=7,AD35=AO314),VLOOKUP(7,AN308:BB327,15,FALSE),IF(AND(AR2=7,AD35=AO315),VLOOKUP(8,AN308:BB327,15,FALSE),IF(AND(AR2=7,AD35=AO316),VLOOKUP(9,AN308:BB327,15,FALSE),IF(AND(AR2=7,AD35=AO317),VLOOKUP(10,AN308:BB327,15,FALSE),IF(AND(AR2=7,AD35=AO318),VLOOKUP(11,AN308:BB327,15,FALSE),IF(AND(AR2=7,AD35=AO319),VLOOKUP(12,AN308:BB327,15,FALSE),IF(AND(AR2=7,AD35=AO320),VLOOKUP(13,AN308:BB327,15,FALSE),IF(AND(AR2=7,AD35=AO321),VLOOKUP(14,AN308:BB327,15,FALSE),IF(AND(AR2=7,AD35=AO322),VLOOKUP(15,AN308:BB327,15,FALSE),IF(AND(AR2=7,AD35=AO323),VLOOKUP(16,AN308:BB327,15,FALSE),IF(AND(AR2=7,AD35=AO324),VLOOKUP(17,AN308:BB327,15,FALSE),IF(AND(AR2=7,AD35=AO325),VLOOKUP(18,AN308:BB327,15,FALSE),IF(AND(AR2=7,AD35=AO326),VLOOKUP(19,AN308:BB327,15,FALSE),IF(AND(AR2=7,AD35=AO327),VLOOKUP(20,AN308:BB327,15,FALSE))))))))))))))))))))) -> FALSE | BL30: cm3 | BM30: Zy | BN30: =IF(AND(AR2=8,AD35=AO1062),VLOOKUP(1,AN1062:BG1074,20,FALSE),IF(AND(AR2=8,AD35=AO1063),VLOOKUP(2,AN1062:BG1074,20,FALSE),IF(AND(AR2=8,AD35=AO1064),VLOOKUP(3,AN1062:BG1074,20,FALSE),IF(AND(AR2=8,AD35=AO1065),VLOOKUP(4,AN1062:BG1074,20,FALSE),IF(AND(AR2=8,AD35=AO1066),VLOOKUP(5,AN1062:BG1074,20,FALSE),IF(AND(AR2=8,AD35=AO1067),VLOOKUP(6,AN1062:BG1074,20,FALSE),IF(AND(AR2=8,AD35=AO1068),VLOOKUP(7,AN1062:BG1074,20,FALSE),IF(AND(AR2=8,AD35=AO1069),VLOOKUP(8,AN1062:BG1074,20,FALSE),IF(AND(AR2=8,AD35=AO1070),VLOOKUP(9,AN1062:BG1074,20,FALSE),IF(AND(AR2=8,AD35=AO1071),VLOOKUP(10,AN1062:BG1074,20,FALSE),IF(AND(AR2=8,AD35=AO1072),VLOOKUP(11,AN1062:BG1074,20,FALSE),IF(AND(AR2=8,AD35=AO1073),VLOOKUP(12,AN1062:BG1074,20,FALSE),IF(AND(AR2=8,AD35=AO1074),VLOOKUP(13,AN1062:BG1074,20,FALSE)))))))))))))) -> FALSE | BO30: cm3
AR31: rx | AS31: =IF(AND(AR2=1,AD35=AO342),VLOOKUP(1,AN342:BC386,11,FALSE),IF(AND(AR2=1,AD35=AO343),VLOOKUP(2,AN342:BC386,11,FALSE),IF(AND(AR2=1,AD35=AO344),VLOOKUP(3,AN342:BC386,11,FALSE),IF(AND(AR2=1,AD35=AO345),VLOOKUP(4,AN342:BC386,11,FALSE),IF(AND(AR2=1,AD35=AO346),VLOOKUP(5,AN342:BC386,11,FALSE),IF(AND(AR2=1,AD35=AO347),VLOOKUP(6,AN342:BC386,11,FALSE),IF(AND(AR2=1,AD35=AO348),VLOOKUP(7,AN342:BC386,11,FALSE),IF(AND(AR2=1,AD35=AO349),VLOOKUP(8,AN342:BC386,11,FALSE),IF(AND(AR2=1,AD35=AO350),VLOOKUP(9,AN342:BC386,11,FALSE),IF(AND(AR2=1,AD35=AO351),VLOOKUP(10,AN342:BC386,11,FALSE),IF(AND(AR2=1,AD35=AO352),VLOOKUP(11,AN342:BC386,11,FALSE),IF(AND(AR2=1,AD35=AO353),VLOOKUP(12,AN342:BC386,11,FALSE),IF(AND(AR2=1,AD35=AO354),VLOOKUP(13,AN342:BC386,11,FALSE),IF(AND(AR2=1,AD35=AO355),VLOOKUP(14,AN342:BC386,11,FALSE),IF(AND(AR2=1,AD35=AO356),VLOOKUP(15,AN342:BC386,11,FALSE),IF(AND(AR2=1,AD35=AO357),VLOOKUP(16,AN342:BC386,11,FALSE),IF(AND(AR2=1,AD35=AO358),VLOOKUP(17,AN342:BC386,11,FALSE),IF(AND(AR2=1,AD35=AO359),VLOOKUP(18,AN342:BC386,11,FALSE),IF(AND(AR2=1,AD35=AO360),VLOOKUP(19,AN342:BC386,11,FALSE),IF(AND(AR2=1,AD35=AO361),VLOOKUP(20,AN342:BC386,11,FALSE),IF(AND(AR2=1,AD35=AO362),VLOOKUP(21,AN342:BC386,11,FALSE),IF(AND(AR2=1,AD35=AO363),VLOOKUP(22,AN342:BC386,11,FALSE),IF(AND(AR2=1,AD35=AO364),VLOOKUP(23,AN342:BC386,11,FALSE),IF(AND(AR2=1,AD35=AO365),VLOOKUP(24,AN342:BC386,11,FALSE),IF(AND(AR2=1,AD35=AO366),VLOOKUP(25,AN342:BC386,11,FALSE),IF(AND(AR2=1,AD35=AO367),VLOOKUP(26,AN342:BC386,11,FALSE),IF(AND(AR2=1,AD35=AO368),VLOOKUP(27,AN342:BC386,11,FALSE),IF(AND(AR2=1,AD35=AO369),VLOOKUP(28,AN342:BC386,11,FALSE),IF(AND(AR2=1,AD35=AO370),VLOOKUP(29,AN342:BC386,11,FALSE),IF(AND(AR2=1,AD35=AO371),VLOOKUP(30,AN342:BC386,11,FALSE),IF(AND(AR2=1,AD35=AO372),VLOOKUP(31,AN342:BC386,11,FALSE),IF(AND(AR2=1,AD35=AO373),VLOOKUP(32,AN342:BC386,11,FALSE),IF(AND(AR2=1,AD35=AO374),VLOOKUP(33,AN342:BC386,11,FALSE),IF(AND(AR2=1,AD35=AO375),VLOOKUP(34,AN342:BC386,11,FALSE),IF(AND(AR2=1,AD35=AO376),VLOOKUP(35,AN342:BC386,11,FALSE),IF(AND(AR2=1,AD35=AO377),VLOOKUP(36,AN342:BC386,11,FALSE),IF(AND(AR2=1,AD35=AO378),VLOOKUP(37,AN342:BC386,11,FALSE),IF(AND(AR2=1,AD35=AO379),VLOOKUP(38,AN342:BC386,11,FALSE),IF(AND(AR2=1,AD35=AO380),VLOOKUP(39,AN342:BC386,11,FALSE),IF(AND(AR2=1,AD35=AO381),VLOOKUP(40,AN342:BC386,11,FALSE),IF(AND(AR2=1,AD35=AO382),VLOOKUP(41,AN342:BC386,11,FALSE),IF(AND(AR2=1,AD35=AO383),VLOOKUP(42,AN342:BC386,11,FALSE),IF(AND(AR2=1,AD35=AO384),VLOOKUP(43,AN342:BC386,11,FALSE),IF(AND(AR2=1,AD35=AO385),VLOOKUP(44,AN342:BC386,11,FALSE),IF(AND(AR2=1,AD35=AO386),VLOOKUP(45,AN342:BC386,11,FALSE)))))))))))))))))))))))))))))))))))))))))))))) -> 3.9 | AT31: cm | AU31: rx | AV31: =IF(AND(AR2=2,AD35=AO443),VLOOKUP(1,AN443:AW474,10,FALSE),IF(AND(AR2=2,AD35=AO444),VLOOKUP(2,AN443:AW474,10,FALSE),IF(AND(AR2=2,AD35=AO445),VLOOKUP(3,AN443:AW474,10,FALSE),IF(AND(AR2=2,AD35=AO446),VLOOKUP(4,AN443:AW474,10,FALSE),IF(AND(AR2=2,AD35=AO447),VLOOKUP(5,AN443:AW474,10,FALSE),IF(AND(AR2=2,AD35=AO448),VLOOKUP(6,AN443:AW474,10,FALSE),IF(AND(AR2=2,AD35=AO449),VLOOKUP(7,AN443:AW474,10,FALSE),IF(AND(AR2=2,AD35=AO450),VLOOKUP(8,AN443:AW474,10,FALSE),IF(AND(AR2=2,AD35=AO451),VLOOKUP(9,AN443:AW474,10,FALSE),IF(AND(AR2=2,AD35=AO452),VLOOKUP(10,AN443:AW474,10,FALSE),IF(AND(AR2=2,AD35=AO453),VLOOKUP(11,AN443:AW474,10,FALSE),IF(AND(AR2=2,AD35=AO454),VLOOKUP(12,AN443:AW474,10,FALSE),IF(AND(AR2=2,AD35=AO455),VLOOKUP(13,AN443:AW474,10,FALSE),IF(AND(AR2=2,AD35=AO456),VLOOKUP(14,AN443:AW474,10,FALSE),IF(AND(AR2=2,AD35=AO457),VLOOKUP(15,AN443:AW474,10,FALSE),IF(AND(AR2=2,AD35=AO458),VLOOKUP(16,AN443:AW474,10,FALSE),IF(AND(AR2=2,AD35=AO459),VLOOKUP(17,AN443:AW474,10,FALSE),IF(AND(AR2=2,AD35=AO460),VLOOKUP(18,AN443:AW474,10,FALSE),IF(AND(AR2=2,AD35=AO461),VLOOKUP(19,AN443:AW474,10,FALSE),IF(AND(AR2=2,AD35=AO462),VLOOKUP(20,AN443:AW474,10,FALSE),IF(AND(AR2=2,AD35=AO463),VLOOKUP(21,AN443:AW474,10,FALSE),IF(AND(AR2=2,AD35=AO464),VLOOKUP(22,AN443:AW474,10,FALSE),IF(AND(AR2=2,AD35=AO465),VLOOKUP(23,AN443:AW474,10,FALSE),IF(AND(AR2=2,AD35=AO466),VLOOKUP(24,AN443:AW474,10,FALSE),IF(AND(AR2=2,AD35=AO467),VLOOKUP(25,AN443:AW474,10,FALSE),IF(AND(AR2=2,AD35=AO468),VLOOKUP(26,AN443:AW474,10,FALSE),IF(AND(AR2=2,AD35=AO469),VLOOKUP(27,AN443:AW474,10,FALSE),IF(AND(AR2=2,AD35=AO470),VLOOKUP(28,AN443:AW474,10,FALSE),IF(AND(AR2=2,AD35=AO471),VLOOKUP(29,AN443:AW474,10,FALSE),IF(AND(AR2=2,AD35=AO472),VLOOKUP(30,AN443:AW474,10,FALSE),IF(AND(AR2=2,AD35=AO473),VLOOKUP(31,AN443:AW474,10,FALSE),IF(AND(AR2=2,AD35=AO474),VLOOKUP(32,AN443:AW474,10,FALSE))))))))))))))))))))))))))))))))) -> FALSE | AW31: cm | AX31: rx | AY31: =IF(AND(AR2=3,AD35=AO402),VLOOKUP(1,AN402:AZ427,12,FALSE),IF(AND(AR2=3,AD35=AO403),VLOOKUP(2,AN402:AZ427,12,FALSE),IF(AND(AR2=3,AD35=AO404),VLOOKUP(3,AN402:AZ427,12,FALSE),IF(AND(AR2=3,AD35=AO405),VLOOKUP(4,AN402:AZ427,12,FALSE),IF(AND(AR2=3,AD35=AO406),VLOOKUP(5,AN402:AZ427,12,FALSE),IF(AND(AR2=3,AD35=AO407),VLOOKUP(6,AN402:AZ427,12,FALSE),IF(AND(AR2=3,AD35=AO408),VLOOKUP(7,AN402:AZ427,12,FALSE),IF(AND(AR2=3,AD35=AO409),VLOOKUP(8,AN402:AZ427,12,FALSE),IF(AND(AR2=3,AD35=AO410),VLOOKUP(9,AN402:AZ427,12,FALSE),IF(AND(AR2=3,AD35=AO411),VLOOKUP(10,AN402:AZ427,12,FALSE),IF(AND(AR2=3,AD35=AO412),VLOOKUP(11,AN402:AZ427,12,FALSE),IF(AND(AR2=3,AD35=AO413),VLOOKUP(12,AN402:AZ427,12,FALSE),IF(AND(AR2=3,AD35=AO414),VLOOKUP(13,AN402:AZ427,12,FALSE),IF(AND(AR2=3,AD35=AO415),VLOOKUP(14,AN402:AZ427,12,FALSE),IF(AND(AR2=3,AD35=AO416),VLOOKUP(15,AN402:AZ427,12,FALSE),IF(AND(AR2=3,AD35=AO417),VLOOKUP(16,AN402:AZ427,12,FALSE),IF(AND(AR2=3,AD35=AO418),VLOOKUP(17,AN402:AZ427,12,FALSE),IF(AND(AR2=3,AD35=AO419),VLOOKUP(18,AN402:AZ427,12,FALSE),IF(AND(AR2=3,AD35=AO420),VLOOKUP(19,AN402:AZ427,12,FALSE),IF(AND(AR2=3,AD35=AO421),VLOOKUP(20,AN402:AZ427,12,FALSE),IF(AND(AR2=3,AD35=AO422),VLOOKUP(21,AN402:AZ427,12,FALSE),IF(AND(AR2=3,AD35=AO423),VLOOKUP(22,AN402:AZ427,12,FALSE),IF(AND(AR2=3,AD35=AO424),VLOOKUP(23,AN402:AZ427,12,FALSE),IF(AND(AR2=3,AD35=AO425),VLOOKUP(24,AN402:AZ427,12,FALSE),IF(AND(AR2=3,AD35=AO426),VLOOKUP(25,AN402:AZ427,12,FALSE),IF(AND(AR2=3,AD35=AO427),VLOOKUP(26,AN402:AZ427,12,FALSE))))))))))))))))))))))))))) -> FALSE | AZ31: cm | BA31: rx | BB31: =IF(AND(AR2=4,AD35=AO157),VLOOKUP(1,AN157:BG202,15,FALSE),IF(AND(AR2=4,AD35=AO158),VLOOKUP(2,AN157:BG202,15,FALSE),IF(AND(AR2=4,AD35=AO159),VLOOKUP(3,AN157:BG202,15,FALSE),IF(AND(AR2=4,AD35=AO160),VLOOKUP(4,AN157:BG202,15,FALSE),IF(AND(AR2=4,AD35=AO161),VLOOKUP(5,AN157:BG202,15,FALSE),IF(AND(AR2=4,AD35=AO162),VLOOKUP(6,AN157:BG202,15,FALSE),IF(AND(AR2=4,AD35=AO163),VLOOKUP(7,AN157:BG202,15,FALSE),IF(AND(AR2=4,AD35=AO164),VLOOKUP(8,AN157:BG202,15,FALSE),IF(AND(AR2=4,AD35=AO165),VLOOKUP(9,AN157:BG202,15,FALSE),IF(AND(AR2=4,AD35=AO166),VLOOKUP(10,AN157:BG202,15,FALSE),IF(AND(AR2=4,AD35=AO167),VLOOKUP(11,AN157:BG202,15,FALSE),IF(AND(AR2=4,AD35=AO168),VLOOKUP(12,AN157:BG202,15,FALSE),IF(AND(AR2=4,AD35=AO169),VLOOKUP(13,AN157:BG202,15,FALSE),IF(AND(AR2=4,AD35=AO170),VLOOKUP(14,AN157:BG202,15,FALSE),IF(AND(AR2=4,AD35=AO171),VLOOKUP(15,AN157:BG202,15,FALSE),IF(AND(AR2=4,AD35=AO172),VLOOKUP(16,AN157:BG202,15,FALSE),IF(AND(AR2=4,AD35=AO173),VLOOKUP(17,AN157:BG202,15,FALSE),IF(AND(AR2=4,AD35=AO174),VLOOKUP(18,AN157:BG202,15,FALSE),IF(AND(AR2=4,AD35=AO175),VLOOKUP(19,AN157:BG202,15,FALSE),IF(AND(AR2=4,AD35=AO176),VLOOKUP(20,AN157:BG202,15,FALSE),IF(AND(AR2=4,AD35=AO177),VLOOKUP(21,AN157:BG202,15,FALSE),IF(AND(AR2=4,AD35=AO178),VLOOKUP(22,AN157:BG202,15,FALSE),IF(AND(AR2=4,AD35=AO179),VLOOKUP(23,AN157:BG202,15,FALSE),IF(AND(AR2=4,AD35=AO180),VLOOKUP(24,AN157:BG202,15,FALSE),IF(AND(AR2=4,AD35=AO181),VLOOKUP(25,AN157:BG202,15,FALSE),IF(AND(AR2=4,AD35=AO182),VLOOKUP(26,AN157:BG202,15,FALSE),IF(AND(AR2=4,AD35=AO183),VLOOKUP(27,AN157:BG202,15,FALSE),IF(AND(AR2=4,AD35=AO184),VLOOKUP(28,AN157:BG202,15,FALSE),IF(AND(AR2=4,AD35=AO185),VLOOKUP(29,AN157:BG202,15,FALSE),IF(AND(AR2=4,AD35=AO186),VLOOKUP(30,AN157:BG202,15,FALSE),IF(AND(AR2=4,AD35=AO187),VLOOKUP(31,AN157:BG202,15,FALSE),IF(AND(AR2=4,AD35=AO188),VLOOKUP(32,AN157:BG202,15,FALSE),IF(AND(AR2=4,AD35=AO189),VLOOKUP(33,AN157:BG202,15,FALSE),IF(AND(AR2=4,AD35=AO190),VLOOKUP(34,AN157:BG202,15,FALSE),IF(AND(AR2=4,AD35=AO191),VLOOKUP(35,AN157:BG202,15,FALSE),IF(AND(AR2=4,AD35=AO192),VLOOKUP(36,AN157:BG202,15,FALSE),IF(AND(AR2=4,AD35=AO193),VLOOKUP(37,AN157:BG202,15,FALSE),IF(AND(AR2=4,AD35=AO194),VLOOKUP(38,AN157:BG202,15,FALSE),IF(AND(AR2=4,AD35=AO195),VLOOKUP(39,AN157:BG202,15,FALSE),IF(AND(AR2=4,AD35=AO196),VLOOKUP(40,AN157:BG202,15,FALSE),IF(AND(AR2=4,AD35=AO197),VLOOKUP(41,AN157:BG202,15,FALSE),IF(AND(AR2=4,AD35=AO198),VLOOKUP(42,AN157:BG202,15,FALSE),IF(AND(AR2=4,AD35=AO199),VLOOKUP(43,AN157:BG202,15,FALSE),IF(AND(AR2=4,AD35=AO200),VLOOKUP(44,AN157:BG202,15,FALSE),IF(AND(AR2=4,AD35=AO201),VLOOKUP(45,AN157:BG202,15,FALSE),IF(AND(AR2=4,AD35=AO202),VLOOKUP(46,AN157:BG202,15,FALSE))))))))))))))))))))))))))))))))))))))))))))))) -> FALSE | BC31: cm | BD31: rx | BE31: =IF(AND(AR2=5,AD35=AO126),VLOOKUP(1,AN126:BD141,14,FALSE),IF(AND(AR2=5,AD35=AO127),VLOOKUP(2,AN126:BD141,14,FALSE),IF(AND(AR2=5,AD35=AO128),VLOOKUP(3,AN126:BD141,14,FALSE),IF(AND(AR2=5,AD35=AO129),VLOOKUP(4,AN126:BD141,14,FALSE),IF(AND(AR2=5,AD35=AO130),VLOOKUP(5,AN126:BD141,14,FALSE),IF(AND(AR2=5,AD35=AO131),VLOOKUP(6,AN126:BD141,14,FALSE),IF(AND(AR2=5,AD35=AO132),VLOOKUP(7,AN126:BD141,14,FALSE),IF(AND(AR2=5,AD35=AO133),VLOOKUP(8,AN126:BD141,14,FALSE),IF(AND(AR2=5,AD35=AO134),VLOOKUP(9,AN126:BD141,14,FALSE),IF(AND(AR2=5,AD35=AO135),VLOOKUP(10,AN126:BD141,14,FALSE),IF(AND(AR2=5,AD35=AO136),VLOOKUP(11,AN126:BD141,14,FALSE),IF(AND(AR2=5,AD35=AO137),VLOOKUP(12,AN126:BD141,14,FALSE),IF(AND(AR2=5,AD35=AO138),VLOOKUP(13,AN126:BD141,14,FALSE),IF(AND(AR2=5,AD35=AO139),VLOOKUP(14,AN126:BD141,14,FALSE),IF(AND(AR2=5,AD35=AO140),VLOOKUP(15,AN126:BD141,14,FALSE),IF(AND(AR2=5,AD35=AO141),VLOOKUP(16,AN126:BD141,14,FALSE))))))))))))))))) -> FALSE | BF31: cm | BG31: rx | BH31: =IF(AND(AR2=6,AD35=AO218),VLOOKUP(1,AN218:BQ290,22,FALSE),IF(AND(AR2=6,AD35=AO219),VLOOKUP(2,AN218:BQ290,22,FALSE),IF(AND(AR2=6,AD35=AO220),VLOOKUP(3,AN218:BQ290,22,FALSE),IF(AND(AR2=6,AD35=AO221),VLOOKUP(4,AN218:BQ290,22,FALSE),IF(AND(AR2=6,AD35=AO222),VLOOKUP(5,AN218:BQ290,22,FALSE),IF(AND(AR2=6,AD35=AO223),VLOOKUP(6,AN218:BQ290,22,FALSE),IF(AND(AR2=6,AD35=AO224),VLOOKUP(7,AN218:BQ290,22,FALSE),IF(AND(AR2=6,AD35=AO225),VLOOKUP(8,AN218:BQ290,22,FALSE),IF(AND(AR2=6,AD35=AO226),VLOOKUP(9,AN218:BQ290,22,FALSE),IF(AND(AR2=6,AD35=AO227),VLOOKUP(10,AN218:BQ290,22,FALSE),IF(AND(AR2=6,AD35=AO228),VLOOKUP(11,AN218:BQ290,22,FALSE),IF(AND(AR2=6,AD35=AO229),VLOOKUP(12,AN218:BQ290,22,FALSE),IF(AND(AR2=6,AD35=AO230),VLOOKUP(13,AN218:BQ290,22,FALSE),IF(AND(AR2=6,AD35=AO231),VLOOKUP(14,AN218:BQ290,22,FALSE),IF(AND(AR2=6,AD35=AO232),VLOOKUP(15,AN218:BQ290,22,FALSE),IF(AND(AR2=6,AD35=AO233),VLOOKUP(16,AN218:BQ290,22,FALSE),IF(AND(AR2=6,AD35=AO234),VLOOKUP(17,AN218:BQ290,22,FALSE),IF(AND(AR2=6,AD35=AO235),VLOOKUP(18,AN218:BQ290,22,FALSE),IF(AND(AR2=6,AD35=AO236),VLOOKUP(19,AN218:BQ290,22,FALSE),IF(AND(AR2=6,AD35=AO237),VLOOKUP(20,AN218:BQ290,22,FALSE),IF(AND(AR2=6,AD35=AO238),VLOOKUP(21,AN218:BQ290,22,FALSE),IF(AND(AR2=6,AD35=AO239),VLOOKUP(22,AN218:BQ290,22,FALSE),IF(AND(AR2=6,AD35=AO240),VLOOKUP(23,AN218:BQ290,22,FALSE),IF(AND(AR2=6,AD35=AO241),VLOOKUP(24,AN218:BQ290,22,FALSE),IF(AND(AR2=6,AD35=AO242),VLOOKUP(25,AN218:BQ290,22,FALSE),IF(AND(AR2=6,AD35=AO243),VLOOKUP(26,AN218:BQ290,22,FALSE),IF(AND(AR2=6,AD35=AO244),VLOOKUP(27,AN218:BQ290,22,FALSE),IF(AND(AR2=6,AD35=AO245),VLOOKUP(28,AN218:BQ290,22,FALSE),IF(AND(AR2=6,AD35=AO246),VLOOKUP(29,AN218:BQ290,22,FALSE),IF(AND(AR2=6,AD35=AO247),VLOOKUP(30,AN218:BQ290,22,FALSE),IF(AND(AR2=6,AD35=AO248),VLOOKUP(31,AN218:BQ290,22,FALSE),IF(AND(AR2=6,AD35=AO249),VLOOKUP(32,AN218:BQ290,22,FALSE),IF(AND(AR2=6,AD35=AO250),VLOOKUP(33,AN218:BQ290,22,FALSE),IF(AND(AR2=6,AD35=AO251),VLOOKUP(34,AN218:BQ290,22,FALSE),IF(AND(AR2=6,AD35=AO252),VLOOKUP(35,AN218:BQ290,22,FALSE),IF(AND(AR2=6,AD35=AO253),VLOOKUP(36,AN218:BQ290,22,FALSE),IF(AND(AR2=6,AD35=AO254),VLOOKUP(37,AN218:BQ290,22,FALSE),IF(AND(AR2=6,AD35=AO255),VLOOKUP(38,AN218:BQ290,22,FALSE),IF(AND(AR2=6,AD35=AO256),VLOOKUP(39,AN218:BQ290,22,FALSE),IF(AND(AR2=6,AD35=AO257),VLOOKUP(40,AN218:BQ290,22,FALSE),IF(AND(AR2=6,AD35=AO258),VLOOKUP(41,AN218:BQ290,22,FALSE),IF(AND(AR2=6,AD35=AO259),VLOOKUP(42,AN218:BQ290,22,FALSE),IF(AND(AR2=6,AD35=AO260),VLOOKUP(43,AN218:BQ290,22,FALSE),IF(AND(AR2=6,AD35=AO261),VLOOKUP(44,AN218:BQ290,22,FALSE),IF(AND(AR2=6,AD35=AO262),VLOOKUP(45,AN218:BQ290,22,FALSE),IF(AND(AR2=6,AD35=AO263),VLOOKUP(46,AN218:BQ290,22,FALSE),IF(AND(AR2=6,AD35=AO264),VLOOKUP(47,AN218:BQ290,22,FALSE),IF(AND(AR2=6,AD35=AO265),VLOOKUP(48,AN218:BQ290,22,FALSE),IF(AND(AR2=6,AD35=AO266),VLOOKUP(49,AN218:BQ290,22,FALSE),IF(AND(AR2=6,AD35=AO267),VLOOKUP(50,AN218:BQ290,22,FALSE),IF(AND(AR2=6,AD35=AO268),VLOOKUP(51,AN218:BQ290,22,FALSE),IF(AND(AR2=6,AD35=AO269),VLOOKUP(52,AN218:BQ290,22,FALSE),IF(AND(AR2=6,AD35=AO270),VLOOKUP(53,AN218:BQ290,22,FALSE),IF(AND(AR2=6,AD35=AO271),VLOOKUP(54,AN218:BQ290,22,FALSE),IF(AND(AR2=6,AD35=AO272),VLOOKUP(55,AN218:BQ290,22,FALSE),IF(AND(AR2=6,AD35=AO273),VLOOKUP(56,AN218:BQ290,22,FALSE),IF(AND(AR2=6,AD35=AO274),VLOOKUP(57,AN218:BQ290,22,FALSE),IF(AND(AR2=6,AD35=AO275),VLOOKUP(58,AN218:BQ290,22,FALSE),IF(AND(AR2=6,AD35=AO276),VLOOKUP(59,AN218:BQ290,22,FALSE),IF(AND(AR2=6,AD35=AO277),VLOOKUP(60,AN218:BQ290,22,FALSE),IF(AND(AR2=6,AD35=AO278),VLOOKUP(61,AN218:BQ290,22,FALSE),IF(AND(AR2=6,AD35=AO279),VLOOKUP(62,AN218:BQ290,22,FALSE),IF(AND(AR2=6,AD35=AO280),VLOOKUP(63,AN218:BQ290,22,FALSE),IF(AND(AR2=6,AD35=AO281),VLOOKUP(64,AN218:BQ290,22,FALSE))))))))))))))))))))))))))))))))))))))))))))))))))))))))))))))))) -> FALSE | BI31: cm | BJ31: rx | BK31: =IF(AND(AR2=7,AD35=AO308),VLOOKUP(1,AN308:BB327,12,FALSE),IF(AND(AR2=7,AD35=AO309),VLOOKUP(2,AN308:BB327,12,FALSE),IF(AND(AR2=7,AD35=AO310),VLOOKUP(3,AN308:BB327,12,FALSE),IF(AND(AR2=7,AD35=AO311),VLOOKUP(4,AN308:BB327,12,FALSE),IF(AND(AR2=7,AD35=AO312),VLOOKUP(5,AN308:BB327,12,FALSE),IF(AND(AR2=7,AD35=AO313),VLOOKUP(6,AN308:BB327,12,FALSE),IF(AND(AR2=7,AD35=AO314),VLOOKUP(7,AN308:BB327,12,FALSE),IF(AND(AR2=7,AD35=AO315),VLOOKUP(8,AN308:BB327,12,FALSE),IF(AND(AR2=7,AD35=AO316),VLOOKUP(9,AN308:BB327,12,FALSE),IF(AND(AR2=7,AD35=AO317),VLOOKUP(10,AN308:BB327,12,FALSE),IF(AND(AR2=7,AD35=AO318),VLOOKUP(11,AN308:BB327,12,FALSE),IF(AND(AR2=7,AD35=AO319),VLOOKUP(12,AN308:BB327,12,FALSE),IF(AND(AR2=7,AD35=AO320),VLOOKUP(13,AN308:BB327,12,FALSE),IF(AND(AR2=7,AD35=AO321),VLOOKUP(14,AN308:BB327,12,FALSE),IF(AND(AR2=7,AD35=AO322),VLOOKUP(15,AN308:BB327,12,FALSE),IF(AND(AR2=7,AD35=AO323),VLOOKUP(16,AN308:BB327,12,FALSE),IF(AND(AR2=7,AD35=AO324),VLOOKUP(17,AN308:BB327,12,FALSE),IF(AND(AR2=7,AD35=AO325),VLOOKUP(18,AN308:BB327,12,FALSE),IF(AND(AR2=7,AD35=AO326),VLOOKUP(19,AN308:BB327,12,FALSE),IF(AND(AR2=7,AD35=AO327),VLOOKUP(20,AN308:BB327,12,FALSE))))))))))))))))))))) -> FALSE | BL31: cm | BM31: rx | BN31: =IF(AND(AR2=8,AD35=AO1062),VLOOKUP(1,AN1062:BG1074,15,FALSE),IF(AND(AR2=8,AD35=AO1063),VLOOKUP(2,AN1062:BG1074,15,FALSE),IF(AND(AR2=8,AD35=AO1064),VLOOKUP(3,AN1062:BG1074,15,FALSE),IF(AND(AR2=8,AD35=AO1065),VLOOKUP(4,AN1062:BG1074,15,FALSE),IF(AND(AR2=8,AD35=AO1066),VLOOKUP(5,AN1062:BG1074,15,FALSE),IF(AND(AR2=8,AD35=AO1067),VLOOKUP(6,AN1062:BG1074,15,FALSE),IF(AND(AR2=8,AD35=AO1068),VLOOKUP(7,AN1062:BG1074,15,FALSE),IF(AND(AR2=8,AD35=AO1069),VLOOKUP(8,AN1062:BG1074,15,FALSE),IF(AND(AR2=8,AD35=AO1070),VLOOKUP(9,AN1062:BG1074,15,FALSE),IF(AND(AR2=8,AD35=AO1071),VLOOKUP(10,AN1062:BG1074,15,FALSE),IF(AND(AR2=8,AD35=AO1072),VLOOKUP(11,AN1062:BG1074,15,FALSE),IF(AND(AR2=8,AD35=AO1073),VLOOKUP(12,AN1062:BG1074,15,FALSE),IF(AND(AR2=8,AD35=AO1074),VLOOKUP(13,AN1062:BG1074,15,FALSE)))))))))))))) -> FALSE | BO31: cm
AR32: ry | AS32: =IF(AND(AR2=1,AD35=AO342),VLOOKUP(1,AN342:BC386,12,FALSE),IF(AND(AR2=1,AD35=AO343),VLOOKUP(2,AN342:BC386,12,FALSE),IF(AND(AR2=1,AD35=AO344),VLOOKUP(3,AN342:BC386,12,FALSE),IF(AND(AR2=1,AD35=AO345),VLOOKUP(4,AN342:BC386,12,FALSE),IF(AND(AR2=1,AD35=AO346),VLOOKUP(5,AN342:BC386,12,FALSE),IF(AND(AR2=1,AD35=AO347),VLOOKUP(6,AN342:BC386,12,FALSE),IF(AND(AR2=1,AD35=AO348),VLOOKUP(7,AN342:BC386,12,FALSE),IF(AND(AR2=1,AD35=AO349),VLOOKUP(8,AN342:BC386,12,FALSE),IF(AND(AR2=1,AD35=AO350),VLOOKUP(9,AN342:BC386,12,FALSE),IF(AND(AR2=1,AD35=AO351),VLOOKUP(10,AN342:BC386,12,FALSE),IF(AND(AR2=1,AD35=AO352),VLOOKUP(11,AN342:BC386,12,FALSE),IF(AND(AR2=1,AD35=AO353),VLOOKUP(12,AN342:BC386,12,FALSE),IF(AND(AR2=1,AD35=AO354),VLOOKUP(13,AN342:BC386,12,FALSE),IF(AND(AR2=1,AD35=AO355),VLOOKUP(14,AN342:BC386,12,FALSE),IF(AND(AR2=1,AD35=AO356),VLOOKUP(15,AN342:BC386,12,FALSE),IF(AND(AR2=1,AD35=AO357),VLOOKUP(16,AN342:BC386,12,FALSE),IF(AND(AR2=1,AD35=AO358),VLOOKUP(17,AN342:BC386,12,FALSE),IF(AND(AR2=1,AD35=AO359),VLOOKUP(18,AN342:BC386,12,FALSE),IF(AND(AR2=1,AD35=AO360),VLOOKUP(19,AN342:BC386,12,FALSE),IF(AND(AR2=1,AD35=AO361),VLOOKUP(20,AN342:BC386,12,FALSE),IF(AND(AR2=1,AD35=AO362),VLOOKUP(21,AN342:BC386,12,FALSE),IF(AND(AR2=1,AD35=AO363),VLOOKUP(22,AN342:BC386,12,FALSE),IF(AND(AR2=1,AD35=AO364),VLOOKUP(23,AN342:BC386,12,FALSE),IF(AND(AR2=1,AD35=AO365),VLOOKUP(24,AN342:BC386,12,FALSE),IF(AND(AR2=1,AD35=AO366),VLOOKUP(25,AN342:BC386,12,FALSE),IF(AND(AR2=1,AD35=AO367),VLOOKUP(26,AN342:BC386,12,FALSE),IF(AND(AR2=1,AD35=AO368),VLOOKUP(27,AN342:BC386,12,FALSE),IF(AND(AR2=1,AD35=AO369),VLOOKUP(28,AN342:BC386,12,FALSE),IF(AND(AR2=1,AD35=AO370),VLOOKUP(29,AN342:BC386,12,FALSE),IF(AND(AR2=1,AD35=AO371),VLOOKUP(30,AN342:BC386,12,FALSE),IF(AND(AR2=1,AD35=AO372),VLOOKUP(31,AN342:BC386,12,FALSE),IF(AND(AR2=1,AD35=AO373),VLOOKUP(32,AN342:BC386,12,FALSE),IF(AND(AR2=1,AD35=AO374),VLOOKUP(33,AN342:BC386,12,FALSE),IF(AND(AR2=1,AD35=AO375),VLOOKUP(34,AN342:BC386,12,FALSE),IF(AND(AR2=1,AD35=AO376),VLOOKUP(35,AN342:BC386,12,FALSE),IF(AND(AR2=1,AD35=AO377),VLOOKUP(36,AN342:BC386,12,FALSE),IF(AND(AR2=1,AD35=AO378),VLOOKUP(37,AN342:BC386,12,FALSE),IF(AND(AR2=1,AD35=AO379),VLOOKUP(38,AN342:BC386,12,FALSE),IF(AND(AR2=1,AD35=AO380),VLOOKUP(39,AN342:BC386,12,FALSE),IF(AND(AR2=1,AD35=AO381),VLOOKUP(40,AN342:BC386,12,FALSE),IF(AND(AR2=1,AD35=AO382),VLOOKUP(41,AN342:BC386,12,FALSE),IF(AND(AR2=1,AD35=AO383),VLOOKUP(42,AN342:BC386,12,FALSE),IF(AND(AR2=1,AD35=AO384),VLOOKUP(43,AN342:BC386,12,FALSE),IF(AND(AR2=1,AD35=AO385),VLOOKUP(44,AN342:BC386,12,FALSE),IF(AND(AR2=1,AD35=AO386),VLOOKUP(45,AN342:BC386,12,FALSE)))))))))))))))))))))))))))))))))))))))))))))) -> 1.87 | AT32: cm | AU32: ry | AV32: =IF(AND(AR2=2,AD35=AO443),VLOOKUP(1,AN443:AW474,10,FALSE),IF(AND(AR2=2,AD35=AO444),VLOOKUP(2,AN443:AW474,10,FALSE),IF(AND(AR2=2,AD35=AO445),VLOOKUP(3,AN443:AW474,10,FALSE),IF(AND(AR2=2,AD35=AO446),VLOOKUP(4,AN443:AW474,10,FALSE),IF(AND(AR2=2,AD35=AO447),VLOOKUP(5,AN443:AW474,10,FALSE),IF(AND(AR2=2,AD35=AO448),VLOOKUP(6,AN443:AW474,10,FALSE),IF(AND(AR2=2,AD35=AO449),VLOOKUP(7,AN443:AW474,10,FALSE),IF(AND(AR2=2,AD35=AO450),VLOOKUP(8,AN443:AW474,10,FALSE),IF(AND(AR2=2,AD35=AO451),VLOOKUP(9,AN443:AW474,10,FALSE),IF(AND(AR2=2,AD35=AO452),VLOOKUP(10,AN443:AW474,10,FALSE),IF(AND(AR2=2,AD35=AO453),VLOOKUP(11,AN443:AW474,10,FALSE),IF(AND(AR2=2,AD35=AO454),VLOOKUP(12,AN443:AW474,10,FALSE),IF(AND(AR2=2,AD35=AO455),VLOOKUP(13,AN443:AW474,10,FALSE),IF(AND(AR2=2,AD35=AO456),VLOOKUP(14,AN443:AW474,10,FALSE),IF(AND(AR2=2,AD35=AO457),VLOOKUP(15,AN443:AW474,10,FALSE),IF(AND(AR2=2,AD35=AO458),VLOOKUP(16,AN443:AW474,10,FALSE),IF(AND(AR2=2,AD35=AO459),VLOOKUP(17,AN443:AW474,10,FALSE),IF(AND(AR2=2,AD35=AO460),VLOOKUP(18,AN443:AW474,10,FALSE),IF(AND(AR2=2,AD35=AO461),VLOOKUP(19,AN443:AW474,10,FALSE),IF(AND(AR2=2,AD35=AO462),VLOOKUP(20,AN443:AW474,10,FALSE),IF(AND(AR2=2,AD35=AO463),VLOOKUP(21,AN443:AW474,10,FALSE),IF(AND(AR2=2,AD35=AO464),VLOOKUP(22,AN443:AW474,10,FALSE),IF(AND(AR2=2,AD35=AO465),VLOOKUP(23,AN443:AW474,10,FALSE),IF(AND(AR2=2,AD35=AO466),VLOOKUP(24,AN443:AW474,10,FALSE),IF(AND(AR2=2,AD35=AO467),VLOOKUP(25,AN443:AW474,10,FALSE),IF(AND(AR2=2,AD35=AO468),VLOOKUP(26,AN443:AW474,10,FALSE),IF(AND(AR2=2,AD35=AO469),VLOOKUP(27,AN443:AW474,10,FALSE),IF(AND(AR2=2,AD35=AO470),VLOOKUP(28,AN443:AW474,10,FALSE),IF(AND(AR2=2,AD35=AO471),VLOOKUP(29,AN443:AW474,10,FALSE),IF(AND(AR2=2,AD35=AO472),VLOOKUP(30,AN443:AW474,10,FALSE),IF(AND(AR2=2,AD35=AO473),VLOOKUP(31,AN443:AW474,10,FALSE),IF(AND(AR2=2,AD35=AO474),VLOOKUP(32,AN443:AW474,10,FALSE))))))))))))))))))))))))))))))))) -> FALSE | AW32: cm | AX32: ry | AY32: =IF(AND(AR2=3,AD35=AO402),VLOOKUP(1,AN402:AZ427,13,FALSE),IF(AND(AR2=3,AD35=AO403),VLOOKUP(2,AN402:AZ427,13,FALSE),IF(AND(AR2=3,AD35=AO404),VLOOKUP(3,AN402:AZ427,13,FALSE),IF(AND(AR2=3,AD35=AO405),VLOOKUP(4,AN402:AZ427,13,FALSE),IF(AND(AR2=3,AD35=AO406),VLOOKUP(5,AN402:AZ427,13,FALSE),IF(AND(AR2=3,AD35=AO407),VLOOKUP(6,AN402:AZ427,13,FALSE),IF(AND(AR2=3,AD35=AO408),VLOOKUP(7,AN402:AZ427,13,FALSE),IF(AND(AR2=3,AD35=AO409),VLOOKUP(8,AN402:AZ427,13,FALSE),IF(AND(AR2=3,AD35=AO410),VLOOKUP(9,AN402:AZ427,13,FALSE),IF(AND(AR2=3,AD35=AO411),VLOOKUP(10,AN402:AZ427,13,FALSE),IF(AND(AR2=3,AD35=AO412),VLOOKUP(11,AN402:AZ427,13,FALSE),IF(AND(AR2=3,AD35=AO413),VLOOKUP(12,AN402:AZ427,13,FALSE),IF(AND(AR2=3,AD35=AO414),VLOOKUP(13,AN402:AZ427,13,FALSE),IF(AND(AR2=3,AD35=AO415),VLOOKUP(14,AN402:AZ427,13,FALSE),IF(AND(AR2=3,AD35=AO416),VLOOKUP(15,AN402:AZ427,13,FALSE),IF(AND(AR2=3,AD35=AO417),VLOOKUP(16,AN402:AZ427,13,FALSE),IF(AND(AR2=3,AD35=AO418),VLOOKUP(17,AN402:AZ427,13,FALSE),IF(AND(AR2=3,AD35=AO419),VLOOKUP(18,AN402:AZ427,13,FALSE),IF(AND(AR2=3,AD35=AO420),VLOOKUP(19,AN402:AZ427,13,FALSE),IF(AND(AR2=3,AD35=AO421),VLOOKUP(20,AN402:AZ427,13,FALSE),IF(AND(AR2=3,AD35=AO422),VLOOKUP(21,AN402:AZ427,13,FALSE),IF(AND(AR2=3,AD35=AO423),VLOOKUP(22,AN402:AZ427,13,FALSE),IF(AND(AR2=3,AD35=AO424),VLOOKUP(23,AN402:AZ427,13,FALSE),IF(AND(AR2=3,AD35=AO425),VLOOKUP(24,AN402:AZ427,13,FALSE),IF(AND(AR2=3,AD35=AO426),VLOOKUP(25,AN402:AZ427,13,FALSE),IF(AND(AR2=3,AD35=AO427),VLOOKUP(26,AN402:AZ427,13,FALSE))))))))))))))))))))))))))) -> FALSE | AZ32: cm | BA32: ry | BB32: =BB31 -> FALSE | BC32: cm | BD32: ry | BE32: =IF(AND(AR2=5,AD35=AO126),VLOOKUP(1,AN126:BD141,15,FALSE),IF(AND(AR2=5,AD35=AO127),VLOOKUP(2,AN126:BD141,15,FALSE),IF(AND(AR2=5,AD35=AO128),VLOOKUP(3,AN126:BD141,15,FALSE),IF(AND(AR2=5,AD35=AO129),VLOOKUP(4,AN126:BD141,15,FALSE),IF(AND(AR2=5,AD35=AO130),VLOOKUP(5,AN126:BD141,15,FALSE),IF(AND(AR2=5,AD35=AO131),VLOOKUP(6,AN126:BD141,15,FALSE),IF(AND(AR2=5,AD35=AO132),VLOOKUP(7,AN126:BD141,15,FALSE),IF(AND(AR2=5,AD35=AO133),VLOOKUP(8,AN126:BD141,15,FALSE),IF(AND(AR2=5,AD35=AO134),VLOOKUP(9,AN126:BD141,15,FALSE),IF(AND(AR2=5,AD35=AO135),VLOOKUP(10,AN126:BD141,15,FALSE),IF(AND(AR2=5,AD35=AO136),VLOOKUP(11,AN126:BD141,15,FALSE),IF(AND(AR2=5,AD35=AO137),VLOOKUP(12,AN126:BD141,15,FALSE),IF(AND(AR2=5,AD35=AO138),VLOOKUP(13,AN126:BD141,15,FALSE),IF(AND(AR2=5,AD35=AO139),VLOOKUP(14,AN126:BD141,15,FALSE),IF(AND(AR2=5,AD35=AO140),VLOOKUP(15,AN126:BD141,15,FALSE),IF(AND(AR2=5,AD35=AO141),VLOOKUP(16,AN126:BD141,15,FALSE))))))))))))))))) -> FALSE | BF32: cm | BG32: ry | BH32: =IF(AND(AR2=6,AD35=AO218),VLOOKUP(1,AN218:BQ290,24,FALSE),IF(AND(AR2=6,AD35=AO219),VLOOKUP(2,AN218:BQ290,24,FALSE),IF(AND(AR2=6,AD35=AO220),VLOOKUP(3,AN218:BQ290,24,FALSE),IF(AND(AR2=6,AD35=AO221),VLOOKUP(4,AN218:BQ290,24,FALSE),IF(AND(AR2=6,AD35=AO222),VLOOKUP(5,AN218:BQ290,24,FALSE),IF(AND(AR2=6,AD35=AO223),VLOOKUP(6,AN218:BQ290,24,FALSE),IF(AND(AR2=6,AD35=AO224),VLOOKUP(7,AN218:BQ290,24,FALSE),IF(AND(AR2=6,AD35=AO225),VLOOKUP(8,AN218:BQ290,24,FALSE),IF(AND(AR2=6,AD35=AO226),VLOOKUP(9,AN218:BQ290,24,FALSE),IF(AND(AR2=6,AD35=AO227),VLOOKUP(10,AN218:BQ290,24,FALSE),IF(AND(AR2=6,AD35=AO228),VLOOKUP(11,AN218:BQ290,24,FALSE),IF(AND(AR2=6,AD35=AO229),VLOOKUP(12,AN218:BQ290,24,FALSE),IF(AND(AR2=6,AD35=AO230),VLOOKUP(13,AN218:BQ290,24,FALSE),IF(AND(AR2=6,AD35=AO231),VLOOKUP(14,AN218:BQ290,24,FALSE),IF(AND(AR2=6,AD35=AO232),VLOOKUP(15,AN218:BQ290,24,FALSE),IF(AND(AR2=6,AD35=AO233),VLOOKUP(16,AN218:BQ290,24,FALSE),IF(AND(AR2=6,AD35=AO234),VLOOKUP(17,AN218:BQ290,24,FALSE),IF(AND(AR2=6,AD35=AO235),VLOOKUP(18,AN218:BQ290,24,FALSE),IF(AND(AR2=6,AD35=AO236),VLOOKUP(19,AN218:BQ290,24,FALSE),IF(AND(AR2=6,AD35=AO237),VLOOKUP(20,AN218:BQ290,24,FALSE),IF(AND(AR2=6,AD35=AO238),VLOOKUP(21,AN218:BQ290,24,FALSE),IF(AND(AR2=6,AD35=AO239),VLOOKUP(22,AN218:BQ290,24,FALSE),IF(AND(AR2=6,AD35=AO240),VLOOKUP(23,AN218:BQ290,24,FALSE),IF(AND(AR2=6,AD35=AO241),VLOOKUP(24,AN218:BQ290,24,FALSE),IF(AND(AR2=6,AD35=AO242),VLOOKUP(25,AN218:BQ290,24,FALSE),IF(AND(AR2=6,AD35=AO243),VLOOKUP(26,AN218:BQ290,24,FALSE),IF(AND(AR2=6,AD35=AO244),VLOOKUP(27,AN218:BQ290,24,FALSE),IF(AND(AR2=6,AD35=AO245),VLOOKUP(28,AN218:BQ290,24,FALSE),IF(AND(AR2=6,AD35=AO246),VLOOKUP(29,AN218:BQ290,24,FALSE),IF(AND(AR2=6,AD35=AO247),VLOOKUP(30,AN218:BQ290,24,FALSE),IF(AND(AR2=6,AD35=AO248),VLOOKUP(31,AN218:BQ290,24,FALSE),IF(AND(AR2=6,AD35=AO249),VLOOKUP(32,AN218:BQ290,24,FALSE),IF(AND(AR2=6,AD35=AO250),VLOOKUP(33,AN218:BQ290,24,FALSE),IF(AND(AR2=6,AD35=AO251),VLOOKUP(34,AN218:BQ290,24,FALSE),IF(AND(AR2=6,AD35=AO252),VLOOKUP(35,AN218:BQ290,24,FALSE),IF(AND(AR2=6,AD35=AO253),VLOOKUP(36,AN218:BQ290,24,FALSE),IF(AND(AR2=6,AD35=AO254),VLOOKUP(37,AN218:BQ290,24,FALSE),IF(AND(AR2=6,AD35=AO255),VLOOKUP(38,AN218:BQ290,24,FALSE),IF(AND(AR2=6,AD35=AO256),VLOOKUP(39,AN218:BQ290,24,FALSE),IF(AND(AR2=6,AD35=AO257),VLOOKUP(40,AN218:BQ290,24,FALSE),IF(AND(AR2=6,AD35=AO258),VLOOKUP(41,AN218:BQ290,24,FALSE),IF(AND(AR2=6,AD35=AO259),VLOOKUP(42,AN218:BQ290,24,FALSE),IF(AND(AR2=6,AD35=AO260),VLOOKUP(43,AN218:BQ290,24,FALSE),IF(AND(AR2=6,AD35=AO261),VLOOKUP(44,AN218:BQ290,24,FALSE),IF(AND(AR2=6,AD35=AO262),VLOOKUP(45,AN218:BQ290,24,FALSE),IF(AND(AR2=6,AD35=AO263),VLOOKUP(46,AN218:BQ290,24,FALSE),IF(AND(AR2=6,AD35=AO264),VLOOKUP(47,AN218:BQ290,24,FALSE),IF(AND(AR2=6,AD35=AO265),VLOOKUP(48,AN218:BQ290,24,FALSE),IF(AND(AR2=6,AD35=AO266),VLOOKUP(49,AN218:BQ290,24,FALSE),IF(AND(AR2=6,AD35=AO267),VLOOKUP(50,AN218:BQ290,24,FALSE),IF(AND(AR2=6,AD35=AO268),VLOOKUP(51,AN218:BQ290,24,FALSE),IF(AND(AR2=6,AD35=AO269),VLOOKUP(52,AN218:BQ290,24,FALSE),IF(AND(AR2=6,AD35=AO270),VLOOKUP(53,AN218:BQ290,24,FALSE),IF(AND(AR2=6,AD35=AO271),VLOOKUP(54,AN218:BQ290,24,FALSE),IF(AND(AR2=6,AD35=AO272),VLOOKUP(55,AN218:BQ290,24,FALSE),IF(AND(AR2=6,AD35=AO273),VLOOKUP(56,AN218:BQ290,24,FALSE),IF(AND(AR2=6,AD35=AO274),VLOOKUP(57,AN218:BQ290,24,FALSE),IF(AND(AR2=6,AD35=AO275),VLOOKUP(58,AN218:BQ290,24,FALSE),IF(AND(AR2=6,AD35=AO276),VLOOKUP(59,AN218:BQ290,24,FALSE),IF(AND(AR2=6,AD35=AO277),VLOOKUP(60,AN218:BQ290,24,FALSE),IF(AND(AR2=6,AD35=AO278),VLOOKUP(61,AN218:BQ290,24,FALSE),IF(AND(AR2=6,AD35=AO279),VLOOKUP(62,AN218:BQ290,24,FALSE),IF(AND(AR2=6,AD35=AO280),VLOOKUP(63,AN218:BQ290,24,FALSE),IF(AND(AR2=6,AD35=AO281),VLOOKUP(64,AN218:BQ290,24,FALSE))))))))))))))))))))))))))))))))))))))))))))))))))))))))))))))))) -> FALSE | BI32: cm | BJ32: ry | BK32: =IF(AND(AR2=7,AD35=AO308),VLOOKUP(1,AN308:BB327,13,FALSE),IF(AND(AR2=7,AD35=AO309),VLOOKUP(2,AN308:BB327,13,FALSE),IF(AND(AR2=7,AD35=AO310),VLOOKUP(3,AN308:BB327,13,FALSE),IF(AND(AR2=7,AD35=AO311),VLOOKUP(4,AN308:BB327,13,FALSE),IF(AND(AR2=7,AD35=AO312),VLOOKUP(5,AN308:BB327,13,FALSE),IF(AND(AR2=7,AD35=AO313),VLOOKUP(6,AN308:BB327,13,FALSE),IF(AND(AR2=7,AD35=AO314),VLOOKUP(7,AN308:BB327,13,FALSE),IF(AND(AR2=7,AD35=AO315),VLOOKUP(8,AN308:BB327,13,FALSE),IF(AND(AR2=7,AD35=AO316),VLOOKUP(9,AN308:BB327,13,FALSE),IF(AND(AR2=7,AD35=AO317),VLOOKUP(10,AN308:BB327,13,FALSE),IF(AND(AR2=7,AD35=AO318),VLOOKUP(11,AN308:BB327,13,FALSE),IF(AND(AR2=7,AD35=AO319),VLOOKUP(12,AN308:BB327,13,FALSE),IF(AND(AR2=7,AD35=AO320),VLOOKUP(13,AN308:BB327,13,FALSE),IF(AND(AR2=7,AD35=AO321),VLOOKUP(14,AN308:BB327,13,FALSE),IF(AND(AR2=7,AD35=AO322),VLOOKUP(15,AN308:BB327,13,FALSE),IF(AND(AR2=7,AD35=AO323),VLOOKUP(16,AN308:BB327,13,FALSE),IF(AND(AR2=7,AD35=AO324),VLOOKUP(17,AN308:BB327,13,FALSE),IF(AND(AR2=7,AD35=AO325),VLOOKUP(18,AN308:BB327,13,FALSE),IF(AND(AR2=7,AD35=AO326),VLOOKUP(19,AN308:BB327,13,FALSE),IF(AND(AR2=7,AD35=AO327),VLOOKUP(20,AN308:BB327,13,FALSE))))))))))))))))))))) -> FALSE | BL32: cm | BM32: ry | BN32: =IF(AND(AR2=8,AD35=AO1062),VLOOKUP(1,AN1062:BG1074,16,FALSE),IF(AND(AR2=8,AD35=AO1063),VLOOKUP(2,AN1062:BG1074,16,FALSE),IF(AND(AR2=8,AD35=AO1064),VLOOKUP(3,AN1062:BG1074,16,FALSE),IF(AND(AR2=8,AD35=AO1065),VLOOKUP(4,AN1062:BG1074,16,FALSE),IF(AND(AR2=8,AD35=AO1066),VLOOKUP(5,AN1062:BG1074,16,FALSE),IF(AND(AR2=8,AD35=AO1067),VLOOKUP(6,AN1062:BG1074,16,FALSE),IF(AND(AR2=8,AD35=AO1068),VLOOKUP(7,AN1062:BG1074,16,FALSE),IF(AND(AR2=8,AD35=AO1069),VLOOKUP(8,AN1062:BG1074,16,FALSE),IF(AND(AR2=8,AD35=AO1070),VLOOKUP(9,AN1062:BG1074,16,FALSE),IF(AND(AR2=8,AD35=AO1071),VLOOKUP(10,AN1062:BG1074,16,FALSE),IF(AND(AR2=8,AD35=AO1072),VLOOKUP(11,AN1062:BG1074,16,FALSE),IF(AND(AR2=8,AD35=AO1073),VLOOKUP(12,AN1062:BG1074,16,FALSE),IF(AND(AR2=8,AD35=AO1074),VLOOKUP(13,AN1062:BG1074,16,FALSE)))))))))))))) -> FALSE | BO32: cm
AR33: Section Area | AS33: =IF(AND(AR2=1,AD35=AO342),VLOOKUP(1,AN342:BC386,5,FALSE),IF(AND(AR2=1,AD35=AO343),VLOOKUP(2,AN342:BC386,5,FALSE),IF(AND(AR2=1,AD35=AO344),VLOOKUP(3,AN342:BC386,5,FALSE),IF(AND(AR2=1,AD35=AO345),VLOOKUP(4,AN342:BC386,5,FALSE),IF(AND(AR2=1,AD35=AO346),VLOOKUP(5,AN342:BC386,5,FALSE),IF(AND(AR2=1,AD35=AO347),VLOOKUP(6,AN342:BC386,5,FALSE),IF(AND(AR2=1,AD35=AO348),VLOOKUP(7,AN342:BC386,5,FALSE),IF(AND(AR2=1,AD35=AO349),VLOOKUP(8,AN342:BC386,5,FALSE),IF(AND(AR2=1,AD35=AO350),VLOOKUP(9,AN342:BC386,5,FALSE),IF(AND(AR2=1,AD35=AO351),VLOOKUP(10,AN342:BC386,5,FALSE),IF(AND(AR2=1,AD35=AO352),VLOOKUP(11,AN342:BC386,5,FALSE),IF(AND(AR2=1,AD35=AO353),VLOOKUP(12,AN342:BC386,5,FALSE),IF(AND(AR2=1,AD35=AO354),VLOOKUP(13,AN342:BC386,5,FALSE),IF(AND(AR2=1,AD35=AO355),VLOOKUP(14,AN342:BC386,5,FALSE),IF(AND(AR2=1,AD35=AO356),VLOOKUP(15,AN342:BC386,5,FALSE),IF(AND(AR2=1,AD35=AO357),VLOOKUP(16,AN342:BC386,5,FALSE),IF(AND(AR2=1,AD35=AO358),VLOOKUP(17,AN342:BC386,5,FALSE),IF(AND(AR2=1,AD35=AO359),VLOOKUP(18,AN342:BC386,5,FALSE),IF(AND(AR2=1,AD35=AO360),VLOOKUP(19,AN342:BC386,5,FALSE),IF(AND(AR2=1,AD35=AO361),VLOOKUP(20,AN342:BC386,5,FALSE),IF(AND(AR2=1,AD35=AO362),VLOOKUP(21,AN342:BC386,5,FALSE),IF(AND(AR2=1,AD35=AO363),VLOOKUP(22,AN342:BC386,5,FALSE),IF(AND(AR2=1,AD35=AO364),VLOOKUP(23,AN342:BC386,5,FALSE),IF(AND(AR2=1,AD35=AO365),VLOOKUP(24,AN342:BC386,5,FALSE),IF(AND(AR2=1,AD35=AO366),VLOOKUP(25,AN342:BC386,5,FALSE),IF(AND(AR2=1,AD35=AO367),VLOOKUP(26,AN342:BC386,5,FALSE),IF(AND(AR2=1,AD35=AO368),VLOOKUP(27,AN342:BC386,5,FALSE),IF(AND(AR2=1,AD35=AO369),VLOOKUP(28,AN342:BC386,5,FALSE),IF(AND(AR2=1,AD35=AO370),VLOOKUP(29,AN342:BC386,5,FALSE),IF(AND(AR2=1,AD35=AO371),VLOOKUP(30,AN342:BC386,5,FALSE),IF(AND(AR2=1,AD35=AO372),VLOOKUP(31,AN342:BC386,5,FALSE),IF(AND(AR2=1,AD35=AO373),VLOOKUP(32,AN342:BC386,5,FALSE),IF(AND(AR2=1,AD35=AO374),VLOOKUP(33,AN342:BC386,5,FALSE),IF(AND(AR2=1,AD35=AO375),VLOOKUP(34,AN342:BC386,5,FALSE),IF(AND(AR2=1,AD35=AO376),VLOOKUP(35,AN342:BC386,5,FALSE),IF(AND(AR2=1,AD35=AO377),VLOOKUP(36,AN342:BC386,5,FALSE),IF(AND(AR2=1,AD35=AO378),VLOOKUP(37,AN342:BC386,5,FALSE),IF(AND(AR2=1,AD35=AO379),VLOOKUP(38,AN342:BC386,5,FALSE),IF(AND(AR2=1,AD35=AO380),VLOOKUP(39,AN342:BC386,5,FALSE),IF(AND(AR2=1,AD35=AO381),VLOOKUP(40,AN342:BC386,5,FALSE),IF(AND(AR2=1,AD35=AO382),VLOOKUP(41,AN342:BC386,5,FALSE),IF(AND(AR2=1,AD35=AO383),VLOOKUP(42,AN342:BC386,5,FALSE),IF(AND(AR2=1,AD35=AO384),VLOOKUP(43,AN342:BC386,5,FALSE),IF(AND(AR2=1,AD35=AO385),VLOOKUP(44,AN342:BC386,5,FALSE),IF(AND(AR2=1,AD35=AO386),VLOOKUP(45,AN342:BC386,5,FALSE)))))))))))))))))))))))))))))))))))))))))))))) -> 7.007 | AT33: cm2 | AU33: Section Area | AV33: =IF(AND(AR2=2,AD35=AO443),VLOOKUP(1,AN443:AW474,7,FALSE),IF(AND(AR2=2,AD35=AO444),VLOOKUP(2,AN443:AW474,7,FALSE),IF(AND(AR2=2,AD35=AO445),VLOOKUP(3,AN443:AW474,7,FALSE),IF(AND(AR2=2,AD35=AO446),VLOOKUP(4,AN443:AW474,7,FALSE),IF(AND(AR2=2,AD35=AO447),VLOOKUP(5,AN443:AW474,7,FALSE),IF(AND(AR2=2,AD35=AO448),VLOOKUP(6,AN443:AW474,7,FALSE),IF(AND(AR2=2,AD35=AO449),VLOOKUP(7,AN443:AW474,7,FALSE),IF(AND(AR2=2,AD35=AO450),VLOOKUP(8,AN443:AW474,7,FALSE),IF(AND(AR2=2,AD35=AO451),VLOOKUP(9,AN443:AW474,7,FALSE),IF(AND(AR2=2,AD35=AO452),VLOOKUP(10,AN443:AW474,7,FALSE),IF(AND(AR2=2,AD35=AO453),VLOOKUP(11,AN443:AW474,7,FALSE),IF(AND(AR2=2,AD35=AO454),VLOOKUP(12,AN443:AW474,7,FALSE),IF(AND(AR2=2,AD35=AO455),VLOOKUP(13,AN443:AW474,7,FALSE),IF(AND(AR2=2,AD35=AO456),VLOOKUP(14,AN443:AW474,7,FALSE),IF(AND(AR2=2,AD35=AO457),VLOOKUP(15,AN443:AW474,7,FALSE),IF(AND(AR2=2,AD35=AO458),VLOOKUP(16,AN443:AW474,7,FALSE),IF(AND(AR2=2,AD35=AO459),VLOOKUP(17,AN443:AW474,7,FALSE),IF(AND(AR2=2,AD35=AO460),VLOOKUP(18,AN443:AW474,7,FALSE),IF(AND(AR2=2,AD35=AO461),VLOOKUP(19,AN443:AW474,7,FALSE),IF(AND(AR2=2,AD35=AO462),VLOOKUP(20,AN443:AW474,7,FALSE),IF(AND(AR2=2,AD35=AO463),VLOOKUP(21,AN443:AW474,7,FALSE),IF(AND(AR2=2,AD35=AO464),VLOOKUP(22,AN443:AW474,7,FALSE),IF(AND(AR2=2,AD35=AO465),VLOOKUP(23,AN443:AW474,7,FALSE),IF(AND(AR2=2,AD35=AO466),VLOOKUP(24,AN443:AW474,7,FALSE),IF(AND(AR2=2,AD35=AO467),VLOOKUP(25,AN443:AW474,7,FALSE),IF(AND(AR2=2,AD35=AO468),VLOOKUP(26,AN443:AW474,7,FALSE),IF(AND(AR2=2,AD35=AO469),VLOOKUP(27,AN443:AW474,7,FALSE),IF(AND(AR2=2,AD35=AO470),VLOOKUP(28,AN443:AW474,7,FALSE),IF(AND(AR2=2,AD35=AO471),VLOOKUP(29,AN443:AW474,7,FALSE),IF(AND(AR2=2,AD35=AO472),VLOOKUP(30,AN443:AW474,7,FALSE),IF(AND(AR2=2,AD35=AO473),VLOOKUP(31,AN443:AW474,7,FALSE),IF(AND(AR2=2,AD35=AO474),VLOOKUP(32,AN443:AW474,7,FALSE))))))))))))))))))))))))))))))))) -> FALSE | AW33: cm2 | AX33: Section Area | AY33: =IF(AND(AR2=3,AD35=AO402),VLOOKUP(1,AN402:AZ427,7,FALSE),IF(AND(AR2=3,AD35=AO403),VLOOKUP(2,AN402:AZ427,7,FALSE),IF(AND(AR2=3,AD35=AO404),VLOOKUP(3,AN402:AZ427,7,FALSE),IF(AND(AR2=3,AD35=AO405),VLOOKUP(4,AN402:AZ427,7,FALSE),IF(AND(AR2=3,AD35=AO406),VLOOKUP(5,AN402:AZ427,7,FALSE),IF(AND(AR2=3,AD35=AO407),VLOOKUP(6,AN402:AZ427,7,FALSE),IF(AND(AR2=3,AD35=AO408),VLOOKUP(7,AN402:AZ427,7,FALSE),IF(AND(AR2=3,AD35=AO409),VLOOKUP(8,AN402:AZ427,7,FALSE),IF(AND(AR2=3,AD35=AO410),VLOOKUP(9,AN402:AZ427,7,FALSE),IF(AND(AR2=3,AD35=AO411),VLOOKUP(10,AN402:AZ427,7,FALSE),IF(AND(AR2=3,AD35=AO412),VLOOKUP(11,AN402:AZ427,7,FALSE),IF(AND(AR2=3,AD35=AO413),VLOOKUP(12,AN402:AZ427,7,FALSE),IF(AND(AR2=3,AD35=AO414),VLOOKUP(13,AN402:AZ427,7,FALSE),IF(AND(AR2=3,AD35=AO415),VLOOKUP(14,AN402:AZ427,7,FALSE),IF(AND(AR2=3,AD35=AO416),VLOOKUP(15,AN402:AZ427,7,FALSE),IF(AND(AR2=3,AD35=AO417),VLOOKUP(16,AN402:AZ427,7,FALSE),IF(AND(AR2=3,AD35=AO418),VLOOKUP(17,AN402:AZ427,7,FALSE),IF(AND(AR2=3,AD35=AO419),VLOOKUP(18,AN402:AZ427,7,FALSE),IF(AND(AR2=3,AD35=AO420),VLOOKUP(19,AN402:AZ427,7,FALSE),IF(AND(AR2=3,AD35=AO421),VLOOKUP(20,AN402:AZ427,7,FALSE),IF(AND(AR2=3,AD35=AO422),VLOOKUP(21,AN402:AZ427,7,FALSE),IF(AND(AR2=3,AD35=AO423),VLOOKUP(22,AN402:AZ427,7,FALSE),IF(AND(AR2=3,AD35=AO424),VLOOKUP(23,AN402:AZ427,7,FALSE),IF(AND(AR2=3,AD35=AO425),VLOOKUP(24,AN402:AZ427,7,FALSE),IF(AND(AR2=3,AD35=AO426),VLOOKUP(25,AN402:AZ427,7,FALSE),IF(AND(AR2=3,AD35=AO427),VLOOKUP(26,AN402:AZ427,7,FALSE))))))))))))))))))))))))))) -> FALSE | AZ33: cm2 | BA33: Section Area | BB33: =IF(AND(AR2=4,AD35=AO157),VLOOKUP(1,AN157:BG202,7,FALSE),IF(AND(AR2=4,AD35=AO158),VLOOKUP(2,AN157:BG202,7,FALSE),IF(AND(AR2=4,AD35=AO159),VLOOKUP(3,AN157:BG202,7,FALSE),IF(AND(AR2=4,AD35=AO160),VLOOKUP(4,AN157:BG202,7,FALSE),IF(AND(AR2=4,AD35=AO161),VLOOKUP(5,AN157:BG202,7,FALSE),IF(AND(AR2=4,AD35=AO162),VLOOKUP(6,AN157:BG202,7,FALSE),IF(AND(AR2=4,AD35=AO163),VLOOKUP(7,AN157:BG202,7,FALSE),IF(AND(AR2=4,AD35=AO164),VLOOKUP(8,AN157:BG202,7,FALSE),IF(AND(AR2=4,AD35=AO165),VLOOKUP(9,AN157:BG202,7,FALSE),IF(AND(AR2=4,AD35=AO166),VLOOKUP(10,AN157:BG202,7,FALSE),IF(AND(AR2=4,AD35=AO167),VLOOKUP(11,AN157:BG202,7,FALSE),IF(AND(AR2=4,AD35=AO168),VLOOKUP(12,AN157:BG202,7,FALSE),IF(AND(AR2=4,AD35=AO169),VLOOKUP(13,AN157:BG202,7,FALSE),IF(AND(AR2=4,AD35=AO170),VLOOKUP(14,AN157:BG202,7,FALSE),IF(AND(AR2=4,AD35=AO171),VLOOKUP(15,AN157:BG202,7,FALSE),IF(AND(AR2=4,AD35=AO172),VLOOKUP(16,AN157:BG202,7,FALSE),IF(AND(AR2=4,AD35=AO173),VLOOKUP(17,AN157:BG202,7,FALSE),IF(AND(AR2=4,AD35=AO174),VLOOKUP(18,AN157:BG202,7,FALSE),IF(AND(AR2=4,AD35=AO175),VLOOKUP(19,AN157:BG202,7,FALSE),IF(AND(AR2=4,AD35=AO176),VLOOKUP(20,AN157:BG202,7,FALSE),IF(AND(AR2=4,AD35=AO177),VLOOKUP(21,AN157:BG202,7,FALSE),IF(AND(AR2=4,AD35=AO178),VLOOKUP(22,AN157:BG202,7,FALSE),IF(AND(AR2=4,AD35=AO179),VLOOKUP(23,AN157:BG202,7,FALSE),IF(AND(AR2=4,AD35=AO180),VLOOKUP(24,AN157:BG202,7,FALSE),IF(AND(AR2=4,AD35=AO181),VLOOKUP(25,AN157:BG202,7,FALSE),IF(AND(AR2=4,AD35=AO182),VLOOKUP(26,AN157:BG202,7,FALSE),IF(AND(AR2=4,AD35=AO183),VLOOKUP(27,AN157:BG202,7,FALSE),IF(AND(AR2=4,AD35=AO184),VLOOKUP(28,AN157:BG202,7,FALSE),IF(AND(AR2=4,AD35=AO185),VLOOKUP(29,AN157:BG202,7,FALSE),IF(AND(AR2=4,AD35=AO186),VLOOKUP(30,AN157:BG202,7,FALSE),IF(AND(AR2=4,AD35=AO187),VLOOKUP(31,AN157:BG202,7,FALSE),IF(AND(AR2=4,AD35=AO188),VLOOKUP(32,AN157:BG202,7,FALSE),IF(AND(AR2=4,AD35=AO189),VLOOKUP(33,AN157:BG202,7,FALSE),IF(AND(AR2=4,AD35=AO190),VLOOKUP(34,AN157:BG202,7,FALSE),IF(AND(AR2=4,AD35=AO191),VLOOKUP(35,AN157:BG202,7,FALSE),IF(AND(AR2=4,AD35=AO192),VLOOKUP(36,AN157:BG202,7,FALSE),IF(AND(AR2=4,AD35=AO193),VLOOKUP(37,AN157:BG202,7,FALSE),IF(AND(AR2=4,AD35=AO194),VLOOKUP(38,AN157:BG202,7,FALSE),IF(AND(AR2=4,AD35=AO195),VLOOKUP(39,AN157:BG202,7,FALSE),IF(AND(AR2=4,AD35=AO196),VLOOKUP(40,AN157:BG202,7,FALSE),IF(AND(AR2=4,AD35=AO197),VLOOKUP(41,AN157:BG202,7,FALSE),IF(AND(AR2=4,AD35=AO198),VLOOKUP(42,AN157:BG202,7,FALSE),IF(AND(AR2=4,AD35=AO199),VLOOKUP(43,AN157:BG202,7,FALSE),IF(AND(AR2=4,AD35=AO200),VLOOKUP(44,AN157:BG202,7,FALSE),IF(AND(AR2=4,AD35=AO201),VLOOKUP(45,AN157:BG202,7,FALSE),IF(AND(AR2=4,AD35=AO202),VLOOKUP(46,AN157:BG202,7,FALSE))))))))))))))))))))))))))))))))))))))))))))))) -> FALSE | BC33: cm2 | BD33: Section Area | BE33: =IF(AND(AR2=5,AD35=AO126),VLOOKUP(1,AN126:BD141,8,FALSE),IF(AND(AR2=5,AD35=AO127),VLOOKUP(2,AN126:BD141,8,FALSE),IF(AND(AR2=5,AD35=AO128),VLOOKUP(3,AN126:BD141,8,FALSE),IF(AND(AR2=5,AD35=AO129),VLOOKUP(4,AN126:BD141,8,FALSE),IF(AND(AR2=5,AD35=AO130),VLOOKUP(5,AN126:BD141,8,FALSE),IF(AND(AR2=5,AD35=AO131),VLOOKUP(6,AN126:BD141,8,FALSE),IF(AND(AR2=5,AD35=AO132),VLOOKUP(7,AN126:BD141,8,FALSE),IF(AND(AR2=5,AD35=AO133),VLOOKUP(8,AN126:BD141,8,FALSE),IF(AND(AR2=5,AD35=AO134),VLOOKUP(9,AN126:BD141,8,FALSE),IF(AND(AR2=5,AD35=AO135),VLOOKUP(10,AN126:BD141,8,FALSE),IF(AND(AR2=5,AD35=AO136),VLOOKUP(11,AN126:BD141,8,FALSE),IF(AND(AR2=5,AD35=AO137),VLOOKUP(12,AN126:BD141,8,FALSE),IF(AND(AR2=5,AD35=AO138),VLOOKUP(13,AN126:BD141,8,FALSE),IF(AND(AR2=5,AD35=AO139),VLOOKUP(14,AN126:BD141,8,FALSE),IF(AND(AR2=5,AD35=AO140),VLOOKUP(15,AN126:BD141,8,FALSE),IF(AND(AR2=5,AD35=AO141),VLOOKUP(16,AN126:BD141,8,FALSE))))))))))))))))) -> FALSE | BF33: cm2 | BG33: Section Area | BH33: =IF(AND(AR2=6,AD35=AO218),VLOOKUP(1,AN218:BQ290,16,FALSE),IF(AND(AR2=6,AD35=AO219),VLOOKUP(2,AN218:BQ290,16,FALSE),IF(AND(AR2=6,AD35=AO220),VLOOKUP(3,AN218:BQ290,16,FALSE),IF(AND(AR2=6,AD35=AO221),VLOOKUP(4,AN218:BQ290,16,FALSE),IF(AND(AR2=6,AD35=AO222),VLOOKUP(5,AN218:BQ290,16,FALSE),IF(AND(AR2=6,AD35=AO223),VLOOKUP(6,AN218:BQ290,16,FALSE),IF(AND(AR2=6,AD35=AO224),VLOOKUP(7,AN218:BQ290,16,FALSE),IF(AND(AR2=6,AD35=AO225),VLOOKUP(8,AN218:BQ290,16,FALSE),IF(AND(AR2=6,AD35=AO226),VLOOKUP(9,AN218:BQ290,16,FALSE),IF(AND(AR2=6,AD35=AO227),VLOOKUP(10,AN218:BQ290,16,FALSE),IF(AND(AR2=6,AD35=AO228),VLOOKUP(11,AN218:BQ290,16,FALSE),IF(AND(AR2=6,AD35=AO229),VLOOKUP(12,AN218:BQ290,16,FALSE),IF(AND(AR2=6,AD35=AO230),VLOOKUP(13,AN218:BQ290,16,FALSE),IF(AND(AR2=6,AD35=AO231),VLOOKUP(14,AN218:BQ290,16,FALSE),IF(AND(AR2=6,AD35=AO232),VLOOKUP(15,AN218:BQ290,16,FALSE),IF(AND(AR2=6,AD35=AO233),VLOOKUP(16,AN218:BQ290,16,FALSE),IF(AND(AR2=6,AD35=AO234),VLOOKUP(17,AN218:BQ290,16,FALSE),IF(AND(AR2=6,AD35=AO235),VLOOKUP(18,AN218:BQ290,16,FALSE),IF(AND(AR2=6,AD35=AO236),VLOOKUP(19,AN218:BQ290,16,FALSE),IF(AND(AR2=6,AD35=AO237),VLOOKUP(20,AN218:BQ290,16,FALSE),IF(AND(AR2=6,AD35=AO238),VLOOKUP(21,AN218:BQ290,16,FALSE),IF(AND(AR2=6,AD35=AO239),VLOOKUP(22,AN218:BQ290,16,FALSE),IF(AND(AR2=6,AD35=AO240),VLOOKUP(23,AN218:BQ290,16,FALSE),IF(AND(AR2=6,AD35=AO241),VLOOKUP(24,AN218:BQ290,16,FALSE),IF(AND(AR2=6,AD35=AO242),VLOOKUP(25,AN218:BQ290,16,FALSE),IF(AND(AR2=6,AD35=AO243),VLOOKUP(26,AN218:BQ290,16,FALSE),IF(AND(AR2=6,AD35=AO244),VLOOKUP(27,AN218:BQ290,16,FALSE),IF(AND(AR2=6,AD35=AO245),VLOOKUP(28,AN218:BQ290,16,FALSE),IF(AND(AR2=6,AD35=AO246),VLOOKUP(29,AN218:BQ290,16,FALSE),IF(AND(AR2=6,AD35=AO247),VLOOKUP(30,AN218:BQ290,16,FALSE),IF(AND(AR2=6,AD35=AO248),VLOOKUP(31,AN218:BQ290,16,FALSE),IF(AND(AR2=6,AD35=AO249),VLOOKUP(32,AN218:BQ290,16,FALSE),IF(AND(AR2=6,AD35=AO250),VLOOKUP(33,AN218:BQ290,16,FALSE),IF(AND(AR2=6,AD35=AO251),VLOOKUP(34,AN218:BQ290,16,FALSE),IF(AND(AR2=6,AD35=AO252),VLOOKUP(35,AN218:BQ290,16,FALSE),IF(AND(AR2=6,AD35=AO253),VLOOKUP(36,AN218:BQ290,16,FALSE),IF(AND(AR2=6,AD35=AO254),VLOOKUP(37,AN218:BQ290,16,FALSE),IF(AND(AR2=6,AD35=AO255),VLOOKUP(38,AN218:BQ290,16,FALSE),IF(AND(AR2=6,AD35=AO256),VLOOKUP(39,AN218:BQ290,16,FALSE),IF(AND(AR2=6,AD35=AO257),VLOOKUP(40,AN218:BQ290,16,FALSE),IF(AND(AR2=6,AD35=AO258),VLOOKUP(41,AN218:BQ290,16,FALSE),IF(AND(AR2=6,AD35=AO259),VLOOKUP(42,AN218:BQ290,16,FALSE),IF(AND(AR2=6,AD35=AO260),VLOOKUP(43,AN218:BQ290,16,FALSE),IF(AND(AR2=6,AD35=AO261),VLOOKUP(44,AN218:BQ290,16,FALSE),IF(AND(AR2=6,AD35=AO262),VLOOKUP(45,AN218:BQ290,16,FALSE),IF(AND(AR2=6,AD35=AO263),VLOOKUP(46,AN218:BQ290,16,FALSE),IF(AND(AR2=6,AD35=AO264),VLOOKUP(47,AN218:BQ290,16,FALSE),IF(AND(AR2=6,AD35=AO265),VLOOKUP(48,AN218:BQ290,16,FALSE),IF(AND(AR2=6,AD35=AO266),VLOOKUP(49,AN218:BQ290,16,FALSE),IF(AND(AR2=6,AD35=AO267),VLOOKUP(50,AN218:BQ290,16,FALSE),IF(AND(AR2=6,AD35=AO268),VLOOKUP(51,AN218:BQ290,16,FALSE),IF(AND(AR2=6,AD35=AO269),VLOOKUP(52,AN218:BQ290,16,FALSE),IF(AND(AR2=6,AD35=AO270),VLOOKUP(53,AN218:BQ290,16,FALSE),IF(AND(AR2=6,AD35=AO271),VLOOKUP(54,AN218:BQ290,16,FALSE),IF(AND(AR2=6,AD35=AO272),VLOOKUP(55,AN218:BQ290,16,FALSE),IF(AND(AR2=6,AD35=AO273),VLOOKUP(56,AN218:BQ290,16,FALSE),IF(AND(AR2=6,AD35=AO274),VLOOKUP(57,AN218:BQ290,16,FALSE),IF(AND(AR2=6,AD35=AO275),VLOOKUP(58,AN218:BQ290,16,FALSE),IF(AND(AR2=6,AD35=AO276),VLOOKUP(59,AN218:BQ290,16,FALSE),IF(AND(AR2=6,AD35=AO277),VLOOKUP(60,AN218:BQ290,16,FALSE),IF(AND(AR2=6,AD35=AO278),VLOOKUP(61,AN218:BQ290,16,FALSE),IF(AND(AR2=6,AD35=AO279),VLOOKUP(62,AN218:BQ290,16,FALSE),IF(AND(AR2=6,AD35=AO280),VLOOKUP(63,AN218:BQ290,16,FALSE),IF(AND(AR2=6,AD35=AO281),VLOOKUP(64,AN218:BQ290,16,FALSE))))))))))))))))))))))))))))))))))))))))))))))))))))))))))))))))) -> FALSE | BI33: cm2 | BJ33: Section Area | BK33: =IF(AND(AR2=7,AD35=AO308),VLOOKUP(1,AN308:BB327,8,FALSE),IF(AND(AR2=7,AD35=AO309),VLOOKUP(2,AN308:BB327,8,FALSE),IF(AND(AR2=7,AD35=AO310),VLOOKUP(3,AN308:BB327,8,FALSE),IF(AND(AR2=7,AD35=AO311),VLOOKUP(4,AN308:BB327,8,FALSE),IF(AND(AR2=7,AD35=AO312),VLOOKUP(5,AN308:BB327,8,FALSE),IF(AND(AR2=7,AD35=AO313),VLOOKUP(6,AN308:BB327,8,FALSE),IF(AND(AR2=7,AD35=AO314),VLOOKUP(7,AN308:BB327,8,FALSE),IF(AND(AR2=7,AD35=AO315),VLOOKUP(8,AN308:BB327,8,FALSE),IF(AND(AR2=7,AD35=AO316),VLOOKUP(9,AN308:BB327,8,FALSE),IF(AND(AR2=7,AD35=AO317),VLOOKUP(10,AN308:BB327,8,FALSE),IF(AND(AR2=7,AD35=AO318),VLOOKUP(11,AN308:BB327,8,FALSE),IF(AND(AR2=7,AD35=AO319),VLOOKUP(12,AN308:BB327,8,FALSE),IF(AND(AR2=7,AD35=AO320),VLOOKUP(13,AN308:BB327,8,FALSE),IF(AND(AR2=7,AD35=AO321),VLOOKUP(14,AN308:BB327,8,FALSE),IF(AND(AR2=7,AD35=AO322),VLOOKUP(15,AN308:BB327,8,FALSE),IF(AND(AR2=7,AD35=AO323),VLOOKUP(16,AN308:BB327,8,FALSE),IF(AND(AR2=7,AD35=AO324),VLOOKUP(17,AN308:BB327,8,FALSE),IF(AND(AR2=7,AD35=AO325),VLOOKUP(18,AN308:BB327,8,FALSE),IF(AND(AR2=7,AD35=AO326),VLOOKUP(19,AN308:BB327,8,FALSE),IF(AND(AR2=7,AD35=AO327),VLOOKUP(20,AN308:BB327,8,FALSE))))))))))))))))))))) -> FALSE | BL33: cm2 | BM33: Section Area | BN33: =IF(AND(AR2=8,AD35=AO1062),VLOOKUP(1,AN1062:BG1074,7,FALSE),IF(AND(AR2=8,AD35=AO1063),VLOOKUP(2,AN1062:BG1074,7,FALSE),IF(AND(AR2=8,AD35=AO1064),VLOOKUP(3,AN1062:BG1074,7,FALSE),IF(AND(AR2=8,AD35=AO1065),VLOOKUP(4,AN1062:BG1074,7,FALSE),IF(AND(AR2=8,AD35=AO1066),VLOOKUP(5,AN1062:BG1074,7,FALSE),IF(AND(AR2=8,AD35=AO1067),VLOOKUP(6,AN1062:BG1074,7,FALSE),IF(AND(AR2=8,AD35=AO1068),VLOOKUP(7,AN1062:BG1074,7,FALSE),IF(AND(AR2=8,AD35=AO1069),VLOOKUP(8,AN1062:BG1074,7,FALSE),IF(AND(AR2=8,AD35=AO1070),VLOOKUP(9,AN1062:BG1074,7,FALSE),IF(AND(AR2=8,AD35=AO1071),VLOOKUP(10,AN1062:BG1074,7,FALSE),IF(AND(AR2=8,AD35=AO1072),VLOOKUP(11,AN1062:BG1074,7,FALSE),IF(AND(AR2=8,AD35=AO1073),VLOOKUP(12,AN1062:BG1074,7,FALSE),IF(AND(AR2=8,AD35=AO1074),VLOOKUP(13,AN1062:BG1074,7,FALSE)))))))))))))) -> FALSE | BO33: cm2
B34: Calculate & Design | Z34: Steel property | AR34: Unit Weight | AS34: =IF(AND(AR2=1,AD35=AO342),VLOOKUP(1,AN342:BC386,6,FALSE),IF(AND(AR2=1,AD35=AO343),VLOOKUP(2,AN342:BC386,6,FALSE),IF(AND(AR2=1,AD35=AO344),VLOOKUP(3,AN342:BC386,6,FALSE),IF(AND(AR2=1,AD35=AO345),VLOOKUP(4,AN342:BC386,6,FALSE),IF(AND(AR2=1,AD35=AO346),VLOOKUP(5,AN342:BC386,6,FALSE),IF(AND(AR2=1,AD35=AO347),VLOOKUP(6,AN342:BC386,6,FALSE),IF(AND(AR2=1,AD35=AO348),VLOOKUP(7,AN342:BC386,6,FALSE),IF(AND(AR2=1,AD35=AO349),VLOOKUP(8,AN342:BC386,6,FALSE),IF(AND(AR2=1,AD35=AO350),VLOOKUP(9,AN342:BC386,6,FALSE),IF(AND(AR2=1,AD35=AO351),VLOOKUP(10,AN342:BC386,6,FALSE),IF(AND(AR2=1,AD35=AO352),VLOOKUP(11,AN342:BC386,6,FALSE),IF(AND(AR2=1,AD35=AO353),VLOOKUP(12,AN342:BC386,6,FALSE),IF(AND(AR2=1,AD35=AO354),VLOOKUP(13,AN342:BC386,6,FALSE),IF(AND(AR2=1,AD35=AO355),VLOOKUP(14,AN342:BC386,6,FALSE),IF(AND(AR2=1,AD35=AO356),VLOOKUP(15,AN342:BC386,6,FALSE),IF(AND(AR2=1,AD35=AO357),VLOOKUP(16,AN342:BC386,6,FALSE),IF(AND(AR2=1,AD35=AO358),VLOOKUP(17,AN342:BC386,6,FALSE),IF(AND(AR2=1,AD35=AO359),VLOOKUP(18,AN342:BC386,6,FALSE),IF(AND(AR2=1,AD35=AO360),VLOOKUP(19,AN342:BC386,6,FALSE),IF(AND(AR2=1,AD35=AO361),VLOOKUP(20,AN342:BC386,6,FALSE),IF(AND(AR2=1,AD35=AO362),VLOOKUP(21,AN342:BC386,6,FALSE),IF(AND(AR2=1,AD35=AO363),VLOOKUP(22,AN342:BC386,6,FALSE),IF(AND(AR2=1,AD35=AO364),VLOOKUP(23,AN342:BC386,6,FALSE),IF(AND(AR2=1,AD35=AO365),VLOOKUP(24,AN342:BC386,6,FALSE),IF(AND(AR2=1,AD35=AO366),VLOOKUP(25,AN342:BC386,6,FALSE),IF(AND(AR2=1,AD35=AO367),VLOOKUP(26,AN342:BC386,6,FALSE),IF(AND(AR2=1,AD35=AO368),VLOOKUP(27,AN342:BC386,6,FALSE),IF(AND(AR2=1,AD35=AO369),VLOOKUP(28,AN342:BC386,6,FALSE),IF(AND(AR2=1,AD35=AO370),VLOOKUP(29,AN342:BC386,6,FALSE),IF(AND(AR2=1,AD35=AO371),VLOOKUP(30,AN342:BC386,6,FALSE),IF(AND(AR2=1,AD35=AO372),VLOOKUP(31,AN342:BC386,6,FALSE),IF(AND(AR2=1,AD35=AO373),VLOOKUP(32,AN342:BC386,6,FALSE),IF(AND(AR2=1,AD35=AO374),VLOOKUP(33,AN342:BC386,6,FALSE),IF(AND(AR2=1,AD35=AO375),VLOOKUP(34,AN342:BC386,6,FALSE),IF(AND(AR2=1,AD35=AO376),VLOOKUP(35,AN342:BC386,6,FALSE),IF(AND(AR2=1,AD35=AO377),VLOOKUP(36,AN342:BC386,6,FALSE),IF(AND(AR2=1,AD35=AO378),VLOOKUP(37,AN342:BC386,6,FALSE),IF(AND(AR2=1,AD35=AO379),VLOOKUP(38,AN342:BC386,6,FALSE),IF(AND(AR2=1,AD35=AO380),VLOOKUP(39,AN342:BC386,6,FALSE),IF(AND(AR2=1,AD35=AO381),VLOOKUP(40,AN342:BC386,6,FALSE),IF(AND(AR2=1,AD35=AO382),VLOOKUP(41,AN342:BC386,6,FALSE),IF(AND(AR2=1,AD35=AO383),VLOOKUP(42,AN342:BC386,6,FALSE),IF(AND(AR2=1,AD35=AO384),VLOOKUP(43,AN342:BC386,6,FALSE),IF(AND(AR2=1,AD35=AO385),VLOOKUP(44,AN342:BC386,6,FALSE),IF(AND(AR2=1,AD35=AO386),VLOOKUP(45,AN342:BC386,6,FALSE)))))))))))))))))))))))))))))))))))))))))))))) -> 5.5 | AT34: kg./m. | AU34: Unit Weight | AV34: =IF(AND(AR2=2,AD35=AO443),VLOOKUP(1,AN443:AW474,6,FALSE),IF(AND(AR2=2,AD35=AO444),VLOOKUP(2,AN443:AW474,6,FALSE),IF(AND(AR2=2,AD35=AO445),VLOOKUP(3,AN443:AW474,6,FALSE),IF(AND(AR2=2,AD35=AO446),VLOOKUP(4,AN443:AW474,6,FALSE),IF(AND(AR2=2,AD35=AO447),VLOOKUP(5,AN443:AW474,6,FALSE),IF(AND(AR2=2,AD35=AO448),VLOOKUP(6,AN443:AW474,6,FALSE),IF(AND(AR2=2,AD35=AO449),VLOOKUP(7,AN443:AW474,6,FALSE),IF(AND(AR2=2,AD35=AO450),VLOOKUP(8,AN443:AW474,6,FALSE),IF(AND(AR2=2,AD35=AO451),VLOOKUP(9,AN443:AW474,6,FALSE),IF(AND(AR2=2,AD35=AO452),VLOOKUP(10,AN443:AW474,6,FALSE),IF(AND(AR2=2,AD35=AO453),VLOOKUP(11,AN443:AW474,6,FALSE),IF(AND(AR2=2,AD35=AO454),VLOOKUP(12,AN443:AW474,6,FALSE),IF(AND(AR2=2,AD35=AO455),VLOOKUP(13,AN443:AW474,6,FALSE),IF(AND(AR2=2,AD35=AO456),VLOOKUP(14,AN443:AW474,6,FALSE),IF(AND(AR2=2,AD35=AO457),VLOOKUP(15,AN443:AW474,6,FALSE),IF(AND(AR2=2,AD35=AO458),VLOOKUP(16,AN443:AW474,6,FALSE),IF(AND(AR2=2,AD35=AO459),VLOOKUP(17,AN443:AW474,6,FALSE),IF(AND(AR2=2,AD35=AO460),VLOOKUP(18,AN443:AW474,6,FALSE),IF(AND(AR2=2,AD35=AO461),VLOOKUP(19,AN443:AW474,6,FALSE),IF(AND(AR2=2,AD35=AO462),VLOOKUP(20,AN443:AW474,6,FALSE),IF(AND(AR2=2,AD35=AO463),VLOOKUP(21,AN443:AW474,6,FALSE),IF(AND(AR2=2,AD35=AO464),VLOOKUP(22,AN443:AW474,6,FALSE),IF(AND(AR2=2,AD35=AO465),VLOOKUP(23,AN443:AW474,6,FALSE),IF(AND(AR2=2,AD35=AO466),VLOOKUP(24,AN443:AW474,6,FALSE),IF(AND(AR2=2,AD35=AO467),VLOOKUP(25,AN443:AW474,6,FALSE),IF(AND(AR2=2,AD35=AO468),VLOOKUP(26,AN443:AW474,6,FALSE),IF(AND(AR2=2,AD35=AO469),VLOOKUP(27,AN443:AW474,6,FALSE),IF(AND(AR2=2,AD35=AO470),VLOOKUP(28,AN443:AW474,6,FALSE),IF(AND(AR2=2,AD35=AO471),VLOOKUP(29,AN443:AW474,6,FALSE),IF(AND(AR2=2,AD35=AO472),VLOOKUP(30,AN443:AW474,6,FALSE),IF(AND(AR2=2,AD35=AO473),VLOOKUP(31,AN443:AW474,6,FALSE),IF(AND(AR2=2,AD35=AO474),VLOOKUP(32,AN443:AW474,6,FALSE))))))))))))))))))))))))))))))))) -> FALSE | AW34: kg./m. | AX34: Unit Weight | AY34: =IF(AND(AR2=3,AD35=AO402),VLOOKUP(1,AN402:AZ427,6,FALSE),IF(AND(AR2=3,AD35=AO403),VLOOKUP(2,AN402:AZ427,6,FALSE),IF(AND(AR2=3,AD35=AO404),VLOOKUP(3,AN402:AZ427,6,FALSE),IF(AND(AR2=3,AD35=AO405),VLOOKUP(4,AN402:AZ427,6,FALSE),IF(AND(AR2=3,AD35=AO406),VLOOKUP(5,AN402:AZ427,6,FALSE),IF(AND(AR2=3,AD35=AO407),VLOOKUP(6,AN402:AZ427,6,FALSE),IF(AND(AR2=3,AD35=AO408),VLOOKUP(7,AN402:AZ427,6,FALSE),IF(AND(AR2=3,AD35=AO409),VLOOKUP(8,AN402:AZ427,6,FALSE),IF(AND(AR2=3,AD35=AO410),VLOOKUP(9,AN402:AZ427,6,FALSE),IF(AND(AR2=3,AD35=AO411),VLOOKUP(10,AN402:AZ427,6,FALSE),IF(AND(AR2=3,AD35=AO412),VLOOKUP(11,AN402:AZ427,6,FALSE),IF(AND(AR2=3,AD35=AO413),VLOOKUP(12,AN402:AZ427,6,FALSE),IF(AND(AR2=3,AD35=AO414),VLOOKUP(13,AN402:AZ427,6,FALSE),IF(AND(AR2=3,AD35=AO415),VLOOKUP(14,AN402:AZ427,6,FALSE),IF(AND(AR2=3,AD35=AO416),VLOOKUP(15,AN402:AZ427,6,FALSE),IF(AND(AR2=3,AD35=AO417),VLOOKUP(16,AN402:AZ427,6,FALSE),IF(AND(AR2=3,AD35=AO418),VLOOKUP(17,AN402:AZ427,6,FALSE),IF(AND(AR2=3,AD35=AO419),VLOOKUP(18,AN402:AZ427,6,FALSE),IF(AND(AR2=3,AD35=AO420),VLOOKUP(19,AN402:AZ427,6,FALSE),IF(AND(AR2=3,AD35=AO421),VLOOKUP(20,AN402:AZ427,6,FALSE),IF(AND(AR2=3,AD35=AO422),VLOOKUP(21,AN402:AZ427,6,FALSE),IF(AND(AR2=3,AD35=AO423),VLOOKUP(22,AN402:AZ427,6,FALSE),IF(AND(AR2=3,AD35=AO424),VLOOKUP(23,AN402:AZ427,6,FALSE),IF(AND(AR2=3,AD35=AO425),VLOOKUP(24,AN402:AZ427,6,FALSE),IF(AND(AR2=3,AD35=AO426),VLOOKUP(25,AN402:AZ427,6,FALSE),IF(AND(AR2=3,AD35=AO427),VLOOKUP(26,AN402:AZ427,6,FALSE))))))))))))))))))))))))))) -> FALSE | AZ34: kg./m. | BA34: Unit Weight | BB34: =IF(AND(AR2=4,AD35=AO157),VLOOKUP(1,AN157:BG202,8,FALSE),IF(AND(AR2=4,AD35=AO158),VLOOKUP(2,AN157:BG202,8,FALSE),IF(AND(AR2=4,AD35=AO159),VLOOKUP(3,AN157:BG202,8,FALSE),IF(AND(AR2=4,AD35=AO160),VLOOKUP(4,AN157:BG202,8,FALSE),IF(AND(AR2=4,AD35=AO161),VLOOKUP(5,AN157:BG202,8,FALSE),IF(AND(AR2=4,AD35=AO162),VLOOKUP(6,AN157:BG202,8,FALSE),IF(AND(AR2=4,AD35=AO163),VLOOKUP(7,AN157:BG202,8,FALSE),IF(AND(AR2=4,AD35=AO164),VLOOKUP(8,AN157:BG202,8,FALSE),IF(AND(AR2=4,AD35=AO165),VLOOKUP(9,AN157:BG202,8,FALSE),IF(AND(AR2=4,AD35=AO166),VLOOKUP(10,AN157:BG202,8,FALSE),IF(AND(AR2=4,AD35=AO167),VLOOKUP(11,AN157:BG202,8,FALSE),IF(AND(AR2=4,AD35=AO168),VLOOKUP(12,AN157:BG202,8,FALSE),IF(AND(AR2=4,AD35=AO169),VLOOKUP(13,AN157:BG202,8,FALSE),IF(AND(AR2=4,AD35=AO170),VLOOKUP(14,AN157:BG202,8,FALSE),IF(AND(AR2=4,AD35=AO171),VLOOKUP(15,AN157:BG202,8,FALSE),IF(AND(AR2=4,AD35=AO172),VLOOKUP(16,AN157:BG202,8,FALSE),IF(AND(AR2=4,AD35=AO173),VLOOKUP(17,AN157:BG202,8,FALSE),IF(AND(AR2=4,AD35=AO174),VLOOKUP(18,AN157:BG202,8,FALSE),IF(AND(AR2=4,AD35=AO175),VLOOKUP(19,AN157:BG202,8,FALSE),IF(AND(AR2=4,AD35=AO176),VLOOKUP(20,AN157:BG202,8,FALSE),IF(AND(AR2=4,AD35=AO177),VLOOKUP(21,AN157:BG202,8,FALSE),IF(AND(AR2=4,AD35=AO178),VLOOKUP(22,AN157:BG202,8,FALSE),IF(AND(AR2=4,AD35=AO179),VLOOKUP(23,AN157:BG202,8,FALSE),IF(AND(AR2=4,AD35=AO180),VLOOKUP(24,AN157:BG202,8,FALSE),IF(AND(AR2=4,AD35=AO181),VLOOKUP(25,AN157:BG202,8,FALSE),IF(AND(AR2=4,AD35=AO182),VLOOKUP(26,AN157:BG202,8,FALSE),IF(AND(AR2=4,AD35=AO183),VLOOKUP(27,AN157:BG202,8,FALSE),IF(AND(AR2=4,AD35=AO184),VLOOKUP(28,AN157:BG202,8,FALSE),IF(AND(AR2=4,AD35=AO185),VLOOKUP(29,AN157:BG202,8,FALSE),IF(AND(AR2=4,AD35=AO186),VLOOKUP(30,AN157:BG202,8,FALSE),IF(AND(AR2=4,AD35=AO187),VLOOKUP(31,AN157:BG202,8,FALSE),IF(AND(AR2=4,AD35=AO188),VLOOKUP(32,AN157:BG202,8,FALSE),IF(AND(AR2=4,AD35=AO189),VLOOKUP(33,AN157:BG202,8,FALSE),IF(AND(AR2=4,AD35=AO190),VLOOKUP(34,AN157:BG202,8,FALSE),IF(AND(AR2=4,AD35=AO191),VLOOKUP(35,AN157:BG202,8,FALSE),IF(AND(AR2=4,AD35=AO192),VLOOKUP(36,AN157:BG202,8,FALSE),IF(AND(AR2=4,AD35=AO193),VLOOKUP(37,AN157:BG202,8,FALSE),IF(AND(AR2=4,AD35=AO194),VLOOKUP(38,AN157:BG202,8,FALSE),IF(AND(AR2=4,AD35=AO195),VLOOKUP(39,AN157:BG202,8,FALSE),IF(AND(AR2=4,AD35=AO196),VLOOKUP(40,AN157:BG202,8,FALSE),IF(AND(AR2=4,AD35=AO197),VLOOKUP(41,AN157:BG202,8,FALSE),IF(AND(AR2=4,AD35=AO198),VLOOKUP(42,AN157:BG202,8,FALSE),IF(AND(AR2=4,AD35=AO199),VLOOKUP(43,AN157:BG202,8,FALSE),IF(AND(AR2=4,AD35=AO200),VLOOKUP(44,AN157:BG202,8,FALSE),IF(AND(AR2=4,AD35=AO201),VLOOKUP(45,AN157:BG202,8,FALSE),IF(AND(AR2=4,AD35=AO202),VLOOKUP(46,AN157:BG202,8,FALSE))))))))))))))))))))))))))))))))))))))))))))))) -> FALSE | BC34: kg./m. | BD34: Unit Weight | BE34: =IF(AND(AR2=5,AD35=AO126),VLOOKUP(1,AN126:BD141,9,FALSE),IF(AND(AR2=5,AD35=AO127),VLOOKUP(2,AN126:BD141,9,FALSE),IF(AND(AR2=5,AD35=AO128),VLOOKUP(3,AN126:BD141,9,FALSE),IF(AND(AR2=5,AD35=AO129),VLOOKUP(4,AN126:BD141,9,FALSE),IF(AND(AR2=5,AD35=AO130),VLOOKUP(5,AN126:BD141,9,FALSE),IF(AND(AR2=5,AD35=AO131),VLOOKUP(6,AN126:BD141,9,FALSE),IF(AND(AR2=5,AD35=AO132),VLOOKUP(7,AN126:BD141,9,FALSE),IF(AND(AR2=5,AD35=AO133),VLOOKUP(8,AN126:BD141,9,FALSE),IF(AND(AR2=5,AD35=AO134),VLOOKUP(9,AN126:BD141,9,FALSE),IF(AND(AR2=5,AD35=AO135),VLOOKUP(10,AN126:BD141,9,FALSE),IF(AND(AR2=5,AD35=AO136),VLOOKUP(11,AN126:BD141,9,FALSE),IF(AND(AR2=5,AD35=AO137),VLOOKUP(12,AN126:BD141,9,FALSE),IF(AND(AR2=5,AD35=AO138),VLOOKUP(13,AN126:BD141,9,FALSE),IF(AND(AR2=5,AD35=AO139),VLOOKUP(14,AN126:BD141,9,FALSE),IF(AND(AR2=5,AD35=AO140),VLOOKUP(15,AN126:BD141,9,FALSE),IF(AND(AR2=5,AD35=AO141),VLOOKUP(16,AN126:BD141,9,FALSE))))))))))))))))) -> FALSE | BF34: kg./m. | BG34: Unit Weight | BH34: =IF(AND(AR2=6,AD35=AO218),VLOOKUP(1,AN218:BQ290,4,FALSE),IF(AND(AR2=6,AD35=AO219),VLOOKUP(2,AN218:BQ290,4,FALSE),IF(AND(AR2=6,AD35=AO220),VLOOKUP(3,AN218:BQ290,4,FALSE),IF(AND(AR2=6,AD35=AO221),VLOOKUP(4,AN218:BQ290,4,FALSE),IF(AND(AR2=6,AD35=AO222),VLOOKUP(5,AN218:BQ290,4,FALSE),IF(AND(AR2=6,AD35=AO223),VLOOKUP(6,AN218:BQ290,4,FALSE),IF(AND(AR2=6,AD35=AO224),VLOOKUP(7,AN218:BQ290,4,FALSE),IF(AND(AR2=6,AD35=AO225),VLOOKUP(8,AN218:BQ290,4,FALSE),IF(AND(AR2=6,AD35=AO226),VLOOKUP(9,AN218:BQ290,4,FALSE),IF(AND(AR2=6,AD35=AO227),VLOOKUP(10,AN218:BQ290,4,FALSE),IF(AND(AR2=6,AD35=AO228),VLOOKUP(11,AN218:BQ290,4,FALSE),IF(AND(AR2=6,AD35=AO229),VLOOKUP(12,AN218:BQ290,4,FALSE),IF(AND(AR2=6,AD35=AO230),VLOOKUP(13,AN218:BQ290,4,FALSE),IF(AND(AR2=6,AD35=AO231),VLOOKUP(14,AN218:BQ290,4,FALSE),IF(AND(AR2=6,AD35=AO232),VLOOKUP(15,AN218:BQ290,4,FALSE),IF(AND(AR2=6,AD35=AO233),VLOOKUP(16,AN218:BQ290,4,FALSE),IF(AND(AR2=6,AD35=AO234),VLOOKUP(17,AN218:BQ290,4,FALSE),IF(AND(AR2=6,AD35=AO235),VLOOKUP(18,AN218:BQ290,4,FALSE),IF(AND(AR2=6,AD35=AO236),VLOOKUP(19,AN218:BQ290,4,FALSE),IF(AND(AR2=6,AD35=AO237),VLOOKUP(20,AN218:BQ290,4,FALSE),IF(AND(AR2=6,AD35=AO238),VLOOKUP(21,AN218:BQ290,4,FALSE),IF(AND(AR2=6,AD35=AO239),VLOOKUP(22,AN218:BQ290,4,FALSE),IF(AND(AR2=6,AD35=AO240),VLOOKUP(23,AN218:BQ290,4,FALSE),IF(AND(AR2=6,AD35=AO241),VLOOKUP(24,AN218:BQ290,4,FALSE),IF(AND(AR2=6,AD35=AO242),VLOOKUP(25,AN218:BQ290,4,FALSE),IF(AND(AR2=6,AD35=AO243),VLOOKUP(26,AN218:BQ290,4,FALSE),IF(AND(AR2=6,AD35=AO244),VLOOKUP(27,AN218:BQ290,4,FALSE),IF(AND(AR2=6,AD35=AO245),VLOOKUP(28,AN218:BQ290,4,FALSE),IF(AND(AR2=6,AD35=AO246),VLOOKUP(29,AN218:BQ290,4,FALSE),IF(AND(AR2=6,AD35=AO247),VLOOKUP(30,AN218:BQ290,4,FALSE),IF(AND(AR2=6,AD35=AO248),VLOOKUP(31,AN218:BQ290,4,FALSE),IF(AND(AR2=6,AD35=AO249),VLOOKUP(32,AN218:BQ290,4,FALSE),IF(AND(AR2=6,AD35=AO250),VLOOKUP(33,AN218:BQ290,4,FALSE),IF(AND(AR2=6,AD35=AO251),VLOOKUP(34,AN218:BQ290,4,FALSE),IF(AND(AR2=6,AD35=AO252),VLOOKUP(35,AN218:BQ290,4,FALSE),IF(AND(AR2=6,AD35=AO253),VLOOKUP(36,AN218:BQ290,4,FALSE),IF(AND(AR2=6,AD35=AO254),VLOOKUP(37,AN218:BQ290,4,FALSE),IF(AND(AR2=6,AD35=AO255),VLOOKUP(38,AN218:BQ290,4,FALSE),IF(AND(AR2=6,AD35=AO256),VLOOKUP(39,AN218:BQ290,4,FALSE),IF(AND(AR2=6,AD35=AO257),VLOOKUP(40,AN218:BQ290,4,FALSE),IF(AND(AR2=6,AD35=AO258),VLOOKUP(41,AN218:BQ290,4,FALSE),IF(AND(AR2=6,AD35=AO259),VLOOKUP(42,AN218:BQ290,4,FALSE),IF(AND(AR2=6,AD35=AO260),VLOOKUP(43,AN218:BQ290,4,FALSE),IF(AND(AR2=6,AD35=AO261),VLOOKUP(44,AN218:BQ290,4,FALSE),IF(AND(AR2=6,AD35=AO262),VLOOKUP(45,AN218:BQ290,4,FALSE),IF(AND(AR2=6,AD35=AO263),VLOOKUP(46,AN218:BQ290,4,FALSE),IF(AND(AR2=6,AD35=AO264),VLOOKUP(47,AN218:BQ290,4,FALSE),IF(AND(AR2=6,AD35=AO265),VLOOKUP(48,AN218:BQ290,4,FALSE),IF(AND(AR2=6,AD35=AO266),VLOOKUP(49,AN218:BQ290,4,FALSE),IF(AND(AR2=6,AD35=AO267),VLOOKUP(50,AN218:BQ290,4,FALSE),IF(AND(AR2=6,AD35=AO268),VLOOKUP(51,AN218:BQ290,4,FALSE),IF(AND(AR2=6,AD35=AO269),VLOOKUP(52,AN218:BQ290,4,FALSE),IF(AND(AR2=6,AD35=AO270),VLOOKUP(53,AN218:BQ290,4,FALSE),IF(AND(AR2=6,AD35=AO271),VLOOKUP(54,AN218:BQ290,4,FALSE),IF(AND(AR2=6,AD35=AO272),VLOOKUP(55,AN218:BQ290,4,FALSE),IF(AND(AR2=6,AD35=AO273),VLOOKUP(56,AN218:BQ290,4,FALSE),IF(AND(AR2=6,AD35=AO274),VLOOKUP(57,AN218:BQ290,4,FALSE),IF(AND(AR2=6,AD35=AO275),VLOOKUP(58,AN218:BQ290,4,FALSE),IF(AND(AR2=6,AD35=AO276),VLOOKUP(59,AN218:BQ290,4,FALSE),IF(AND(AR2=6,AD35=AO277),VLOOKUP(60,AN218:BQ290,4,FALSE),IF(AND(AR2=6,AD35=AO278),VLOOKUP(61,AN218:BQ290,4,FALSE),IF(AND(AR2=6,AD35=AO279),VLOOKUP(62,AN218:BQ290,4,FALSE),IF(AND(AR2=6,AD35=AO280),VLOOKUP(63,AN218:BQ290,4,FALSE),IF(AND(AR2=6,AD35=AO281),VLOOKUP(64,AN218:BQ290,4,FALSE))))))))))))))))))))))))))))))))))))))))))))))))))))))))))))))))) -> FALSE | BI34: kg./m. | BJ34: Unit Weight | BK34: =IF(AND(AR2=7,AD35=AO308),VLOOKUP(1,AN308:BB327,9,FALSE),IF(AND(AR2=7,AD35=AO309),VLOOKUP(2,AN308:BB327,9,FALSE),IF(AND(AR2=7,AD35=AO310),VLOOKUP(3,AN308:BB327,9,FALSE),IF(AND(AR2=7,AD35=AO311),VLOOKUP(4,AN308:BB327,9,FALSE),IF(AND(AR2=7,AD35=AO312),VLOOKUP(5,AN308:BB327,9,FALSE),IF(AND(AR2=7,AD35=AO313),VLOOKUP(6,AN308:BB327,9,FALSE),IF(AND(AR2=7,AD35=AO314),VLOOKUP(7,AN308:BB327,9,FALSE),IF(AND(AR2=7,AD35=AO315),VLOOKUP(8,AN308:BB327,9,FALSE),IF(AND(AR2=7,AD35=AO316),VLOOKUP(9,AN308:BB327,9,FALSE),IF(AND(AR2=7,AD35=AO317),VLOOKUP(10,AN308:BB327,9,FALSE),IF(AND(AR2=7,AD35=AO318),VLOOKUP(11,AN308:BB327,9,FALSE),IF(AND(AR2=7,AD35=AO319),VLOOKUP(12,AN308:BB327,9,FALSE),IF(AND(AR2=7,AD35=AO320),VLOOKUP(13,AN308:BB327,9,FALSE),IF(AND(AR2=7,AD35=AO321),VLOOKUP(14,AN308:BB327,9,FALSE),IF(AND(AR2=7,AD35=AO322),VLOOKUP(15,AN308:BB327,9,FALSE),IF(AND(AR2=7,AD35=AO323),VLOOKUP(16,AN308:BB327,9,FALSE),IF(AND(AR2=7,AD35=AO324),VLOOKUP(17,AN308:BB327,9,FALSE),IF(AND(AR2=7,AD35=AO325),VLOOKUP(18,AN308:BB327,9,FALSE),IF(AND(AR2=7,AD35=AO326),VLOOKUP(19,AN308:BB327,9,FALSE),IF(AND(AR2=7,AD35=AO327),VLOOKUP(20,AN308:BB327,9,FALSE))))))))))))))))))))) -> FALSE | BL34: kg./m. | BM34: Unit Weight | BN34: =IF(AND(AR2=8,AD35=AO1062),VLOOKUP(1,AN1062:BG1074,8,FALSE),IF(AND(AR2=8,AD35=AO1063),VLOOKUP(2,AN1062:BG1074,8,FALSE),IF(AND(AR2=8,AD35=AO1064),VLOOKUP(3,AN1062:BG1074,8,FALSE),IF(AND(AR2=8,AD35=AO1065),VLOOKUP(4,AN1062:BG1074,8,FALSE),IF(AND(AR2=8,AD35=AO1066),VLOOKUP(5,AN1062:BG1074,8,FALSE),IF(AND(AR2=8,AD35=AO1067),VLOOKUP(6,AN1062:BG1074,8,FALSE),IF(AND(AR2=8,AD35=AO1068),VLOOKUP(7,AN1062:BG1074,8,FALSE),IF(AND(AR2=8,AD35=AO1069),VLOOKUP(8,AN1062:BG1074,8,FALSE),IF(AND(AR2=8,AD35=AO1070),VLOOKUP(9,AN1062:BG1074,8,FALSE),IF(AND(AR2=8,AD35=AO1071),VLOOKUP(10,AN1062:BG1074,8,FALSE),IF(AND(AR2=8,AD35=AO1072),VLOOKUP(11,AN1062:BG1074,8,FALSE),IF(AND(AR2=8,AD35=AO1073),VLOOKUP(12,AN1062:BG1074,8,FALSE),IF(AND(AR2=8,AD35=AO1074),VLOOKUP(13,AN1062:BG1074,8,FALSE)))))))))))))) -> FALSE | BO34: kg./m.
B35: ɵ | F35: = | G35: =DEGREES(ATAN(AE21/(AE26/2))) -> 29.92281793 | K35: degree | N35: Mx | R35: = | S35: =MAX(AS43,AS44) -> 262.6469068 | W35: kg./m. | Z35: Select | AD35: 100x50x20x3.2 | AI35: mm.
B36: Wx | F36: = | G36: =(G26+S26)*SIN(AS5) -> 19.41457803 | K36: kg./m. | N36: My | R36: = | S36: =G36*(AE25^2)/9 -> 0.2493694689 | W36: kg./m. | Z36: Ix | AD36: = | AE36: =IF(AND(AS27=FALSE,AV27=FALSE,AY27=FALSE,BB27=FALSE,BE27=FALSE,BH27=FALSE,BK27=FALSE,BN27=FALSE),0.0001,IF(AR2=1,AS27,IF(AR2=2,AV27,IF(AR2=3,AY27,IF(AR2=4,BB27,IF(AR2=5,BE27,IF(AR2=6,BH27,IF(AR2=7,BK27,IF(AR2=8,BN27))))))))) -> 107 | AI36: cm4 | AU36: x (m.) | BF36: x1 (m.)
B37: Wy | F37: = | G37: =G25 -> 192.4696638 | K37: kg./m. | N37: Sx | R37: = | S37: =MAX(S35:V36)*100/G24 -> 18.23936853 | W37: cm.3 | Z37: Iy | AD37: = | AE37: =IF(AND(AS28=FALSE,AV28=FALSE,AY28=FALSE,BB28=FALSE,BE28=FALSE,BH28=FALSE,BK28=FALSE,BN28=FALSE),0.0001,IF(AR2=1,AS28,IF(AR2=2,AV28,IF(AR2=3,AY28,IF(AR2=4,BB28,IF(AR2=5,BE28,IF(AR2=6,BH28,IF(AR2=7,BK28,IF(AR2=8,BN28))))))))) -> 24.5 | AI37: cm4 | AR37: w | AS37: =G25 -> 192.4696638 | AT37: x/x1 | AU37: 0 | AV37: =AS45/10 -> 0.3807553954 | AW37: =AV37*2 -> 0.7615107908 | AX37: =AV37*3 -> 1.142266186 | AY37: =AV37*4 -> 1.523021582 | AZ37: =AV37*5 -> 1.903776977 | BA37: =AV37*6 -> 2.284532372 | BB37: =AV37*7 -> 2.665287768 | BC37: =AV37*8 -> 3.046043163 | BD37: =AV37*9 -> 3.426798558 | BE37: =AV37*10 -> 3.807553954 | BF37: 0 | BG37: =AS46/10 -> 0.1384565074 | BH37: =BG37*2 -> 0.2769130148 | BI37: =BG37*3 -> 0.4153695222 | BJ37: =BG37*4 -> 0.5538260296 | BK37: =BG37*5 -> 0.6922825371 | BL37: =BG37*6 -> 0.8307390445 | BM37: =BG37*7 -> 0.9691955519 | BN37: =BG37*8 -> 1.107652059 | BO37: =BG37*9 -> 1.246108567 | BP37: =BG37*10 -> 1.384565074
B38: ∆ allow. y-y | F38: = | G38: =AS16*100/360 -> 1.057653876 | K38: cm. | M38: =IF(G38>=S38,"≥","<") -> < | N38: ∆ max. y-y | R38: = | S38: =MAX(AT48,AT49) -> 1.670568735 | W38: cm. | Y38: =IF(G38>=S38,"","Fail") -> Fail | Z38: Sx | AD38: = | AE38: =IF(AND(AS29=FALSE,AV29=FALSE,AY29=FALSE,BB29=FALSE,BE29=FALSE,BH29=FALSE,BK29=FALSE,BN29=FALSE),0.0001,IF(AR2=1,AS29,IF(AR2=2,AV29,IF(AR2=3,AY29,IF(AR2=4,BB29,IF(AR2=5,BE29,IF(AR2=6,BH29,IF(AR2=7,BK29,IF(AR2=8,BN29))))))))) -> 21.3 | AI38: cm3 | AR38: R1 | AS38: =(G25/(2*AS45))*((AS45^2)-(AS46^2)) -> 317.9671739 | AT38: V | AU38: =AS38-(AS37*AU37) -> 317.9671739 | AV38: =AS38-(AS37*AV37) -> 244.683311 | AW38: =AS38-(AS37*AW37) -> 171.399448 | AX38: =AS38-(AS37*AX37) -> 98.1155851 | AY38: =AS38-(AS37*AY37) -> 24.83172215 | AZ38: =AS38-(AS37*AZ37) -> -48.45214079 | BA38: =AS38-(AS37*BA37) -> -121.7360037 | BB38: =AS38-(AS37*BB37) -> -195.0198667 | BC38: =AS38-(AS37*BC37) -> -268.3037296 | BD38: =AS38-(AS37*BD37) -> -341.5875926 | BE38: =AS38-(AS37*BE37) -> -414.8714555 | BF38: =AS37*(AS46-BF37) -> 266.4867743 | BG38: =AS37*(AS46-BG37) -> 239.8380969 | BH38: =AS37*(AS46-BH37) -> 213.1894195 | BI38: =AS37*(AS46-BI37) -> 186.540742 | BJ38: =AS37*(AS46-BJ37) -> 159.8920646 | BK38: =AS37*(AS46-BK37) -> 133.2433872 | BL38: =AS37*(AS46-BL37) -> 106.5947097 | BM38: =AS37*(AS46-BM37) -> 79.9460323 | BN38: =AS37*(AS46-BN37) -> 53.29735487 | BO38: =AS37*(AS46-BO37) -> 26.64867743 | BP38: =AS37*(AS46-BP37) -> 0
B39: fb | F39: = | G39: =((S35*100)/AE38)+((S36*100)/AE39) -> 1236.27702 | K39: kg./cm.2 | M39: =IF(G39<=S39,"≤",">") -> ≤ | N39: Fb | R39: = | S39: =0.6*G23 -> 1440 | W39: kg./cm.2 | Y39: =IF(G39<=S39,"","Fail") ->  | Z39: Sy | AD39: = | AE39: =IF(AND(AS30=FALSE,AV30=FALSE,AY30=FALSE,BB30=FALSE,BE30=FALSE,BH30=FALSE,BK30=FALSE,BN30=FALSE),0.0001,IF(AR2=1,AS30,IF(AR2=2,AV30,IF(AR2=3,AY30,IF(AR2=4,BB30,IF(AR2=5,BE30,IF(AR2=6,BH30,IF(AR2=7,BK30,IF(AR2=8,BN30))))))))) -> 7.81 | AI39: cm3 | AR39: R2 | AS39: =AS41+AS42 -> 681.3582299 | AT39: Mx | AU39: =((AS37*AU37)/(2*AS45))*((AS45^2)-(AS46^2)-(AS45*AU37)) -> 0 | AV39: =((AS37*AV37)/(2*AS45))*((AS45^2)-(AS46^2)-(AS45*AV37)) -> 107.1161039
Z40: rx | AD40: = | AE40: =IF(AND(AS31=FALSE,AV31=FALSE,AY31=FALSE,BB31=FALSE,BE31=FALSE,BH31=FALSE,BK31=FALSE,BN31=FALSE),0.0001,IF(AR2=1,AS31,IF(AR2=2,AV31,IF(AR2=3,AY31,IF(AR2=4,BB31,IF(AR2=5,BE31,IF(AR2=6,BH31,IF(AR2=7,BK31,IF(AR2=8,BN31))))))))) -> 3.9 | AI40: cm | AR40: V1 | AS40: =(G25/(2*AS45))*((AS45^2)-(AS46^2)) -> 317.9671739 | AT40: at x = | AU40: 0 | AV40: m.
Z41: ry | AD41: = | AE41: =IF(AND(AS32=FALSE,AV32=FALSE,AY32=FALSE,BB32=FALSE,BE32=FALSE,BH32=FALSE,BK32=FALSE,BN32=FALSE),0.0001,IF(AR2=1,AS32,IF(AR2=2,AV32,IF(AR2=3,AY32,IF(AR2=4,BB32,IF(AR2=5,BE32,IF(AR2=6,BH32,IF(AR2=7,BK32,IF(AR2=8,BN32))))))))) -> 1.87 | AI41: cm | AR41: V2 | AS41: =G25*AS46 -> 266.4867743 | AT41: at x = | AU41: =AS45 -> 3.807553954 | AV41: m. | AW41: xv | AX41: =AS38/AS37 -> 1.652037873 | AY41: m. | AZ41: 0 | BA41: 0
Z42: Sectional Area | AD42: = | AE42: =IF(AND(AS33=FALSE,AV33=FALSE,AY33=FALSE,BB33=FALSE,BE33=FALSE,BH33=FALSE,BK33=FALSE,BN33=FALSE),0.0001,IF(AR2=1,AS33,IF(AR2=2,AV33,IF(AR2=3,AY33,IF(AR2=4,BB33,IF(AR2=5,BE33,IF(AR2=6,BH33,IF(AR2=7,BK33,IF(AR2=8,BN33))))))))) -> 7.007 | AI42: cm2 | AR42: V3 | AS42: =(G25/(2*AS45))*((AS45^2)+(AS46^2)) -> 414.8714555 | AT42: at x = | AU42: =AS45 -> 3.807553954 | AV42: m. | AW42: xm | AX42: =AS45*(1-((AS46^2)/(AS45^2))) -> 3.304075745 | AY42: m. | AZ42: =BP46 -> 5.192119028 | BA42: 0
B43: X1 | F43: = | G43: =AX41 -> 1.652037873 | K43: m. | N43: X2 | R43: = | S43: =AX42 -> 3.304075745 | W43: m. | Z43: Unit Weight | AD43: = | AE43: =IF(AND(AS34=FALSE,AV34=FALSE,AY34=FALSE,BB34=FALSE,BE34=FALSE,BH34=FALSE,BK34=FALSE,BN34=FALSE),0.0001,IF(AR2=1,AS34,IF(AR2=2,AV34,IF(AR2=3,AY34,IF(AR2=4,BB34,IF(AR2=5,BE34,IF(AR2=6,BH34,IF(AR2=7,BK34,IF(AR2=8,BN34))))))))) -> 5.5 | AI43: kg./m. | AR43: M1 | AS43: =(AS37/(8*(AS45^2)))*((AS45+AS46)^2)*((AS45-AS46)^2) -> 262.6469068 | AT43: at x = | AU43: =(AS45/2)*(1-((AS46^2)/(AS45^2))) -> 1.652037873 | AV43: m. | AW43: M | AX43: =((AS37*AX41)/(2*AS45))*((AS45^2)-(AS46^2)-(AS45*AX41)) -> 262.6469068
B44: Reaction1 | F44: = | G44: =AS39/AE24 -> 340.6791149 | K44: kg./m. | N44: Reaction2 | R44: = | S44: =AS38*2/AE24 -> 317.9671739 | W44: kg./m. | Z44: Reaction3 | AD44: = | AE44: =((G25/COS(AS5))*AS16/2)*2 -> 845.5523094 | AI44: kg./m. | AR44: M2 | AS44: =AS37*(AS46^2)/2 -> 184.4841402 | AT44: at x = | AU44: =AS45 -> 3.807553954 | AV44: m. | AX44: 0
B45: Results => | I45: =AQ18&" "&AD35&" mm." -> Use : C-Light Lip Channel 100x50x20x3.2 mm. | X45: Weight | Z45: =AE43 -> 5.5 | AC45: kg./m. | AE45: =IF(OR(Y38="Fail",Y39="Fail"),"Try again !","Complete !!") -> Try again ! | AR45: L | AS45: =AS16 -> 3.807553954
AR46: a | AS46: =AS15 -> 1.384565074 | AT46: 0 | AU46: 0 | AV46: =AS45/10 -> 0.3807553954 | AW46: =AV46*2 -> 0.7615107908 | AX46: =AV46*3 -> 1.142266186 | AY46: =AV46*4 -> 1.523021582 | AZ46: =AV46*5 -> 1.903776977 | BA46: =AV46*6 -> 2.284532372 | BB46: =AV46*7 -> 2.665287768 | BC46: =AV46*8 -> 3.046043163 | BD46: =AV46*9 -> 3.426798558 | BE46: =AV46*10 -> 3.807553954 | BF46: =AV46*10 -> 3.807553954 | BG46: =BF46+BG37 -> 3.946010461 | BH46: =BF46+BH37 -> 4.084466969 | BI46: =BF46+BI37 -> 4.222923476 | BJ46: =BF46+BJ37 -> 4.361379983 | BK46: =BE46+BK37 -> 4.499836491 | BL46: =BE46+BL37 -> 4.638292998 | BM46: =BE46+BM37 -> 4.776749506 | BN46: =BE46+BN37 -> 4.915206013 | BO46: =BE46+BO37 -> 5.053662521 | BP46: =BE46+BP37 -> 5.192119028
AT47: M | AU47: =((AS37*AU37)/(2*AS45))*((AS45^2)-(AS46^2)-(AS45*AU37)) -> 0 | AV47: =((AS37*AV37)/(2*AS45))*((AS45^2)-(AS46^2)-(AS45*AV37)) -> 107.1161039 | AW47: =((AS37*AW37)/(2*AS45))*((AS45^2)-(AS46^2)-(AS45*AW37)) -> 186.3289816 | AX47: =((AS37*AX37)/(2*AS45))*((AS45^2)-(AS46^2)-(AS45*AX37)) -> 237.6386331 | AY47: =((AS37*AY37)/(2*AS45))*((AS45^2)-(AS46^2)-(AS45*AY37)) -> 261.0450584 | AZ47: =((AS37*AZ37)/(2*AS45))*((AS45^2)-(AS46^2)-(AS45*AZ37)) -> 256.5482575 | BA47: =((AS37*BA37)/(2*AS45))*((AS45^2)-(AS46^2)-(AS45*BA37)) -> 224.1482304 | BB47: =((AS37*BB37)/(2*AS45))*((AS45^2)-(AS46^2)-(AS45*BB37)) -> 163.844977 | BC47: =((AS37*BC37)/(2*AS45))*((AS45^2)-(AS46^2)-(AS45*BC37)) -> 75.6384975 | BD47: =((AS37*BD37)/(2*AS45))*((AS45^2)-(AS46^2)-(AS45*BD37)) -> -40.47120826 | BE47: =((AS37*BE37)/(2*AS45))*((AS45^2)-(AS46^2)-(AS45*BE37)) -> -184.4841402 | BF47: =-(AS37/2)*((AS46-BF37)^2) -> -184.4841402 | BG47: =-(AS37/2)*((AS46-BG37)^2) -> -149.4321536 | BH47: =-(AS37/2)*((AS46-BH37)^2) -> -118.0698497 | BI47: =-(AS37/2)*((AS46-BI37)^2) -> -90.39722871 | BJ47: =-(AS37/2)*((AS46-BJ37)^2) -> -66.41429048 | BK47: =-(AS37/2)*((AS46-BK37)^2) -> -46.12103506 | BL47: =-(AS37/2)*((AS46-BL37)^2) -> -29.51746244 | BM47: =-(AS37/2)*((AS46-BM37)^2) -> -16.60357262 | BN47: =-(AS37/2)*((AS46-BN37)^2) -> -7.379365609 | BO47: =-(AS37/2)*((AS46-BO37)^2) -> -1.844841402 | BP47: =(AS37/2)*((AS46-BP37)^2) -> 0
AS48: ∆ max. y-y(x) | AT48: =((AS37/100)*AX41*100)/(24*G22*AE36*AS45*100)*(((AS45*100)^4)-(2*((AS45*100)^2)*((AX41*100)^2))+((AS45*100)*((AX41*100)^3))-(2*((AS46*100)^2)*((AS45*100)^2))+(2*((AS46*100)^2)*((AX41*100)^2))) -> 1.596392439 | AU48: cm.
AS49: ∆ max. y-y(x1) | AT49: =((AS37/100)*(AS46*100)/(24*G22*AE36))*((4*((AS46*100)^2)*(AS45*100))-((AS45*100)^3)+(6*((AS46*100)^2)*AS46)-(4*(AS46*100)*((AS46*100)^2))+((AS46*100)^3))*-1 -> 1.670568735 | AU49: cm.
AR64: Carbon Steel Pipe | AT64: (For General Structural Purposes)
AR66: Dimension Tolerance
AR68: Side Length
AR69: : O. D< 50 mm. ± 1.5 mm. Thickness : Under 3 mm. ± 0.3 mm.
AR70: : O. D > 50 mm. ± 1.5 % Thickness : 3 mm. or over, ± 10%
AR71: : ± 10% Lenght : +50 mm., -0 mm.
AP73: Nominal dimention | AQ73: Outside Diameter | AR73: Thickness | AS73: Calculate Weight | AT73: Cross Sectional Area | AU73: Geometrical Moment of Inertia | AV73: Modulus of Section | AW73: Radius of Gyration | AZ73: Name | BA73: Diameter (mm.) | BB73: Weight (kg/m.) | BC73: Cross Section Area (sq.cm.) | BD73: Circumference (cm.)
AP74: DN | AQ74: D | AR74: T | AS74: W | AT74: A | AU74: I | AV74: Z | AW74: I | AY74: 1 | AZ74: RB 6 | BA74: 6 | BB74: 0.222 | BC74: 0.283 | BD74: 1.88
AP75: in. | AQ75: mm. | AR75: mm. | AS75: kg./m. | AT75: cm2 | AU75: cm4 | AV75: cm3 | AW75: cm. | AY75: 2 | AZ75: RB 9 | BA75: 9 | BB75: 0.499 | BC75: 0.636 | BD75: 2.82
AN76: 1 | AO76: 21.7x2.0 | AP76: 1/2 (15) | AQ76: 21.7 | AR76: 2 | AS76: 0.97 | AT76: 1.24 | AU76: 0.61 | AV76: 0.56 | AW76: 0.7 | AY76: 3 | AZ76: RB 12 | BA76: 12 | BB76: 0.888 | BC76: 1.131 | BD76: 3.77
AN77: 2 | AO77: 27.2x2.0 | AP77: 3/4 (20) | AQ77: 27.2 | AR77: 2 | AS77: 1.24 | AT77: 1.58 | AU77: 1.26 | AV77: 0.93 | AW77: 0.89 | AY77: 4 | AZ77: RB 15 | BA77: 15 | BB77: 1.387 | BC77: 1.767 | BD77: 4.71
AN78: 3 | AO78: 27.2x2.3 | AR78: 2.3 | AS78: 1.41 | AT78: 1.8 | AU78: 1.41 | AV78: 1.03 | AW78: 0.88 | AY78: 5 | AZ78: RB 19 | BA78: 19 | BB78: 2.226 | BC78: 2.835 | BD78: 5.96
AN79: 4 | AO79: 34.0x2.3 | AP79: 1 (25) | AQ79: 34 | AR79: 2.3 | AS79: 1.8 | AT79: 2.29 | AU79: 2.89 | AV79: 1.7 | AW79: 1.12 | AY79: 6 | AZ79: RB 25 | BA79: 25 | BB79: 3.853 | BC79: 4.909 | BD79: 7.85
AN80: 5 | AO80: 42.7x2.3 | AP80: 1 1/4 (32) | AQ80: 42.7 | AR80: 2.3 | AS80: 2.29 | AT80: 2.92 | AU80: 5.97 | AV80: 2.8 | AW80: 1.43 | AY80: 7 | AZ80: RB 28 | BA80: 28 | BB80: 4.834 | BC80: 6.158 | BD80: 8.79
AN81: 6 | AO81: 42.7x2.5 | AR81: 2.5 | AS81: 2.48 | AT81: 3.16 | AU81: 6.4 | AV81: 3 | AW81: 1.42 | AY81: 8 | AZ81: RB 34 | BA81: 34 | BB81: 7.127 | BC81: 9.079 | BD81: 10.68
